Workbook

Sheet input➡

Sheet 施設コード
A1: 参照する期間 | B1: 集計タイプ | C1: =IF(B2<>"",B2,"集計タイプを選択してください") -> 回答エリア | D1: 都道府県 | E1: 6分類 | F1: 市町村
A2: 11月 | B2: 回答エリア | C2: 福井駅前 エリア | D2: 福井県 | E2: =IFERROR(IF($C$1="回答エリア",VLOOKUP($C2,【M】エリア!$E$2:$H$121,3,FALSE),"▼選択してください。"),"▼選択してください。") -> 福井市・永平寺町 | F2: =IFERROR(IF($C$1="DMO","▼選択してください。",VLOOKUP($C2,【M】エリア!$E$2:$H$121,2,FALSE)),"▼選択してください。") -> 福井市
B21: エリア一覧
B22: ID | C22: QRコード名 | D22: 市町 | E22: =IF($B$2="回答エリア",T(【M】エリア!$H1:$H1),T(【M】エリア!$B1:$B1)) -> DMO（rawデータから自動更新）
B23: =IF($B$2="回答エリア",【M】エリア!$D2,【M】エリア!$A2) -> 01 | C23: =T(IF($B$2="回答エリア",【M】エリア!$E2,"")) -> 福井駅前 エリア | D23: =T(IF($B$2="回答エリア",【M】エリア!$F2,"")) -> 福井市 | E23: =T(IF($B$2="回答エリア",【M】エリア!$H2,【M】エリア!$B2)) -> 
B24: =IF($B$2="回答エリア",【M】エリア!$D3,【M】エリア!$A3) -> 02 | C24: =T(IF($B$2="回答エリア",【M】エリア!$E3,"")) -> 福井駅前 エリア（宿泊施設） | D24: =T(IF($B$2="回答エリア",【M】エリア!$F3,"")) -> 福井市 | E24: =T(IF($B$2="回答エリア",【M】エリア!$H3,【M】エリア!$B3)) -> 
B25: =IF($B$2="回答エリア",【M】エリア!$D4,【M】エリア!$A4) -> 03 | C25: =T(IF($B$2="回答エリア",【M】エリア!$E4,"")) -> 北ノ庄 エリア | D25: =T(IF($B$2="回答エリア",【M】エリア!$F4,"")) -> 福井市 | E25: =T(IF($B$2="回答エリア",【M】エリア!$H4,【M】エリア!$B4)) -> 
B26: =IF($B$2="回答エリア",【M】エリア!$D5,【M】エリア!$A5) -> 04 | C26: =T(IF($B$2="回答エリア",【M】エリア!$E5,"")) -> 名勝 養浩館庭園 エリア | D26: =T(IF($B$2="回答エリア",【M】エリア!$F5,"")) -> 福井市 | E26: =T(IF($B$2="回答エリア",【M】エリア!$H5,【M】エリア!$B5)) -> 
B27: =IF($B$2="回答エリア",【M】エリア!$D6,【M】エリア!$A6) -> 05 | C27: =T(IF($B$2="回答エリア",【M】エリア!$E6,"")) -> ふくい鮮いちば エリア | D27: =T(IF($B$2="回答エリア",【M】エリア!$F6,"")) -> 福井市 | E27: =T(IF($B$2="回答エリア",【M】エリア!$H6,【M】エリア!$B6)) -> 
B28: =IF($B$2="回答エリア",【M】エリア!$D7,【M】エリア!$A7) -> 06 | C28: =T(IF($B$2="回答エリア",【M】エリア!$E7,"")) -> 一乗谷朝倉氏遺跡 エリア | D28: =T(IF($B$2="回答エリア",【M】エリア!$F7,"")) -> 福井市 | E28: =T(IF($B$2="回答エリア",【M】エリア!$H7,【M】エリア!$B7)) -> 
B29: =IF($B$2="回答エリア",【M】エリア!$D8,【M】エリア!$A8) -> 07 | C29: =T(IF($B$2="回答エリア",【M】エリア!$E8,"")) -> 越前海岸 北部 エリア | D29: =T(IF($B$2="回答エリア",【M】エリア!$F8,"")) -> 福井市 | E29: =T(IF($B$2="回答エリア",【M】エリア!$H8,【M】エリア!$B8)) -> 
B30: =IF($B$2="回答エリア",【M】エリア!$D9,【M】エリア!$A9) -> 08 | C30: =T(IF($B$2="回答エリア",【M】エリア!$E9,"")) -> 大安禅寺 エリア | D30: =T(IF($B$2="回答エリア",【M】エリア!$F9,"")) -> 福井市 | E30: =T(IF($B$2="回答エリア",【M】エリア!$H9,【M】エリア!$B9)) -> 
B31: =IF($B$2="回答エリア",【M】エリア!$D10,【M】エリア!$A10) -> 09 | C31: =T(IF($B$2="回答エリア",【M】エリア!$E10,"")) -> 三国湊 エリア | D31: =T(IF($B$2="回答エリア",【M】エリア!$F10,"")) -> 坂井市 | E31: =T(IF($B$2="回答エリア",【M】エリア!$H10,【M】エリア!$B10)) -> (一社)DMOさかい観光局
B32: =IF($B$2="回答エリア",【M】エリア!$D11,【M】エリア!$A11) -> 10 | C32: =T(IF($B$2="回答エリア",【M】エリア!$E11,"")) -> 東尋坊 エリア | D32: =T(IF($B$2="回答エリア",【M】エリア!$F11,"")) -> 坂井市 | E32: =T(IF($B$2="回答エリア",【M】エリア!$H11,【M】エリア!$B11)) -> (一社)DMOさかい観光局
B33: =IF($B$2="回答エリア",【M】エリア!$D12,【M】エリア!$A12) -> 11 | C33: =T(IF($B$2="回答エリア",【M】エリア!$E12,"")) -> 越前松島水族館 エリア | D33: =T(IF($B$2="回答エリア",【M】エリア!$F12,"")) -> 坂井市 | E33: =T(IF($B$2="回答エリア",【M】エリア!$H12,【M】エリア!$B12)) -> (一社)DMOさかい観光局
B34: =IF($B$2="回答エリア",【M】エリア!$D13,【M】エリア!$A13) -> 12 | C34: =T(IF($B$2="回答エリア",【M】エリア!$E13,"")) -> 芝政ワールド エリア | D34: =T(IF($B$2="回答エリア",【M】エリア!$F13,"")) -> 坂井市 | E34: =T(IF($B$2="回答エリア",【M】エリア!$H13,【M】エリア!$B13)) -> (一社)DMOさかい観光局
B35: =IF($B$2="回答エリア",【M】エリア!$D14,【M】エリア!$A14) -> 13 | C35: =T(IF($B$2="回答エリア",【M】エリア!$E14,"")) -> 丸岡城 エリア | D35: =T(IF($B$2="回答エリア",【M】エリア!$F14,"")) -> 坂井市 | E35: =T(IF($B$2="回答エリア",【M】エリア!$H14,【M】エリア!$B14)) -> (一社)DMOさかい観光局
B36: =IF($B$2="回答エリア",【M】エリア!$D15,【M】エリア!$A15) -> 14 | C36: =T(IF($B$2="回答エリア",【M】エリア!$E15,"")) -> 花の駅 ゆりの里公園 エリア | D36: =T(IF($B$2="回答エリア",【M】エリア!$F15,"")) -> 坂井市 | E36: =T(IF($B$2="回答エリア",【M】エリア!$H15,【M】エリア!$B15)) -> (一社)DMOさかい観光局
B37: =IF($B$2="回答エリア",【M】エリア!$D16,【M】エリア!$A16) -> 15 | C37: =T(IF($B$2="回答エリア",【M】エリア!$E16,"")) -> 道の駅みくに ふれあいパーク三里浜 エリア | D37: =T(IF($B$2="回答エリア",【M】エリア!$F16,"")) -> 坂井市 | E37: =T(IF($B$2="回答エリア",【M】エリア!$H16,【M】エリア!$B16)) -> (一社)DMOさかい観光局
B38: =IF($B$2="回答エリア",【M】エリア!$D17,【M】エリア!$A17) -> 16 | C38: =T(IF($B$2="回答エリア",【M】エリア!$E17,"")) -> JR芦原温泉駅 エリア | D38: =T(IF($B$2="回答エリア",【M】エリア!$F17,"")) -> あわら市 | E38: =T(IF($B$2="回答エリア",【M】エリア!$H17,【M】エリア!$B17)) -> 
B39: =IF($B$2="回答エリア",【M】エリア!$D18,【M】エリア!$A18) -> 17 | C39: =T(IF($B$2="回答エリア",【M】エリア!$E18,"")) -> あわら湯のまち エリア | D39: =T(IF($B$2="回答エリア",【M】エリア!$F18,"")) -> あわら市 | E39: =T(IF($B$2="回答エリア",【M】エリア!$H18,【M】エリア!$B18)) -> 
B40: =IF($B$2="回答エリア",【M】エリア!$D19,【M】エリア!$A19) -> 18 | C40: =T(IF($B$2="回答エリア",【M】エリア!$E19,"")) -> フルーツライン エリア | D40: =T(IF($B$2="回答エリア",【M】エリア!$F19,"")) -> あわら市 | E40: =T(IF($B$2="回答エリア",【M】エリア!$H19,【M】エリア!$B19)) -> 
B41: =IF($B$2="回答エリア",【M】エリア!$D20,【M】エリア!$A20) -> 19 | C41: =T(IF($B$2="回答エリア",【M】エリア!$E20,"")) -> 波松 エリア | D41: =T(IF($B$2="回答エリア",【M】エリア!$F20,"")) -> あわら市 | E41: =T(IF($B$2="回答エリア",【M】エリア!$H20,【M】エリア!$B20)) -> 
B42: =IF($B$2="回答エリア",【M】エリア!$D21,【M】エリア!$A21) -> 20 | C42: =T(IF($B$2="回答エリア",【M】エリア!$E21,"")) -> 北潟湖 エリア | D42: =T(IF($B$2="回答エリア",【M】エリア!$F21,"")) -> あわら市 | E42: =T(IF($B$2="回答エリア",【M】エリア!$H21,【M】エリア!$B21)) -> 
B43: =IF($B$2="回答エリア",【M】エリア!$D22,【M】エリア!$A22) -> 21 | C43: =T(IF($B$2="回答エリア",【M】エリア!$E22,"")) -> 越前大野城・城下町 エリア | D43: =T(IF($B$2="回答エリア",【M】エリア!$F22,"")) -> 大野市 | E43: =T(IF($B$2="回答エリア",【M】エリア!$H22,【M】エリア!$B22)) -> 
B44: =IF($B$2="回答エリア",【M】エリア!$D23,【M】エリア!$A23) -> 22 | C44: =T(IF($B$2="回答エリア",【M】エリア!$E23,"")) -> 道の駅「越前おおの荒島の郷」 エリア | D44: =T(IF($B$2="回答エリア",【M】エリア!$F23,"")) -> 大野市 | E44: =T(IF($B$2="回答エリア",【M】エリア!$H23,【M】エリア!$B23)) -> 
B45: =IF($B$2="回答エリア",【M】エリア!$D24,【M】エリア!$A24) -> 23 | C45: =T(IF($B$2="回答エリア",【M】エリア!$E24,"")) -> JR九頭竜湖駅 エリア | D45: =T(IF($B$2="回答エリア",【M】エリア!$F24,"")) -> 大野市 | E45: =T(IF($B$2="回答エリア",【M】エリア!$H24,【M】エリア!$B24)) -> 
B46: =IF($B$2="回答エリア",【M】エリア!$D25,【M】エリア!$A25) -> 24 | C46: =T(IF($B$2="回答エリア",【M】エリア!$E25,"")) -> 六呂師高原 エリア | D46: =T(IF($B$2="回答エリア",【M】エリア!$F25,"")) -> 大野市 | E46: =T(IF($B$2="回答エリア",【M】エリア!$H25,【M】エリア!$B25)) -> 
B47: =IF($B$2="回答エリア",【M】エリア!$D26,【M】エリア!$A26) -> 25 | C47: =T(IF($B$2="回答エリア",【M】エリア!$E26,"")) -> かつやま恐竜の森 エリア | D47: =T(IF($B$2="回答エリア",【M】エリア!$F26,"")) -> 勝山市 | E47: =T(IF($B$2="回答エリア",【M】エリア!$H26,【M】エリア!$B26)) -> 勝山市観光まちづくり(株)
B48: =IF($B$2="回答エリア",【M】エリア!$D27,【M】エリア!$A27) -> 26 | C48: =T(IF($B$2="回答エリア",【M】エリア!$E27,"")) -> 道の駅「恐竜渓谷かつやま」 エリア | D48: =T(IF($B$2="回答エリア",【M】エリア!$F27,"")) -> 勝山市 | E48: =T(IF($B$2="回答エリア",【M】エリア!$H27,【M】エリア!$B27)) -> 勝山市観光まちづくり(株)
B49: =IF($B$2="回答エリア",【M】エリア!$D28,【M】エリア!$A28) -> 27 | C49: =T(IF($B$2="回答エリア",【M】エリア!$E28,"")) -> スキージャム勝山 エリア | D49: =T(IF($B$2="回答エリア",【M】エリア!$F28,"")) -> 勝山市 | E49: =T(IF($B$2="回答エリア",【M】エリア!$H28,【M】エリア!$B28)) -> 勝山市観光まちづくり(株)
B50: =IF($B$2="回答エリア",【M】エリア!$D29,【M】エリア!$A29) -> 28 | C50: =T(IF($B$2="回答エリア",【M】エリア!$E29,"")) -> 越前大仏 エリア | D50: =T(IF($B$2="回答エリア",【M】エリア!$F29,"")) -> 勝山市 | E50: =T(IF($B$2="回答エリア",【M】エリア!$H29,【M】エリア!$B29)) -> 勝山市観光まちづくり(株)
B51: =IF($B$2="回答エリア",【M】エリア!$D30,【M】エリア!$A30) -> 29 | C51: =T(IF($B$2="回答エリア",【M】エリア!$E30,"")) -> 平泉寺白山神社 エリア | D51: =T(IF($B$2="回答エリア",【M】エリア!$F30,"")) -> 勝山市 | E51: =T(IF($B$2="回答エリア",【M】エリア!$H30,【M】エリア!$B30)) -> 勝山市観光まちづくり(株)
B52: =IF($B$2="回答エリア",【M】エリア!$D31,【M】エリア!$A31) -> 30 | C52: =T(IF($B$2="回答エリア",【M】エリア!$E31,"")) -> はたや記念館 ゆめおーれ勝山 エリア | D52: =T(IF($B$2="回答エリア",【M】エリア!$F31,"")) -> 勝山市 | E52: =T(IF($B$2="回答エリア",【M】エリア!$H31,【M】エリア!$B31)) -> 勝山市観光まちづくり(株)
B53: =IF($B$2="回答エリア",【M】エリア!$D32,【M】エリア!$A32) -> 31 | C53: =T(IF($B$2="回答エリア",【M】エリア!$E32,"")) -> えちぜん鉄道 永平寺口駅 エリア | D53: =T(IF($B$2="回答エリア",【M】エリア!$F32,"")) -> 永平寺町 | E53: =T(IF($B$2="回答エリア",【M】エリア!$H32,【M】エリア!$B32)) -> 
B54: =IF($B$2="回答エリア",【M】エリア!$D33,【M】エリア!$A33) -> 33 | C54: =T(IF($B$2="回答エリア",【M】エリア!$E33,"")) -> えちぜん鉄道 松岡駅 エリア | D54: =T(IF($B$2="回答エリア",【M】エリア!$F33,"")) -> 永平寺町 | E54: =T(IF($B$2="回答エリア",【M】エリア!$H33,【M】エリア!$B33)) -> 
B55: =IF($B$2="回答エリア",【M】エリア!$D34,【M】エリア!$A34) -> 34 | C55: =T(IF($B$2="回答エリア",【M】エリア!$E34,"")) -> 大本山 永平寺 エリア | D55: =T(IF($B$2="回答エリア",【M】エリア!$F34,"")) -> 永平寺町 | E55: =T(IF($B$2="回答エリア",【M】エリア!$H34,【M】エリア!$B34)) -> 
B56: =IF($B$2="回答エリア",【M】エリア!$D35,【M】エリア!$A35) -> 35 | C56: =T(IF($B$2="回答エリア",【M】エリア!$E35,"")) -> 道の駅「禅の里」 エリア | D56: =T(IF($B$2="回答エリア",【M】エリア!$F35,"")) -> 永平寺町 | E56: =T(IF($B$2="回答エリア",【M】エリア!$H35,【M】エリア!$B35)) -> 
B57: =IF($B$2="回答エリア",【M】エリア!$D36,【M】エリア!$A36) -> 36 | C57: =T(IF($B$2="回答エリア",【M】エリア!$E36,"")) -> 越前和紙の里 エリア | D57: =T(IF($B$2="回答エリア",【M】エリア!$F36,"")) -> 越前市 | E57: =T(IF($B$2="回答エリア",【M】エリア!$H36,【M】エリア!$B36)) -> 
B58: =IF($B$2="回答エリア",【M】エリア!$D37,【M】エリア!$A37) -> 37 | C58: =T(IF($B$2="回答エリア",【M】エリア!$E37,"")) -> 越前そばの里 エリア | D58: =T(IF($B$2="回答エリア",【M】エリア!$F37,"")) -> 越前市 | E58: =T(IF($B$2="回答エリア",【M】エリア!$H37,【M】エリア!$B37)) -> 
B59: =IF($B$2="回答エリア",【M】エリア!$D38,【M】エリア!$A38) -> 38 | C59: =T(IF($B$2="回答エリア",【M】エリア!$E38,"")) -> 北陸新幹線 越前たけふ駅 エリア | D59: =T(IF($B$2="回答エリア",【M】エリア!$F38,"")) -> 越前市 | E59: =T(IF($B$2="回答エリア",【M】エリア!$H38,【M】エリア!$B38)) -> 
B60: =IF($B$2="回答エリア",【M】エリア!$D39,【M】エリア!$A39) -> 39 | C60: =T(IF($B$2="回答エリア",【M】エリア!$E39,"")) -> タケフナイフビレッジ エリア | D60: =T(IF($B$2="回答エリア",【M】エリア!$F39,"")) -> 越前市 | E60: =T(IF($B$2="回答エリア",【M】エリア!$H39,【M】エリア!$B39)) -> 
B61: =IF($B$2="回答エリア",【M】エリア!$D40,【M】エリア!$A40) -> 40 | C61: =T(IF($B$2="回答エリア",【M】エリア!$E40,"")) -> 武生駅 エリア | D61: =T(IF($B$2="回答エリア",【M】エリア!$F40,"")) -> 越前市 | E61: =T(IF($B$2="回答エリア",【M】エリア!$H40,【M】エリア!$B40)) -> 
B62: =IF($B$2="回答エリア",【M】エリア!$D41,【M】エリア!$A41) -> 41 | C62: =T(IF($B$2="回答エリア",【M】エリア!$E41,"")) -> 紫式部公園 エリア | D62: =T(IF($B$2="回答エリア",【M】エリア!$F41,"")) -> 越前市 | E62: =T(IF($B$2="回答エリア",【M】エリア!$H41,【M】エリア!$B41)) -> 
B63: =IF($B$2="回答エリア",【M】エリア!$D42,【M】エリア!$A42) -> 42 | C63: =T(IF($B$2="回答エリア",【M】エリア!$E42,"")) -> だるまちゃん広場 エリア | D63: =T(IF($B$2="回答エリア",【M】エリア!$F42,"")) -> 越前市 | E63: =T(IF($B$2="回答エリア",【M】エリア!$H42,【M】エリア!$B42)) -> 
B64: =IF($B$2="回答エリア",【M】エリア!$D43,【M】エリア!$A43) -> 43 | C64: =T(IF($B$2="回答エリア",【M】エリア!$E43,"")) -> 刃物の里 エリア | D64: =T(IF($B$2="回答エリア",【M】エリア!$F43,"")) -> 越前市 | E64: =T(IF($B$2="回答エリア",【M】エリア!$H43,【M】エリア!$B43)) -> 
B65: =IF($B$2="回答エリア",【M】エリア!$D44,【M】エリア!$A44) -> 44 | C65: =T(IF($B$2="回答エリア",【M】エリア!$E44,"")) -> 道の駅「西山公園」 エリア | D65: =T(IF($B$2="回答エリア",【M】エリア!$F44,"")) -> 鯖江市 | E65: =T(IF($B$2="回答エリア",【M】エリア!$H44,【M】エリア!$B44)) -> 
B66: =IF($B$2="回答エリア",【M】エリア!$D45,【M】エリア!$A45) -> 45 | C66: =T(IF($B$2="回答エリア",【M】エリア!$E45,"")) -> メガネストリート エリア | D66: =T(IF($B$2="回答エリア",【M】エリア!$F45,"")) -> 鯖江市 | E66: =T(IF($B$2="回答エリア",【M】エリア!$H45,【M】エリア!$B45)) -> 
B67: =IF($B$2="回答エリア",【M】エリア!$D46,【M】エリア!$A46) -> 46 | C67: =T(IF($B$2="回答エリア",【M】エリア!$E46,"")) -> うるしの里 エリア | D67: =T(IF($B$2="回答エリア",【M】エリア!$F46,"")) -> 鯖江市 | E67: =T(IF($B$2="回答エリア",【M】エリア!$H46,【M】エリア!$B46)) -> 
B68: =IF($B$2="回答エリア",【M】エリア!$D47,【M】エリア!$A47) -> 47 | C68: =T(IF($B$2="回答エリア",【M】エリア!$E47,"")) -> まちの市場 こってコテいけだ エリア | D68: =T(IF($B$2="回答エリア",【M】エリア!$F47,"")) -> 池田町 | E68: =T(IF($B$2="回答エリア",【M】エリア!$H47,【M】エリア!$B47)) -> （一財）いけだ農村観光公社
B69: =IF($B$2="回答エリア",【M】エリア!$D48,【M】エリア!$A48) -> 48 | C69: =T(IF($B$2="回答エリア",【M】エリア!$E48,"")) -> かずら橋 エリア | D69: =T(IF($B$2="回答エリア",【M】エリア!$F48,"")) -> 池田町 | E69: =T(IF($B$2="回答エリア",【M】エリア!$H48,【M】エリア!$B48)) -> （一財）いけだ農村観光公社
B70: =IF($B$2="回答エリア",【M】エリア!$D49,【M】エリア!$A49) -> 49 | C70: =T(IF($B$2="回答エリア",【M】エリア!$E49,"")) -> 道の駅「越前」 エリア | D70: =T(IF($B$2="回答エリア",【M】エリア!$F49,"")) -> 越前町 | E70: =T(IF($B$2="回答エリア",【M】エリア!$H49,【M】エリア!$B49)) -> 一般社団法人 越前町観光連盟（DMO ECHIZEN）
B71: =IF($B$2="回答エリア",【M】エリア!$D50,【M】エリア!$A50) -> 50 | C71: =T(IF($B$2="回答エリア",【M】エリア!$E50,"")) -> 道の駅「パークイン丹生ヶ丘」 エリア | D71: =T(IF($B$2="回答エリア",【M】エリア!$F50,"")) -> 越前町 | E71: =T(IF($B$2="回答エリア",【M】エリア!$H50,【M】エリア!$B50)) -> 一般社団法人 越前町観光連盟（DMO ECHIZEN）
B72: =IF($B$2="回答エリア",【M】エリア!$D51,【M】エリア!$A51) -> 51 | C72: =T(IF($B$2="回答エリア",【M】エリア!$E51,"")) -> 劔神社 エリア | D72: =T(IF($B$2="回答エリア",【M】エリア!$F51,"")) -> 越前町 | E72: =T(IF($B$2="回答エリア",【M】エリア!$H51,【M】エリア!$B51)) -> 一般社団法人 越前町観光連盟（DMO ECHIZEN）
B73: =IF($B$2="回答エリア",【M】エリア!$D52,【M】エリア!$A52) -> 52 | C73: =T(IF($B$2="回答エリア",【M】エリア!$E52,"")) -> 越前陶芸村 エリア | D73: =T(IF($B$2="回答エリア",【M】エリア!$F52,"")) -> 越前町 | E73: =T(IF($B$2="回答エリア",【M】エリア!$H52,【M】エリア!$B52)) -> 一般社団法人 越前町観光連盟（DMO ECHIZEN）
B74: =IF($B$2="回答エリア",【M】エリア!$D53,【M】エリア!$A53) -> 53 | C74: =T(IF($B$2="回答エリア",【M】エリア!$E53,"")) -> 越前海岸 越前岬 エリア | D74: =T(IF($B$2="回答エリア",【M】エリア!$F53,"")) -> 越前町 | E74: =T(IF($B$2="回答エリア",【M】エリア!$H53,【M】エリア!$B53)) -> 一般社団法人 越前町観光連盟（DMO ECHIZEN）
B75: =IF($B$2="回答エリア",【M】エリア!$D54,【M】エリア!$A54) -> 54 | C75: =T(IF($B$2="回答エリア",【M】エリア!$E54,"")) -> 越前漁港 エリア | D75: =T(IF($B$2="回答エリア",【M】エリア!$F54,"")) -> 越前町 | E75: =T(IF($B$2="回答エリア",【M】エリア!$H54,【M】エリア!$B54)) -> 一般社団法人 越前町観光連盟（DMO ECHIZEN）
B76: =IF($B$2="回答エリア",【M】エリア!$D55,【M】エリア!$A55) -> 55 | C76: =T(IF($B$2="回答エリア",【M】エリア!$E55,"")) -> 越前海岸 茂原民宿街 エリア | D76: =T(IF($B$2="回答エリア",【M】エリア!$F55,"")) -> 越前町 | E76: =T(IF($B$2="回答エリア",【M】エリア!$H55,【M】エリア!$B55)) -> 一般社団法人 越前町観光連盟（DMO ECHIZEN）
B77: =IF($B$2="回答エリア",【M】エリア!$D56,【M】エリア!$A56) -> 56 | C77: =T(IF($B$2="回答エリア",【M】エリア!$E56,"")) -> 越前海岸 高佐米ノ旅館街 エリア | D77: =T(IF($B$2="回答エリア",【M】エリア!$F56,"")) -> 越前町 | E77: =T(IF($B$2="回答エリア",【M】エリア!$H56,【M】エリア!$B56)) -> 一般社団法人 越前町観光連盟（DMO ECHIZEN）
B78: =IF($B$2="回答エリア",【M】エリア!$D57,【M】エリア!$A57) -> 57 | C78: =T(IF($B$2="回答エリア",【M】エリア!$E57,"")) -> 越前海岸 くりや旅館街 エリア | D78: =T(IF($B$2="回答エリア",【M】エリア!$F57,"")) -> 越前町 | E78: =T(IF($B$2="回答エリア",【M】エリア!$H57,【M】エリア!$B57)) -> 一般社団法人 越前町観光連盟（DMO ECHIZEN）
B79: =IF($B$2="回答エリア",【M】エリア!$D58,【M】エリア!$A58) -> 58 | C79: =T(IF($B$2="回答エリア",【M】エリア!$E58,"")) -> 道の駅「南えちぜん山海里」 エリア | D79: =T(IF($B$2="回答エリア",【M】エリア!$F58,"")) -> 南越前町 | E79: =T(IF($B$2="回答エリア",【M】エリア!$H58,【M】エリア!$B58)) -> 
B80: =IF($B$2="回答エリア",【M】エリア!$D59,【M】エリア!$A59) -> 59 | C80: =T(IF($B$2="回答エリア",【M】エリア!$E59,"")) -> 河野北前船主通りエリア | D80: =T(IF($B$2="回答エリア",【M】エリア!$F59,"")) -> 南越前町 | E80: =T(IF($B$2="回答エリア",【M】エリア!$H59,【M】エリア!$B59)) -> 
B81: =IF($B$2="回答エリア",【M】エリア!$D60,【M】エリア!$A60) -> 59 | C81: =T(IF($B$2="回答エリア",【M】エリア!$E60,"")) -> 北前船主の館 右近家 エリア | D81: =T(IF($B$2="回答エリア",【M】エリア!$F60,"")) -> 南越前町 | E81: =T(IF($B$2="回答エリア",【M】エリア!$H60,【M】エリア!$B60)) -> 
B82: =IF($B$2="回答エリア",【M】エリア!$D61,【M】エリア!$A61) -> 60 | C82: =T(IF($B$2="回答エリア",【M】エリア!$E61,"")) -> 今庄宿 エリア | D82: =T(IF($B$2="回答エリア",【M】エリア!$F61,"")) -> 南越前町 | E82: =T(IF($B$2="回答エリア",【M】エリア!$H61,【M】エリア!$B61)) -> 
B83: =IF($B$2="回答エリア",【M】エリア!$D62,【M】エリア!$A62) -> 61 | C83: =T(IF($B$2="回答エリア",【M】エリア!$E62,"")) -> 日本海さかな街 エリア | D83: =T(IF($B$2="回答エリア",【M】エリア!$F62,"")) -> 敦賀市 | E83: =T(IF($B$2="回答エリア",【M】エリア!$H62,【M】エリア!$B62)) -> 
B84: =IF($B$2="回答エリア",【M】エリア!$D63,【M】エリア!$A63) -> 62 | C84: =T(IF($B$2="回答エリア",【M】エリア!$E63,"")) -> 神楽通り エリア | D84: =T(IF($B$2="回答エリア",【M】エリア!$F63,"")) -> 敦賀市 | E84: =T(IF($B$2="回答エリア",【M】エリア!$H63,【M】エリア!$B63)) -> 
B85: =IF($B$2="回答エリア",【M】エリア!$D64,【M】エリア!$A64) -> 63 | C85: =T(IF($B$2="回答エリア",【M】エリア!$E64,"")) -> JR敦賀駅前 エリア | D85: =T(IF($B$2="回答エリア",【M】エリア!$F64,"")) -> 敦賀市 | E85: =T(IF($B$2="回答エリア",【M】エリア!$H64,【M】エリア!$B64)) -> 
B86: =IF($B$2="回答エリア",【M】エリア!$D65,【M】エリア!$A65) -> 64 | C86: =T(IF($B$2="回答エリア",【M】エリア!$E65,"")) -> 金ヶ崎 エリア | D86: =T(IF($B$2="回答エリア",【M】エリア!$F65,"")) -> 敦賀市 | E86: =T(IF($B$2="回答エリア",【M】エリア!$H65,【M】エリア!$B65)) -> 
B87: =IF($B$2="回答エリア",【M】エリア!$D66,【M】エリア!$A66) -> 65 | C87: =T(IF($B$2="回答エリア",【M】エリア!$E66,"")) -> 敦賀市立博物館 エリア | D87: =T(IF($B$2="回答エリア",【M】エリア!$F66,"")) -> 敦賀市 | E87: =T(IF($B$2="回答エリア",【M】エリア!$H66,【M】エリア!$B66)) -> 
B88: =IF($B$2="回答エリア",【M】エリア!$D67,【M】エリア!$A67) -> 66 | C88: =T(IF($B$2="回答エリア",【M】エリア!$E67,"")) -> 水島 エリア | D88: =T(IF($B$2="回答エリア",【M】エリア!$F67,"")) -> 敦賀市 | E88: =T(IF($B$2="回答エリア",【M】エリア!$H67,【M】エリア!$B67)) -> 
B89: =IF($B$2="回答エリア",【M】エリア!$D68,【M】エリア!$A68) -> 67 | C89: =T(IF($B$2="回答エリア",【M】エリア!$E68,"")) -> 小浜市 阿納 エリア | D89: =T(IF($B$2="回答エリア",【M】エリア!$F68,"")) -> 小浜市 | E89: =T(IF($B$2="回答エリア",【M】エリア!$H68,【M】エリア!$B68)) -> (株)まちづくり小浜
B90: =IF($B$2="回答エリア",【M】エリア!$D69,【M】エリア!$A69) -> 68 | C90: =T(IF($B$2="回答エリア",【M】エリア!$E69,"")) -> 道の駅「若狭おばま」 エリア | D90: =T(IF($B$2="回答エリア",【M】エリア!$F69,"")) -> 小浜市 | E90: =T(IF($B$2="回答エリア",【M】エリア!$H69,【M】エリア!$B69)) -> (株)まちづくり小浜
B91: =IF($B$2="回答エリア",【M】エリア!$D70,【M】エリア!$A70) -> 69 | C91: =T(IF($B$2="回答エリア",【M】エリア!$E70,"")) -> 小浜 エリア（宿泊施設） | D91: =T(IF($B$2="回答エリア",【M】エリア!$F70,"")) -> 小浜市 | E91: =T(IF($B$2="回答エリア",【M】エリア!$H70,【M】エリア!$B70)) -> (株)まちづくり小浜
B92: =IF($B$2="回答エリア",【M】エリア!$D71,【M】エリア!$A71) -> 70 | C92: =T(IF($B$2="回答エリア",【M】エリア!$E71,"")) -> 若狭フィッシャーマンズワーフ エリア | D92: =T(IF($B$2="回答エリア",【M】エリア!$F71,"")) -> 小浜市 | E92: =T(IF($B$2="回答エリア",【M】エリア!$H71,【M】エリア!$B71)) -> (株)まちづくり小浜
B93: =IF($B$2="回答エリア",【M】エリア!$D72,【M】エリア!$A72) -> 71 | C93: =T(IF($B$2="回答エリア",【M】エリア!$E72,"")) -> 御食国若狭おばま食文化館 エリア | D93: =T(IF($B$2="回答エリア",【M】エリア!$F72,"")) -> 小浜市 | E93: =T(IF($B$2="回答エリア",【M】エリア!$H72,【M】エリア!$B72)) -> (株)まちづくり小浜
B94: =IF($B$2="回答エリア",【M】エリア!$D73,【M】エリア!$A73) -> 72 | C94: =T(IF($B$2="回答エリア",【M】エリア!$E73,"")) -> 小浜市まちの駅 エリア | D94: =T(IF($B$2="回答エリア",【M】エリア!$F73,"")) -> 小浜市 | E94: =T(IF($B$2="回答エリア",【M】エリア!$H73,【M】エリア!$B73)) -> (株)まちづくり小浜
B95: =IF($B$2="回答エリア",【M】エリア!$D74,【M】エリア!$A74) -> 73 | C95: =T(IF($B$2="回答エリア",【M】エリア!$E74,"")) -> 明通寺 エリア | D95: =T(IF($B$2="回答エリア",【M】エリア!$F74,"")) -> 小浜市 | E95: =T(IF($B$2="回答エリア",【M】エリア!$H74,【M】エリア!$B74)) -> (株)まちづくり小浜
B96: =IF($B$2="回答エリア",【M】エリア!$D75,【M】エリア!$A75) -> 74 | C96: =T(IF($B$2="回答エリア",【M】エリア!$E75,"")) -> 箸のふるさと館WAKASA エリア | D96: =T(IF($B$2="回答エリア",【M】エリア!$F75,"")) -> 小浜市 | E96: =T(IF($B$2="回答エリア",【M】エリア!$H75,【M】エリア!$B75)) -> (株)まちづくり小浜
B97: =IF($B$2="回答エリア",【M】エリア!$D76,【M】エリア!$A76) -> 75 | C97: =T(IF($B$2="回答エリア",【M】エリア!$E76,"")) -> 美浜町レイクセンター エリア | D97: =T(IF($B$2="回答エリア",【M】エリア!$F76,"")) -> 美浜町 | E97: =T(IF($B$2="回答エリア",【M】エリア!$H76,【M】エリア!$B76)) -> 三方五湖DMO(株)
B98: =IF($B$2="回答エリア",【M】エリア!$D77,【M】エリア!$A77) -> 75 | C98: =T(IF($B$2="回答エリア",【M】エリア!$E77,"")) -> 水晶浜 エリア | D98: =T(IF($B$2="回答エリア",【M】エリア!$F77,"")) -> 美浜町 | E98: =T(IF($B$2="回答エリア",【M】エリア!$H77,【M】エリア!$B77)) -> 三方五湖DMO(株)
B99: =IF($B$2="回答エリア",【M】エリア!$D78,【M】エリア!$A78) -> 77 | C99: =T(IF($B$2="回答エリア",【M】エリア!$E78,"")) -> レインボーライン エリア | D99: =T(IF($B$2="回答エリア",【M】エリア!$F78,"")) -> 美浜町 | E99: =T(IF($B$2="回答エリア",【M】エリア!$H78,【M】エリア!$B78)) -> 三方五湖DMO(株)
B100: =IF($B$2="回答エリア",【M】エリア!$D79,【M】エリア!$A79) -> 78 | C100: =T(IF($B$2="回答エリア",【M】エリア!$E79,"")) -> 若狭海遊バザール 千鳥苑 エリア | D100: =T(IF($B$2="回答エリア",【M】エリア!$F79,"")) -> 美浜町 | E100: =T(IF($B$2="回答エリア",【M】エリア!$H79,【M】エリア!$B79)) -> 三方五湖DMO(株)
B101: =IF($B$2="回答エリア",【M】エリア!$D80,【M】エリア!$A80) -> 79 | C101: =T(IF($B$2="回答エリア",【M】エリア!$E80,"")) -> JR美浜駅 エリア | D101: =T(IF($B$2="回答エリア",【M】エリア!$F80,"")) -> 美浜町 | E101: =T(IF($B$2="回答エリア",【M】エリア!$H80,【M】エリア!$B80)) -> 三方五湖DMO(株)
B102: =IF($B$2="回答エリア",【M】エリア!$D81,【M】エリア!$A81) -> 81 | C102: =T(IF($B$2="回答エリア",【M】エリア!$E81,"")) -> 熊川宿 エリア | D102: =T(IF($B$2="回答エリア",【M】エリア!$F81,"")) -> 若狭町 | E102: =T(IF($B$2="回答エリア",【M】エリア!$H81,【M】エリア!$B81)) -> 三方五湖DMO(株)
B103: =IF($B$2="回答エリア",【M】エリア!$D82,【M】エリア!$A82) -> 82 | C103: =T(IF($B$2="回答エリア",【M】エリア!$E82,"")) -> 湖上館パムコ（水月湖）エリア | D103: =T(IF($B$2="回答エリア",【M】エリア!$F82,"")) -> 若狭町 | E103: =T(IF($B$2="回答エリア",【M】エリア!$H82,【M】エリア!$B82)) -> 三方五湖DMO(株)
B104: =IF($B$2="回答エリア",【M】エリア!$D83,【M】エリア!$A83) -> 83 | C104: =T(IF($B$2="回答エリア",【M】エリア!$E83,"")) -> 道の駅「三方五湖」 エリア | D104: =T(IF($B$2="回答エリア",【M】エリア!$F83,"")) -> 若狭町 | E104: =T(IF($B$2="回答エリア",【M】エリア!$H83,【M】エリア!$B83)) -> 三方五湖DMO(株)
B105: =IF($B$2="回答エリア",【M】エリア!$D84,【M】エリア!$A84) -> 84 | C105: =T(IF($B$2="回答エリア",【M】エリア!$E84,"")) -> うみんぴあ大飯 エリア | D105: =T(IF($B$2="回答エリア",【M】エリア!$F84,"")) -> おおい町 | E105: =T(IF($B$2="回答エリア",【M】エリア!$H84,【M】エリア!$B84)) -> 
B106: =IF($B$2="回答エリア",【M】エリア!$D85,【M】エリア!$A85) -> 85 | C106: =T(IF($B$2="回答エリア",【M】エリア!$E85,"")) -> 若州一滴文庫 エリア | D106: =T(IF($B$2="回答エリア",【M】エリア!$F85,"")) -> おおい町 | E106: =T(IF($B$2="回答エリア",【M】エリア!$H85,【M】エリア!$B85)) -> 
B107: =IF($B$2="回答エリア",【M】エリア!$D86,【M】エリア!$A86) -> 86 | C107: =T(IF($B$2="回答エリア",【M】エリア!$E86,"")) -> 名田庄 エリア | D107: =T(IF($B$2="回答エリア",【M】エリア!$F86,"")) -> おおい町 | E107: =T(IF($B$2="回答エリア",【M】エリア!$H86,【M】エリア!$B86)) -> 
B108: =IF($B$2="回答エリア",【M】エリア!$D87,【M】エリア!$A87) -> 87 | C108: =T(IF($B$2="回答エリア",【M】エリア!$E87,"")) -> 赤礁崎オートキャンプ場 エリア | D108: =T(IF($B$2="回答エリア",【M】エリア!$F87,"")) -> おおい町 | E108: =T(IF($B$2="回答エリア",【M】エリア!$H87,【M】エリア!$B87)) -> 
B109: =IF($B$2="回答エリア",【M】エリア!$D88,【M】エリア!$A88) -> 88 | C109: =T(IF($B$2="回答エリア",【M】エリア!$E88,"")) -> 道の駅「シーサイド高浜」 エリア | D109: =T(IF($B$2="回答エリア",【M】エリア!$F88,"")) -> 高浜町 | E109: =T(IF($B$2="回答エリア",【M】エリア!$H88,【M】エリア!$B88)) -> 
B110: =IF($B$2="回答エリア",【M】エリア!$D89,【M】エリア!$A89) -> 89 | C110: =T(IF($B$2="回答エリア",【M】エリア!$E89,"")) -> 若狭和田 エリア | D110: =T(IF($B$2="回答エリア",【M】エリア!$F89,"")) -> 高浜町 | E110: =T(IF($B$2="回答エリア",【M】エリア!$H89,【M】エリア!$B89)) -> 
B111: =IF($B$2="回答エリア",【M】エリア!$D90,【M】エリア!$A90) -> 90 | C111: =T(IF($B$2="回答エリア",【M】エリア!$E90,"")) -> 若狭高浜 エリア | D111: =T(IF($B$2="回答エリア",【M】エリア!$F90,"")) -> 高浜町 | E111: =T(IF($B$2="回答エリア",【M】エリア!$H90,【M】エリア!$B90)) -> 
B112: =IF($B$2="回答エリア",【M】エリア!$D91,【M】エリア!$A91) -> 91 | C112: =T(IF($B$2="回答エリア",【M】エリア!$E91,"")) -> 竹田エリア | D112: =T(IF($B$2="回答エリア",【M】エリア!$F91,"")) -> 坂井市 | E112: =T(IF($B$2="回答エリア",【M】エリア!$H91,【M】エリア!$B91)) -> (一社)DMOさかい観光局
B113: =IF($B$2="回答エリア",【M】エリア!$D92,【M】エリア!$A92) -> 92 | C113: =T(IF($B$2="回答エリア",【M】エリア!$E92,"")) -> 美浜町健康楽膳拠点施設こるぱエリア | D113: =T(IF($B$2="回答エリア",【M】エリア!$F92,"")) -> 美浜町 | E113: =T(IF($B$2="回答エリア",【M】エリア!$H92,【M】エリア!$B92)) -> 
B114: =IF($B$2="回答エリア",【M】エリア!$D93,【M】エリア!$A93) -> 94 | C114: =T(IF($B$2="回答エリア",【M】エリア!$E93,"")) -> 青葉山ハーバルビレッジ エリア | D114: =T(IF($B$2="回答エリア",【M】エリア!$F93,"")) -> 高浜町 | E114: =T(IF($B$2="回答エリア",【M】エリア!$H93,【M】エリア!$B93)) -> 
B115: =IF($B$2="回答エリア",【M】エリア!$D94,【M】エリア!$A94) -> 0 | C115: =T(IF($B$2="回答エリア",【M】エリア!$E94,"")) ->  | D115: =T(IF($B$2="回答エリア",【M】エリア!$F94,"")) ->  | E115: =T(IF($B$2="回答エリア",【M】エリア!$H94,【M】エリア!$B94)) -> 
B116: =IF($B$2="回答エリア",【M】エリア!$D95,【M】エリア!$A95) -> 0 | C116: =T(IF($B$2="回答エリア",【M】エリア!$E95,"")) ->  | D116: =T(IF($B$2="回答エリア",【M】エリア!$F95,"")) ->  | E116: =T(IF($B$2="回答エリア",【M】エリア!$H95,【M】エリア!$B95)) -> 
B117: =IF($B$2="回答エリア",【M】エリア!$D96,【M】エリア!$A96) -> 0 | C117: =T(IF($B$2="回答エリア",【M】エリア!$E96,"")) ->  | D117: =T(IF($B$2="回答エリア",【M】エリア!$F96,"")) ->  | E117: =T(IF($B$2="回答エリア",【M】エリア!$H96,【M】エリア!$B96)) -> 
B118: =IF($B$2="回答エリア",【M】エリア!$D97,【M】エリア!$A97) -> 0 | C118: =T(IF($B$2="回答エリア",【M】エリア!$E97,"")) ->  | D118: =T(IF($B$2="回答エリア",【M】エリア!$F97,"")) ->  | E118: =T(IF($B$2="回答エリア",【M】エリア!$H97,【M】エリア!$B97)) -> 
B119: =IF($B$2="回答エリア",【M】エリア!$D98,【M】エリア!$A98) -> 0 | C119: =T(IF($B$2="回答エリア",【M】エリア!$E98,"")) ->  | D119: =T(IF($B$2="回答エリア",【M】エリア!$F98,"")) ->  | E119: =T(IF($B$2="回答エリア",【M】エリア!$H98,【M】エリア!$B98)) -> 
B120: =IF($B$2="回答エリア",【M】エリア!$D99,【M】エリア!$A99) -> 0 | C120: =T(IF($B$2="回答エリア",【M】エリア!$E99,"")) ->  | D120: =T(IF($B$2="回答エリア",【M】エリア!$F99,"")) ->  | E120: =T(IF($B$2="回答エリア",【M】エリア!$H99,【M】エリア!$B99)) -> 
B121: =IF($B$2="回答エリア",【M】エリア!$D100,【M】エリア!$A100) -> 0 | C121: =T(IF($B$2="回答エリア",【M】エリア!$E100,"")) ->  | D121: =T(IF($B$2="回答エリア",【M】エリア!$F100,"")) ->  | E121: =T(IF($B$2="回答エリア",【M】エリア!$H100,【M】エリア!$B100)) -> 
B122: =IF($B$2="回答エリア",【M】エリア!$D101,【M】エリア!$A101) -> 0 | C122: =T(IF($B$2="回答エリア",【M】エリア!$E101,"")) ->  | D122: =T(IF($B$2="回答エリア",【M】エリア!$F101,"")) ->  | E122: =T(IF($B$2="回答エリア",【M】エリア!$H101,【M】エリア!$B101)) -> 
B123: =IF($B$2="回答エリア",【M】エリア!$D102,【M】エリア!$A102) -> 0 | C123: =T(IF($B$2="回答エリア",【M】エリア!$E102,"")) ->  | D123: =T(IF($B$2="回答エリア",【M】エリア!$F102,"")) ->  | E123: =T(IF($B$2="回答エリア",【M】エリア!$H102,【M】エリア!$B102)) -> 
B124: =IF($B$2="回答エリア",【M】エリア!$D103,【M】エリア!$A103) -> 0 | C124: =T(IF($B$2="回答エリア",【M】エリア!$E103,"")) ->  | D124: =T(IF($B$2="回答エリア",【M】エリア!$F103,"")) ->  | E124: =T(IF($B$2="回答エリア",【M】エリア!$H103,【M】エリア!$B103)) -> 
B125: =IF($B$2="回答エリア",【M】エリア!$D104,【M】エリア!$A104) -> 0 | C125: =T(IF($B$2="回答エリア",【M】エリア!$E104,"")) ->  | D125: =T(IF($B$2="回答エリア",【M】エリア!$F104,"")) ->  | E125: =T(IF($B$2="回答エリア",【M】エリア!$H104,【M】エリア!$B104)) -> 
B126: =IF($B$2="回答エリア",【M】エリア!$D105,【M】エリア!$A105) -> 0 | C126: =T(IF($B$2="回答エリア",【M】エリア!$E105,"")) ->  | D126: =T(IF($B$2="回答エリア",【M】エリア!$F105,"")) ->  | E126: =T(IF($B$2="回答エリア",【M】エリア!$H105,【M】エリア!$B105)) -> 
B127: =IF($B$2="回答エリア",【M】エリア!$D106,【M】エリア!$A106) -> 0 | C127: =T(IF($B$2="回答エリア",【M】エリア!$E106,"")) ->  | D127: =T(IF($B$2="回答エリア",【M】エリア!$F106,"")) ->  | E127: =T(IF($B$2="回答エリア",【M】エリア!$H106,【M】エリア!$B106)) -> 
B128: =IF($B$2="回答エリア",【M】エリア!$D107,【M】エリア!$A107) -> 0 | C128: =T(IF($B$2="回答エリア",【M】エリア!$E107,"")) ->  | D128: =T(IF($B$2="回答エリア",【M】エリア!$F107,"")) ->  | E128: =T(IF($B$2="回答エリア",【M】エリア!$H107,【M】エリア!$B107)) -> 
B129: =IF($B$2="回答エリア",【M】エリア!$D108,【M】エリア!$A108) -> 0 | C129: =T(IF($B$2="回答エリア",【M】エリア!$E108,"")) ->  | D129: =T(IF($B$2="回答エリア",【M】エリア!$F108,"")) ->  | E129: =T(IF($B$2="回答エリア",【M】エリア!$H108,【M】エリア!$B108)) -> 
B130: =IF($B$2="回答エリア",【M】エリア!$D109,【M】エリア!$A109) -> 0 | C130: =T(IF($B$2="回答エリア",【M】エリア!$E109,"")) ->  | D130: =T(IF($B$2="回答エリア",【M】エリア!$F109,"")) ->  | E130: =T(IF($B$2="回答エリア",【M】エリア!$H109,【M】エリア!$B109)) -> 
B131: =IF($B$2="回答エリア",【M】エリア!$D110,【M】エリア!$A110) -> 0 | C131: =T(IF($B$2="回答エリア",【M】エリア!$E110,"")) ->  | D131: =T(IF($B$2="回答エリア",【M】エリア!$F110,"")) ->  | E131: =T(IF($B$2="回答エリア",【M】エリア!$H110,【M】エリア!$B110)) -> 
B132: =IF($B$2="回答エリア",【M】エリア!$D111,【M】エリア!$A111) -> 0 | C132: =T(IF($B$2="回答エリア",【M】エリア!$E111,"")) ->  | D132: =T(IF($B$2="回答エリア",【M】エリア!$F111,"")) ->  | E132: =T(IF($B$2="回答エリア",【M】エリア!$H111,【M】エリア!$B111)) -> 
B133: =IF($B$2="回答エリア",【M】エリア!$D112,【M】エリア!$A112) -> 0 | C133: =T(IF($B$2="回答エリア",【M】エリア!$E112,"")) ->  | D133: =T(IF($B$2="回答エリア",【M】エリア!$F112,"")) ->  | E133: =T(IF($B$2="回答エリア",【M】エリア!$H112,【M】エリア!$B112)) -> 
B134: =IF($B$2="回答エリア",【M】エリア!$D113,【M】エリア!$A113) -> 0 | C134: =T(IF($B$2="回答エリア",【M】エリア!$E113,"")) ->  | D134: =T(IF($B$2="回答エリア",【M】エリア!$F113,"")) ->  | E134: =T(IF($B$2="回答エリア",【M】エリア!$H113,【M】エリア!$B113)) -> 
B135: =IF($B$2="回答エリア",【M】エリア!$D114,【M】エリア!$A114) -> 0 | C135: =T(IF($B$2="回答エリア",【M】エリア!$E114,"")) ->  | D135: =T(IF($B$2="回答エリア",【M】エリア!$F114,"")) ->  | E135: =T(IF($B$2="回答エリア",【M】エリア!$H114,【M】エリア!$B114)) -> 
B136: =IF($B$2="回答エリア",【M】エリア!$D115,【M】エリア!$A115) -> 0 | C136: =T(IF($B$2="回答エリア",【M】エリア!$E115,"")) ->  | D136: =T(IF($B$2="回答エリア",【M】エリア!$F115,"")) ->  | E136: =T(IF($B$2="回答エリア",【M】エリア!$H115,【M】エリア!$B115)) -> 
B137: =IF($B$2="回答エリア",【M】エリア!$D116,【M】エリア!$A116) -> 0 | C137: =T(IF($B$2="回答エリア",【M】エリア!$E116,"")) ->  | D137: =T(IF($B$2="回答エリア",【M】エリア!$F116,"")) ->  | E137: =T(IF($B$2="回答エリア",【M】エリア!$H116,【M】エリア!$B116)) -> 
B138: =IF($B$2="回答エリア",【M】エリア!$D117,【M】エリア!$A117) -> 0 | C138: =T(IF($B$2="回答エリア",【M】エリア!$E117,"")) ->  | D138: =T(IF($B$2="回答エリア",【M】エリア!$F117,"")) ->  | E138: =T(IF($B$2="回答エリア",【M】エリア!$H117,【M】エリア!$B117)) -> 
B139: =IF($B$2="回答エリア",【M】エリア!$D118,【M】エリア!$A118) -> 0 | C139: =T(IF($B$2="回答エリア",【M】エリア!$E118,"")) ->  | D139: =T(IF($B$2="回答エリア",【M】エリア!$F118,"")) ->  | E139: =T(IF($B$2="回答エリア",【M】エリア!$H118,【M】エリア!$B118)) -> 
B140: =IF($B$2="回答エリア",【M】エリア!$D119,【M】エリア!$A119) -> 0 | C140: =T(IF($B$2="回答エリア",【M】エリア!$E119,"")) ->  | D140: =T(IF($B$2="回答エリア",【M】エリア!$F119,"")) ->  | E140: =T(IF($B$2="回答エリア",【M】エリア!$H119,【M】エリア!$B119)) -> 
B141: =IF($B$2="回答エリア",【M】エリア!$D120,【M】エリア!$A120) -> 0 | C141: =T(IF($B$2="回答エリア",【M】エリア!$E120,"")) ->  | D141: =T(IF($B$2="回答エリア",【M】エリア!$F120,"")) ->  | E141: =T(IF($B$2="回答エリア",【M】エリア!$H120,【M】エリア!$B120)) -> 
B142: =IF($B$2="回答エリア",【M】エリア!$D121,【M】エリア!$A121) -> 0 | C142: =T(IF($B$2="回答エリア",【M】エリア!$E121,"")) ->  | D142: =T(IF($B$2="回答エリア",【M】エリア!$F121,"")) ->  | E142: =T(IF($B$2="回答エリア",【M】エリア!$H121,【M】エリア!$B121)) -> 

Sheet output➡

Sheet 回答数
C1: 回答月 | R1: 集計区分 | T1: 回答数 | U1: 回答月
C2: 4月 | D2: 5月 | E2: 6月 | F2: 7月 | G2: 8月 | H2: 9月 | I2: 10月 | J2: 11月 | K2: 12月 | L2: 1月 | M2: 2月 | N2: 3月 | O2: 合計 | U2: 4月 | W2: 5月 | Y2: 6月 | AA2: 7月 | AC2: 8月 | AE2: 9月 | AG2: 10月 | AI2: 11月 | AK2: 12月 | AM2: 1月 | AO2: 2月 | AQ2: 3月 | AS2: 合計
A3: =【M】エリア!$L$2 -> 福井県 | B3: 単月 | C3: =VLOOKUP($A3,$S$3:$AS$95,MATCH(C$2,$S$2:$AS$2,0),FALSE) -> 1696件 | D3: =VLOOKUP($A3,$S$3:$AS$95,MATCH(D$2,$S$2:$AS$2,0),FALSE) -> 2995件 | E3: 1835件 | F3: 1738件 | G3: 2246件 | H3: 2353件 | I3: 1807件 | J3: 2126件 | K3: 0件 | L3: 0件 | M3: 0件 | N3: 0件 | O3: 16796件 | R3: 都道府県 | S3: =【M】エリア!$L$2 -> 福井県 | U3: =IF(ISBLANK($S3), "", COUNTIFS(INDEX(rawデータ範囲, , MATCH($U$1,表頭範囲, 0)),U$2 )) -> 1696件 | W3: 2995件 | Y3: 1835件 | AA3: 1738件 | AC3: 2246件 | AE3: 2353件 | AG3: 1807件 | AI3: 2126件 | AK3: 0件 | AM3: 0件 | AO3: 0件 | AQ3: 0件 | AS3: =SUM($U3:$AQ3) -> 16796件
B4: 累計 | C4: =C3 -> 1696件 | D4: =C4+D3 -> 4691件 | E4: =D4+E3 -> 6526件 | F4: 8264件 | G4: 10510件 | H4: 12863件 | I4: 14670件 | J4: 16796件 | K4: 16796件 | L4: 16796件 | M4: 16796件 | N4: 16796件 | O4: =N4+O3 -> 33592件 | R4: =【M】エリア!$J$2 -> 6分類 | S4: =【M】エリア!$L$3 -> 福井市・永平寺町 | U4: =IF($S4="", "", COUNTIFS( INDEX(rawデータ範囲, , MATCH($R4,表頭範囲, 0)), $S4, INDEX(rawデータ範囲, , MATCH($U$1,表頭範囲, 0)),U$2 ) ) -> 370件 | W4: 510件 | Y4: 319件 | AA4: 296件 | AC4: 371件 | AE4: 348件 | AG4: 289件 | AI4: 380件 | AK4: 0件 | AM4: 0件 | AO4: 0件 | AQ4: 0件 | AS4: =IF(ISBLANK($S4), "",SUM($U4:$AQ4)) -> 2883件
A5: =【M】エリア!$L$3 -> 福井市・永平寺町 | B5: 単月 | C5: =VLOOKUP($A5,$S$3:$AS$95,MATCH(C$2,$S$2:$AS$2,0),FALSE) -> 370件 | D5: 510件 | E5: 319件 | F5: 296件 | G5: 371件 | H5: 348件 | I5: 289件 | J5: 380件 | K5: 0件 | L5: 0件 | M5: 0件 | N5: 0件 | O5: 2883件 | R5: 市町村 | S5: =【M】エリア!$L$4 -> 福井市 | U5: 183件 | W5: 240件 | Y5: 150件 | AA5: 161件 | AC5: 126件 | AE5: 147件 | AG5: 150件 | AI5: 179件 | AK5: 0件 | AM5: 0件 | AO5: 0件 | AQ5: 0件 | AS5: =IF($S5="", "",SUM($U5:$AQ5)) -> 1336件
B6: 累計 | C6: =C5 -> 370件 | D6: =C6+D5 -> 880件 | E6: =D6+E5 -> 1199件 | F6: =E6+F5 -> 1495件 | G6: =F6+G5 -> 1866件 | H6: =G6+H5 -> 2214件 | I6: =H6+I5 -> 2503件 | J6: =I6+J5 -> 2883件 | K6: =J6+K5 -> 2883件 | L6: =K6+L5 -> 2883件 | M6: =L6+M5 -> 2883件 | N6: =M6+N5 -> 2883件 | O6: 5766件 | R6: 回答エリア | S6: =IF(【M】エリア!$E2<>"",【M】エリア!$E2,"") -> 福井駅前 エリア | U6: =IF($S6="", "", COUNTIFS( INDEX(rawデータ範囲, , MATCH($R6,表頭範囲, 0)), $S6, INDEX(rawデータ範囲, , MATCH($U$1,表頭範囲, 0)),U$2 ) ) -> 76件 | W6: 81件 | Y6: 78件 | AA6: 64件 | AC6: 81件 | AE6: 84件 | AG6: 84件 | AI6: 93件 | AK6: 0件 | AM6: 0件 | AO6: 0件 | AQ6: 0件 | AS6: =IF($S6="", "",SUM($U6:$AQ6)) -> 641件
A7: =【M】エリア!$L$4 -> 福井市 | B7: 単月 | C7: =VLOOKUP($A7,$S$3:$AS$95,MATCH(C$2,$S$2:$AS$2,0),FALSE) -> 183件 | D7: 240件 | E7: 150件 | F7: 161件 | G7: 126件 | H7: 147件 | I7: 150件 | J7: 179件 | K7: 0件 | L7: 0件 | M7: 0件 | N7: 0件 | O7: 1336件 | R7: 回答エリア | S7: =IF(【M】エリア!$E3<>"",【M】エリア!$E3,"") -> 福井駅前 エリア（宿泊施設） | U7: 26件 | W7: 39件 | Y7: 17件 | AA7: 26件 | AC7: 7件 | AE7: 18件 | AG7: 23件 | AI7: 29件 | AK7: 0件 | AM7: 0件 | AO7: 0件 | AQ7: 0件 | AS7: 185件
B8: 累計 | C8: =C7 -> 183件 | D8: =C8+D7 -> 423件 | E8: =D8+E7 -> 573件 | F8: =E8+F7 -> 734件 | G8: =F8+G7 -> 860件 | H8: =G8+H7 -> 1007件 | I8: =H8+I7 -> 1157件 | J8: =I8+J7 -> 1336件 | K8: =J8+K7 -> 1336件 | L8: =K8+L7 -> 1336件 | M8: =L8+M7 -> 1336件 | N8: =M8+N7 -> 1336件 | O8: =N8+O7 -> 2672件 | R8: 回答エリア | S8: =IF(【M】エリア!$E4<>"",【M】エリア!$E4,"") -> 北ノ庄 エリア | U8: 13件 | W8: 19件 | Y8: 7件 | AA8: 9件 | AC8: 0件 | AE8: 0件 | AG8: 2件 | AI8: 7件 | AK8: 0件 | AM8: 0件 | AO8: 0件 | AQ8: 0件 | AS8: 57件
A9: =【M】エリア!$L$5 -> 福井駅前 エリア | B9: 単月 | C9: =VLOOKUP($A9,$S$3:$AS$95,MATCH(C$2,$S$2:$AS$2,0),FALSE) -> 76件 | D9: 81件 | E9: 78件 | F9: 64件 | G9: 81件 | H9: 84件 | I9: 84件 | J9: 93件 | K9: 0件 | L9: 0件 | M9: 0件 | N9: 0件 | O9: 641件 | R9: 回答エリア | S9: =IF(【M】エリア!$E5<>"",【M】エリア!$E5,"") -> 名勝 養浩館庭園 エリア | U9: 11件 | W9: 17件 | Y9: 10件 | AA9: 14件 | AC9: 3件 | AE9: 2件 | AG9: 3件 | AI9: 4件 | AK9: 0件 | AM9: 0件 | AO9: 0件 | AQ9: 0件 | AS9: 64件
B10: 累計 | C10: =C9 -> 76件 | D10: =C10+D9 -> 157件 | E10: =D10+E9 -> 235件 | F10: =E10+F9 -> 299件 | G10: =F10+G9 -> 380件 | H10: =G10+H9 -> 464件 | I10: =H10+I9 -> 548件 | J10: =I10+J9 -> 641件 | K10: =J10+K9 -> 641件 | L10: =K10+L9 -> 641件 | M10: =L10+M9 -> 641件 | N10: =M10+N9 -> 641件 | O10: =N10+O9 -> 1282件 | R10: 回答エリア | S10: =IF(【M】エリア!$E6<>"",【M】エリア!$E6,"") -> ふくい鮮いちば エリア | U10: 11件 | W10: 25件 | Y10: 6件 | AA10: 9件 | AC10: 5件 | AE10: 7件 | AG10: 11件 | AI10: 12件 | AK10: 0件 | AM10: 0件 | AO10: 0件 | AQ10: 0件 | AS10: 86件
R11: 回答エリア | S11: =IF(【M】エリア!$E7<>"",【M】エリア!$E7,"") -> 一乗谷朝倉氏遺跡 エリア | U11: 39件 | W11: 51件 | Y11: 29件 | AA11: 32件 | AC11: 24件 | AE11: 32件 | AG11: 24件 | AI11: 30件 | AK11: 0件 | AM11: 0件 | AO11: 0件 | AQ11: 0件 | AS11: 261件
R12: 回答エリア | S12: =IF(【M】エリア!$E8<>"",【M】エリア!$E8,"") -> 越前海岸 北部 エリア | U12: 6件 | W12: 7件 | Y12: 2件 | AA12: 7件 | AC12: 6件 | AE12: 3件 | AG12: 2件 | AI12: 1件 | AK12: 0件 | AM12: 0件 | AO12: 0件 | AQ12: 0件 | AS12: 34件
R13: 回答エリア | S13: =IF(【M】エリア!$E9<>"",【M】エリア!$E9,"") -> 大安禅寺 エリア | U13: 1件 | W13: 1件 | Y13: 1件 | AA13: 0件 | AC13: 0件 | AE13: 1件 | AG13: 1件 | AI13: 3件 | AK13: 0件 | AM13: 0件 | AO13: 0件 | AQ13: 0件 | AS13: 8件
R14: 回答エリア | S14: =IF(【M】エリア!$E10<>"",【M】エリア!$E10,"") -> 三国湊 エリア | U14: =IF($S14="", "", COUNTIFS( INDEX(rawデータ範囲, , MATCH($R14,表頭範囲, 0)), $S14, INDEX(rawデータ範囲, , MATCH($U$1,表頭範囲, 0)),U$2 ) ) -> 21件 | W14: 29件 | Y14: 18件 | AA14: 15件 | AC14: 7件 | AE14: 12件 | AG14: 15件 | AI14: 14件 | AK14: 0件 | AM14: 0件 | AO14: 0件 | AQ14: 0件 | AS14: 131件
R15: 回答エリア | S15: =IF(【M】エリア!$E11<>"",【M】エリア!$E11,"") -> 東尋坊 エリア | U15: 5件 | W15: 11件 | Y15: 6件 | AA15: 8件 | AC15: 8件 | AE15: 13件 | AG15: 4件 | AI15: 5件 | AK15: 0件 | AM15: 0件 | AO15: 0件 | AQ15: 0件 | AS15: 60件
R16: 回答エリア | S16: =IF(【M】エリア!$E12<>"",【M】エリア!$E12,"") -> 越前松島水族館 エリア | U16: 13件 | W16: 20件 | Y16: 17件 | AA16: 14件 | AC16: 9件 | AE16: 7件 | AG16: 2件 | AI16: 17件 | AK16: 0件 | AM16: 0件 | AO16: 0件 | AQ16: 0件 | AS16: 99件
R17: 回答エリア | S17: =IF(【M】エリア!$E13<>"",【M】エリア!$E13,"") -> 芝政ワールド エリア | U17: 0件 | W17: 4件 | Y17: 5件 | AA17: 0件 | AC17: 5件 | AE17: 2件 | AG17: 2件 | AI17: 1件 | AK17: 0件 | AM17: 0件 | AO17: 0件 | AQ17: 0件 | AS17: 19件
R18: 回答エリア | S18: =IF(【M】エリア!$E14<>"",【M】エリア!$E14,"") -> 丸岡城 エリア | U18: 34件 | W18: 27件 | Y18: 33件 | AA18: 28件 | AC18: 20件 | AE18: 28件 | AG18: 27件 | AI18: 32件 | AK18: 0件 | AM18: 0件 | AO18: 0件 | AQ18: 0件 | AS18: 229件
R19: 回答エリア | S19: =IF(【M】エリア!$E15<>"",【M】エリア!$E15,"") -> 花の駅 ゆりの里公園 エリア | U19: 21件 | W19: 39件 | Y19: 19件 | AA19: 25件 | AC19: 28件 | AE19: 30件 | AG19: 11件 | AI19: 22件 | AK19: 0件 | AM19: 0件 | AO19: 0件 | AQ19: 0件 | AS19: 195件
R20: 回答エリア | S20: =IF(【M】エリア!$E16<>"",【M】エリア!$E16,"") -> 道の駅みくに ふれあいパーク三里浜 エリア | U20: 1件 | W20: 19件 | Y20: 13件 | AA20: 11件 | AC20: 19件 | AE20: 27件 | AG20: 11件 | AI20: 17件 | AK20: 0件 | AM20: 0件 | AO20: 0件 | AQ20: 0件 | AS20: 118件
R21: 回答エリア | S21: =IF(【M】エリア!$E17<>"",【M】エリア!$E17,"") -> JR芦原温泉駅 エリア | U21: 16件 | W21: 23件 | Y21: 13件 | AA21: 18件 | AC21: 14件 | AE21: 12件 | AG21: 6件 | AI21: 14件 | AK21: 0件 | AM21: 0件 | AO21: 0件 | AQ21: 0件 | AS21: 116件
R22: 回答エリア | S22: =IF(【M】エリア!$E18<>"",【M】エリア!$E18,"") -> あわら湯のまち エリア | U22: 140件 | W22: 163件 | Y22: 135件 | AA22: 138件 | AC22: 126件 | AE22: 169件 | AG22: 88件 | AI22: 59件 | AK22: 0件 | AM22: 0件 | AO22: 0件 | AQ22: 0件 | AS22: 1018件
R23: 回答エリア | S23: =IF(【M】エリア!$E19<>"",【M】エリア!$E19,"") -> フルーツライン エリア | U23: 0件 | W23: 0件 | Y23: 0件 | AA23: 0件 | AC23: 20件 | AE23: 24件 | AG23: 9件 | AI23: 10件 | AK23: 0件 | AM23: 0件 | AO23: 0件 | AQ23: 0件 | AS23: 63件
R24: 回答エリア | S24: =IF(【M】エリア!$E20<>"",【M】エリア!$E20,"") -> 波松 エリア | U24: =IF($S24="", "", COUNTIFS( INDEX(rawデータ範囲, , MATCH($R24,表頭範囲, 0)), $S24, INDEX(rawデータ範囲, , MATCH($U$1,表頭範囲, 0)),U$2 ) ) -> 2件 | W24: 1件 | Y24: 2件 | AA24: 2件 | AC24: 1件 | AE24: 0件 | AG24: 0件 | AI24: 0件 | AK24: 0件 | AM24: 0件 | AO24: 0件 | AQ24: 0件 | AS24: 8件
R25: 回答エリア | S25: =IF(【M】エリア!$E21<>"",【M】エリア!$E21,"") -> 北潟湖 エリア | U25: 23件 | W25: 44件 | Y25: 28件 | AA25: 29件 | AC25: 26件 | AE25: 29件 | AG25: 21件 | AI25: 22件 | AK25: 0件 | AM25: 0件 | AO25: 0件 | AQ25: 0件 | AS25: 222件
R26: 回答エリア | S26: =IF(【M】エリア!$E22<>"",【M】エリア!$E22,"") -> 越前大野城・城下町 エリア | U26: 50件 | W26: 167件 | Y26: 88件 | AA26: 64件 | AC26: 93件 | AE26: 106件 | AG26: 147件 | AI26: 106件 | AK26: 0件 | AM26: 0件 | AO26: 0件 | AQ26: 0件 | AS26: 821件
R27: 回答エリア | S27: =IF(【M】エリア!$E23<>"",【M】エリア!$E23,"") -> 道の駅「越前おおの荒島の郷」 エリア | U27: 12件 | W27: 38件 | Y27: 17件 | AA27: 3件 | AC27: 33件 | AE27: 50件 | AG27: 27件 | AI27: 21件 | AK27: 0件 | AM27: 0件 | AO27: 0件 | AQ27: 0件 | AS27: 201件
R28: 回答エリア | S28: =IF(【M】エリア!$E24<>"",【M】エリア!$E24,"") -> JR九頭竜湖駅 エリア | U28: 6件 | W28: 26件 | Y28: 14件 | AA28: 11件 | AC28: 27件 | AE28: 28件 | AG28: 67件 | AI28: 45件 | AK28: 0件 | AM28: 0件 | AO28: 0件 | AQ28: 0件 | AS28: 224件
R29: 回答エリア | S29: =IF(【M】エリア!$E25<>"",【M】エリア!$E25,"") -> 六呂師高原 エリア | U29: 4件 | W29: 16件 | Y29: 16件 | AA29: 23件 | AC29: 21件 | AE29: 50件 | AG29: 57件 | AI29: 17件 | AK29: 0件 | AM29: 0件 | AO29: 0件 | AQ29: 0件 | AS29: 204件
R30: 回答エリア | S30: =IF(【M】エリア!$E26<>"",【M】エリア!$E26,"") -> かつやま恐竜の森 エリア | U30: 197件 | W30: 328件 | Y30: 193件 | AA30: 213件 | AC30: 304件 | AE30: 253件 | AG30: 180件 | AI30: 224件 | AK30: 0件 | AM30: 0件 | AO30: 0件 | AQ30: 0件 | AS30: 1892件
R31: 回答エリア | S31: =IF(【M】エリア!$E27<>"",【M】エリア!$E27,"") -> 道の駅「恐竜渓谷かつやま」 エリア | U31: 44件 | W31: 108件 | Y31: 60件 | AA31: 55件 | AC31: 71件 | AE31: 98件 | AG31: 116件 | AI31: 87件 | AK31: 0件 | AM31: 0件 | AO31: 0件 | AQ31: 0件 | AS31: 639件
R32: 回答エリア | S32: =IF(【M】エリア!$E28<>"",【M】エリア!$E28,"") -> スキージャム勝山 エリア | U32: 8件 | W32: 11件 | Y32: 4件 | AA32: 2件 | AC32: 9件 | AE32: 1件 | AG32: 10件 | AI32: 0件 | AK32: 0件 | AM32: 0件 | AO32: 0件 | AQ32: 0件 | AS32: 45件
R33: 回答エリア | S33: =IF(【M】エリア!$E29<>"",【M】エリア!$E29,"") -> 越前大仏 エリア | U33: 6件 | W33: 14件 | Y33: 14件 | AA33: 1件 | AC33: 5件 | AE33: 10件 | AG33: 8件 | AI33: 20件 | AK33: 0件 | AM33: 0件 | AO33: 0件 | AQ33: 0件 | AS33: 78件
R34: 回答エリア | S34: =IF(【M】エリア!$E30<>"",【M】エリア!$E30,"") -> 平泉寺白山神社 エリア | U34: =IF($S34="", "", COUNTIFS( INDEX(rawデータ範囲, , MATCH($R34,表頭範囲, 0)), $S34, INDEX(rawデータ範囲, , MATCH($U$1,表頭範囲, 0)),U$2 ) ) -> 1件 | W34: 16件 | Y34: 11件 | AA34: 3件 | AC34: 8件 | AE34: 8件 | AG34: 5件 | AI34: 4件 | AK34: 0件 | AM34: 0件 | AO34: 0件 | AQ34: 0件 | AS34: 56件
R35: 回答エリア | S35: =IF(【M】エリア!$E31<>"",【M】エリア!$E31,"") -> はたや記念館 ゆめおーれ勝山 エリア | U35: 3件 | W35: 27件 | Y35: 14件 | AA35: 13件 | AC35: 16件 | AE35: 27件 | AG35: 26件 | AI35: 6件 | AK35: 0件 | AM35: 0件 | AO35: 0件 | AQ35: 0件 | AS35: 132件
R36: 回答エリア | S36: =IF(【M】エリア!$E32<>"",【M】エリア!$E32,"") -> えちぜん鉄道 永平寺口駅 エリア | U36: 4件 | W36: 8件 | Y36: 8件 | AA36: 11件 | AC36: 2件 | AE36: 6件 | AG36: 2件 | AI36: 0件 | AK36: 0件 | AM36: 0件 | AO36: 0件 | AQ36: 0件 | AS36: 41件
R37: 回答エリア | S37: =IF(【M】エリア!$E33<>"",【M】エリア!$E33,"") -> えちぜん鉄道 松岡駅 エリア | U37: 8件 | W37: 8件 | Y37: 11件 | AA37: 5件 | AC37: 11件 | AE37: 6件 | AG37: 0件 | AI37: 1件 | AK37: 0件 | AM37: 0件 | AO37: 0件 | AQ37: 0件 | AS37: 50件
R38: 回答エリア | S38: =IF(【M】エリア!$E34<>"",【M】エリア!$E34,"") -> 大本山 永平寺 エリア | U38: 147件 | W38: 201件 | Y38: 115件 | AA38: 100件 | AC38: 175件 | AE38: 141件 | AG38: 108件 | AI38: 174件 | AK38: 0件 | AM38: 0件 | AO38: 0件 | AQ38: 0件 | AS38: 1161件
R39: 回答エリア | S39: =IF(【M】エリア!$E35<>"",【M】エリア!$E35,"") -> 道の駅「禅の里」 エリア | U39: 28件 | W39: 53件 | Y39: 35件 | AA39: 19件 | AC39: 57件 | AE39: 48件 | AG39: 29件 | AI39: 26件 | AK39: 0件 | AM39: 0件 | AO39: 0件 | AQ39: 0件 | AS39: 295件
R40: 回答エリア | S40: =IF(【M】エリア!$E36<>"",【M】エリア!$E36,"") -> 越前和紙の里 エリア | U40: 2件 | W40: 0件 | Y40: 1件 | AA40: 1件 | AC40: 2件 | AE40: 13件 | AG40: 3件 | AI40: 7件 | AK40: 0件 | AM40: 0件 | AO40: 0件 | AQ40: 0件 | AS40: 29件
R41: 回答エリア | S41: =IF(【M】エリア!$E37<>"",【M】エリア!$E37,"") -> 越前そばの里 エリア | U41: 135件 | W41: 290件 | Y41: 96件 | AA41: 166件 | AC41: 86件 | AE41: 133件 | AG41: 45件 | AI41: 166件 | AK41: 0件 | AM41: 0件 | AO41: 0件 | AQ41: 0件 | AS41: 1117件
R42: 回答エリア | S42: =IF(【M】エリア!$E38<>"",【M】エリア!$E38,"") -> 北陸新幹線 越前たけふ駅 エリア | U42: 3件 | W42: 29件 | Y42: 27件 | AA42: 17件 | AC42: 38件 | AE42: 51件 | AG42: 21件 | AI42: 25件 | AK42: 0件 | AM42: 0件 | AO42: 0件 | AQ42: 0件 | AS42: 211件
R43: 回答エリア | S43: =IF(【M】エリア!$E39<>"",【M】エリア!$E39,"") -> タケフナイフビレッジ エリア | U43: 3件 | W43: 3件 | Y43: 1件 | AA43: 6件 | AC43: 5件 | AE43: 0件 | AG43: 4件 | AI43: 4件 | AK43: 0件 | AM43: 0件 | AO43: 0件 | AQ43: 0件 | AS43: 26件
R44: 回答エリア | S44: =IF(【M】エリア!$E40<>"",【M】エリア!$E40,"") -> 武生駅 エリア | U44: =IF($S44="", "", COUNTIFS( INDEX(rawデータ範囲, , MATCH($R44,表頭範囲, 0)), $S44, INDEX(rawデータ範囲, , MATCH($U$1,表頭範囲, 0)),U$2 ) ) -> 1件 | W44: 5件 | Y44: 0件 | AA44: 1件 | AC44: 1件 | AE44: 1件 | AG44: 0件 | AI44: 1件 | AK44: 0件 | AM44: 0件 | AO44: 0件 | AQ44: 0件 | AS44: 10件
R45: 回答エリア | S45: =IF(【M】エリア!$E41<>"",【M】エリア!$E41,"") -> 紫式部公園 エリア | U45: 0件 | W45: 11件 | Y45: 3件 | AA45: 2件 | AC45: 0件 | AE45: 9件 | AG45: 4件 | AI45: 5件 | AK45: 0件 | AM45: 0件 | AO45: 0件 | AQ45: 0件 | AS45: 34件
R46: 回答エリア | S46: =IF(【M】エリア!$E42<>"",【M】エリア!$E42,"") -> だるまちゃん広場 エリア | U46: 11件 | W46: 9件 | Y46: 3件 | AA46: 4件 | AC46: 7件 | AE46: 9件 | AG46: 6件 | AI46: 12件 | AK46: 0件 | AM46: 0件 | AO46: 0件 | AQ46: 0件 | AS46: 61件
R47: 回答エリア | S47: =IF(【M】エリア!$E43<>"",【M】エリア!$E43,"") -> 刃物の里 エリア | U47: 1件 | W47: 3件 | Y47: 1件 | AA47: 0件 | AC47: 0件 | AE47: 0件 | AG47: 0件 | AI47: 0件 | AK47: 0件 | AM47: 0件 | AO47: 0件 | AQ47: 0件 | AS47: 5件
R48: 回答エリア | S48: =IF(【M】エリア!$E44<>"",【M】エリア!$E44,"") -> 道の駅「西山公園」 エリア | U48: 0件 | W48: 31件 | Y48: 17件 | AA48: 4件 | AC48: 19件 | AE48: 18件 | AG48: 4件 | AI48: 11件 | AK48: 0件 | AM48: 0件 | AO48: 0件 | AQ48: 0件 | AS48: 104件
R49: 回答エリア | S49: =IF(【M】エリア!$E45<>"",【M】エリア!$E45,"") -> メガネストリート エリア | U49: 9件 | W49: 4件 | Y49: 3件 | AA49: 4件 | AC49: 6件 | AE49: 13件 | AG49: 6件 | AI49: 11件 | AK49: 0件 | AM49: 0件 | AO49: 0件 | AQ49: 0件 | AS49: 56件
R50: 回答エリア | S50: =IF(【M】エリア!$E46<>"",【M】エリア!$E46,"") -> うるしの里 エリア | U50: 5件 | W50: 19件 | Y50: 8件 | AA50: 9件 | AC50: 8件 | AE50: 9件 | AG50: 8件 | AI50: 3件 | AK50: 0件 | AM50: 0件 | AO50: 0件 | AQ50: 0件 | AS50: 69件
R51: 回答エリア | S51: =IF(【M】エリア!$E47<>"",【M】エリア!$E47,"") -> まちの市場 こってコテいけだ エリア | U51: 10件 | W51: 26件 | Y51: 19件 | AA51: 17件 | AC51: 40件 | AE51: 17件 | AG51: 24件 | AI51: 17件 | AK51: 0件 | AM51: 0件 | AO51: 0件 | AQ51: 0件 | AS51: 170件
R52: 回答エリア | S52: =IF(【M】エリア!$E48<>"",【M】エリア!$E48,"") -> かずら橋 エリア | U52: 47件 | W52: 107件 | Y52: 69件 | AA52: 75件 | AC52: 101件 | AE52: 90件 | AG52: 52件 | AI52: 69件 | AK52: 0件 | AM52: 0件 | AO52: 0件 | AQ52: 0件 | AS52: 610件
R53: 回答エリア | S53: =IF(【M】エリア!$E49<>"",【M】エリア!$E49,"") -> 道の駅「越前」 エリア | U53: 38件 | W53: 57件 | Y53: 25件 | AA53: 34件 | AC53: 44件 | AE53: 48件 | AG53: 25件 | AI53: 68件 | AK53: 0件 | AM53: 0件 | AO53: 0件 | AQ53: 0件 | AS53: 339件
R54: 回答エリア | S54: =IF(【M】エリア!$E50<>"",【M】エリア!$E50,"") -> 道の駅「パークイン丹生ヶ丘」 エリア | U54: =IF($S54="", "", COUNTIFS( INDEX(rawデータ範囲, , MATCH($R54,表頭範囲, 0)), $S54, INDEX(rawデータ範囲, , MATCH($U$1,表頭範囲, 0)),U$2 ) ) -> 8件 | W54: 27件 | Y54: 23件 | AA54: 7件 | AC54: 13件 | AE54: 16件 | AG54: 9件 | AI54: 6件 | AK54: 0件 | AM54: 0件 | AO54: 0件 | AQ54: 0件 | AS54: 109件
R55: 回答エリア | S55: =IF(【M】エリア!$E51<>"",【M】エリア!$E51,"") -> 劔神社 エリア | U55: 1件 | W55: 14件 | Y55: 8件 | AA55: 5件 | AC55: 7件 | AE55: 17件 | AG55: 4件 | AI55: 9件 | AK55: 0件 | AM55: 0件 | AO55: 0件 | AQ55: 0件 | AS55: 65件
R56: 回答エリア | S56: =IF(【M】エリア!$E52<>"",【M】エリア!$E52,"") -> 越前陶芸村 エリア | U56: 15件 | W56: 27件 | Y56: 7件 | AA56: 4件 | AC56: 12件 | AE56: 15件 | AG56: 9件 | AI56: 21件 | AK56: 0件 | AM56: 0件 | AO56: 0件 | AQ56: 0件 | AS56: 110件
R57: 回答エリア | S57: =IF(【M】エリア!$E53<>"",【M】エリア!$E53,"") -> 越前海岸 越前岬 エリア | U57: 1件 | W57: 0件 | Y57: 0件 | AA57: 3件 | AC57: 10件 | AE57: 2件 | AG57: 5件 | AI57: 4件 | AK57: 0件 | AM57: 0件 | AO57: 0件 | AQ57: 0件 | AS57: 25件
R58: 回答エリア | S58: =IF(【M】エリア!$E54<>"",【M】エリア!$E54,"") -> 越前漁港 エリア | U58: 0件 | W58: 0件 | Y58: 0件 | AA58: 0件 | AC58: 0件 | AE58: 0件 | AG58: 0件 | AI58: 5件 | AK58: 0件 | AM58: 0件 | AO58: 0件 | AQ58: 0件 | AS58: 5件
R59: 回答エリア | S59: =IF(【M】エリア!$E55<>"",【M】エリア!$E55,"") -> 越前海岸 茂原民宿街 エリア | U59: 0件 | W59: 0件 | Y59: 3件 | AA59: 1件 | AC59: 1件 | AE59: 0件 | AG59: 0件 | AI59: 0件 | AK59: 0件 | AM59: 0件 | AO59: 0件 | AQ59: 0件 | AS59: 5件
R60: 回答エリア | S60: =IF(【M】エリア!$E56<>"",【M】エリア!$E56,"") -> 越前海岸 高佐米ノ旅館街 エリア | U60: 0件 | W60: 0件 | Y60: 5件 | AA60: 7件 | AC60: 6件 | AE60: 2件 | AG60: 3件 | AI60: 1件 | AK60: 0件 | AM60: 0件 | AO60: 0件 | AQ60: 0件 | AS60: 24件
R61: 回答エリア | S61: =IF(【M】エリア!$E57<>"",【M】エリア!$E57,"") -> 越前海岸 くりや旅館街 エリア | U61: 2件 | W61: 6件 | Y61: 3件 | AA61: 3件 | AC61: 9件 | AE61: 4件 | AG61: 9件 | AI61: 9件 | AK61: 0件 | AM61: 0件 | AO61: 0件 | AQ61: 0件 | AS61: 45件
R62: 回答エリア | S62: =IF(【M】エリア!$E58<>"",【M】エリア!$E58,"") -> 道の駅「南えちぜん山海里」 エリア | U62: 29件 | W62: 63件 | Y62: 26件 | AA62: 33件 | AC62: 74件 | AE62: 61件 | AG62: 57件 | AI62: 61件 | AK62: 0件 | AM62: 0件 | AO62: 0件 | AQ62: 0件 | AS62: 404件
R63: 回答エリア | S63: =IF(【M】エリア!$E59<>"",【M】エリア!$E59,"") -> 河野北前船主通りエリア | U63: 0件 | W63: 31件 | Y63: 8件 | AA63: 6件 | AC63: 3件 | AE63: 10件 | AG63: 6件 | AI63: 8件 | AK63: 0件 | AM63: 0件 | AO63: 0件 | AQ63: 0件 | AS63: 72件
R64: 回答エリア | S64: =IF(【M】エリア!$E60<>"",【M】エリア!$E60,"") -> 北前船主の館 右近家 エリア | U64: =IF($S64="", "", COUNTIFS( INDEX(rawデータ範囲, , MATCH($R64,表頭範囲, 0)), $S64, INDEX(rawデータ範囲, , MATCH($U$1,表頭範囲, 0)),U$2 ) ) -> 2件 | W64: 0件 | Y64: 0件 | AA64: 0件 | AC64: 0件 | AE64: 0件 | AG64: 0件 | AI64: 0件 | AK64: 0件 | AM64: 0件 | AO64: 0件 | AQ64: 0件 | AS64: 2件
R65: 回答エリア | S65: =IF(【M】エリア!$E61<>"",【M】エリア!$E61,"") -> 今庄宿 エリア | U65: 1件 | W65: 12件 | Y65: 5件 | AA65: 3件 | AC65: 1件 | AE65: 3件 | AG65: 2件 | AI65: 3件 | AK65: 0件 | AM65: 0件 | AO65: 0件 | AQ65: 0件 | AS65: 30件
R66: 回答エリア | S66: =IF(【M】エリア!$E62<>"",【M】エリア!$E62,"") -> 日本海さかな街 エリア | U66: 23件 | W66: 26件 | Y66: 13件 | AA66: 15件 | AC66: 18件 | AE66: 27件 | AG66: 16件 | AI66: 33件 | AK66: 0件 | AM66: 0件 | AO66: 0件 | AQ66: 0件 | AS66: 171件
R67: 回答エリア | S67: =IF(【M】エリア!$E63<>"",【M】エリア!$E63,"") -> 神楽通り エリア | U67: 10件 | W67: 4件 | Y67: 2件 | AA67: 1件 | AC67: 2件 | AE67: 3件 | AG67: 3件 | AI67: 4件 | AK67: 0件 | AM67: 0件 | AO67: 0件 | AQ67: 0件 | AS67: 29件
R68: 回答エリア | S68: =IF(【M】エリア!$E64<>"",【M】エリア!$E64,"") -> JR敦賀駅前 エリア | U68: 16件 | W68: 28件 | Y68: 41件 | AA68: 25件 | AC68: 33件 | AE68: 46件 | AG68: 44件 | AI68: 44件 | AK68: 0件 | AM68: 0件 | AO68: 0件 | AQ68: 0件 | AS68: 277件
R69: 回答エリア | S69: =IF(【M】エリア!$E65<>"",【M】エリア!$E65,"") -> 金ヶ崎 エリア | U69: 38件 | W69: 59件 | Y69: 36件 | AA69: 19件 | AC69: 31件 | AE69: 43件 | AG69: 30件 | AI69: 54件 | AK69: 0件 | AM69: 0件 | AO69: 0件 | AQ69: 0件 | AS69: 310件
R70: 回答エリア | S70: =IF(【M】エリア!$E66<>"",【M】エリア!$E66,"") -> 敦賀市立博物館 エリア | U70: 7件 | W70: 3件 | Y70: 2件 | AA70: 1件 | AC70: 5件 | AE70: 6件 | AG70: 10件 | AI70: 17件 | AK70: 0件 | AM70: 0件 | AO70: 0件 | AQ70: 0件 | AS70: =IF($S70="", "",SUM($U70:$AQ70)) -> 51件
R71: 回答エリア | S71: =IF(【M】エリア!$E67<>"",【M】エリア!$E67,"") -> 水島 エリア | U71: 0件 | W71: 1件 | Y71: 1件 | AA71: 2件 | AC71: 0件 | AE71: 0件 | AG71: 0件 | AI71: 0件 | AK71: 0件 | AM71: 0件 | AO71: 0件 | AQ71: 0件 | AS71: 4件
R72: 回答エリア | S72: =IF(【M】エリア!$E68<>"",【M】エリア!$E68,"") -> 小浜市 阿納 エリア | U72: 10件 | W72: 7件 | Y72: 6件 | AA72: 1件 | AC72: 6件 | AE72: 6件 | AG72: 4件 | AI72: 9件 | AK72: 0件 | AM72: 0件 | AO72: 0件 | AQ72: 0件 | AS72: 49件
R73: 回答エリア | S73: =IF(【M】エリア!$E69<>"",【M】エリア!$E69,"") -> 道の駅「若狭おばま」 エリア | U73: 41件 | W73: 52件 | Y73: 61件 | AA73: 44件 | AC73: 58件 | AE73: 61件 | AG73: 41件 | AI73: 38件 | AK73: 0件 | AM73: 0件 | AO73: 0件 | AQ73: 0件 | AS73: 396件
R74: 回答エリア | S74: =IF(【M】エリア!$E70<>"",【M】エリア!$E70,"") -> 小浜 エリア（宿泊施設） | U74: =IF($S74="", "", COUNTIFS( INDEX(rawデータ範囲, , MATCH($R74,表頭範囲, 0)), $S74, INDEX(rawデータ範囲, , MATCH($U$1,表頭範囲, 0)),U$2 ) ) -> 14件 | W74: 26件 | Y74: 12件 | AA74: 16件 | AC74: 33件 | AE74: 18件 | AG74: 7件 | AI74: 20件 | AK74: 0件 | AM74: 0件 | AO74: 0件 | AQ74: 0件 | AS74: 146件
R75: 回答エリア | S75: =IF(【M】エリア!$E71<>"",【M】エリア!$E71,"") -> 若狭フィッシャーマンズワーフ エリア | U75: 13件 | W75: 11件 | Y75: 15件 | AA75: 16件 | AC75: 17件 | AE75: 18件 | AG75: 10件 | AI75: 7件 | AK75: 0件 | AM75: 0件 | AO75: 0件 | AQ75: 0件 | AS75: 107件
R76: 回答エリア | S76: =IF(【M】エリア!$E72<>"",【M】エリア!$E72,"") -> 御食国若狭おばま食文化館 エリア | U76: 12件 | W76: 8件 | Y76: 5件 | AA76: 1件 | AC76: 9件 | AE76: 8件 | AG76: 2件 | AI76: 2件 | AK76: 0件 | AM76: 0件 | AO76: 0件 | AQ76: 0件 | AS76: 47件
R77: 回答エリア | S77: =IF(【M】エリア!$E73<>"",【M】エリア!$E73,"") -> 小浜市まちの駅 エリア | U77: 5件 | W77: 6件 | Y77: 1件 | AA77: 0件 | AC77: 4件 | AE77: 3件 | AG77: 3件 | AI77: 1件 | AK77: 0件 | AM77: 0件 | AO77: 0件 | AQ77: 0件 | AS77: 23件
R78: 回答エリア | S78: =IF(【M】エリア!$E74<>"",【M】エリア!$E74,"") -> 明通寺 エリア | U78: 30件 | W78: 27件 | Y78: 11件 | AA78: 22件 | AC78: 23件 | AE78: 8件 | AG78: 10件 | AI78: 12件 | AK78: 0件 | AM78: 0件 | AO78: 0件 | AQ78: 0件 | AS78: 143件
R79: 回答エリア | S79: =IF(【M】エリア!$E75<>"",【M】エリア!$E75,"") -> 箸のふるさと館WAKASA エリア | U79: 2件 | W79: 1件 | Y79: 1件 | AA79: 1件 | AC79: 1件 | AE79: 1件 | AG79: 0件 | AI79: 0件 | AK79: 0件 | AM79: 0件 | AO79: 0件 | AQ79: 0件 | AS79: 7件
R80: 回答エリア | S80: =IF(【M】エリア!$E76<>"",【M】エリア!$E76,"") -> 美浜町レイクセンター エリア | U80: 13件 | W80: 28件 | Y80: 17件 | AA80: 24件 | AC80: 30件 | AE80: 27件 | AG80: 21件 | AI80: 28件 | AK80: 0件 | AM80: 0件 | AO80: 0件 | AQ80: 0件 | AS80: 188件
R81: 回答エリア | S81: =IF(【M】エリア!$E77<>"",【M】エリア!$E77,"") -> 水晶浜 エリア | U81: 0件 | W81: 0件 | Y81: 1件 | AA81: 0件 | AC81: 1件 | AE81: 0件 | AG81: 0件 | AI81: 1件 | AK81: 0件 | AM81: 0件 | AO81: 0件 | AQ81: 0件 | AS81: 3件
R82: 回答エリア | S82: =IF(【M】エリア!$E78<>"",【M】エリア!$E78,"") -> レインボーライン エリア | U82: 13件 | W82: 33件 | Y82: 21件 | AA82: 26件 | AC82: 41件 | AE82: 24件 | AG82: 17件 | AI82: 19件 | AK82: 0件 | AM82: 0件 | AO82: 0件 | AQ82: 0件 | AS82: 194件
R83: 回答エリア | S83: =IF(【M】エリア!$E79<>"",【M】エリア!$E79,"") -> 若狭海遊バザール 千鳥苑 エリア | U83: 3件 | W83: 8件 | Y83: 6件 | AA83: 7件 | AC83: 5件 | AE83: 0件 | AG83: 0件 | AI83: 0件 | AK83: 0件 | AM83: 0件 | AO83: 0件 | AQ83: 0件 | AS83: 29件
R84: 回答エリア | S84: =IF(【M】エリア!$E80<>"",【M】エリア!$E80,"") -> JR美浜駅 エリア | U84: =IF($S84="", "", COUNTIFS( INDEX(rawデータ範囲, , MATCH($R84,表頭範囲, 0)), $S84, INDEX(rawデータ範囲, , MATCH($U$1,表頭範囲, 0)),U$2 ) ) -> 31件 | W84: 49件 | Y84: 36件 | AA84: 26件 | AC84: 27件 | AE84: 31件 | AG84: 27件 | AI84: 28件 | AK84: 0件 | AM84: 0件 | AO84: 0件 | AQ84: 0件 | AS84: 255件
R85: 回答エリア | S85: =IF(【M】エリア!$E81<>"",【M】エリア!$E81,"") -> 熊川宿 エリア | U85: 22件 | W85: 25件 | Y85: 23件 | AA85: 15件 | AC85: 21件 | AE85: 25件 | AG85: 14件 | AI85: 25件 | AK85: 0件 | AM85: 0件 | AO85: 0件 | AQ85: 0件 | AS85: 170件
R86: 回答エリア | S86: =IF(【M】エリア!$E82<>"",【M】エリア!$E82,"") -> 湖上館パムコ（水月湖）エリア | U86: 21件 | W86: 32件 | Y86: 20件 | AA86: 17件 | AC86: 16件 | AE86: 12件 | AG86: 13件 | AI86: 15件 | AK86: 0件 | AM86: 0件 | AO86: 0件 | AQ86: 0件 | AS86: 146件
R87: 回答エリア | S87: =IF(【M】エリア!$E83<>"",【M】エリア!$E83,"") -> 道の駅「三方五湖」 エリア | U87: 36件 | W87: 21件 | Y87: 17件 | AA87: 11件 | AC87: 25件 | AE87: 27件 | AG87: 22件 | AI87: 28件 | AK87: 0件 | AM87: 0件 | AO87: 0件 | AQ87: 0件 | AS87: 187件
R88: 回答エリア | S88: =IF(【M】エリア!$E84<>"",【M】エリア!$E84,"") -> うみんぴあ大飯 エリア | U88: 11件 | W88: 14件 | Y88: 10件 | AA88: 7件 | AC88: 16件 | AE88: 29件 | AG88: 17件 | AI88: 33件 | AK88: 0件 | AM88: 0件 | AO88: 0件 | AQ88: 0件 | AS88: 137件
R89: 回答エリア | S89: =IF(【M】エリア!$E85<>"",【M】エリア!$E85,"") -> 若州一滴文庫 エリア | U89: 3件 | W89: 1件 | Y89: 0件 | AA89: 0件 | AC89: 2件 | AE89: 3件 | AG89: 2件 | AI89: 1件 | AK89: 0件 | AM89: 0件 | AO89: 0件 | AQ89: 0件 | AS89: 12件
R90: 回答エリア | S90: =IF(【M】エリア!$E86<>"",【M】エリア!$E86,"") -> 名田庄 エリア | U90: 10件 | W90: 22件 | Y90: 7件 | AA90: 15件 | AC90: 17件 | AE90: 14件 | AG90: 17件 | AI90: 13件 | AK90: 0件 | AM90: 0件 | AO90: 0件 | AQ90: 0件 | AS90: 115件
R91: 回答エリア | S91: =IF(【M】エリア!$E87<>"",【M】エリア!$E87,"") -> 赤礁崎オートキャンプ場 エリア | U91: 1件 | W91: 0件 | Y91: 2件 | AA91: 0件 | AC91: 0件 | AE91: 0件 | AG91: 0件 | AI91: 0件 | AK91: 0件 | AM91: 0件 | AO91: 0件 | AQ91: 0件 | AS91: 3件
R92: 回答エリア | S92: =IF(【M】エリア!$E88<>"",【M】エリア!$E88,"") -> 道の駅「シーサイド高浜」 エリア | U92: 1件 | W92: 21件 | Y92: 18件 | AA92: 15件 | AC92: 20件 | AE92: 13件 | AG92: 12件 | AI92: 8件 | AK92: 0件 | AM92: 0件 | AO92: 0件 | AQ92: 0件 | AS92: 108件
R93: 回答エリア | S93: =IF(【M】エリア!$E89<>"",【M】エリア!$E89,"") -> 若狭和田 エリア | U93: 1件 | W93: 22件 | Y93: 5件 | AA93: 2件 | AC93: 3件 | AE93: 0件 | AG93: 0件 | AI93: 0件 | AK93: 0件 | AM93: 0件 | AO93: 0件 | AQ93: 0件 | AS93: 33件
R94: 回答エリア | S94: =IF(【M】エリア!$E90<>"",【M】エリア!$E90,"") -> 若狭高浜 エリア | U94: =IF($S94="", "", COUNTIFS( INDEX(rawデータ範囲, , MATCH($R94,表頭範囲, 0)), $S94, INDEX(rawデータ範囲, , MATCH($U$1,表頭範囲, 0)),U$2 ) ) -> 2件 | W94: 6件 | Y94: 9件 | AA94: 15件 | AC94: 7件 | AE94: 8件 | AG94: 9件 | AI94: 7件 | AK94: 0件 | AM94: 0件 | AO94: 0件 | AQ94: 0件 | AS94: 63件
R95: 回答エリア | S95: =IF(【M】エリア!$E91<>"",【M】エリア!$E91,"") -> 竹田エリア | U95: 6件 | W95: 28件 | Y95: 33件 | AA95: 9件 | AC95: 34件 | AE95: 14件 | AG95: 19件 | AI95: 23件 | AK95: 0件 | AM95: 0件 | AO95: 0件 | AQ95: 0件 | AS95: 166件
R96: 回答エリア | S96: =IF(【M】エリア!$E92<>"",【M】エリア!$E92,"") -> 美浜町健康楽膳拠点施設こるぱエリア | U96: 0件 | W96: 0件 | Y96: 1件 | AA96: 1件 | AC96: 6件 | AE96: 5件 | AG96: 3件 | AI96: 7件 | AK96: 0件 | AM96: 0件 | AO96: 0件 | AQ96: 0件 | AS96: 23件
R97: 回答エリア | S97: =IF(【M】エリア!$E93<>"",【M】エリア!$E93,"") -> 青葉山ハーバルビレッジ エリア | U97: 0件 | W97: 11件 | Y97: 2件 | AA97: 0件 | AC97: 1件 | AE97: 0件 | AG97: 0件 | AI97: 0件 | AK97: 0件 | AM97: 0件 | AO97: 0件 | AQ97: 0件 | AS97: 14件
R98: 回答エリア | S98: =IF(【M】エリア!$E94<>"",【M】エリア!$E94,"") -> 
R99: 回答エリア | S99: =IF(【M】エリア!$E95<>"",【M】エリア!$E95,"") -> 
R100: 回答エリア | S100: =IF(【M】エリア!$E96<>"",【M】エリア!$E96,"") -> 
R101: 回答エリア | S101: =IF(【M】エリア!$E97<>"",【M】エリア!$E97,"") -> 
R102: 回答エリア | S102: =IF(【M】エリア!$E98<>"",【M】エリア!$E98,"") -> 
R103: 回答エリア | S103: =IF(【M】エリア!$E99<>"",【M】エリア!$E99,"") -> 
R104: 回答エリア | S104: =IF(【M】エリア!$E100<>"",【M】エリア!$E100,"") ->  | U104: =IF($S104="", "", COUNTIFS( INDEX(rawデータ範囲, , MATCH($R104,表頭範囲, 0)), $S104, INDEX(rawデータ範囲, , MATCH($U$1,表頭範囲, 0)),U$2 ) ) -> 
R105: 回答エリア | S105: =IF(【M】エリア!$E101<>"",【M】エリア!$E101,"") -> 
R106: 回答エリア | S106: =IF(【M】エリア!$E102<>"",【M】エリア!$E102,"") -> 
R107: 回答エリア | S107: =IF(【M】エリア!$E103<>"",【M】エリア!$E103,"") -> 
R108: 回答エリア | S108: =IF(【M】エリア!$E104<>"",【M】エリア!$E104,"") -> 
R109: 回答エリア | S109: =IF(【M】エリア!$E105<>"",【M】エリア!$E105,"") -> 
R110: 回答エリア | S110: =IF(【M】エリア!$E106<>"",【M】エリア!$E106,"") -> 
R111: 回答エリア | S111: =IF(【M】エリア!$E107<>"",【M】エリア!$E107,"") -> 
R112: 回答エリア | S112: =IF(【M】エリア!$E108<>"",【M】エリア!$E108,"") -> 
R113: 回答エリア | S113: =IF(【M】エリア!$E109<>"",【M】エリア!$E109,"") -> 
R114: 回答エリア | S114: =IF(【M】エリア!$E110<>"",【M】エリア!$E110,"") ->  | U114: =IF($S114="", "", COUNTIFS( INDEX(rawデータ範囲, , MATCH($R114,表頭範囲, 0)), $S114, INDEX(rawデータ範囲, , MATCH($U$1,表頭範囲, 0)),U$2 ) ) -> 
R115: 回答エリア | S115: =IF(【M】エリア!$E111<>"",【M】エリア!$E111,"") -> 
R116: 回答エリア | S116: =IF(【M】エリア!$E112<>"",【M】エリア!$E112,"") -> 
R117: 回答エリア | S117: =IF(【M】エリア!$E113<>"",【M】エリア!$E113,"") -> 
R118: 回答エリア | S118: =IF(【M】エリア!$E114<>"",【M】エリア!$E114,"") -> 
R119: 回答エリア | S119: =IF(【M】エリア!$E115<>"",【M】エリア!$E115,"") -> 
R120: 回答エリア | S120: =IF(【M】エリア!$E116<>"",【M】エリア!$E116,"") -> 
R121: 回答エリア | S121: =IF(【M】エリア!$E117<>"",【M】エリア!$E117,"") -> 
R122: 回答エリア | S122: =IF(【M】エリア!$E118<>"",【M】エリア!$E118,"") -> 
R123: 回答エリア | S123: =IF(【M】エリア!$E119<>"",【M】エリア!$E119,"") -> 
R124: 回答エリア | S124: =IF(【M】エリア!$E120<>"",【M】エリア!$E120,"") -> 
R125: 回答エリア | S125: =IF(【M】エリア!$E121<>"",【M】エリア!$E121,"") -> 

Sheet NPS
A1: =施設コード!$A$2 -> 11月 | G1: 4月 | H1: 5月 | I1: 6月 | J1: 7月 | K1: 8月 | L1: 9月 | M1: 10月 | N1: 11月 | O1: 12月 | P1: 1月 | Q1: 2月 | R1: 3月 | S1: 通年 | V1: =IFERROR(MATCH($A$1,$BE$2:$BQ$2,0),"-") -> 8 | X1: 集計区分 | Z1: NPS | AA1: 回答月 | AO1: Rank | AP1: 回答月 | BD1: （処理用_順位） | BE1: 回答月
A2: 順位 | B2: 回答エリア | C2: NPS | D2: 回答数 | F2: =【M】エリア!$L$2 -> 福井県 | G2: =IF(ISNUMBER(AA3),AA3,"-") -> 20.3 | H2: =IF(ISNUMBER(AB3),AB3,"-") -> 19.0 | I2: =IF(ISNUMBER(AC3),AC3,"-") -> 18.6 | J2: =IF(ISNUMBER(AD3),AD3,"-") -> 25.2 | K2: =IF(ISNUMBER(AE3),AE3,"-") -> 23.3 | L2: =IF(ISNUMBER(AF3),AF3,"-") -> 22.5 | M2: =IF(ISNUMBER(AG3),AG3,"-") -> 12.9 | N2: =IF(ISNUMBER(AH3),AH3,"-") -> 22.5 | O2: =IF(ISNUMBER(AI3),AI3,"-") -> - | P2: =IF(ISNUMBER(AJ3),AJ3,"-") -> - | Q2: =IF(ISNUMBER(AK3),AK3,"-") -> - | R2: =IF(ISNUMBER(AL3),AL3,"-") -> - | S2: =IF(ISNUMBER(AM3),AM3,"-") -> 20.6 | V2: ↑X位置/↓Y位置決定 | AA2: 4月 | AB2: 5月 | AC2: 6月 | AD2: 7月 | AE2: 8月 | AF2: 9月 | AG2: 10月 | AH2: 11月 | AI2: 12月 | AJ2: 1月 | AK2: 2月 | AL2: 3月 | AM2: 通年 | AP2: 4月 | AQ2: 5月 | AR2: 6月 | AS2: 7月 | AT2: 8月 | AU2: 9月 | AV2: 10月 | AW2: 11月 | AX2: 12月 | AY2: 1月 | AZ2: 2月 | BA2: 3月 | BB2: 通年 | BE2: 4月 | BF2: 5月 | BG2: 6月 | BH2: 7月 | BI2: 8月 | BJ2: 9月 | BK2: 10月 | BL2: 11月 | BM2: 12月 | BN2: 1月 | BO2: 2月 | BP2: 3月 | BQ2: 通年
A3: =IFERROR(INDEX($AP$6:$BB$125,$V3,$V$1),"") -> 1 | B3: =IFERROR(INDEX($Y$6:$Y$125,$V3,1),"") -> 芝政ワールド エリア | C3: =IFERROR(INDEX($AA$6:$AM$125,$V3,$V$1),"") -> 100.0 | D3: =IFERROR(INDEX(【D】NPS!$GP$7:$HB$126,$V3,$V$1),"") -> 1件 | F3: =【M】エリア!$L$3 -> 福井市・永平寺町 | G3: =IF(ISNUMBER(AA4),AA4,"-") -> 28.1 | H3: 22.9 | I3: 22.9 | J3: 19.6 | K3: 25.6 | L3: 28.4 | M3: 19.0 | N3: 31.6 | O3: - | P3: - | Q3: - | R3: - | S3: 25.0 | V3: =IFERROR(MATCH(ROW(B3)-2,INDEX($BE$6:$BQ$125,,$V$1),0),"-") -> 12 | X3: 都道府県 | Y3: =【M】エリア!$L$2 -> 福井県 | AA3: =IF($Y3<>"", INDEX(NPSデータ範囲, MATCH($Y3,NPS表側範囲,0), MATCH(AA$2&$Z$1,NPS表頭範囲,0) ),"") -> 20.3 | AB3: 19.0 | AC3: 18.6 | AD3: 25.2 | AE3: 23.3 | AF3: 22.5 | AG3: 12.9 | AH3: 22.5 | AI3: - | AJ3: - | AK3: - | AL3: - | AM3: 20.6 | AP3: - | AQ3: - | AR3: - | AS3: - | AT3: - | AU3: - | AV3: - | AW3: - | AX3: - | AY3: - | AZ3: - | BA3: - | BB3: - | BE3: - | BF3: - | BG3: - | BH3: - | BI3: - | BJ3: - | BK3: - | BL3: - | BM3: - | BN3: - | BO3: - | BP3: - | BQ3: -
A4: =IFERROR(INDEX($AP$6:$BB$125,$V4,$V$1),"") -> 1 | B4: =IFERROR(INDEX($Y$6:$Y$125,$V4,1),"") -> 武生駅 エリア | C4: =IFERROR(INDEX($AA$6:$AM$125,$V4,$V$1),"") -> 100.0 | D4: =IFERROR(INDEX(【D】NPS!$GP$7:$HB$126,$V4,$V$1),"") -> 1件 | F4: =【M】エリア!$L$4 -> 福井市 | G4: 31.7 | H4: 28.3 | I4: 25.3 | J4: 22.4 | K4: 23.0 | L4: 32.0 | M4: 18.0 | N4: 31.8 | O4: - | P4: - | Q4: - | R4: - | S4: 26.9 | V4: 39 | X4: =【M】エリア!$J$2 -> 6分類 | Y4: =【M】エリア!$L$3 -> 福井市・永平寺町 | AA4: 28.1 | AB4: 22.9 | AC4: 22.9 | AD4: 19.6 | AE4: 25.6 | AF4: 28.4 | AG4: 19.0 | AH4: 31.6 | AI4: - | AJ4: - | AK4: - | AL4: - | AM4: 25.0 | AP4: - | AQ4: - | AR4: - | AS4: - | AT4: - | AU4: - | AV4: - | AW4: - | AX4: - | AY4: - | AZ4: - | BA4: - | BB4: - | BE4: - | BF4: - | BG4: - | BH4: - | BI4: - | BJ4: - | BK4: - | BL4: - | BM4: - | BN4: - | BO4: - | BP4: - | BQ4: -
A5: =IFERROR(INDEX($AP$6:$BB$125,$V5,$V$1),"") -> 1 | B5: =IFERROR(INDEX($Y$6:$Y$125,$V5,1),"") -> うるしの里 エリア | C5: =IFERROR(INDEX($AA$6:$AM$125,$V5,$V$1),"") -> 100.0 | D5: =IFERROR(INDEX(【D】NPS!$GP$7:$HB$126,$V5,$V$1),"") -> 3件 | F5: =【M】エリア!$L$5 -> 福井駅前 エリア | G5: =IFERROR(INDEX(AA$6:AA$125,MATCH($F5,$Y$6:$Y$125,0),1),"-") -> 47.4 | H5: =IFERROR(INDEX(AB$6:AB$125,MATCH($F5,$Y$6:$Y$125,0),1),"-") -> 34.6 | I5: 33.3 | J5: 25.0 | K5: 35.8 | L5: 34.5 | M5: 23.8 | N5: 34.4 | O5: - | P5: - | Q5: - | R5: - | S5: 33.7 | V5: 45 | X5: 市町村 | Y5: =【M】エリア!$L$4 -> 福井市 | AA5: 31.7 | AB5: 28.3 | AC5: 25.3 | AD5: 22.4 | AE5: 23.0 | AF5: 32.0 | AG5: 18.0 | AH5: 31.8 | AI5: - | AJ5: - | AK5: - | AL5: - | AM5: 26.9 | AP5: - | AQ5: - | AR5: - | AS5: - | AT5: - | AU5: - | AV5: - | AW5: - | AX5: - | AY5: - | AZ5: - | BA5: - | BB5: - | BE5: - | BF5: - | BG5: - | BH5: - | BI5: - | BJ5: - | BK5: - | BL5: - | BM5: - | BN5: - | BO5: - | BP5: - | BQ5: -
A6: =IFERROR(INDEX($AP$6:$BB$125,$V6,$V$1),"") -> 4 | B6: =IFERROR(INDEX($Y$6:$Y$125,$V6,1),"") -> 越前海岸 くりや旅館街 エリア | C6: =IFERROR(INDEX($AA$6:$AM$125,$V6,$V$1),"") -> 88.9 | D6: =IFERROR(INDEX(【D】NPS!$GP$7:$HB$126,$V6,$V$1),"") -> 9件 | V6: 56 | X6: 回答エリア | Y6: =IF(【M】エリア!$E2<>"",【M】エリア!$E2,"") -> 福井駅前 エリア | AA6: 47.4 | AB6: 34.6 | AC6: 33.3 | AD6: 25.0 | AE6: 35.8 | AF6: 34.5 | AG6: 23.8 | AH6: 34.4 | AI6: - | AJ6: - | AK6: - | AL6: - | AM6: 33.7 | AP6: =IF($Y6<>"", INDEX(NPSデータ範囲, MATCH($Y6,NPS表側範囲,0), MATCH(AP$2&$AO$1,NPS表頭範囲,0) ),"") -> 9 | AQ6: 18 | AR6: 20 | AS6: 32 | AT6: 20 | AU6: 20 | AV6: 21 | AW6: 17 | AX6: - | AY6: - | AZ6: - | BA6: - | BB6: 18 | BE6: =IF($Y6<>"", INDEX(NPSデータ範囲, MATCH($Y6,NPS表側範囲,0), MATCH(BE$2&$BD$1,NPS表頭範囲,0) ),"") -> 9 | BF6: 18 | BG6: 20 | BH6: 32 | BI6: 20 | BJ6: 20 | BK6: 21 | BL6: 17 | BM6: - | BN6: - | BO6: - | BP6: - | BQ6: 18
A7: =IFERROR(INDEX($AP$6:$BB$125,$V7,$V$1),"") -> 5 | B7: =IFERROR(INDEX($Y$6:$Y$125,$V7,1),"") -> 越前漁港 エリア | C7: =IFERROR(INDEX($AA$6:$AM$125,$V7,$V$1),"") -> 80.0 | D7: =IFERROR(INDEX(【D】NPS!$GP$7:$HB$126,$V7,$V$1),"") -> 5件 | V7: 53 | X7: 回答エリア | Y7: =IF(【M】エリア!$E3<>"",【M】エリア!$E3,"") -> 福井駅前 エリア（宿泊施設） | AA7: 26.9 | AB7: 35.9 | AC7: 0.0 | AD7: 7.7 | AE7: 14.3 | AF7: 33.3 | AG7: 17.4 | AH7: 41.4 | AI7: - | AJ7: - | AK7: - | AL7: - | AM7: 24.9 | AP7: 22 | AQ7: 14 | AR7: 56 | AS7: 59 | AT7: 44 | AU7: 21 | AV7: 28 | AW7: 12 | AX7: - | AY7: - | AZ7: - | BA7: - | BB7: 27 | BE7: 22 | BF7: 14 | BG7: 56 | BH7: 59 | BI7: 44 | BJ7: 21 | BK7: 28 | BL7: 12 | BM7: - | BN7: - | BO7: - | BP7: - | BQ7: 27
A8: =IFERROR(INDEX($AP$6:$BB$125,$V8,$V$1),"") -> 6 | B8: =IFERROR(INDEX($Y$6:$Y$125,$V8,1),"") -> 平泉寺白山神社 エリア | C8: =IFERROR(INDEX($AA$6:$AM$125,$V8,$V$1),"") -> 75.0 | D8: =IFERROR(INDEX(【D】NPS!$GP$7:$HB$126,$V8,$V$1),"") -> 4件 | V8: 29 | X8: 回答エリア | Y8: =IF(【M】エリア!$E4<>"",【M】エリア!$E4,"") -> 北ノ庄 エリア | AA8: 38.5 | AB8: 42.1 | AC8: 28.6 | AD8: 44.4 | AE8: - | AF8: - | AG8: 100.0 | AH8: 0.0 | AI8: - | AJ8: - | AK8: - | AL8: - | AM8: 36.8 | AP8: 12 | AQ8: 11 | AR8: 26 | AS8: 22 | AT8: - | AU8: - | AV8: 1 | AW8: 51 | AX8: - | AY8: - | AZ8: - | BA8: - | BB8: 13 | BE8: 12 | BF8: 11 | BG8: 26 | BH8: 22 | BI8: - | BJ8: - | BK8: 1 | BL8: 51 | BM8: - | BN8: - | BO8: - | BP8: - | BQ8: 13
A9: =IFERROR(INDEX($AP$6:$BB$125,$V9,$V$1),"") -> 7 | B9: =IFERROR(INDEX($Y$6:$Y$125,$V9,1),"") -> 道の駅「越前おおの荒島の郷」 エリア | C9: =IFERROR(INDEX($AA$6:$AM$125,$V9,$V$1),"") -> 52.4 | D9: =IFERROR(INDEX(【D】NPS!$GP$7:$HB$126,$V9,$V$1),"") -> 21件 | V9: 22 | X9: 回答エリア | Y9: =IF(【M】エリア!$E5<>"",【M】エリア!$E5,"") -> 名勝 養浩館庭園 エリア | AA9: 36.4 | AB9: 35.3 | AC9: 50.0 | AD9: 21.4 | AE9: 0.0 | AF9: 50.0 | AG9: 66.7 | AH9: 0.0 | AI9: - | AJ9: - | AK9: - | AL9: - | AM9: 32.8 | AP9: 14 | AQ9: 15 | AR9: 8 | AS9: 37 | AT9: 53 | AU9: 8 | AV9: 4 | AW9: 51 | AX9: - | AY9: - | AZ9: - | BA9: - | BB9: 20 | BE9: 14 | BF9: 15 | BG9: 8 | BH9: 37 | BI9: 53 | BJ9: 8 | BK9: 4 | BL9: 52 | BM9: - | BN9: - | BO9: - | BP9: - | BQ9: 20
A10: =IFERROR(INDEX($AP$6:$BB$125,$V10,$V$1),"") -> 8 | B10: =IFERROR(INDEX($Y$6:$Y$125,$V10,1),"") -> 日本海さかな街 エリア | C10: =IFERROR(INDEX($AA$6:$AM$125,$V10,$V$1),"") -> 45.5 | D10: =IFERROR(INDEX(【D】NPS!$GP$7:$HB$126,$V10,$V$1),"") -> 33件 | V10: 61 | X10: 回答エリア | Y10: =IF(【M】エリア!$E6<>"",【M】エリア!$E6,"") -> ふくい鮮いちば エリア | AA10: 27.3 | AB10: 0.0 | AC10: 0.0 | AD10: 33.3 | AE10: 40.0 | AF10: 42.9 | AG10: 0.0 | AH10: 41.7 | AI10: - | AJ10: - | AK10: - | AL10: - | AM10: 18.6 | AP10: 21 | AQ10: 51 | AR10: 56 | AS10: 27 | AT10: 17 | AU10: 14 | AV10: 40 | AW10: 11 | AX10: - | AY10: - | AZ10: - | BA10: - | BB10: 39 | BE10: 21 | BF10: 51 | BG10: 57 | BH10: 27 | BI10: 17 | BJ10: 14 | BK10: 40 | BL10: 11 | BM10: - | BN10: - | BO10: - | BP10: - | BQ10: 39
A11: =IFERROR(INDEX($AP$6:$BB$125,$V11,$V$1),"") -> 9 | B11: =IFERROR(INDEX($Y$6:$Y$125,$V11,1),"") -> 小浜市 阿納 エリア | C11: =IFERROR(INDEX($AA$6:$AM$125,$V11,$V$1),"") -> 44.4 | D11: =IFERROR(INDEX(【D】NPS!$GP$7:$HB$126,$V11,$V$1),"") -> 9件 | V11: 67 | X11: 回答エリア | Y11: =IF(【M】エリア!$E7<>"",【M】エリア!$E7,"") -> 一乗谷朝倉氏遺跡 エリア | AA11: 7.7 | AB11: 13.7 | AC11: 17.2 | AD11: 21.9 | AE11: -25.0 | AF11: 18.8 | AG11: 0.0 | AH11: 33.3 | AI11: - | AJ11: - | AK11: - | AL11: - | AM11: 12.3 | AP11: 43 | AQ11: 41 | AR11: 42 | AS11: 36 | AT11: 77 | AU11: 36 | AV11: 40 | AW11: 19 | AX11: - | AY11: - | AZ11: - | BA11: - | BB11: 51 | BE11: 43 | BF11: 41 | BG11: 42 | BH11: 36 | BI11: 77 | BJ11: 36 | BK11: 41 | BL11: 19 | BM11: - | BN11: - | BO11: - | BP11: - | BQ11: 51
A12: =IFERROR(INDEX($AP$6:$BB$125,$V12,$V$1),"") -> 10 | B12: =IFERROR(INDEX($Y$6:$Y$125,$V12,1),"") -> かつやま恐竜の森 エリア | C12: =IFERROR(INDEX($AA$6:$AM$125,$V12,$V$1),"") -> 42.0 | D12: =IFERROR(INDEX(【D】NPS!$GP$7:$HB$126,$V12,$V$1),"") -> 224件 | V12: 25 | X12: 回答エリア | Y12: =IF(【M】エリア!$E8<>"",【M】エリア!$E8,"") -> 越前海岸 北部 エリア | AA12: 16.7 | AB12: 71.4 | AC12: 0.0 | AD12: 14.3 | AE12: 50.0 | AF12: 100.0 | AG12: -50.0 | AH12: 0.0 | AI12: - | AJ12: - | AK12: - | AL12: - | AM12: 35.3 | AP12: 30 | AQ12: 4 | AR12: 56 | AS12: 43 | AT12: 13 | AU12: 1 | AV12: 71 | AW12: 51 | AX12: - | AY12: - | AZ12: - | BA12: - | BB12: 16 | BE12: 30 | BF12: 4 | BG12: 58 | BH12: 43 | BI12: 13 | BJ12: 1 | BK12: 71 | BL12: 53 | BM12: - | BN12: - | BO12: - | BP12: - | BQ12: 16
A13: =IFERROR(INDEX($AP$6:$BB$125,$V13,$V$1),"") -> 11 | B13: =IFERROR(INDEX($Y$6:$Y$125,$V13,1),"") -> ふくい鮮いちば エリア | C13: =IFERROR(INDEX($AA$6:$AM$125,$V13,$V$1),"") -> 41.7 | D13: =IFERROR(INDEX(【D】NPS!$GP$7:$HB$126,$V13,$V$1),"") -> 12件 | V13: 5 | X13: 回答エリア | Y13: =IF(【M】エリア!$E9<>"",【M】エリア!$E9,"") -> 大安禅寺 エリア | AA13: =IF($Y13<>"", INDEX(NPSデータ範囲, MATCH($Y13,NPS表側範囲,0), MATCH(AA$2&$Z$1,NPS表頭範囲,0) ),"") -> -100.0 | AB13: 0.0 | AC13: 0.0 | AD13: - | AE13: - | AF13: -100.0 | AG13: 0.0 | AH13: -66.7 | AI13: - | AJ13: - | AK13: - | AL13: - | AM13: -50.0 | AP13: 72 | AQ13: 51 | AR13: 56 | AS13: - | AT13: - | AU13: 77 | AV13: 40 | AW13: 78 | AX13: - | AY13: - | AZ13: - | BA13: - | BB13: 90 | BE13: 72 | BF13: 52 | BG13: 59 | BH13: - | BI13: - | BJ13: 77 | BK13: 42 | BL13: 78 | BM13: - | BN13: - | BO13: - | BP13: - | BQ13: 90
A14: =IFERROR(INDEX($AP$6:$BB$125,$V14,$V$1),"") -> 12 | B14: =IFERROR(INDEX($Y$6:$Y$125,$V14,1),"") -> 福井駅前 エリア（宿泊施設） | C14: =IFERROR(INDEX($AA$6:$AM$125,$V14,$V$1),"") -> 41.4 | D14: =IFERROR(INDEX(【D】NPS!$GP$7:$HB$126,$V14,$V$1),"") -> 29件 | V14: 2 | X14: 回答エリア | Y14: =IF(【M】エリア!$E10<>"",【M】エリア!$E10,"") -> 三国湊 エリア | AA14: 23.8 | AB14: 3.4 | AC14: 16.7 | AD14: 0.0 | AE14: 71.4 | AF14: 16.7 | AG14: -13.3 | AH14: 35.7 | AI14: - | AJ14: - | AK14: - | AL14: - | AM14: 14.5 | AP14: 24 | AQ14: 50 | AR14: 43 | AS14: 62 | AT14: 6 | AU14: 39 | AV14: 61 | AW14: 16 | AX14: - | AY14: - | AZ14: - | BA14: - | BB14: 48 | BE14: 24 | BF14: 50 | BG14: 43 | BH14: 62 | BI14: 6 | BJ14: 39 | BK14: 61 | BL14: 16 | BM14: - | BN14: - | BO14: - | BP14: - | BQ14: 48
A15: =IFERROR(INDEX($AP$6:$BB$125,$V15,$V$1),"") -> 13 | B15: =IFERROR(INDEX($Y$6:$Y$125,$V15,1),"") -> 東尋坊 エリア | C15: =IFERROR(INDEX($AA$6:$AM$125,$V15,$V$1),"") -> 40.0 | D15: =IFERROR(INDEX(【D】NPS!$GP$7:$HB$126,$V15,$V$1),"") -> 5件 | V15: 10 | X15: 回答エリア | Y15: =IF(【M】エリア!$E11<>"",【M】エリア!$E11,"") -> 東尋坊 エリア | AA15: 0.0 | AB15: 18.2 | AC15: 33.3 | AD15: 12.5 | AE15: 62.5 | AF15: 76.9 | AG15: 0.0 | AH15: 40.0 | AI15: - | AJ15: - | AK15: - | AL15: - | AM15: 36.7 | AP15: 46 | AQ15: 38 | AR15: 20 | AS15: 50 | AT15: 7 | AU15: 4 | AV15: 40 | AW15: 13 | AX15: - | AY15: - | AZ15: - | BA15: - | BB15: 15 | BE15: 46 | BF15: 38 | BG15: 21 | BH15: 50 | BI15: 7 | BJ15: 4 | BK15: 43 | BL15: 13 | BM15: - | BN15: - | BO15: - | BP15: - | BQ15: 15
A16: =IFERROR(INDEX($AP$6:$BB$125,$V16,$V$1),"") -> 14 | B16: =IFERROR(INDEX($Y$6:$Y$125,$V16,1),"") -> あわら湯のまち エリア | C16: =IFERROR(INDEX($AA$6:$AM$125,$V16,$V$1),"") -> 37.3 | D16: =IFERROR(INDEX(【D】NPS!$GP$7:$HB$126,$V16,$V$1),"") -> 59件 | V16: 17 | X16: 回答エリア | Y16: =IF(【M】エリア!$E12<>"",【M】エリア!$E12,"") -> 越前松島水族館 エリア | AA16: 15.4 | AB16: 5.0 | AC16: 17.6 | AD16: 50.0 | AE16: 33.3 | AF16: 57.1 | AG16: -50.0 | AH16: 29.4 | AI16: - | AJ16: - | AK16: - | AL16: - | AM16: 24.2 | AP16: =IF($Y16<>"", INDEX(NPSデータ範囲, MATCH($Y16,NPS表側範囲,0), MATCH(AP$2&$AO$1,NPS表頭範囲,0) ),"") -> 31 | AQ16: 47 | AR16: 41 | AS16: 13 | AT16: 24 | AU16: 7 | AV16: 71 | AW16: 24 | AX16: - | AY16: - | AZ16: - | BA16: - | BB16: 30 | BE16: =IF($Y16<>"", INDEX(NPSデータ範囲, MATCH($Y16,NPS表側範囲,0), MATCH(BE$2&$BD$1,NPS表頭範囲,0) ),"") -> 31 | BF16: 47 | BG16: 41 | BH16: 13 | BI16: 24 | BJ16: 7 | BK16: 72 | BL16: 24 | BM16: - | BN16: - | BO16: - | BP16: - | BQ16: 30
A17: =IFERROR(INDEX($AP$6:$BB$125,$V17,$V$1),"") -> 15 | B17: =IFERROR(INDEX($Y$6:$Y$125,$V17,1),"") -> 大本山 永平寺 エリア | C17: =IFERROR(INDEX($AA$6:$AM$125,$V17,$V$1),"") -> 36.2 | D17: =IFERROR(INDEX(【D】NPS!$GP$7:$HB$126,$V17,$V$1),"") -> 174件 | V17: 33 | X17: 回答エリア | Y17: =IF(【M】エリア!$E13<>"",【M】エリア!$E13,"") -> 芝政ワールド エリア | AA17: - | AB17: 75.0 | AC17: -20.0 | AD17: - | AE17: 80.0 | AF17: -100.0 | AG17: -50.0 | AH17: 100.0 | AI17: - | AJ17: - | AK17: - | AL17: - | AM17: 21.1 | AP17: - | AQ17: 3 | AR17: 77 | AS17: - | AT17: 4 | AU17: 77 | AV17: 71 | AW17: 1 | AX17: - | AY17: - | AZ17: - | BA17: - | BB17: 33 | BE17: - | BF17: 3 | BG17: 77 | BH17: - | BI17: 4 | BJ17: 78 | BK17: 73 | BL17: 1 | BM17: - | BN17: - | BO17: - | BP17: - | BQ17: 33
A18: =IFERROR(INDEX($AP$6:$BB$125,$V18,$V$1),"") -> 16 | B18: =IFERROR(INDEX($Y$6:$Y$125,$V18,1),"") -> 三国湊 エリア | C18: =IFERROR(INDEX($AA$6:$AM$125,$V18,$V$1),"") -> 35.7 | D18: =IFERROR(INDEX(【D】NPS!$GP$7:$HB$126,$V18,$V$1),"") -> 14件 | V18: 9 | X18: 回答エリア | Y18: =IF(【M】エリア!$E14<>"",【M】エリア!$E14,"") -> 丸岡城 エリア | AA18: 8.8 | AB18: 33.3 | AC18: 27.3 | AD18: 10.7 | AE18: -15.0 | AF18: 14.3 | AG18: 7.4 | AH18: 34.4 | AI18: - | AJ18: - | AK18: - | AL18: - | AM18: 16.6 | AP18: 41 | AQ18: 19 | AR18: 29 | AS18: 55 | AT18: 72 | AU18: 44 | AV18: 35 | AW18: 18 | AX18: - | AY18: - | AZ18: - | BA18: - | BB18: 44 | BE18: 41 | BF18: 19 | BG18: 29 | BH18: 55 | BI18: 72 | BJ18: 44 | BK18: 35 | BL18: 18 | BM18: - | BN18: - | BO18: - | BP18: - | BQ18: 44
A19: =IFERROR(INDEX($AP$6:$BB$125,$V19,$V$1),"") -> 17 | B19: =IFERROR(INDEX($Y$6:$Y$125,$V19,1),"") -> 福井駅前 エリア | C19: =IFERROR(INDEX($AA$6:$AM$125,$V19,$V$1),"") -> 34.4 | D19: =IFERROR(INDEX(【D】NPS!$GP$7:$HB$126,$V19,$V$1),"") -> 93件 | V19: 1 | X19: 回答エリア | Y19: =IF(【M】エリア!$E15<>"",【M】エリア!$E15,"") -> 花の駅 ゆりの里公園 エリア | AA19: 14.3 | AB19: 7.7 | AC19: 42.1 | AD19: 8.0 | AE19: 14.3 | AF19: -20.0 | AG19: -9.1 | AH19: -18.2 | AI19: - | AJ19: - | AK19: - | AL19: - | AM19: 4.6 | AP19: 32 | AQ19: 44 | AR19: 15 | AS19: 57 | AT19: 44 | AU19: 69 | AV19: 58 | AW19: 73 | AX19: - | AY19: - | AZ19: - | BA19: - | BB19: 62 | BE19: 32 | BF19: 44 | BG19: 15 | BH19: 57 | BI19: 45 | BJ19: 69 | BK19: 58 | BL19: 73 | BM19: - | BN19: - | BO19: - | BP19: - | BQ19: 62
A20: =IFERROR(INDEX($AP$6:$BB$125,$V20,$V$1),"") -> 18 | B20: =IFERROR(INDEX($Y$6:$Y$125,$V20,1),"") -> 丸岡城 エリア | C20: =IFERROR(INDEX($AA$6:$AM$125,$V20,$V$1),"") -> 34.4 | D20: =IFERROR(INDEX(【D】NPS!$GP$7:$HB$126,$V20,$V$1),"") -> 32件 | V20: 13 | X20: 回答エリア | Y20: =IF(【M】エリア!$E16<>"",【M】エリア!$E16,"") -> 道の駅みくに ふれあいパーク三里浜 エリア | AA20: -100.0 | AB20: -5.3 | AC20: 23.1 | AD20: -9.1 | AE20: 0.0 | AF20: -18.5 | AG20: -18.2 | AH20: 23.5 | AI20: - | AJ20: - | AK20: - | AL20: - | AM20: -2.5 | AP20: 72 | AQ20: 64 | AR20: 34 | AS20: 74 | AT20: 53 | AU20: 68 | AV20: 63 | AW20: 36 | AX20: - | AY20: - | AZ20: - | BA20: - | BB20: 73 | BE20: 73 | BF20: 64 | BG20: 34 | BH20: 74 | BI20: 54 | BJ20: 68 | BK20: 63 | BL20: 36 | BM20: - | BN20: - | BO20: - | BP20: - | BQ20: 73
A21: =IFERROR(INDEX($AP$6:$BB$125,$V21,$V$1),"") -> 19 | B21: =IFERROR(INDEX($Y$6:$Y$125,$V21,1),"") -> 一乗谷朝倉氏遺跡 エリア | C21: =IFERROR(INDEX($AA$6:$AM$125,$V21,$V$1),"") -> 33.3 | D21: =IFERROR(INDEX(【D】NPS!$GP$7:$HB$126,$V21,$V$1),"") -> 30件 | V21: 6 | X21: 回答エリア | Y21: =IF(【M】エリア!$E17<>"",【M】エリア!$E17,"") -> JR芦原温泉駅 エリア | AA21: -25.0 | AB21: 4.3 | AC21: 23.1 | AD21: 16.7 | AE21: 57.1 | AF21: 0.0 | AG21: 0.0 | AH21: -21.4 | AI21: - | AJ21: - | AK21: - | AL21: - | AM21: 6.9 | AP21: 68 | AQ21: 49 | AR21: 34 | AS21: 40 | AT21: 10 | AU21: 53 | AV21: 40 | AW21: 74 | AX21: - | AY21: - | AZ21: - | BA21: - | BB21: 61 | BE21: 68 | BF21: 49 | BG21: 35 | BH21: 40 | BI21: 10 | BJ21: 53 | BK21: 44 | BL21: 74 | BM21: - | BN21: - | BO21: - | BP21: - | BQ21: 61
A22: =IFERROR(INDEX($AP$6:$BB$125,$V22,$V$1),"") -> 19 | B22: =IFERROR(INDEX($Y$6:$Y$125,$V22,1),"") -> うみんぴあ大飯 エリア | C22: =IFERROR(INDEX($AA$6:$AM$125,$V22,$V$1),"") -> 33.3 | D22: =IFERROR(INDEX(【D】NPS!$GP$7:$HB$126,$V22,$V$1),"") -> 33件 | V22: 83 | X22: 回答エリア | Y22: =IF(【M】エリア!$E18<>"",【M】エリア!$E18,"") -> あわら湯のまち エリア | AA22: 36.4 | AB22: 29.4 | AC22: 33.3 | AD22: 37.7 | AE22: 33.3 | AF22: 38.5 | AG22: 28.4 | AH22: 37.3 | AI22: - | AJ22: - | AK22: - | AL22: - | AM22: 34.4 | AP22: 13 | AQ22: 22 | AR22: 23 | AS22: 25 | AT22: 23 | AU22: 16 | AV22: 17 | AW22: 14 | AX22: - | AY22: - | AZ22: - | BA22: - | BB22: 17 | BE22: 13 | BF22: 22 | BG22: 23 | BH22: 25 | BI22: 23 | BJ22: 16 | BK22: 17 | BL22: 14 | BM22: - | BN22: - | BO22: - | BP22: - | BQ22: 17
A23: =IFERROR(INDEX($AP$6:$BB$125,$V23,$V$1),"") -> 21 | B23: =IFERROR(INDEX($Y$6:$Y$125,$V23,1),"") -> 北陸新幹線 越前たけふ駅 エリア | C23: =IFERROR(INDEX($AA$6:$AM$125,$V23,$V$1),"") -> 32.0 | D23: =IFERROR(INDEX(【D】NPS!$GP$7:$HB$126,$V23,$V$1),"") -> 25件 | V23: 37 | X23: 回答エリア | Y23: =IF(【M】エリア!$E19<>"",【M】エリア!$E19,"") -> フルーツライン エリア | AA23: =IF($Y23<>"", INDEX(NPSデータ範囲, MATCH($Y23,NPS表側範囲,0), MATCH(AA$2&$Z$1,NPS表頭範囲,0) ),"") -> - | AB23: - | AC23: - | AD23: - | AE23: -15.0 | AF23: 4.2 | AG23: 0.0 | AH23: 30.0 | AI23: - | AJ23: - | AK23: - | AL23: - | AM23: 1.6 | AP23: - | AQ23: - | AR23: - | AS23: - | AT23: 71 | AU23: 52 | AV23: 40 | AW23: 22 | AX23: - | AY23: - | AZ23: - | BA23: - | BB23: 67 | BE23: - | BF23: - | BG23: - | BH23: - | BI23: 71 | BJ23: 52 | BK23: 45 | BL23: 22 | BM23: - | BN23: - | BO23: - | BP23: - | BQ23: 67
A24: =IFERROR(INDEX($AP$6:$BB$125,$V24,$V$1),"") -> 22 | B24: =IFERROR(INDEX($Y$6:$Y$125,$V24,1),"") -> フルーツライン エリア | C24: =IFERROR(INDEX($AA$6:$AM$125,$V24,$V$1),"") -> 30.0 | D24: =IFERROR(INDEX(【D】NPS!$GP$7:$HB$126,$V24,$V$1),"") -> 10件 | V24: 18 | X24: 回答エリア | Y24: =IF(【M】エリア!$E20<>"",【M】エリア!$E20,"") -> 波松 エリア | AA24: -50.0 | AB24: -100.0 | AC24: 0.0 | AD24: 50.0 | AE24: -100.0 | AF24: - | AG24: - | AH24: - | AI24: - | AJ24: - | AK24: - | AL24: - | AM24: -25.0 | AP24: 71 | AQ24: 81 | AR24: 56 | AS24: 13 | AT24: 81 | AU24: - | AV24: - | AW24: - | AX24: - | AY24: - | AZ24: - | BA24: - | BB24: 88 | BE24: 71 | BF24: 81 | BG24: 60 | BH24: 14 | BI24: 81 | BJ24: - | BK24: - | BL24: - | BM24: - | BN24: - | BO24: - | BP24: - | BQ24: 88
A25: =IFERROR(INDEX($AP$6:$BB$125,$V25,$V$1),"") -> 23 | B25: =IFERROR(INDEX($Y$6:$Y$125,$V25,1),"") -> 道の駅「南えちぜん山海里」 エリア | C25: =IFERROR(INDEX($AA$6:$AM$125,$V25,$V$1),"") -> 29.5 | D25: =IFERROR(INDEX(【D】NPS!$GP$7:$HB$126,$V25,$V$1),"") -> 61件 | V25: 57 | X25: 回答エリア | Y25: =IF(【M】エリア!$E21<>"",【M】エリア!$E21,"") -> 北潟湖 エリア | AA25: 8.7 | AB25: -9.1 | AC25: 0.0 | AD25: 41.4 | AE25: 30.8 | AF25: 31.0 | AG25: 9.5 | AH25: 18.2 | AI25: - | AJ25: - | AK25: - | AL25: - | AM25: 14.9 | AP25: 42 | AQ25: 70 | AR25: 56 | AS25: 24 | AT25: 28 | AU25: 26 | AV25: 34 | AW25: 42 | AX25: - | AY25: - | AZ25: - | BA25: - | BB25: 46 | BE25: 42 | BF25: 70 | BG25: 61 | BH25: 24 | BI25: 28 | BJ25: 26 | BK25: 34 | BL25: 42 | BM25: - | BN25: - | BO25: - | BP25: - | BQ25: 46
A26: =IFERROR(INDEX($AP$6:$BB$125,$V26,$V$1),"") -> 24 | B26: =IFERROR(INDEX($Y$6:$Y$125,$V26,1),"") -> 越前松島水族館 エリア | C26: =IFERROR(INDEX($AA$6:$AM$125,$V26,$V$1),"") -> 29.4 | D26: =IFERROR(INDEX(【D】NPS!$GP$7:$HB$126,$V26,$V$1),"") -> 17件 | V26: 11 | X26: 回答エリア | Y26: =IF(【M】エリア!$E22<>"",【M】エリア!$E22,"") -> 越前大野城・城下町 エリア | AA26: 10.0 | AB26: 4.8 | AC26: 0.0 | AD26: 10.9 | AE26: 17.2 | AF26: 15.1 | AG26: 6.8 | AH26: 17.9 | AI26: - | AJ26: - | AK26: - | AL26: - | AM26: 9.9 | AP26: =IF($Y26<>"", INDEX(NPSデータ範囲, MATCH($Y26,NPS表側範囲,0), MATCH(AP$2&$AO$1,NPS表頭範囲,0) ),"") -> 39 | AQ26: 48 | AR26: 56 | AS26: 54 | AT26: 40 | AU26: 42 | AV26: 36 | AW26: 43 | AX26: - | AY26: - | AZ26: - | BA26: - | BB26: 56 | BE26: =IF($Y26<>"", INDEX(NPSデータ範囲, MATCH($Y26,NPS表側範囲,0), MATCH(BE$2&$BD$1,NPS表頭範囲,0) ),"") -> 39 | BF26: 48 | BG26: 62 | BH26: 54 | BI26: 40 | BJ26: 42 | BK26: 36 | BL26: 43 | BM26: - | BN26: - | BO26: - | BP26: - | BQ26: 56
A27: =IFERROR(INDEX($AP$6:$BB$125,$V27,$V$1),"") -> 25 | B27: =IFERROR(INDEX($Y$6:$Y$125,$V27,1),"") -> 美浜町レイクセンター エリア | C27: =IFERROR(INDEX($AA$6:$AM$125,$V27,$V$1),"") -> 28.6 | D27: =IFERROR(INDEX(【D】NPS!$GP$7:$HB$126,$V27,$V$1),"") -> 28件 | V27: 75 | X27: 回答エリア | Y27: =IF(【M】エリア!$E23<>"",【M】エリア!$E23,"") -> 道の駅「越前おおの荒島の郷」 エリア | AA27: 41.7 | AB27: 39.5 | AC27: 11.8 | AD27: 0.0 | AE27: 36.4 | AF27: 50.0 | AG27: 18.5 | AH27: 52.4 | AI27: - | AJ27: - | AK27: - | AL27: - | AM27: 37.3 | AP27: 11 | AQ27: 13 | AR27: 47 | AS27: 62 | AT27: 19 | AU27: 12 | AV27: 26 | AW27: 7 | AX27: - | AY27: - | AZ27: - | BA27: - | BB27: 12 | BE27: 11 | BF27: 13 | BG27: 47 | BH27: 63 | BI27: 19 | BJ27: 12 | BK27: 26 | BL27: 7 | BM27: - | BN27: - | BO27: - | BP27: - | BQ27: 12
A28: =IFERROR(INDEX($AP$6:$BB$125,$V28,$V$1),"") -> 26 | B28: =IFERROR(INDEX($Y$6:$Y$125,$V28,1),"") -> 湖上館パムコ（水月湖）エリア | C28: =IFERROR(INDEX($AA$6:$AM$125,$V28,$V$1),"") -> 26.7 | D28: =IFERROR(INDEX(【D】NPS!$GP$7:$HB$126,$V28,$V$1),"") -> 15件 | V28: 81 | X28: 回答エリア | Y28: =IF(【M】エリア!$E24<>"",【M】エリア!$E24,"") -> JR九頭竜湖駅 エリア | AA28: -16.7 | AB28: 26.9 | AC28: 7.1 | AD28: 0.0 | AE28: -18.5 | AF28: -17.9 | AG28: -11.9 | AH28: -8.9 | AI28: - | AJ28: - | AK28: - | AL28: - | AM28: -6.7 | AP28: 65 | AQ28: 25 | AR28: 51 | AS28: 62 | AT28: 73 | AU28: 67 | AV28: 60 | AW28: 67 | AX28: - | AY28: - | AZ28: - | BA28: - | BB28: 79 | BE28: 65 | BF28: 25 | BG28: 51 | BH28: 64 | BI28: 73 | BJ28: 67 | BK28: 60 | BL28: 67 | BM28: - | BN28: - | BO28: - | BP28: - | BQ28: 79
A29: =IFERROR(INDEX($AP$6:$BB$125,$V29,$V$1),"") -> 27 | B29: =IFERROR(INDEX($Y$6:$Y$125,$V29,1),"") -> 道の駅「越前」 エリア | C29: =IFERROR(INDEX($AA$6:$AM$125,$V29,$V$1),"") -> 26.5 | D29: =IFERROR(INDEX(【D】NPS!$GP$7:$HB$126,$V29,$V$1),"") -> 68件 | V29: 48 | X29: 回答エリア | Y29: =IF(【M】エリア!$E25<>"",【M】エリア!$E25,"") -> 六呂師高原 エリア | AA29: -25.0 | AB29: 18.8 | AC29: -6.3 | AD29: 0.0 | AE29: 0.0 | AF29: 10.0 | AG29: -7.0 | AH29: 23.5 | AI29: - | AJ29: - | AK29: - | AL29: - | AM29: 2.9 | AP29: 68 | AQ29: 37 | AR29: 71 | AS29: 62 | AT29: 53 | AU29: 48 | AV29: 56 | AW29: 35 | AX29: - | AY29: - | AZ29: - | BA29: - | BB29: 65 | BE29: 69 | BF29: 37 | BG29: 71 | BH29: 65 | BI29: 55 | BJ29: 48 | BK29: 56 | BL29: 35 | BM29: - | BN29: - | BO29: - | BP29: - | BQ29: 65
A30: =IFERROR(INDEX($AP$6:$BB$125,$V30,$V$1),"") -> 28 | B30: =IFERROR(INDEX($Y$6:$Y$125,$V30,1),"") -> だるまちゃん広場 エリア | C30: =IFERROR(INDEX($AA$6:$AM$125,$V30,$V$1),"") -> 25.0 | D30: =IFERROR(INDEX(【D】NPS!$GP$7:$HB$126,$V30,$V$1),"") -> 12件 | V30: 41 | X30: 回答エリア | Y30: =IF(【M】エリア!$E26<>"",【M】エリア!$E26,"") -> かつやま恐竜の森 エリア | AA30: 44.2 | AB30: 44.8 | AC30: 39.9 | AD30: 48.4 | AE30: 48.7 | AF30: 39.5 | AG30: 39.4 | AH30: 42.0 | AI30: - | AJ30: - | AK30: - | AL30: - | AM30: 43.7 | AP30: 10 | AQ30: 8 | AR30: 18 | AS30: 18 | AT30: 15 | AU30: 15 | AV30: 12 | AW30: 10 | AX30: - | AY30: - | AZ30: - | BA30: - | BB30: 8 | BE30: 10 | BF30: 8 | BG30: 18 | BH30: 18 | BI30: 15 | BJ30: 15 | BK30: 12 | BL30: 10 | BM30: - | BN30: - | BO30: - | BP30: - | BQ30: 8
A31: =IFERROR(INDEX($AP$6:$BB$125,$V31,$V$1),"") -> 28 | B31: =IFERROR(INDEX($Y$6:$Y$125,$V31,1),"") -> 河野北前船主通りエリア | C31: =IFERROR(INDEX($AA$6:$AM$125,$V31,$V$1),"") -> 25.0 | D31: =IFERROR(INDEX(【D】NPS!$GP$7:$HB$126,$V31,$V$1),"") -> 8件 | V31: 58 | X31: 回答エリア | Y31: =IF(【M】エリア!$E27<>"",【M】エリア!$E27,"") -> 道の駅「恐竜渓谷かつやま」 エリア | AA31: 11.4 | AB31: 10.2 | AC31: -6.7 | AD31: 16.4 | AE31: 14.1 | AF31: 15.3 | AG31: 1.7 | AH31: 0.0 | AI31: - | AJ31: - | AK31: - | AL31: - | AM31: 7.5 | AP31: 36 | AQ31: 43 | AR31: 72 | AS31: 42 | AT31: 47 | AU31: 41 | AV31: 39 | AW31: 51 | AX31: - | AY31: - | AZ31: - | BA31: - | BB31: 60 | BE31: 36 | BF31: 43 | BG31: 72 | BH31: 42 | BI31: 47 | BJ31: 41 | BK31: 39 | BL31: 54 | BM31: - | BN31: - | BO31: - | BP31: - | BQ31: 60
A32: =IFERROR(INDEX($AP$6:$BB$125,$V32,$V$1),"") -> 28 | B32: =IFERROR(INDEX($Y$6:$Y$125,$V32,1),"") -> 神楽通り エリア | C32: =IFERROR(INDEX($AA$6:$AM$125,$V32,$V$1),"") -> 25.0 | D32: =IFERROR(INDEX(【D】NPS!$GP$7:$HB$126,$V32,$V$1),"") -> 4件 | V32: 62 | X32: 回答エリア | Y32: =IF(【M】エリア!$E28<>"",【M】エリア!$E28,"") -> スキージャム勝山 エリア | AA32: 50.0 | AB32: 54.5 | AC32: 50.0 | AD32: 50.0 | AE32: -33.3 | AF32: 100.0 | AG32: 70.0 | AH32: - | AI32: - | AJ32: - | AK32: - | AL32: - | AM32: 40.0 | AP32: 6 | AQ32: 7 | AR32: 8 | AS32: 13 | AT32: 78 | AU32: 1 | AV32: 3 | AW32: - | AX32: - | AY32: - | AZ32: - | BA32: - | BB32: 9 | BE32: 6 | BF32: 7 | BG32: 9 | BH32: 15 | BI32: 78 | BJ32: 2 | BK32: 3 | BL32: - | BM32: - | BN32: - | BO32: - | BP32: - | BQ32: 9
A33: =IFERROR(INDEX($AP$6:$BB$125,$V33,$V$1),"") -> 28 | B33: =IFERROR(INDEX($Y$6:$Y$125,$V33,1),"") -> 明通寺 エリア | C33: =IFERROR(INDEX($AA$6:$AM$125,$V33,$V$1),"") -> 25.0 | D33: =IFERROR(INDEX(【D】NPS!$GP$7:$HB$126,$V33,$V$1),"") -> 12件 | V33: 73 | X33: 回答エリア | Y33: =IF(【M】エリア!$E29<>"",【M】エリア!$E29,"") -> 越前大仏 エリア | AA33: =IF($Y33<>"", INDEX(NPSデータ範囲, MATCH($Y33,NPS表側範囲,0), MATCH(AA$2&$Z$1,NPS表頭範囲,0) ),"") -> 33.3 | AB33: -7.1 | AC33: 7.1 | AD33: 0.0 | AE33: 40.0 | AF33: -10.0 | AG33: -37.5 | AH33: 0.0 | AI33: - | AJ33: - | AK33: - | AL33: - | AM33: 0.0 | AP33: 16 | AQ33: 66 | AR33: 52 | AS33: 62 | AT33: 17 | AU33: 65 | AV33: 70 | AW33: 51 | AX33: - | AY33: - | AZ33: - | BA33: - | BB33: 69 | BE33: 16 | BF33: 66 | BG33: 52 | BH33: 66 | BI33: 18 | BJ33: 65 | BK33: 70 | BL33: 55 | BM33: - | BN33: - | BO33: - | BP33: - | BQ33: 69
A34: =IFERROR(INDEX($AP$6:$BB$125,$V34,$V$1),"") -> 28 | B34: =IFERROR(INDEX($Y$6:$Y$125,$V34,1),"") -> JR美浜駅 エリア | C34: =IFERROR(INDEX($AA$6:$AM$125,$V34,$V$1),"") -> 25.0 | D34: =IFERROR(INDEX(【D】NPS!$GP$7:$HB$126,$V34,$V$1),"") -> 28件 | V34: 79 | X34: 回答エリア | Y34: =IF(【M】エリア!$E30<>"",【M】エリア!$E30,"") -> 平泉寺白山神社 エリア | AA34: -100.0 | AB34: 31.3 | AC34: 63.6 | AD34: 0.0 | AE34: 25.0 | AF34: 62.5 | AG34: 20.0 | AH34: 75.0 | AI34: - | AJ34: - | AK34: - | AL34: - | AM34: 39.3 | AP34: 72 | AQ34: 21 | AR34: 6 | AS34: 62 | AT34: 30 | AU34: 6 | AV34: 24 | AW34: 6 | AX34: - | AY34: - | AZ34: - | BA34: - | BB34: 11 | BE34: 74 | BF34: 21 | BG34: 6 | BH34: 67 | BI34: 30 | BJ34: 6 | BK34: 24 | BL34: 6 | BM34: - | BN34: - | BO34: - | BP34: - | BQ34: 11
A35: =IFERROR(INDEX($AP$6:$BB$125,$V35,$V$1),"") -> 28 | B35: =IFERROR(INDEX($Y$6:$Y$125,$V35,1),"") -> 道の駅「三方五湖」 エリア | C35: =IFERROR(INDEX($AA$6:$AM$125,$V35,$V$1),"") -> 25.0 | D35: =IFERROR(INDEX(【D】NPS!$GP$7:$HB$126,$V35,$V$1),"") -> 28件 | V35: =IFERROR(MATCH(ROW(B35)-2,INDEX($BE$6:$BQ$125,,$V$1),0),"-") -> 82 | X35: 回答エリア | Y35: =IF(【M】エリア!$E31<>"",【M】エリア!$E31,"") -> はたや記念館 ゆめおーれ勝山 エリア | AA35: 33.3 | AB35: 25.9 | AC35: 14.3 | AD35: 7.7 | AE35: -18.8 | AF35: 22.2 | AG35: 3.8 | AH35: -16.7 | AI35: - | AJ35: - | AK35: - | AL35: - | AM35: 10.6 | AP35: 16 | AQ35: 26 | AR35: 45 | AS35: 58 | AT35: 74 | AU35: 34 | AV35: 38 | AW35: 72 | AX35: - | AY35: - | AZ35: - | BA35: - | BB35: 53 | BE35: 17 | BF35: 26 | BG35: 45 | BH35: 58 | BI35: 74 | BJ35: 34 | BK35: 38 | BL35: 72 | BM35: - | BN35: - | BO35: - | BP35: - | BQ35: 53
A36: =IFERROR(INDEX($AP$6:$BB$125,$V36,$V$1),"") -> 28 | B36: =IFERROR(INDEX($Y$6:$Y$125,$V36,1),"") -> 道の駅「シーサイド高浜」 エリア | C36: =IFERROR(INDEX($AA$6:$AM$125,$V36,$V$1),"") -> 25.0 | D36: =IFERROR(INDEX(【D】NPS!$GP$7:$HB$126,$V36,$V$1),"") -> 8件 | V36: 87 | X36: 回答エリア | Y36: =IF(【M】エリア!$E32<>"",【M】エリア!$E32,"") -> えちぜん鉄道 永平寺口駅 エリア | AA36: 0.0 | AB36: -12.5 | AC36: 12.5 | AD36: -18.2 | AE36: 100.0 | AF36: 0.0 | AG36: -100.0 | AH36: - | AI36: - | AJ36: - | AK36: - | AL36: - | AM36: -4.9 | AP36: =IF($Y36<>"", INDEX(NPSデータ範囲, MATCH($Y36,NPS表側範囲,0), MATCH(AP$2&$AO$1,NPS表頭範囲,0) ),"") -> 46 | AQ36: 71 | AR36: 46 | AS36: 76 | AT36: 1 | AU36: 53 | AV36: 77 | AW36: - | AX36: - | AY36: - | AZ36: - | BA36: - | BB36: 78 | BE36: =IF($Y36<>"", INDEX(NPSデータ範囲, MATCH($Y36,NPS表側範囲,0), MATCH(BE$2&$BD$1,NPS表頭範囲,0) ),"") -> 47 | BF36: 71 | BG36: 46 | BH36: 76 | BI36: 1 | BJ36: 54 | BK36: 77 | BL36: - | BM36: - | BN36: - | BO36: - | BP36: - | BQ36: 78
A37: =IFERROR(INDEX($AP$6:$BB$125,$V37,$V$1),"") -> 35 | B37: =IFERROR(INDEX($Y$6:$Y$125,$V37,1),"") -> 六呂師高原 エリア | C37: =IFERROR(INDEX($AA$6:$AM$125,$V37,$V$1),"") -> 23.5 | D37: =IFERROR(INDEX(【D】NPS!$GP$7:$HB$126,$V37,$V$1),"") -> 17件 | V37: 24 | X37: 回答エリア | Y37: =IF(【M】エリア!$E33<>"",【M】エリア!$E33,"") -> えちぜん鉄道 松岡駅 エリア | AA37: 12.5 | AB37: 0.0 | AC37: 27.3 | AD37: 0.0 | AE37: 45.5 | AF37: 16.7 | AG37: - | AH37: 0.0 | AI37: - | AJ37: - | AK37: - | AL37: - | AM37: 20.0 | AP37: 35 | AQ37: 51 | AR37: 29 | AS37: 62 | AT37: 16 | AU37: 38 | AV37: - | AW37: 51 | AX37: - | AY37: - | AZ37: - | BA37: - | BB37: 36 | BE37: 35 | BF37: 53 | BG37: 30 | BH37: 68 | BI37: 16 | BJ37: 38 | BK37: - | BL37: 56 | BM37: - | BN37: - | BO37: - | BP37: - | BQ37: 36
A38: =IFERROR(INDEX($AP$6:$BB$125,$V38,$V$1),"") -> 36 | B38: =IFERROR(INDEX($Y$6:$Y$125,$V38,1),"") -> 道の駅みくに ふれあいパーク三里浜 エリア | C38: =IFERROR(INDEX($AA$6:$AM$125,$V38,$V$1),"") -> 23.5 | D38: =IFERROR(INDEX(【D】NPS!$GP$7:$HB$126,$V38,$V$1),"") -> 17件 | V38: 15 | X38: 回答エリア | Y38: =IF(【M】エリア!$E34<>"",【M】エリア!$E34,"") -> 大本山 永平寺 エリア | AA38: 28.6 | AB38: 24.9 | AC38: 29.6 | AD38: 30.0 | AE38: 34.9 | AF38: 36.2 | AG38: 30.6 | AH38: 36.2 | AI38: - | AJ38: - | AK38: - | AL38: - | AM38: 31.4 | AP38: 19 | AQ38: 30 | AR38: 24 | AS38: 30 | AT38: 22 | AU38: 18 | AV38: 15 | AW38: 15 | AX38: - | AY38: - | AZ38: - | BA38: - | BB38: 23 | BE38: 19 | BF38: 30 | BG38: 24 | BH38: 30 | BI38: 22 | BJ38: 18 | BK38: 15 | BL38: 15 | BM38: - | BN38: - | BO38: - | BP38: - | BQ38: 23
A39: =IFERROR(INDEX($AP$6:$BB$125,$V39,$V$1),"") -> 37 | B39: =IFERROR(INDEX($Y$6:$Y$125,$V39,1),"") -> 名田庄 エリア | C39: =IFERROR(INDEX($AA$6:$AM$125,$V39,$V$1),"") -> 23.1 | D39: =IFERROR(INDEX(【D】NPS!$GP$7:$HB$126,$V39,$V$1),"") -> 13件 | V39: 85 | X39: 回答エリア | Y39: =IF(【M】エリア!$E35<>"",【M】エリア!$E35,"") -> 道の駅「禅の里」 エリア | AA39: 10.7 | AB39: 0.0 | AC39: -8.6 | AD39: -31.6 | AE39: -3.5 | AF39: 0.0 | AG39: -10.3 | AH39: 0.0 | AI39: - | AJ39: - | AK39: - | AL39: - | AM39: -3.7 | AP39: 37 | AQ39: 51 | AR39: 74 | AS39: 79 | AT39: 67 | AU39: 53 | AV39: 59 | AW39: 51 | AX39: - | AY39: - | AZ39: - | BA39: - | BB39: 77 | BE39: 37 | BF39: 54 | BG39: 74 | BH39: 79 | BI39: 67 | BJ39: 55 | BK39: 59 | BL39: 57 | BM39: - | BN39: - | BO39: - | BP39: - | BQ39: 77
A40: =IFERROR(INDEX($AP$6:$BB$125,$V40,$V$1),"") -> 38 | B40: =IFERROR(INDEX($Y$6:$Y$125,$V40,1),"") -> 越前そばの里 エリア | C40: =IFERROR(INDEX($AA$6:$AM$125,$V40,$V$1),"") -> 22.3 | D40: =IFERROR(INDEX(【D】NPS!$GP$7:$HB$126,$V40,$V$1),"") -> 166件 | V40: 36 | X40: 回答エリア | Y40: =IF(【M】エリア!$E36<>"",【M】エリア!$E36,"") -> 越前和紙の里 エリア | AA40: 0.0 | AB40: - | AC40: 0.0 | AD40: 100.0 | AE40: 0.0 | AF40: -23.1 | AG40: 0.0 | AH40: -71.4 | AI40: - | AJ40: - | AK40: - | AL40: - | AM40: -24.1 | AP40: 46 | AQ40: - | AR40: 56 | AS40: 1 | AT40: 53 | AU40: 71 | AV40: 40 | AW40: 79 | AX40: - | AY40: - | AZ40: - | BA40: - | BB40: 87 | BE40: 48 | BF40: - | BG40: 63 | BH40: 1 | BI40: 56 | BJ40: 71 | BK40: 46 | BL40: 79 | BM40: - | BN40: - | BO40: - | BP40: - | BQ40: 87
A41: =IFERROR(INDEX($AP$6:$BB$125,$V41,$V$1),"") -> 39 | B41: =IFERROR(INDEX($Y$6:$Y$125,$V41,1),"") -> 劔神社 エリア | C41: =IFERROR(INDEX($AA$6:$AM$125,$V41,$V$1),"") -> 22.2 | D41: =IFERROR(INDEX(【D】NPS!$GP$7:$HB$126,$V41,$V$1),"") -> 9件 | V41: 50 | X41: 回答エリア | Y41: =IF(【M】エリア!$E37<>"",【M】エリア!$E37,"") -> 越前そばの里 エリア | AA41: 25.9 | AB41: 22.8 | AC41: 22.9 | AD41: 24.1 | AE41: 53.5 | AF41: 16.5 | AG41: 40.0 | AH41: 22.3 | AI41: - | AJ41: - | AK41: - | AL41: - | AM41: 25.6 | AP41: 23 | AQ41: 34 | AR41: 36 | AS41: 34 | AT41: 12 | AU41: 40 | AV41: 9 | AW41: 38 | AX41: - | AY41: - | AZ41: - | BA41: - | BB41: 26 | BE41: 23 | BF41: 34 | BG41: 36 | BH41: 34 | BI41: 12 | BJ41: 40 | BK41: 9 | BL41: 38 | BM41: - | BN41: - | BO41: - | BP41: - | BQ41: 26
A42: =IFERROR(INDEX($AP$6:$BB$125,$V42,$V$1),"") -> 40 | B42: =IFERROR(INDEX($Y$6:$Y$125,$V42,1),"") -> かずら橋 エリア | C42: =IFERROR(INDEX($AA$6:$AM$125,$V42,$V$1),"") -> 20.3 | D42: =IFERROR(INDEX(【D】NPS!$GP$7:$HB$126,$V42,$V$1),"") -> 69件 | V42: 47 | X42: 回答エリア | Y42: =IF(【M】エリア!$E38<>"",【M】エリア!$E38,"") -> 北陸新幹線 越前たけふ駅 エリア | AA42: 66.7 | AB42: 0.0 | AC42: 3.7 | AD42: 35.3 | AE42: 23.7 | AF42: 0.0 | AG42: -4.8 | AH42: 32.0 | AI42: - | AJ42: - | AK42: - | AL42: - | AM42: 11.8 | AP42: 3 | AQ42: 51 | AR42: 54 | AS42: 26 | AT42: 32 | AU42: 53 | AV42: 55 | AW42: 21 | AX42: - | AY42: - | AZ42: - | BA42: - | BB42: 52 | BE42: 3 | BF42: 55 | BG42: 54 | BH42: 26 | BI42: 32 | BJ42: 56 | BK42: 55 | BL42: 21 | BM42: - | BN42: - | BO42: - | BP42: - | BQ42: 52
A43: =IFERROR(INDEX($AP$6:$BB$125,$V43,$V$1),"") -> 41 | B43: =IFERROR(INDEX($Y$6:$Y$125,$V43,1),"") -> 小浜 エリア（宿泊施設） | C43: =IFERROR(INDEX($AA$6:$AM$125,$V43,$V$1),"") -> 20.0 | D43: =IFERROR(INDEX(【D】NPS!$GP$7:$HB$126,$V43,$V$1),"") -> 20件 | V43: 69 | X43: 回答エリア | Y43: =IF(【M】エリア!$E39<>"",【M】エリア!$E39,"") -> タケフナイフビレッジ エリア | AA43: =IF($Y43<>"", INDEX(NPSデータ範囲, MATCH($Y43,NPS表側範囲,0), MATCH(AA$2&$Z$1,NPS表頭範囲,0) ),"") -> 0.0 | AB43: -33.3 | AC43: -100.0 | AD43: 16.7 | AE43: -80.0 | AF43: - | AG43: 0.0 | AH43: -25.0 | AI43: - | AJ43: - | AK43: - | AL43: - | AM43: -23.1 | AP43: 46 | AQ43: 76 | AR43: 83 | AS43: 40 | AT43: 80 | AU43: - | AV43: 40 | AW43: 75 | AX43: - | AY43: - | AZ43: - | BA43: - | BB43: 86 | BE43: 49 | BF43: 76 | BG43: 83 | BH43: 41 | BI43: 80 | BJ43: - | BK43: 47 | BL43: 75 | BM43: - | BN43: - | BO43: - | BP43: - | BQ43: 86
A44: =IFERROR(INDEX($AP$6:$BB$125,$V44,$V$1),"") -> 42 | B44: =IFERROR(INDEX($Y$6:$Y$125,$V44,1),"") -> 北潟湖 エリア | C44: =IFERROR(INDEX($AA$6:$AM$125,$V44,$V$1),"") -> 18.2 | D44: =IFERROR(INDEX(【D】NPS!$GP$7:$HB$126,$V44,$V$1),"") -> 22件 | V44: 20 | X44: 回答エリア | Y44: =IF(【M】エリア!$E40<>"",【M】エリア!$E40,"") -> 武生駅 エリア | AA44: -100.0 | AB44: 40.0 | AC44: - | AD44: 100.0 | AE44: 100.0 | AF44: 0.0 | AG44: - | AH44: 100.0 | AI44: - | AJ44: - | AK44: - | AL44: - | AM44: 40.0 | AP44: 72 | AQ44: 12 | AR44: - | AS44: 1 | AT44: 1 | AU44: 53 | AV44: - | AW44: 1 | AX44: - | AY44: - | AZ44: - | BA44: - | BB44: 9 | BE44: 75 | BF44: 12 | BG44: - | BH44: 2 | BI44: 2 | BJ44: 57 | BK44: - | BL44: 2 | BM44: - | BN44: - | BO44: - | BP44: - | BQ44: 10
A45: =IFERROR(INDEX($AP$6:$BB$125,$V45,$V$1),"") -> 43 | B45: =IFERROR(INDEX($Y$6:$Y$125,$V45,1),"") -> 越前大野城・城下町 エリア | C45: =IFERROR(INDEX($AA$6:$AM$125,$V45,$V$1),"") -> 17.9 | D45: =IFERROR(INDEX(【D】NPS!$GP$7:$HB$126,$V45,$V$1),"") -> 106件 | V45: 21 | X45: 回答エリア | Y45: =IF(【M】エリア!$E41<>"",【M】エリア!$E41,"") -> 紫式部公園 エリア | AA45: - | AB45: 27.3 | AC45: 0.0 | AD45: 0.0 | AE45: - | AF45: -11.1 | AG45: 0.0 | AH45: -40.0 | AI45: - | AJ45: - | AK45: - | AL45: - | AM45: 0.0 | AP45: - | AQ45: 24 | AR45: 56 | AS45: 62 | AT45: - | AU45: 66 | AV45: 40 | AW45: 77 | AX45: - | AY45: - | AZ45: - | BA45: - | BB45: 69 | BE45: - | BF45: 24 | BG45: 64 | BH45: 69 | BI45: - | BJ45: 66 | BK45: 48 | BL45: 77 | BM45: - | BN45: - | BO45: - | BP45: - | BQ45: 70
A46: =IFERROR(INDEX($AP$6:$BB$125,$V46,$V$1),"") -> 44 | B46: =IFERROR(INDEX($Y$6:$Y$125,$V46,1),"") -> レインボーライン エリア | C46: =IFERROR(INDEX($AA$6:$AM$125,$V46,$V$1),"") -> 15.8 | D46: =IFERROR(INDEX(【D】NPS!$GP$7:$HB$126,$V46,$V$1),"") -> 19件 | V46: 77 | X46: 回答エリア | Y46: =IF(【M】エリア!$E42<>"",【M】エリア!$E42,"") -> だるまちゃん広場 エリア | AA46: 72.7 | AB46: 0.0 | AC46: 66.7 | AD46: 75.0 | AE46: 28.6 | AF46: -33.3 | AG46: 0.0 | AH46: 25.0 | AI46: - | AJ46: - | AK46: - | AL46: - | AM46: 24.6 | AP46: =IF($Y46<>"", INDEX(NPSデータ範囲, MATCH($Y46,NPS表側範囲,0), MATCH(AP$2&$AO$1,NPS表頭範囲,0) ),"") -> 2 | AQ46: 51 | AR46: 3 | AS46: 9 | AT46: 29 | AU46: 73 | AV46: 40 | AW46: 28 | AX46: - | AY46: - | AZ46: - | BA46: - | BB46: 28 | BE46: =IF($Y46<>"", INDEX(NPSデータ範囲, MATCH($Y46,NPS表側範囲,0), MATCH(BE$2&$BD$1,NPS表頭範囲,0) ),"") -> 2 | BF46: 56 | BG46: 3 | BH46: 9 | BI46: 29 | BJ46: 73 | BK46: 49 | BL46: 28 | BM46: - | BN46: - | BO46: - | BP46: - | BQ46: 28
A47: =IFERROR(INDEX($AP$6:$BB$125,$V47,$V$1),"") -> 45 | B47: =IFERROR(INDEX($Y$6:$Y$125,$V47,1),"") -> 若狭高浜 エリア | C47: =IFERROR(INDEX($AA$6:$AM$125,$V47,$V$1),"") -> 14.3 | D47: =IFERROR(INDEX(【D】NPS!$GP$7:$HB$126,$V47,$V$1),"") -> 7件 | V47: 89 | X47: 回答エリア | Y47: =IF(【M】エリア!$E43<>"",【M】エリア!$E43,"") -> 刃物の里 エリア | AA47: -100.0 | AB47: 0.0 | AC47: 0.0 | AD47: - | AE47: - | AF47: - | AG47: - | AH47: - | AI47: - | AJ47: - | AK47: - | AL47: - | AM47: -20.0 | AP47: 72 | AQ47: 51 | AR47: 56 | AS47: - | AT47: - | AU47: - | AV47: - | AW47: - | AX47: - | AY47: - | AZ47: - | BA47: - | BB47: 85 | BE47: 76 | BF47: 57 | BG47: 65 | BH47: - | BI47: - | BJ47: - | BK47: - | BL47: - | BM47: - | BN47: - | BO47: - | BP47: - | BQ47: 85
A48: =IFERROR(INDEX($AP$6:$BB$125,$V48,$V$1),"") -> 46 | B48: =IFERROR(INDEX($Y$6:$Y$125,$V48,1),"") -> 熊川宿 エリア | C48: =IFERROR(INDEX($AA$6:$AM$125,$V48,$V$1),"") -> 8.0 | D48: =IFERROR(INDEX(【D】NPS!$GP$7:$HB$126,$V48,$V$1),"") -> 25件 | V48: 80 | X48: 回答エリア | Y48: =IF(【M】エリア!$E44<>"",【M】エリア!$E44,"") -> 道の駅「西山公園」 エリア | AA48: - | AB48: 6.5 | AC48: 23.5 | AD48: 25.0 | AE48: -10.5 | AF48: 50.0 | AG48: -25.0 | AH48: 0.0 | AI48: - | AJ48: - | AK48: - | AL48: - | AM48: 12.5 | AP48: - | AQ48: 46 | AR48: 33 | AS48: 32 | AT48: 69 | AU48: 8 | AV48: 64 | AW48: 51 | AX48: - | AY48: - | AZ48: - | BA48: - | BB48: 50 | BE48: - | BF48: 46 | BG48: 33 | BH48: 33 | BI48: 69 | BJ48: 9 | BK48: 64 | BL48: 58 | BM48: - | BN48: - | BO48: - | BP48: - | BQ48: 50
A49: =IFERROR(INDEX($AP$6:$BB$125,$V49,$V$1),"") -> 47 | B49: =IFERROR(INDEX($Y$6:$Y$125,$V49,1),"") -> 敦賀市立博物館 エリア | C49: =IFERROR(INDEX($AA$6:$AM$125,$V49,$V$1),"") -> 5.9 | D49: =IFERROR(INDEX(【D】NPS!$GP$7:$HB$126,$V49,$V$1),"") -> 17件 | V49: 65 | X49: 回答エリア | Y49: =IF(【M】エリア!$E45<>"",【M】エリア!$E45,"") -> メガネストリート エリア | AA49: -22.2 | AB49: 25.0 | AC49: -33.3 | AD49: 50.0 | AE49: 0.0 | AF49: 0.0 | AG49: -50.0 | AH49: -9.1 | AI49: - | AJ49: - | AK49: - | AL49: - | AM49: -7.1 | AP49: 67 | AQ49: 29 | AR49: 81 | AS49: 13 | AT49: 53 | AU49: 53 | AV49: 71 | AW49: 68 | AX49: - | AY49: - | AZ49: - | BA49: - | BB49: 80 | BE49: 67 | BF49: 29 | BG49: 81 | BH49: 16 | BI49: 57 | BJ49: 58 | BK49: 74 | BL49: 68 | BM49: - | BN49: - | BO49: - | BP49: - | BQ49: 80
A50: =IFERROR(INDEX($AP$6:$BB$125,$V50,$V$1),"") -> 48 | B50: =IFERROR(INDEX($Y$6:$Y$125,$V50,1),"") -> 金ヶ崎 エリア | C50: =IFERROR(INDEX($AA$6:$AM$125,$V50,$V$1),"") -> 5.6 | D50: =IFERROR(INDEX(【D】NPS!$GP$7:$HB$126,$V50,$V$1),"") -> 54件 | V50: 64 | X50: 回答エリア | Y50: =IF(【M】エリア!$E46<>"",【M】エリア!$E46,"") -> うるしの里 エリア | AA50: 0.0 | AB50: 0.0 | AC50: -25.0 | AD50: 22.2 | AE50: 12.5 | AF50: 11.1 | AG50: 25.0 | AH50: 100.0 | AI50: - | AJ50: - | AK50: - | AL50: - | AM50: 10.1 | AP50: 46 | AQ50: 51 | AR50: 79 | AS50: 35 | AT50: 48 | AU50: 47 | AV50: 18 | AW50: 1 | AX50: - | AY50: - | AZ50: - | BA50: - | BB50: 55 | BE50: 50 | BF50: 58 | BG50: 79 | BH50: 35 | BI50: 48 | BJ50: 47 | BK50: 18 | BL50: 3 | BM50: - | BN50: - | BO50: - | BP50: - | BQ50: 55
A51: =IFERROR(INDEX($AP$6:$BB$125,$V51,$V$1),"") -> 49 | B51: =IFERROR(INDEX($Y$6:$Y$125,$V51,1),"") -> 道の駅「若狭おばま」 エリア | C51: =IFERROR(INDEX($AA$6:$AM$125,$V51,$V$1),"") -> 5.3 | D51: =IFERROR(INDEX(【D】NPS!$GP$7:$HB$126,$V51,$V$1),"") -> 38件 | V51: 68 | X51: 回答エリア | Y51: =IF(【M】エリア!$E47<>"",【M】エリア!$E47,"") -> まちの市場 こってコテいけだ エリア | AA51: -10.0 | AB51: 34.6 | AC51: 26.3 | AD51: 47.1 | AE51: -2.5 | AF51: 0.0 | AG51: -16.7 | AH51: -11.8 | AI51: - | AJ51: - | AK51: - | AL51: - | AM51: 8.2 | AP51: 60 | AQ51: 16 | AR51: 31 | AS51: 19 | AT51: 66 | AU51: 53 | AV51: 62 | AW51: 69 | AX51: - | AY51: - | AZ51: - | BA51: - | BB51: 59 | BE51: 60 | BF51: 16 | BG51: 31 | BH51: 19 | BI51: 66 | BJ51: 59 | BK51: 62 | BL51: 69 | BM51: - | BN51: - | BO51: - | BP51: - | BQ51: 59
A52: =IFERROR(INDEX($AP$6:$BB$125,$V52,$V$1),"") -> 50 | B52: =IFERROR(INDEX($Y$6:$Y$125,$V52,1),"") -> 越前陶芸村 エリア | C52: =IFERROR(INDEX($AA$6:$AM$125,$V52,$V$1),"") -> 4.8 | D52: =IFERROR(INDEX(【D】NPS!$GP$7:$HB$126,$V52,$V$1),"") -> 21件 | V52: 51 | X52: 回答エリア | Y52: =IF(【M】エリア!$E48<>"",【M】エリア!$E48,"") -> かずら橋 エリア | AA52: 10.6 | AB52: 20.6 | AC52: 1.4 | AD52: 17.3 | AE52: 20.8 | AF52: 35.6 | AG52: 9.6 | AH52: 20.3 | AI52: - | AJ52: - | AK52: - | AL52: - | AM52: 18.5 | AP52: 38 | AQ52: 36 | AR52: 55 | AS52: 39 | AT52: 36 | AU52: 19 | AV52: 33 | AW52: 40 | AX52: - | AY52: - | AZ52: - | BA52: - | BB52: 40 | BE52: 38 | BF52: 36 | BG52: 55 | BH52: 39 | BI52: 36 | BJ52: 19 | BK52: 33 | BL52: 40 | BM52: - | BN52: - | BO52: - | BP52: - | BQ52: 40
A53: =IFERROR(INDEX($AP$6:$BB$125,$V53,$V$1),"") -> 51 | B53: =IFERROR(INDEX($Y$6:$Y$125,$V53,1),"") -> 北ノ庄 エリア | C53: =IFERROR(INDEX($AA$6:$AM$125,$V53,$V$1),"") -> 0.0 | D53: =IFERROR(INDEX(【D】NPS!$GP$7:$HB$126,$V53,$V$1),"") -> 7件 | V53: 3 | X53: 回答エリア | Y53: =IF(【M】エリア!$E49<>"",【M】エリア!$E49,"") -> 道の駅「越前」 エリア | AA53: =IF($Y53<>"", INDEX(NPSデータ範囲, MATCH($Y53,NPS表側範囲,0), MATCH(AA$2&$Z$1,NPS表頭範囲,0) ),"") -> 13.2 | AB53: 22.8 | AC53: -8.0 | AD53: 5.9 | AE53: 22.7 | AF53: 33.3 | AG53: 16.0 | AH53: 26.5 | AI53: - | AJ53: - | AK53: - | AL53: - | AM53: 19.5 | AP53: 34 | AQ53: 33 | AR53: 73 | AS53: 60 | AT53: 33 | AU53: 21 | AV53: 29 | AW53: 27 | AX53: - | AY53: - | AZ53: - | BA53: - | BB53: 38 | BE53: 34 | BF53: 33 | BG53: 73 | BH53: 60 | BI53: 33 | BJ53: 22 | BK53: 29 | BL53: 27 | BM53: - | BN53: - | BO53: - | BP53: - | BQ53: 38
A54: =IFERROR(INDEX($AP$6:$BB$125,$V54,$V$1),"") -> 51 | B54: =IFERROR(INDEX($Y$6:$Y$125,$V54,1),"") -> 名勝 養浩館庭園 エリア | C54: =IFERROR(INDEX($AA$6:$AM$125,$V54,$V$1),"") -> 0.0 | D54: =IFERROR(INDEX(【D】NPS!$GP$7:$HB$126,$V54,$V$1),"") -> 4件 | V54: 4 | X54: 回答エリア | Y54: =IF(【M】エリア!$E50<>"",【M】エリア!$E50,"") -> 道の駅「パークイン丹生ヶ丘」 エリア | AA54: -37.5 | AB54: -3.7 | AC54: 4.3 | AD54: 14.3 | AE54: 0.0 | AF54: 6.3 | AG54: -33.3 | AH54: 0.0 | AI54: - | AJ54: - | AK54: - | AL54: - | AM54: -3.7 | AP54: 70 | AQ54: 63 | AR54: 53 | AS54: 43 | AT54: 53 | AU54: 50 | AV54: 66 | AW54: 51 | AX54: - | AY54: - | AZ54: - | BA54: - | BB54: 76 | BE54: 70 | BF54: 63 | BG54: 53 | BH54: 44 | BI54: 58 | BJ54: 50 | BK54: 66 | BL54: 59 | BM54: - | BN54: - | BO54: - | BP54: - | BQ54: 76
A55: =IFERROR(INDEX($AP$6:$BB$125,$V55,$V$1),"") -> 51 | B55: =IFERROR(INDEX($Y$6:$Y$125,$V55,1),"") -> 越前海岸 北部 エリア | C55: =IFERROR(INDEX($AA$6:$AM$125,$V55,$V$1),"") -> 0.0 | D55: =IFERROR(INDEX(【D】NPS!$GP$7:$HB$126,$V55,$V$1),"") -> 1件 | V55: 7 | X55: 回答エリア | Y55: =IF(【M】エリア!$E51<>"",【M】エリア!$E51,"") -> 劔神社 エリア | AA55: -100.0 | AB55: -21.4 | AC55: 25.0 | AD55: -20.0 | AE55: 0.0 | AF55: -5.9 | AG55: 25.0 | AH55: 22.2 | AI55: - | AJ55: - | AK55: - | AL55: - | AM55: -1.5 | AP55: 72 | AQ55: 75 | AR55: 32 | AS55: 77 | AT55: 53 | AU55: 62 | AV55: 18 | AW55: 39 | AX55: - | AY55: - | AZ55: - | BA55: - | BB55: 71 | BE55: 77 | BF55: 75 | BG55: 32 | BH55: 77 | BI55: 59 | BJ55: 62 | BK55: 19 | BL55: 39 | BM55: - | BN55: - | BO55: - | BP55: - | BQ55: 71
A56: =IFERROR(INDEX($AP$6:$BB$125,$V56,$V$1),"") -> 51 | B56: =IFERROR(INDEX($Y$6:$Y$125,$V56,1),"") -> 道の駅「恐竜渓谷かつやま」 エリア | C56: =IFERROR(INDEX($AA$6:$AM$125,$V56,$V$1),"") -> 0.0 | D56: =IFERROR(INDEX(【D】NPS!$GP$7:$HB$126,$V56,$V$1),"") -> 87件 | V56: 26 | X56: 回答エリア | Y56: =IF(【M】エリア!$E52<>"",【M】エリア!$E52,"") -> 越前陶芸村 エリア | AA56: -13.3 | AB56: 33.3 | AC56: 28.6 | AD56: 100.0 | AE56: 25.0 | AF56: 26.7 | AG56: -33.3 | AH56: 4.8 | AI56: - | AJ56: - | AK56: - | AL56: - | AM56: 16.4 | AP56: =IF($Y56<>"", INDEX(NPSデータ範囲, MATCH($Y56,NPS表側範囲,0), MATCH(AP$2&$AO$1,NPS表頭範囲,0) ),"") -> 64 | AQ56: 19 | AR56: 26 | AS56: 1 | AT56: 30 | AU56: 28 | AV56: 66 | AW56: 50 | AX56: - | AY56: - | AZ56: - | BA56: - | BB56: 45 | BE56: =IF($Y56<>"", INDEX(NPSデータ範囲, MATCH($Y56,NPS表側範囲,0), MATCH(BE$2&$BD$1,NPS表頭範囲,0) ),"") -> 64 | BF56: 20 | BG56: 27 | BH56: 3 | BI56: 31 | BJ56: 28 | BK56: 67 | BL56: 50 | BM56: - | BN56: - | BO56: - | BP56: - | BQ56: 45
A57: =IFERROR(INDEX($AP$6:$BB$125,$V57,$V$1),"") -> 51 | B57: =IFERROR(INDEX($Y$6:$Y$125,$V57,1),"") -> 越前大仏 エリア | C57: =IFERROR(INDEX($AA$6:$AM$125,$V57,$V$1),"") -> 0.0 | D57: =IFERROR(INDEX(【D】NPS!$GP$7:$HB$126,$V57,$V$1),"") -> 20件 | V57: 28 | X57: 回答エリア | Y57: =IF(【M】エリア!$E53<>"",【M】エリア!$E53,"") -> 越前海岸 越前岬 エリア | AA57: 0.0 | AB57: - | AC57: - | AD57: -33.3 | AE57: 60.0 | AF57: -100.0 | AG57: 40.0 | AH57: 0.0 | AI57: - | AJ57: - | AK57: - | AL57: - | AM57: 20.0 | AP57: 46 | AQ57: - | AR57: - | AS57: 80 | AT57: 8 | AU57: 77 | AV57: 9 | AW57: 51 | AX57: - | AY57: - | AZ57: - | BA57: - | BB57: 36 | BE57: 51 | BF57: - | BG57: - | BH57: 80 | BI57: 8 | BJ57: 79 | BK57: 10 | BL57: 60 | BM57: - | BN57: - | BO57: - | BP57: - | BQ57: 37
A58: =IFERROR(INDEX($AP$6:$BB$125,$V58,$V$1),"") -> 51 | B58: =IFERROR(INDEX($Y$6:$Y$125,$V58,1),"") -> えちぜん鉄道 松岡駅 エリア | C58: =IFERROR(INDEX($AA$6:$AM$125,$V58,$V$1),"") -> 0.0 | D58: =IFERROR(INDEX(【D】NPS!$GP$7:$HB$126,$V58,$V$1),"") -> 1件 | V58: 32 | X58: 回答エリア | Y58: =IF(【M】エリア!$E54<>"",【M】エリア!$E54,"") -> 越前漁港 エリア | AA58: - | AB58: - | AC58: - | AD58: - | AE58: - | AF58: - | AG58: - | AH58: 80.0 | AI58: - | AJ58: - | AK58: - | AL58: - | AM58: 80.0 | AP58: - | AQ58: - | AR58: - | AS58: - | AT58: - | AU58: - | AV58: - | AW58: 5 | AX58: - | AY58: - | AZ58: - | BA58: - | BB58: 2 | BE58: - | BF58: - | BG58: - | BH58: - | BI58: - | BJ58: - | BK58: - | BL58: 5 | BM58: - | BN58: - | BO58: - | BP58: - | BQ58: 2
A59: =IFERROR(INDEX($AP$6:$BB$125,$V59,$V$1),"") -> 51 | B59: =IFERROR(INDEX($Y$6:$Y$125,$V59,1),"") -> 道の駅「禅の里」 エリア | C59: =IFERROR(INDEX($AA$6:$AM$125,$V59,$V$1),"") -> 0.0 | D59: =IFERROR(INDEX(【D】NPS!$GP$7:$HB$126,$V59,$V$1),"") -> 26件 | V59: 34 | X59: 回答エリア | Y59: =IF(【M】エリア!$E55<>"",【M】エリア!$E55,"") -> 越前海岸 茂原民宿街 エリア | AA59: - | AB59: - | AC59: 66.7 | AD59: 100.0 | AE59: 0.0 | AF59: - | AG59: - | AH59: - | AI59: - | AJ59: - | AK59: - | AL59: - | AM59: 60.0 | AP59: - | AQ59: - | AR59: 3 | AS59: 1 | AT59: 53 | AU59: - | AV59: - | AW59: - | AX59: - | AY59: - | AZ59: - | BA59: - | BB59: 4 | BE59: - | BF59: - | BG59: 4 | BH59: 4 | BI59: 60 | BJ59: - | BK59: - | BL59: - | BM59: - | BN59: - | BO59: - | BP59: - | BQ59: 4
A60: =IFERROR(INDEX($AP$6:$BB$125,$V60,$V$1),"") -> 51 | B60: =IFERROR(INDEX($Y$6:$Y$125,$V60,1),"") -> 道の駅「西山公園」 エリア | C60: =IFERROR(INDEX($AA$6:$AM$125,$V60,$V$1),"") -> 0.0 | D60: =IFERROR(INDEX(【D】NPS!$GP$7:$HB$126,$V60,$V$1),"") -> 11件 | V60: 43 | X60: 回答エリア | Y60: =IF(【M】エリア!$E56<>"",【M】エリア!$E56,"") -> 越前海岸 高佐米ノ旅館街 エリア | AA60: - | AB60: - | AC60: 40.0 | AD60: 57.1 | AE60: 33.3 | AF60: -50.0 | AG60: 0.0 | AH60: 0.0 | AI60: - | AJ60: - | AK60: - | AL60: - | AM60: 29.2 | AP60: - | AQ60: - | AR60: 17 | AS60: 11 | AT60: 24 | AU60: 75 | AV60: 40 | AW60: 51 | AX60: - | AY60: - | AZ60: - | BA60: - | BB60: 24 | BE60: - | BF60: - | BG60: 17 | BH60: 11 | BI60: 25 | BJ60: 75 | BK60: 50 | BL60: 61 | BM60: - | BN60: - | BO60: - | BP60: - | BQ60: 24
A61: =IFERROR(INDEX($AP$6:$BB$125,$V61,$V$1),"") -> 51 | B61: =IFERROR(INDEX($Y$6:$Y$125,$V61,1),"") -> 道の駅「パークイン丹生ヶ丘」 エリア | C61: =IFERROR(INDEX($AA$6:$AM$125,$V61,$V$1),"") -> 0.0 | D61: =IFERROR(INDEX(【D】NPS!$GP$7:$HB$126,$V61,$V$1),"") -> 6件 | V61: 49 | X61: 回答エリア | Y61: =IF(【M】エリア!$E57<>"",【M】エリア!$E57,"") -> 越前海岸 くりや旅館街 エリア | AA61: 0.0 | AB61: 66.7 | AC61: 66.7 | AD61: 66.7 | AE61: 55.6 | AF61: 50.0 | AG61: 66.7 | AH61: 88.9 | AI61: - | AJ61: - | AK61: - | AL61: - | AM61: 64.4 | AP61: 46 | AQ61: 5 | AR61: 3 | AS61: 10 | AT61: 11 | AU61: 8 | AV61: 4 | AW61: 4 | AX61: - | AY61: - | AZ61: - | BA61: - | BB61: 3 | BE61: 52 | BF61: 5 | BG61: 5 | BH61: 10 | BI61: 11 | BJ61: 10 | BK61: 5 | BL61: 4 | BM61: - | BN61: - | BO61: - | BP61: - | BQ61: 3
A62: =IFERROR(INDEX($AP$6:$BB$125,$V62,$V$1),"") -> 51 | B62: =IFERROR(INDEX($Y$6:$Y$125,$V62,1),"") -> 越前海岸 越前岬 エリア | C62: =IFERROR(INDEX($AA$6:$AM$125,$V62,$V$1),"") -> 0.0 | D62: =IFERROR(INDEX(【D】NPS!$GP$7:$HB$126,$V62,$V$1),"") -> 4件 | V62: 52 | X62: 回答エリア | Y62: =IF(【M】エリア!$E58<>"",【M】エリア!$E58,"") -> 道の駅「南えちぜん山海里」 エリア | AA62: 27.6 | AB62: 25.4 | AC62: 42.3 | AD62: 45.5 | AE62: 31.1 | AF62: 47.5 | AG62: 14.0 | AH62: 29.5 | AI62: - | AJ62: - | AK62: - | AL62: - | AM62: 31.7 | AP62: 20 | AQ62: 28 | AR62: 14 | AS62: 21 | AT62: 27 | AU62: 13 | AV62: 30 | AW62: 23 | AX62: - | AY62: - | AZ62: - | BA62: - | BB62: 22 | BE62: 20 | BF62: 28 | BG62: 14 | BH62: 21 | BI62: 27 | BJ62: 13 | BK62: 30 | BL62: 23 | BM62: - | BN62: - | BO62: - | BP62: - | BQ62: 22
A63: =IFERROR(INDEX($AP$6:$BB$125,$V63,$V$1),"") -> 51 | B63: =IFERROR(INDEX($Y$6:$Y$125,$V63,1),"") -> 越前海岸 高佐米ノ旅館街 エリア | C63: =IFERROR(INDEX($AA$6:$AM$125,$V63,$V$1),"") -> 0.0 | D63: =IFERROR(INDEX(【D】NPS!$GP$7:$HB$126,$V63,$V$1),"") -> 1件 | V63: 55 | X63: 回答エリア | Y63: =IF(【M】エリア!$E59<>"",【M】エリア!$E59,"") -> 河野北前船主通りエリア | AA63: =IF($Y63<>"", INDEX(NPSデータ範囲, MATCH($Y63,NPS表側範囲,0), MATCH(AA$2&$Z$1,NPS表頭範囲,0) ),"") -> - | AB63: 25.8 | AC63: 62.5 | AD63: 50.0 | AE63: 33.3 | AF63: -20.0 | AG63: -33.3 | AH63: 25.0 | AI63: - | AJ63: - | AK63: - | AL63: - | AM63: 20.8 | AP63: - | AQ63: 27 | AR63: 7 | AS63: 13 | AT63: 24 | AU63: 69 | AV63: 66 | AW63: 28 | AX63: - | AY63: - | AZ63: - | BA63: - | BB63: 34 | BE63: - | BF63: 27 | BG63: 7 | BH63: 17 | BI63: 26 | BJ63: 70 | BK63: 68 | BL63: 29 | BM63: - | BN63: - | BO63: - | BP63: - | BQ63: 34
A64: =IFERROR(INDEX($AP$6:$BB$125,$V64,$V$1),"") -> 51 | B64: =IFERROR(INDEX($Y$6:$Y$125,$V64,1),"") -> 御食国若狭おばま食文化館 エリア | C64: =IFERROR(INDEX($AA$6:$AM$125,$V64,$V$1),"") -> 0.0 | D64: =IFERROR(INDEX(【D】NPS!$GP$7:$HB$126,$V64,$V$1),"") -> 2件 | V64: 71 | X64: 回答エリア | Y64: =IF(【M】エリア!$E60<>"",【M】エリア!$E60,"") -> 北前船主の館 右近家 エリア | AA64: -100.0 | AB64: - | AC64: - | AD64: - | AE64: - | AF64: - | AG64: - | AH64: - | AI64: - | AJ64: - | AK64: - | AL64: - | AM64: -100.0 | AP64: 72 | AQ64: - | AR64: - | AS64: - | AT64: - | AU64: - | AV64: - | AW64: - | AX64: - | AY64: - | AZ64: - | BA64: - | BB64: 92 | BE64: 78 | BF64: - | BG64: - | BH64: - | BI64: - | BJ64: - | BK64: - | BL64: - | BM64: - | BN64: - | BO64: - | BP64: - | BQ64: 92
A65: =IFERROR(INDEX($AP$6:$BB$125,$V65,$V$1),"") -> 51 | B65: =IFERROR(INDEX($Y$6:$Y$125,$V65,1),"") -> 水晶浜 エリア | C65: =IFERROR(INDEX($AA$6:$AM$125,$V65,$V$1),"") -> 0.0 | D65: =IFERROR(INDEX(【D】NPS!$GP$7:$HB$126,$V65,$V$1),"") -> 1件 | V65: 76 | X65: 回答エリア | Y65: =IF(【M】エリア!$E61<>"",【M】エリア!$E61,"") -> 今庄宿 エリア | AA65: -100.0 | AB65: -33.3 | AC65: 20.0 | AD65: 33.3 | AE65: 100.0 | AF65: 33.3 | AG65: -50.0 | AH65: -33.3 | AI65: - | AJ65: - | AK65: - | AL65: - | AM65: -10.0 | AP65: 72 | AQ65: 77 | AR65: 37 | AS65: 27 | AT65: 1 | AU65: 24 | AV65: 71 | AW65: 76 | AX65: - | AY65: - | AZ65: - | BA65: - | BB65: 82 | BE65: 79 | BF65: 77 | BG65: 37 | BH65: 28 | BI65: 3 | BJ65: 24 | BK65: 75 | BL65: 76 | BM65: - | BN65: - | BO65: - | BP65: - | BQ65: 82
A66: =IFERROR(INDEX($AP$6:$BB$125,$V66,$V$1),"") -> 51 | B66: =IFERROR(INDEX($Y$6:$Y$125,$V66,1),"") -> 若州一滴文庫 エリア | C66: =IFERROR(INDEX($AA$6:$AM$125,$V66,$V$1),"") -> 0.0 | D66: =IFERROR(INDEX(【D】NPS!$GP$7:$HB$126,$V66,$V$1),"") -> 1件 | V66: 84 | X66: 回答エリア | Y66: =IF(【M】エリア!$E62<>"",【M】エリア!$E62,"") -> 日本海さかな街 エリア | AA66: 17.4 | AB66: 0.0 | AC66: -23.1 | AD66: 0.0 | AE66: 22.2 | AF66: 14.8 | AG66: 31.3 | AH66: 45.5 | AI66: - | AJ66: - | AK66: - | AL66: - | AM66: 17.0 | AP66: =IF($Y66<>"", INDEX(NPSデータ範囲, MATCH($Y66,NPS表側範囲,0), MATCH(AP$2&$AO$1,NPS表頭範囲,0) ),"") -> 29 | AQ66: 51 | AR66: 78 | AS66: 62 | AT66: 35 | AU66: 43 | AV66: 14 | AW66: 8 | AX66: - | AY66: - | AZ66: - | BA66: - | BB66: 42 | BE66: =IF($Y66<>"", INDEX(NPSデータ範囲, MATCH($Y66,NPS表側範囲,0), MATCH(BE$2&$BD$1,NPS表頭範囲,0) ),"") -> 29 | BF66: 59 | BG66: 78 | BH66: 70 | BI66: 35 | BJ66: 43 | BK66: 14 | BL66: 8 | BM66: - | BN66: - | BO66: - | BP66: - | BQ66: 42
A67: =IFERROR(INDEX($AP$6:$BB$125,$V67,$V$1),"") -> 65 | B67: =IFERROR(INDEX($Y$6:$Y$125,$V67,1),"") -> 竹田エリア | C67: =IFERROR(INDEX($AA$6:$AM$125,$V67,$V$1),"") -> (4.3) | D67: =IFERROR(INDEX(【D】NPS!$GP$7:$HB$126,$V67,$V$1),"") -> 23件 | V67: =IFERROR(MATCH(ROW(B67)-2,INDEX($BE$6:$BQ$125,,$V$1),0),"-") -> 90 | X67: 回答エリア | Y67: =IF(【M】エリア!$E63<>"",【M】エリア!$E63,"") -> 神楽通り エリア | AA67: -10.0 | AB67: -50.0 | AC67: 0.0 | AD67: -100.0 | AE67: 50.0 | AF67: 33.3 | AG67: 0.0 | AH67: 25.0 | AI67: - | AJ67: - | AK67: - | AL67: - | AM67: -3.4 | AP67: 61 | AQ67: 80 | AR67: 56 | AS67: 81 | AT67: 13 | AU67: 24 | AV67: 40 | AW67: 28 | AX67: - | AY67: - | AZ67: - | BA67: - | BB67: 74 | BE67: 61 | BF67: 80 | BG67: 66 | BH67: 81 | BI67: 14 | BJ67: 25 | BK67: 51 | BL67: 30 | BM67: - | BN67: - | BO67: - | BP67: - | BQ67: 74
A68: =IFERROR(INDEX($AP$6:$BB$125,$V68,$V$1),"") -> 66 | B68: =IFERROR(INDEX($Y$6:$Y$125,$V68,1),"") -> JR敦賀駅前 エリア | C68: =IFERROR(INDEX($AA$6:$AM$125,$V68,$V$1),"") -> (4.5) | D68: =IFERROR(INDEX(【D】NPS!$GP$7:$HB$126,$V68,$V$1),"") -> 44件 | V68: 63 | X68: 回答エリア | Y68: =IF(【M】エリア!$E64<>"",【M】エリア!$E64,"") -> JR敦賀駅前 エリア | AA68: -18.8 | AB68: -3.6 | AC68: 7.3 | AD68: 4.0 | AE68: -21.2 | AF68: 4.3 | AG68: 20.5 | AH68: -4.5 | AI68: - | AJ68: - | AK68: - | AL68: - | AM68: 0.7 | AP68: 66 | AQ68: 62 | AR68: 50 | AS68: 61 | AT68: 76 | AU68: 51 | AV68: 23 | AW68: 66 | AX68: - | AY68: - | AZ68: - | BA68: - | BB68: 68 | BE68: 66 | BF68: 62 | BG68: 50 | BH68: 61 | BI68: 76 | BJ68: 51 | BK68: 23 | BL68: 66 | BM68: - | BN68: - | BO68: - | BP68: - | BQ68: 68
A69: =IFERROR(INDEX($AP$6:$BB$125,$V69,$V$1),"") -> 67 | B69: =IFERROR(INDEX($Y$6:$Y$125,$V69,1),"") -> JR九頭竜湖駅 エリア | C69: =IFERROR(INDEX($AA$6:$AM$125,$V69,$V$1),"") -> (8.9) | D69: =IFERROR(INDEX(【D】NPS!$GP$7:$HB$126,$V69,$V$1),"") -> 45件 | V69: 23 | X69: 回答エリア | Y69: =IF(【M】エリア!$E65<>"",【M】エリア!$E65,"") -> 金ヶ崎 エリア | AA69: -10.5 | AB69: -8.5 | AC69: -19.4 | AD69: 26.3 | AE69: 0.0 | AF69: 25.6 | AG69: 13.3 | AH69: 5.6 | AI69: - | AJ69: - | AK69: - | AL69: - | AM69: 2.3 | AP69: 62 | AQ69: 69 | AR69: 76 | AS69: 31 | AT69: 53 | AU69: 30 | AV69: 31 | AW69: 48 | AX69: - | AY69: - | AZ69: - | BA69: - | BB69: 66 | BE69: 62 | BF69: 69 | BG69: 76 | BH69: 31 | BI69: 61 | BJ69: 30 | BK69: 31 | BL69: 48 | BM69: - | BN69: - | BO69: - | BP69: - | BQ69: 66
A70: =IFERROR(INDEX($AP$6:$BB$125,$V70,$V$1),"") -> 68 | B70: =IFERROR(INDEX($Y$6:$Y$125,$V70,1),"") -> メガネストリート エリア | C70: =IFERROR(INDEX($AA$6:$AM$125,$V70,$V$1),"") -> (9.1) | D70: =IFERROR(INDEX(【D】NPS!$GP$7:$HB$126,$V70,$V$1),"") -> 11件 | V70: 44 | X70: 回答エリア | Y70: =IF(【M】エリア!$E66<>"",【M】エリア!$E66,"") -> 敦賀市立博物館 エリア | AA70: 14.3 | AB70: -100.0 | AC70: -50.0 | AD70: 100.0 | AE70: -20.0 | AF70: -66.7 | AG70: -30.0 | AH70: 5.9 | AI70: - | AJ70: - | AK70: - | AL70: - | AM70: -17.6 | AP70: 32 | AQ70: 81 | AR70: 82 | AS70: 1 | AT70: 75 | AU70: 76 | AV70: 65 | AW70: 47 | AX70: - | AY70: - | AZ70: - | BA70: - | BB70: 84 | BE70: 33 | BF70: 82 | BG70: 82 | BH70: 5 | BI70: 75 | BJ70: 76 | BK70: 65 | BL70: 47 | BM70: - | BN70: - | BO70: - | BP70: - | BQ70: 84
A71: =IFERROR(INDEX($AP$6:$BB$125,$V71,$V$1),"") -> 69 | B71: =IFERROR(INDEX($Y$6:$Y$125,$V71,1),"") -> まちの市場 こってコテいけだ エリア | C71: =IFERROR(INDEX($AA$6:$AM$125,$V71,$V$1),"") -> (11.8) | D71: =IFERROR(INDEX(【D】NPS!$GP$7:$HB$126,$V71,$V$1),"") -> 17件 | V71: 46 | X71: 回答エリア | Y71: =IF(【M】エリア!$E67<>"",【M】エリア!$E67,"") -> 水島 エリア | AA71: - | AB71: 100.0 | AC71: 100.0 | AD71: 100.0 | AE71: - | AF71: - | AG71: - | AH71: - | AI71: - | AJ71: - | AK71: - | AL71: - | AM71: 100.0 | AP71: - | AQ71: 1 | AR71: 1 | AS71: 1 | AT71: - | AU71: - | AV71: - | AW71: - | AX71: - | AY71: - | AZ71: - | BA71: - | BB71: 1 | BE71: - | BF71: 1 | BG71: 1 | BH71: 6 | BI71: - | BJ71: - | BK71: - | BL71: - | BM71: - | BN71: - | BO71: - | BP71: - | BQ71: 1
A72: =IFERROR(INDEX($AP$6:$BB$125,$V72,$V$1),"") -> 70 | B72: =IFERROR(INDEX($Y$6:$Y$125,$V72,1),"") -> 若狭フィッシャーマンズワーフ エリア | C72: =IFERROR(INDEX($AA$6:$AM$125,$V72,$V$1),"") -> (14.3) | D72: =IFERROR(INDEX(【D】NPS!$GP$7:$HB$126,$V72,$V$1),"") -> 7件 | V72: 70 | X72: 回答エリア | Y72: =IF(【M】エリア!$E68<>"",【M】エリア!$E68,"") -> 小浜市 阿納 エリア | AA72: 50.0 | AB72: 42.9 | AC72: 33.3 | AD72: 0.0 | AE72: 0.0 | AF72: 50.0 | AG72: 25.0 | AH72: 44.4 | AI72: - | AJ72: - | AK72: - | AL72: - | AM72: 36.7 | AP72: 6 | AQ72: 9 | AR72: 20 | AS72: 62 | AT72: 53 | AU72: 8 | AV72: 18 | AW72: 9 | AX72: - | AY72: - | AZ72: - | BA72: - | BB72: 14 | BE72: 7 | BF72: 9 | BG72: 22 | BH72: 71 | BI72: 62 | BJ72: 11 | BK72: 20 | BL72: 9 | BM72: - | BN72: - | BO72: - | BP72: - | BQ72: 14
A73: =IFERROR(INDEX($AP$6:$BB$125,$V73,$V$1),"") -> 70 | B73: =IFERROR(INDEX($Y$6:$Y$125,$V73,1),"") -> 美浜町健康楽膳拠点施設こるぱエリア | C73: =IFERROR(INDEX($AA$6:$AM$125,$V73,$V$1),"") -> (14.3) | D73: =IFERROR(INDEX(【D】NPS!$GP$7:$HB$126,$V73,$V$1),"") -> 7件 | V73: 91 | X73: 回答エリア | Y73: =IF(【M】エリア!$E69<>"",【M】エリア!$E69,"") -> 道の駅「若狭おばま」 エリア | AA73: =IF($Y73<>"", INDEX(NPSデータ範囲, MATCH($Y73,NPS表側範囲,0), MATCH(AA$2&$Z$1,NPS表頭範囲,0) ),"") -> 9.8 | AB73: 34.6 | AC73: 39.3 | AD73: 43.2 | AE73: 20.7 | AF73: 23.0 | AG73: 9.8 | AH73: 5.3 | AI73: - | AJ73: - | AK73: - | AL73: - | AM73: 24.5 | AP73: 40 | AQ73: 16 | AR73: 19 | AS73: 23 | AT73: 37 | AU73: 32 | AV73: 32 | AW73: 49 | AX73: - | AY73: - | AZ73: - | BA73: - | BB73: 29 | BE73: 40 | BF73: 17 | BG73: 19 | BH73: 23 | BI73: 37 | BJ73: 32 | BK73: 32 | BL73: 49 | BM73: - | BN73: - | BO73: - | BP73: - | BQ73: 29
A74: =IFERROR(INDEX($AP$6:$BB$125,$V74,$V$1),"") -> 72 | B74: =IFERROR(INDEX($Y$6:$Y$125,$V74,1),"") -> はたや記念館 ゆめおーれ勝山 エリア | C74: =IFERROR(INDEX($AA$6:$AM$125,$V74,$V$1),"") -> (16.7) | D74: =IFERROR(INDEX(【D】NPS!$GP$7:$HB$126,$V74,$V$1),"") -> 6件 | V74: 30 | X74: 回答エリア | Y74: =IF(【M】エリア!$E70<>"",【M】エリア!$E70,"") -> 小浜 エリア（宿泊施設） | AA74: 7.1 | AB74: 23.1 | AC74: 41.7 | AD74: 18.8 | AE74: 57.6 | AF74: 22.2 | AG74: 0.0 | AH74: 20.0 | AI74: - | AJ74: - | AK74: - | AL74: - | AM74: 28.8 | AP74: 44 | AQ74: 32 | AR74: 16 | AS74: 38 | AT74: 9 | AU74: 33 | AV74: 40 | AW74: 41 | AX74: - | AY74: - | AZ74: - | BA74: - | BB74: 25 | BE74: 44 | BF74: 32 | BG74: 16 | BH74: 38 | BI74: 9 | BJ74: 33 | BK74: 52 | BL74: 41 | BM74: - | BN74: - | BO74: - | BP74: - | BQ74: 25
A75: =IFERROR(INDEX($AP$6:$BB$125,$V75,$V$1),"") -> 73 | B75: =IFERROR(INDEX($Y$6:$Y$125,$V75,1),"") -> 花の駅 ゆりの里公園 エリア | C75: =IFERROR(INDEX($AA$6:$AM$125,$V75,$V$1),"") -> (18.2) | D75: =IFERROR(INDEX(【D】NPS!$GP$7:$HB$126,$V75,$V$1),"") -> 22件 | V75: 14 | X75: 回答エリア | Y75: =IF(【M】エリア!$E71<>"",【M】エリア!$E71,"") -> 若狭フィッシャーマンズワーフ エリア | AA75: 0.0 | AB75: 0.0 | AC75: 20.0 | AD75: 12.5 | AE75: -11.8 | AF75: 33.3 | AG75: 30.0 | AH75: -14.3 | AI75: - | AJ75: - | AK75: - | AL75: - | AM75: 10.3 | AP75: 46 | AQ75: 51 | AR75: 37 | AS75: 50 | AT75: 70 | AU75: 21 | AV75: 16 | AW75: 70 | AX75: - | AY75: - | AZ75: - | BA75: - | BB75: 54 | BE75: 53 | BF75: 60 | BG75: 38 | BH75: 51 | BI75: 70 | BJ75: 23 | BK75: 16 | BL75: 70 | BM75: - | BN75: - | BO75: - | BP75: - | BQ75: 54
A76: =IFERROR(INDEX($AP$6:$BB$125,$V76,$V$1),"") -> 74 | B76: =IFERROR(INDEX($Y$6:$Y$125,$V76,1),"") -> JR芦原温泉駅 エリア | C76: =IFERROR(INDEX($AA$6:$AM$125,$V76,$V$1),"") -> (21.4) | D76: =IFERROR(INDEX(【D】NPS!$GP$7:$HB$126,$V76,$V$1),"") -> 14件 | V76: 16 | X76: 回答エリア | Y76: =IF(【M】エリア!$E72<>"",【M】エリア!$E72,"") -> 御食国若狭おばま食文化館 エリア | AA76: 0.0 | AB76: -12.5 | AC76: 0.0 | AD76: 100.0 | AE76: 22.2 | AF76: 12.5 | AG76: 50.0 | AH76: 0.0 | AI76: - | AJ76: - | AK76: - | AL76: - | AM76: 8.5 | AP76: =IF($Y76<>"", INDEX(NPSデータ範囲, MATCH($Y76,NPS表側範囲,0), MATCH(AP$2&$AO$1,NPS表頭範囲,0) ),"") -> 46 | AQ76: 71 | AR76: 56 | AS76: 1 | AT76: 34 | AU76: 45 | AV76: 7 | AW76: 51 | AX76: - | AY76: - | AZ76: - | BA76: - | BB76: 58 | BE76: =IF($Y76<>"", INDEX(NPSデータ範囲, MATCH($Y76,NPS表側範囲,0), MATCH(BE$2&$BD$1,NPS表頭範囲,0) ),"") -> 54 | BF76: 72 | BG76: 67 | BH76: 7 | BI76: 34 | BJ76: 45 | BK76: 7 | BL76: 62 | BM76: - | BN76: - | BO76: - | BP76: - | BQ76: 58
A77: =IFERROR(INDEX($AP$6:$BB$125,$V77,$V$1),"") -> 75 | B77: =IFERROR(INDEX($Y$6:$Y$125,$V77,1),"") -> タケフナイフビレッジ エリア | C77: =IFERROR(INDEX($AA$6:$AM$125,$V77,$V$1),"") -> (25.0) | D77: =IFERROR(INDEX(【D】NPS!$GP$7:$HB$126,$V77,$V$1),"") -> 4件 | V77: 38 | X77: 回答エリア | Y77: =IF(【M】エリア!$E73<>"",【M】エリア!$E73,"") -> 小浜市まちの駅 エリア | AA77: 20.0 | AB77: -16.7 | AC77: -100.0 | AD77: - | AE77: 75.0 | AF77: 0.0 | AG77: -100.0 | AH77: -100.0 | AI77: - | AJ77: - | AK77: - | AL77: - | AM77: -8.7 | AP77: 27 | AQ77: 74 | AR77: 83 | AS77: - | AT77: 5 | AU77: 53 | AV77: 77 | AW77: 80 | AX77: - | AY77: - | AZ77: - | BA77: - | BB77: 81 | BE77: 27 | BF77: 74 | BG77: 84 | BH77: - | BI77: 5 | BJ77: 60 | BK77: 78 | BL77: 80 | BM77: - | BN77: - | BO77: - | BP77: - | BQ77: 81
A78: =IFERROR(INDEX($AP$6:$BB$125,$V78,$V$1),"") -> 76 | B78: =IFERROR(INDEX($Y$6:$Y$125,$V78,1),"") -> 今庄宿 エリア | C78: =IFERROR(INDEX($AA$6:$AM$125,$V78,$V$1),"") -> (33.3) | D78: =IFERROR(INDEX(【D】NPS!$GP$7:$HB$126,$V78,$V$1),"") -> 3件 | V78: 60 | X78: 回答エリア | Y78: =IF(【M】エリア!$E74<>"",【M】エリア!$E74,"") -> 明通寺 エリア | AA78: 6.7 | AB78: 11.1 | AC78: 0.0 | AD78: 31.8 | AE78: 4.3 | AF78: 12.5 | AG78: 40.0 | AH78: 25.0 | AI78: - | AJ78: - | AK78: - | AL78: - | AM78: 14.7 | AP78: 45 | AQ78: 42 | AR78: 56 | AS78: 29 | AT78: 51 | AU78: 45 | AV78: 9 | AW78: 28 | AX78: - | AY78: - | AZ78: - | BA78: - | BB78: 47 | BE78: 45 | BF78: 42 | BG78: 68 | BH78: 29 | BI78: 51 | BJ78: 46 | BK78: 11 | BL78: 31 | BM78: - | BN78: - | BO78: - | BP78: - | BQ78: 47
A79: =IFERROR(INDEX($AP$6:$BB$125,$V79,$V$1),"") -> 77 | B79: =IFERROR(INDEX($Y$6:$Y$125,$V79,1),"") -> 紫式部公園 エリア | C79: =IFERROR(INDEX($AA$6:$AM$125,$V79,$V$1),"") -> (40.0) | D79: =IFERROR(INDEX(【D】NPS!$GP$7:$HB$126,$V79,$V$1),"") -> 5件 | V79: 40 | X79: 回答エリア | Y79: =IF(【M】エリア!$E75<>"",【M】エリア!$E75,"") -> 箸のふるさと館WAKASA エリア | AA79: 100.0 | AB79: 0.0 | AC79: 100.0 | AD79: 100.0 | AE79: -100.0 | AF79: 100.0 | AG79: - | AH79: - | AI79: - | AJ79: - | AK79: - | AL79: - | AM79: 57.1 | AP79: 1 | AQ79: 51 | AR79: 1 | AS79: 1 | AT79: 81 | AU79: 1 | AV79: - | AW79: - | AX79: - | AY79: - | AZ79: - | BA79: - | BB79: 6 | BE79: 1 | BF79: 61 | BG79: 2 | BH79: 8 | BI79: 82 | BJ79: 3 | BK79: - | BL79: - | BM79: - | BN79: - | BO79: - | BP79: - | BQ79: 6
A80: =IFERROR(INDEX($AP$6:$BB$125,$V80,$V$1),"") -> 78 | B80: =IFERROR(INDEX($Y$6:$Y$125,$V80,1),"") -> 大安禅寺 エリア | C80: =IFERROR(INDEX($AA$6:$AM$125,$V80,$V$1),"") -> (66.7) | D80: =IFERROR(INDEX(【D】NPS!$GP$7:$HB$126,$V80,$V$1),"") -> 3件 | V80: 8 | X80: 回答エリア | Y80: =IF(【M】エリア!$E76<>"",【M】エリア!$E76,"") -> 美浜町レイクセンター エリア | AA80: 23.1 | AB80: 7.1 | AC80: 29.4 | AD80: 12.5 | AE80: 16.7 | AF80: 29.6 | AG80: 19.0 | AH80: 28.6 | AI80: - | AJ80: - | AK80: - | AL80: - | AM80: 20.2 | AP80: 25 | AQ80: 45 | AR80: 25 | AS80: 49 | AT80: 41 | AU80: 27 | AV80: 25 | AW80: 25 | AX80: - | AY80: - | AZ80: - | BA80: - | BB80: 35 | BE80: 25 | BF80: 45 | BG80: 25 | BH80: 49 | BI80: 41 | BJ80: 27 | BK80: 25 | BL80: 25 | BM80: - | BN80: - | BO80: - | BP80: - | BQ80: 35
A81: =IFERROR(INDEX($AP$6:$BB$125,$V81,$V$1),"") -> 79 | B81: =IFERROR(INDEX($Y$6:$Y$125,$V81,1),"") -> 越前和紙の里 エリア | C81: =IFERROR(INDEX($AA$6:$AM$125,$V81,$V$1),"") -> (71.4) | D81: =IFERROR(INDEX(【D】NPS!$GP$7:$HB$126,$V81,$V$1),"") -> 7件 | V81: 35 | X81: 回答エリア | Y81: =IF(【M】エリア!$E77<>"",【M】エリア!$E77,"") -> 水晶浜 エリア | AA81: - | AB81: - | AC81: -100.0 | AD81: - | AE81: -100.0 | AF81: - | AG81: - | AH81: 0.0 | AI81: - | AJ81: - | AK81: - | AL81: - | AM81: -66.7 | AP81: - | AQ81: - | AR81: 83 | AS81: - | AT81: 81 | AU81: - | AV81: - | AW81: 51 | AX81: - | AY81: - | AZ81: - | BA81: - | BB81: 91 | BE81: - | BF81: - | BG81: 85 | BH81: - | BI81: 83 | BJ81: - | BK81: - | BL81: 63 | BM81: - | BN81: - | BO81: - | BP81: - | BQ81: 91
A82: =IFERROR(INDEX($AP$6:$BB$125,$V82,$V$1),"") -> 80 | B82: =IFERROR(INDEX($Y$6:$Y$125,$V82,1),"") -> 小浜市まちの駅 エリア | C82: =IFERROR(INDEX($AA$6:$AM$125,$V82,$V$1),"") -> (100.0) | D82: =IFERROR(INDEX(【D】NPS!$GP$7:$HB$126,$V82,$V$1),"") -> 1件 | V82: 72 | X82: 回答エリア | Y82: =IF(【M】エリア!$E78<>"",【M】エリア!$E78,"") -> レインボーライン エリア | AA82: 23.1 | AB82: 42.4 | AC82: 42.9 | AD82: 46.2 | AE82: 14.6 | AF82: 37.5 | AG82: 41.2 | AH82: 15.8 | AI82: - | AJ82: - | AK82: - | AL82: - | AM82: 32.5 | AP82: 26 | AQ82: 10 | AR82: 13 | AS82: 20 | AT82: 43 | AU82: 17 | AV82: 8 | AW82: 44 | AX82: - | AY82: - | AZ82: - | BA82: - | BB82: 21 | BE82: 26 | BF82: 10 | BG82: 13 | BH82: 20 | BI82: 43 | BJ82: 17 | BK82: 8 | BL82: 44 | BM82: - | BN82: - | BO82: - | BP82: - | BQ82: 21
A83: =IFERROR(INDEX($AP$6:$BB$125,$V83,$V$1),"") ->  | B83: =IFERROR(INDEX($Y$6:$Y$125,$V83,1),"") ->  | C83: =IFERROR(INDEX($AA$6:$AM$125,$V83,$V$1),"") ->  | D83: =IFERROR(INDEX(【D】NPS!$GP$7:$HB$126,$V83,$V$1),"") ->  | V83: - | X83: 回答エリア | Y83: =IF(【M】エリア!$E79<>"",【M】エリア!$E79,"") -> 若狭海遊バザール 千鳥苑 エリア | AA83: =IF($Y83<>"", INDEX(NPSデータ範囲, MATCH($Y83,NPS表側範囲,0), MATCH(AA$2&$Z$1,NPS表頭範囲,0) ),"") -> 66.7 | AB83: -12.5 | AC83: 0.0 | AD83: -28.6 | AE83: 0.0 | AF83: - | AG83: - | AH83: - | AI83: - | AJ83: - | AK83: - | AL83: - | AM83: -3.4 | AP83: 3 | AQ83: 71 | AR83: 56 | AS83: 78 | AT83: 53 | AU83: - | AV83: - | AW83: - | AX83: - | AY83: - | AZ83: - | BA83: - | BB83: 74 | BE83: 4 | BF83: 73 | BG83: 69 | BH83: 78 | BI83: 63 | BJ83: - | BK83: - | BL83: - | BM83: - | BN83: - | BO83: - | BP83: - | BQ83: 75
A84: =IFERROR(INDEX($AP$6:$BB$125,$V84,$V$1),"") ->  | B84: =IFERROR(INDEX($Y$6:$Y$125,$V84,1),"") ->  | C84: =IFERROR(INDEX($AA$6:$AM$125,$V84,$V$1),"") ->  | D84: =IFERROR(INDEX(【D】NPS!$GP$7:$HB$126,$V84,$V$1),"") ->  | V84: - | X84: 回答エリア | Y84: =IF(【M】エリア!$E80<>"",【M】エリア!$E80,"") -> JR美浜駅 エリア | AA84: -12.9 | AB84: -6.1 | AC84: 8.3 | AD84: 11.5 | AE84: 7.4 | AF84: 6.5 | AG84: -3.7 | AH84: 25.0 | AI84: - | AJ84: - | AK84: - | AL84: - | AM84: 3.5 | AP84: 63 | AQ84: 65 | AR84: 49 | AS84: 53 | AT84: 49 | AU84: 49 | AV84: 54 | AW84: 28 | AX84: - | AY84: - | AZ84: - | BA84: - | BB84: 63 | BE84: 63 | BF84: 65 | BG84: 49 | BH84: 53 | BI84: 49 | BJ84: 49 | BK84: 54 | BL84: 32 | BM84: - | BN84: - | BO84: - | BP84: - | BQ84: 63
A85: =IFERROR(INDEX($AP$6:$BB$125,$V85,$V$1),"") ->  | B85: =IFERROR(INDEX($Y$6:$Y$125,$V85,1),"") ->  | C85: =IFERROR(INDEX($AA$6:$AM$125,$V85,$V$1),"") ->  | D85: =IFERROR(INDEX(【D】NPS!$GP$7:$HB$126,$V85,$V$1),"") ->  | V85: - | X85: 回答エリア | Y85: =IF(【M】エリア!$E81<>"",【M】エリア!$E81,"") -> 熊川宿 エリア | AA85: -9.1 | AB85: -8.0 | AC85: -4.3 | AD85: 13.3 | AE85: -4.8 | AF85: 0.0 | AG85: -7.1 | AH85: 8.0 | AI85: - | AJ85: - | AK85: - | AL85: - | AM85: -1.8 | AP85: 58 | AQ85: 68 | AR85: 70 | AS85: 47 | AT85: 68 | AU85: 53 | AV85: 57 | AW85: 46 | AX85: - | AY85: - | AZ85: - | BA85: - | BB85: 72 | BE85: 58 | BF85: 68 | BG85: 70 | BH85: 47 | BI85: 68 | BJ85: 61 | BK85: 57 | BL85: 46 | BM85: - | BN85: - | BO85: - | BP85: - | BQ85: 72
A86: =IFERROR(INDEX($AP$6:$BB$125,$V86,$V$1),"") ->  | B86: =IFERROR(INDEX($Y$6:$Y$125,$V86,1),"") ->  | C86: =IFERROR(INDEX($AA$6:$AM$125,$V86,$V$1),"") ->  | D86: =IFERROR(INDEX(【D】NPS!$GP$7:$HB$126,$V86,$V$1),"") ->  | V86: - | X86: 回答エリア | Y86: =IF(【M】エリア!$E82<>"",【M】エリア!$E82,"") -> 湖上館パムコ（水月湖）エリア | AA86: 28.6 | AB86: 15.6 | AC86: 15.0 | AD86: 11.8 | AE86: 18.8 | AF86: 25.0 | AG86: 53.8 | AH86: 26.7 | AI86: - | AJ86: - | AK86: - | AL86: - | AM86: 22.6 | AP86: =IF($Y86<>"", INDEX(NPSデータ範囲, MATCH($Y86,NPS表側範囲,0), MATCH(AP$2&$AO$1,NPS表頭範囲,0) ),"") -> 18 | AQ86: 40 | AR86: 44 | AS86: 52 | AT86: 39 | AU86: 31 | AV86: 6 | AW86: 26 | AX86: - | AY86: - | AZ86: - | BA86: - | BB86: 31 | BE86: =IF($Y86<>"", INDEX(NPSデータ範囲, MATCH($Y86,NPS表側範囲,0), MATCH(BE$2&$BD$1,NPS表頭範囲,0) ),"") -> 18 | BF86: 40 | BG86: 44 | BH86: 52 | BI86: 39 | BJ86: 31 | BK86: 6 | BL86: 26 | BM86: - | BN86: - | BO86: - | BP86: - | BQ86: 31
A87: =IFERROR(INDEX($AP$6:$BB$125,$V87,$V$1),"") ->  | B87: =IFERROR(INDEX($Y$6:$Y$125,$V87,1),"") ->  | C87: =IFERROR(INDEX($AA$6:$AM$125,$V87,$V$1),"") ->  | D87: =IFERROR(INDEX(【D】NPS!$GP$7:$HB$126,$V87,$V$1),"") ->  | V87: - | X87: 回答エリア | Y87: =IF(【M】エリア!$E83<>"",【M】エリア!$E83,"") -> 道の駅「三方五湖」 エリア | AA87: 0.0 | AB87: 23.8 | AC87: 11.8 | AD87: 9.1 | AE87: 4.0 | AF87: 25.9 | AG87: 18.2 | AH87: 25.0 | AI87: - | AJ87: - | AK87: - | AL87: - | AM87: 14.4 | AP87: 46 | AQ87: 31 | AR87: 47 | AS87: 56 | AT87: 52 | AU87: 29 | AV87: 27 | AW87: 28 | AX87: - | AY87: - | AZ87: - | BA87: - | BB87: 49 | BE87: 55 | BF87: 31 | BG87: 48 | BH87: 56 | BI87: 52 | BJ87: 29 | BK87: 27 | BL87: 33 | BM87: - | BN87: - | BO87: - | BP87: - | BQ87: 49
A88: =IFERROR(INDEX($AP$6:$BB$125,$V88,$V$1),"") ->  | B88: =IFERROR(INDEX($Y$6:$Y$125,$V88,1),"") ->  | C88: =IFERROR(INDEX($AA$6:$AM$125,$V88,$V$1),"") ->  | D88: =IFERROR(INDEX(【D】NPS!$GP$7:$HB$126,$V88,$V$1),"") ->  | V88: - | X88: 回答エリア | Y88: =IF(【M】エリア!$E84<>"",【M】エリア!$E84,"") -> うみんぴあ大飯 エリア | AA88: -9.1 | AB88: 21.4 | AC88: 20.0 | AD88: 14.3 | AE88: 6.3 | AF88: 17.2 | AG88: 5.9 | AH88: 33.3 | AI88: - | AJ88: - | AK88: - | AL88: - | AM88: 16.8 | AP88: 59 | AQ88: 35 | AR88: 37 | AS88: 43 | AT88: 50 | AU88: 37 | AV88: 37 | AW88: 19 | AX88: - | AY88: - | AZ88: - | BA88: - | BB88: 43 | BE88: 59 | BF88: 35 | BG88: 39 | BH88: 45 | BI88: 50 | BJ88: 37 | BK88: 37 | BL88: 20 | BM88: - | BN88: - | BO88: - | BP88: - | BQ88: 43
A89: =IFERROR(INDEX($AP$6:$BB$125,$V89,$V$1),"") ->  | B89: =IFERROR(INDEX($Y$6:$Y$125,$V89,1),"") ->  | C89: =IFERROR(INDEX($AA$6:$AM$125,$V89,$V$1),"") ->  | D89: =IFERROR(INDEX(【D】NPS!$GP$7:$HB$126,$V89,$V$1),"") ->  | V89: - | X89: 回答エリア | Y89: =IF(【M】エリア!$E85<>"",【M】エリア!$E85,"") -> 若州一滴文庫 エリア | AA89: 66.7 | AB89: 100.0 | AC89: - | AD89: - | AE89: 0.0 | AF89: 66.7 | AG89: 100.0 | AH89: 0.0 | AI89: - | AJ89: - | AK89: - | AL89: - | AM89: 58.3 | AP89: 3 | AQ89: 1 | AR89: - | AS89: - | AT89: 53 | AU89: 5 | AV89: 1 | AW89: 51 | AX89: - | AY89: - | AZ89: - | BA89: - | BB89: 5 | BE89: 5 | BF89: 2 | BG89: - | BH89: - | BI89: 64 | BJ89: 5 | BK89: 2 | BL89: 64 | BM89: - | BN89: - | BO89: - | BP89: - | BQ89: 5
A90: =IFERROR(INDEX($AP$6:$BB$125,$V90,$V$1),"") ->  | B90: =IFERROR(INDEX($Y$6:$Y$125,$V90,1),"") ->  | C90: =IFERROR(INDEX($AA$6:$AM$125,$V90,$V$1),"") ->  | D90: =IFERROR(INDEX(【D】NPS!$GP$7:$HB$126,$V90,$V$1),"") ->  | V90: - | X90: 回答エリア | Y90: =IF(【M】エリア!$E86<>"",【M】エリア!$E86,"") -> 名田庄 エリア | AA90: 20.0 | AB90: -45.5 | AC90: 28.6 | AD90: 13.3 | AE90: 35.3 | AF90: -7.1 | AG90: 0.0 | AH90: 23.1 | AI90: - | AJ90: - | AK90: - | AL90: - | AM90: 3.5 | AP90: 27 | AQ90: 79 | AR90: 26 | AS90: 46 | AT90: 21 | AU90: 63 | AV90: 40 | AW90: 37 | AX90: - | AY90: - | AZ90: - | BA90: - | BB90: 64 | BE90: 28 | BF90: 79 | BG90: 28 | BH90: 46 | BI90: 21 | BJ90: 63 | BK90: 53 | BL90: 37 | BM90: - | BN90: - | BO90: - | BP90: - | BQ90: 64
A91: =IFERROR(INDEX($AP$6:$BB$125,$V91,$V$1),"") ->  | B91: =IFERROR(INDEX($Y$6:$Y$125,$V91,1),"") ->  | C91: =IFERROR(INDEX($AA$6:$AM$125,$V91,$V$1),"") ->  | D91: =IFERROR(INDEX(【D】NPS!$GP$7:$HB$126,$V91,$V$1),"") ->  | V91: - | X91: 回答エリア | Y91: =IF(【M】エリア!$E87<>"",【M】エリア!$E87,"") -> 赤礁崎オートキャンプ場 エリア | AA91: 0.0 | AB91: - | AC91: 50.0 | AD91: - | AE91: - | AF91: - | AG91: - | AH91: - | AI91: - | AJ91: - | AK91: - | AL91: - | AM91: 33.3 | AP91: 46 | AQ91: - | AR91: 8 | AS91: - | AT91: - | AU91: - | AV91: - | AW91: - | AX91: - | AY91: - | AZ91: - | BA91: - | BB91: 19 | BE91: 56 | BF91: - | BG91: 10 | BH91: - | BI91: - | BJ91: - | BK91: - | BL91: - | BM91: - | BN91: - | BO91: - | BP91: - | BQ91: 19
A92: =IFERROR(INDEX($AP$6:$BB$125,$V92,$V$1),"") ->  | B92: =IFERROR(INDEX($Y$6:$Y$125,$V92,1),"") ->  | C92: =IFERROR(INDEX($AA$6:$AM$125,$V92,$V$1),"") ->  | D92: =IFERROR(INDEX(【D】NPS!$GP$7:$HB$126,$V92,$V$1),"") ->  | V92: - | X92: 回答エリア | Y92: =IF(【M】エリア!$E88<>"",【M】エリア!$E88,"") -> 道の駅「シーサイド高浜」 エリア | AA92: -100.0 | AB92: -38.1 | AC92: -27.8 | AD92: -13.3 | AE92: -35.0 | AF92: -7.7 | AG92: -58.3 | AH92: 25.0 | AI92: - | AJ92: - | AK92: - | AL92: - | AM92: -26.9 | AP92: 72 | AQ92: 78 | AR92: 80 | AS92: 75 | AT92: 79 | AU92: 64 | AV92: 76 | AW92: 28 | AX92: - | AY92: - | AZ92: - | BA92: - | BB92: 89 | BE92: 80 | BF92: 78 | BG92: 80 | BH92: 75 | BI92: 79 | BJ92: 64 | BK92: 76 | BL92: 34 | BM92: - | BN92: - | BO92: - | BP92: - | BQ92: 89
A93: =IFERROR(INDEX($AP$6:$BB$125,$V93,$V$1),"") ->  | B93: =IFERROR(INDEX($Y$6:$Y$125,$V93,1),"") ->  | C93: =IFERROR(INDEX($AA$6:$AM$125,$V93,$V$1),"") ->  | D93: =IFERROR(INDEX(【D】NPS!$GP$7:$HB$126,$V93,$V$1),"") ->  | V93: - | X93: 回答エリア | Y93: =IF(【M】エリア!$E89<>"",【M】エリア!$E89,"") -> 若狭和田 エリア | AA93: =IF($Y93<>"", INDEX(NPSデータ範囲, MATCH($Y93,NPS表側範囲,0), MATCH(AA$2&$Z$1,NPS表頭範囲,0) ),"") -> 0.0 | AB93: 27.3 | AC93: 20.0 | AD93: 0.0 | AE93: 0.0 | AF93: - | AG93: - | AH93: - | AI93: - | AJ93: - | AK93: - | AL93: - | AM93: 21.2 | AP93: 46 | AQ93: 23 | AR93: 37 | AS93: 62 | AT93: 53 | AU93: - | AV93: - | AW93: - | AX93: - | AY93: - | AZ93: - | BA93: - | BB93: 32 | BE93: 57 | BF93: 23 | BG93: 40 | BH93: 72 | BI93: 65 | BJ93: - | BK93: - | BL93: - | BM93: - | BN93: - | BO93: - | BP93: - | BQ93: 32
A94: =IFERROR(INDEX($AP$6:$BB$125,$V94,$V$1),"") ->  | B94: =IFERROR(INDEX($Y$6:$Y$125,$V94,1),"") ->  | C94: =IFERROR(INDEX($AA$6:$AM$125,$V94,$V$1),"") ->  | D94: =IFERROR(INDEX(【D】NPS!$GP$7:$HB$126,$V94,$V$1),"") ->  | V94: - | X94: 回答エリア | Y94: =IF(【M】エリア!$E90<>"",【M】エリア!$E90,"") -> 若狭高浜 エリア | AA94: 50.0 | AB94: 16.7 | AC94: 44.4 | AD94: 13.3 | AE94: 14.3 | AF94: -25.0 | AG94: 33.3 | AH94: 14.3 | AI94: - | AJ94: - | AK94: - | AL94: - | AM94: 17.5 | AP94: 6 | AQ94: 39 | AR94: 12 | AS94: 47 | AT94: 44 | AU94: 72 | AV94: 13 | AW94: 45 | AX94: - | AY94: - | AZ94: - | BA94: - | BB94: 41 | BE94: 8 | BF94: 39 | BG94: 12 | BH94: 48 | BI94: 46 | BJ94: 72 | BK94: 13 | BL94: 45 | BM94: - | BN94: - | BO94: - | BP94: - | BQ94: 41
A95: =IFERROR(INDEX($AP$6:$BB$125,$V95,$V$1),"") ->  | B95: =IFERROR(INDEX($Y$6:$Y$125,$V95,1),"") ->  | C95: =IFERROR(INDEX($AA$6:$AM$125,$V95,$V$1),"") ->  | D95: =IFERROR(INDEX(【D】NPS!$GP$7:$HB$126,$V95,$V$1),"") ->  | V95: - | X95: 回答エリア | Y95: =IF(【M】エリア!$E91<>"",【M】エリア!$E91,"") -> 竹田エリア | AA95: 33.3 | AB95: -7.1 | AC95: -9.1 | AD95: 55.6 | AE95: 20.6 | AF95: 21.4 | AG95: 21.1 | AH95: -4.3 | AI95: - | AJ95: - | AK95: - | AL95: - | AM95: 9.0 | AP95: 15 | AQ95: 66 | AR95: 75 | AS95: 12 | AT95: 38 | AU95: 35 | AV95: 22 | AW95: 65 | AX95: - | AY95: - | AZ95: - | BA95: - | BB95: 57 | BE95: 15 | BF95: 67 | BG95: 75 | BH95: 12 | BI95: 38 | BJ95: 35 | BK95: 22 | BL95: 65 | BM95: - | BN95: - | BO95: - | BP95: - | BQ95: 57
A96: =IFERROR(INDEX($AP$6:$BB$125,$V96,$V$1),"") ->  | B96: =IFERROR(INDEX($Y$6:$Y$125,$V96,1),"") ->  | C96: =IFERROR(INDEX($AA$6:$AM$125,$V96,$V$1),"") ->  | D96: =IFERROR(INDEX(【D】NPS!$GP$7:$HB$126,$V96,$V$1),"") ->  | V96: - | X96: 回答エリア | Y96: =IF(【M】エリア!$E92<>"",【M】エリア!$E92,"") -> 美浜町健康楽膳拠点施設こるぱエリア | AA96: - | AB96: - | AC96: -100.0 | AD96: 0.0 | AE96: 16.7 | AF96: -40.0 | AG96: -33.3 | AH96: -14.3 | AI96: - | AJ96: - | AK96: - | AL96: - | AM96: -17.4 | AP96: =IF($Y96<>"", INDEX(NPSデータ範囲, MATCH($Y96,NPS表側範囲,0), MATCH(AP$2&$AO$1,NPS表頭範囲,0) ),"") -> - | AQ96: - | AR96: 83 | AS96: 62 | AT96: 41 | AU96: 74 | AV96: 66 | AW96: 70 | AX96: - | AY96: - | AZ96: - | BA96: - | BB96: 83 | BE96: =IF($Y96<>"", INDEX(NPSデータ範囲, MATCH($Y96,NPS表側範囲,0), MATCH(BE$2&$BD$1,NPS表頭範囲,0) ),"") -> - | BF96: - | BG96: 86 | BH96: 73 | BI96: 42 | BJ96: 74 | BK96: 69 | BL96: 71 | BM96: - | BN96: - | BO96: - | BP96: - | BQ96: 83
A97: =IFERROR(INDEX($AP$6:$BB$125,$V97,$V$1),"") ->  | B97: =IFERROR(INDEX($Y$6:$Y$125,$V97,1),"") ->  | C97: =IFERROR(INDEX($AA$6:$AM$125,$V97,$V$1),"") ->  | D97: =IFERROR(INDEX(【D】NPS!$GP$7:$HB$126,$V97,$V$1),"") ->  | V97: - | X97: 回答エリア | Y97: =IF(【M】エリア!$E93<>"",【M】エリア!$E93,"") -> 青葉山ハーバルビレッジ エリア | AA97: - | AB97: 63.6 | AC97: 50.0 | AD97: - | AE97: -100.0 | AF97: - | AG97: - | AH97: - | AI97: - | AJ97: - | AK97: - | AL97: - | AM97: 50.0 | AP97: - | AQ97: 6 | AR97: 8 | AS97: - | AT97: 81 | AU97: - | AV97: - | AW97: - | AX97: - | AY97: - | AZ97: - | BA97: - | BB97: 7 | BE97: - | BF97: 6 | BG97: 11 | BH97: - | BI97: 84 | BJ97: - | BK97: - | BL97: - | BM97: - | BN97: - | BO97: - | BP97: - | BQ97: 7
A98: =IFERROR(INDEX($AP$6:$BB$125,$V98,$V$1),"") ->  | B98: =IFERROR(INDEX($Y$6:$Y$125,$V98,1),"") ->  | C98: =IFERROR(INDEX($AA$6:$AM$125,$V98,$V$1),"") ->  | D98: =IFERROR(INDEX(【D】NPS!$GP$7:$HB$126,$V98,$V$1),"") ->  | V98: - | X98: 回答エリア | Y98: =IF(【M】エリア!$E94<>"",【M】エリア!$E94,"") -> 
A99: =IFERROR(INDEX($AP$6:$BB$125,$V99,$V$1),"") ->  | B99: =IFERROR(INDEX($Y$6:$Y$125,$V99,1),"") ->  | C99: =IFERROR(INDEX($AA$6:$AM$125,$V99,$V$1),"") ->  | D99: =IFERROR(INDEX(【D】NPS!$GP$7:$HB$126,$V99,$V$1),"") ->  | V99: =IFERROR(MATCH(ROW(B99)-2,INDEX($BE$6:$BQ$125,,$V$1),0),"-") -> - | X99: 回答エリア | Y99: =IF(【M】エリア!$E95<>"",【M】エリア!$E95,"") -> 
A100: =IFERROR(INDEX($AP$6:$BB$125,$V100,$V$1),"") ->  | B100: =IFERROR(INDEX($Y$6:$Y$125,$V100,1),"") ->  | C100: =IFERROR(INDEX($AA$6:$AM$125,$V100,$V$1),"") ->  | D100: =IFERROR(INDEX(【D】NPS!$GP$7:$HB$126,$V100,$V$1),"") ->  | V100: - | X100: 回答エリア | Y100: =IF(【M】エリア!$E96<>"",【M】エリア!$E96,"") -> 
A101: =IFERROR(INDEX($AP$6:$BB$125,$V101,$V$1),"") ->  | B101: =IFERROR(INDEX($Y$6:$Y$125,$V101,1),"") ->  | C101: =IFERROR(INDEX($AA$6:$AM$125,$V101,$V$1),"") ->  | D101: =IFERROR(INDEX(【D】NPS!$GP$7:$HB$126,$V101,$V$1),"") ->  | V101: - | X101: 回答エリア | Y101: =IF(【M】エリア!$E97<>"",【M】エリア!$E97,"") -> 
A102: =IFERROR(INDEX($AP$6:$BB$125,$V102,$V$1),"") ->  | B102: =IFERROR(INDEX($Y$6:$Y$125,$V102,1),"") ->  | C102: =IFERROR(INDEX($AA$6:$AM$125,$V102,$V$1),"") ->  | D102: =IFERROR(INDEX(【D】NPS!$GP$7:$HB$126,$V102,$V$1),"") ->  | V102: - | X102: 回答エリア | Y102: =IF(【M】エリア!$E98<>"",【M】エリア!$E98,"") -> 
A103: =IFERROR(INDEX($AP$6:$BB$125,$V103,$V$1),"") ->  | B103: =IFERROR(INDEX($Y$6:$Y$125,$V103,1),"") ->  | C103: =IFERROR(INDEX($AA$6:$AM$125,$V103,$V$1),"") ->  | D103: =IFERROR(INDEX(【D】NPS!$GP$7:$HB$126,$V103,$V$1),"") ->  | V103: - | X103: 回答エリア | Y103: =IF(【M】エリア!$E99<>"",【M】エリア!$E99,"") ->  | AA103: =IF($Y103<>"", INDEX(NPSデータ範囲, MATCH($Y103,NPS表側範囲,0), MATCH(AA$2&$Z$1,NPS表頭範囲,0) ),"") -> 
A104: =IFERROR(INDEX($AP$6:$BB$125,$V104,$V$1),"") ->  | B104: =IFERROR(INDEX($Y$6:$Y$125,$V104,1),"") ->  | C104: =IFERROR(INDEX($AA$6:$AM$125,$V104,$V$1),"") ->  | D104: =IFERROR(INDEX(【D】NPS!$GP$7:$HB$126,$V104,$V$1),"") ->  | V104: - | X104: 回答エリア | Y104: =IF(【M】エリア!$E100<>"",【M】エリア!$E100,"") -> 
A105: =IFERROR(INDEX($AP$6:$BB$125,$V105,$V$1),"") ->  | B105: =IFERROR(INDEX($Y$6:$Y$125,$V105,1),"") ->  | C105: =IFERROR(INDEX($AA$6:$AM$125,$V105,$V$1),"") ->  | D105: =IFERROR(INDEX(【D】NPS!$GP$7:$HB$126,$V105,$V$1),"") ->  | V105: - | X105: 回答エリア | Y105: =IF(【M】エリア!$E101<>"",【M】エリア!$E101,"") -> 
A106: =IFERROR(INDEX($AP$6:$BB$125,$V106,$V$1),"") ->  | B106: =IFERROR(INDEX($Y$6:$Y$125,$V106,1),"") ->  | C106: =IFERROR(INDEX($AA$6:$AM$125,$V106,$V$1),"") ->  | D106: =IFERROR(INDEX(【D】NPS!$GP$7:$HB$126,$V106,$V$1),"") ->  | V106: - | X106: 回答エリア | Y106: =IF(【M】エリア!$E102<>"",【M】エリア!$E102,"") ->  | AP106: =IF($Y106<>"", INDEX(NPSデータ範囲, MATCH($Y106,NPS表側範囲,0), MATCH(AP$2&$AO$1,NPS表頭範囲,0) ),"") ->  | BE106: =IF($Y106<>"", INDEX(NPSデータ範囲, MATCH($Y106,NPS表側範囲,0), MATCH(BE$2&$BD$1,NPS表頭範囲,0) ),"") -> 
A107: =IFERROR(INDEX($AP$6:$BB$125,$V107,$V$1),"") ->  | B107: =IFERROR(INDEX($Y$6:$Y$125,$V107,1),"") ->  | C107: =IFERROR(INDEX($AA$6:$AM$125,$V107,$V$1),"") ->  | D107: =IFERROR(INDEX(【D】NPS!$GP$7:$HB$126,$V107,$V$1),"") ->  | V107: - | X107: 回答エリア | Y107: =IF(【M】エリア!$E103<>"",【M】エリア!$E103,"") -> 
A108: =IFERROR(INDEX($AP$6:$BB$125,$V108,$V$1),"") ->  | B108: =IFERROR(INDEX($Y$6:$Y$125,$V108,1),"") ->  | C108: =IFERROR(INDEX($AA$6:$AM$125,$V108,$V$1),"") ->  | D108: =IFERROR(INDEX(【D】NPS!$GP$7:$HB$126,$V108,$V$1),"") ->  | V108: - | X108: 回答エリア | Y108: =IF(【M】エリア!$E104<>"",【M】エリア!$E104,"") -> 
A109: =IFERROR(INDEX($AP$6:$BB$125,$V109,$V$1),"") ->  | B109: =IFERROR(INDEX($Y$6:$Y$125,$V109,1),"") ->  | C109: =IFERROR(INDEX($AA$6:$AM$125,$V109,$V$1),"") ->  | D109: =IFERROR(INDEX(【D】NPS!$GP$7:$HB$126,$V109,$V$1),"") ->  | V109: - | X109: 回答エリア | Y109: =IF(【M】エリア!$E105<>"",【M】エリア!$E105,"") -> 
A110: =IFERROR(INDEX($AP$6:$BB$125,$V110,$V$1),"") ->  | B110: =IFERROR(INDEX($Y$6:$Y$125,$V110,1),"") ->  | C110: =IFERROR(INDEX($AA$6:$AM$125,$V110,$V$1),"") ->  | D110: =IFERROR(INDEX(【D】NPS!$GP$7:$HB$126,$V110,$V$1),"") ->  | V110: - | X110: 回答エリア | Y110: =IF(【M】エリア!$E106<>"",【M】エリア!$E106,"") -> 
A111: =IFERROR(INDEX($AP$6:$BB$125,$V111,$V$1),"") ->  | B111: =IFERROR(INDEX($Y$6:$Y$125,$V111,1),"") ->  | C111: =IFERROR(INDEX($AA$6:$AM$125,$V111,$V$1),"") ->  | D111: =IFERROR(INDEX(【D】NPS!$GP$7:$HB$126,$V111,$V$1),"") ->  | V111: - | X111: 回答エリア | Y111: =IF(【M】エリア!$E107<>"",【M】エリア!$E107,"") -> 
A112: =IFERROR(INDEX($AP$6:$BB$125,$V112,$V$1),"") ->  | B112: =IFERROR(INDEX($Y$6:$Y$125,$V112,1),"") ->  | C112: =IFERROR(INDEX($AA$6:$AM$125,$V112,$V$1),"") ->  | D112: =IFERROR(INDEX(【D】NPS!$GP$7:$HB$126,$V112,$V$1),"") ->  | V112: - | X112: 回答エリア | Y112: =IF(【M】エリア!$E108<>"",【M】エリア!$E108,"") -> 
A113: =IFERROR(INDEX($AP$6:$BB$125,$V113,$V$1),"") ->  | B113: =IFERROR(INDEX($Y$6:$Y$125,$V113,1),"") ->  | C113: =IFERROR(INDEX($AA$6:$AM$125,$V113,$V$1),"") ->  | D113: =IFERROR(INDEX(【D】NPS!$GP$7:$HB$126,$V113,$V$1),"") ->  | V113: - | X113: 回答エリア | Y113: =IF(【M】エリア!$E109<>"",【M】エリア!$E109,"") ->  | AA113: =IF($Y113<>"", INDEX(NPSデータ範囲, MATCH($Y113,NPS表側範囲,0), MATCH(AA$2&$Z$1,NPS表頭範囲,0) ),"") -> 
A114: =IFERROR(INDEX($AP$6:$BB$125,$V114,$V$1),"") ->  | B114: =IFERROR(INDEX($Y$6:$Y$125,$V114,1),"") ->  | C114: =IFERROR(INDEX($AA$6:$AM$125,$V114,$V$1),"") ->  | D114: =IFERROR(INDEX(【D】NPS!$GP$7:$HB$126,$V114,$V$1),"") ->  | V114: - | X114: 回答エリア | Y114: =IF(【M】エリア!$E110<>"",【M】エリア!$E110,"") -> 
A115: =IFERROR(INDEX($AP$6:$BB$125,$V115,$V$1),"") ->  | B115: =IFERROR(INDEX($Y$6:$Y$125,$V115,1),"") ->  | C115: =IFERROR(INDEX($AA$6:$AM$125,$V115,$V$1),"") ->  | D115: =IFERROR(INDEX(【D】NPS!$GP$7:$HB$126,$V115,$V$1),"") ->  | V115: - | X115: 回答エリア | Y115: =IF(【M】エリア!$E111<>"",【M】エリア!$E111,"") -> 
A116: =IFERROR(INDEX($AP$6:$BB$125,$V116,$V$1),"") ->  | B116: =IFERROR(INDEX($Y$6:$Y$125,$V116,1),"") ->  | C116: =IFERROR(INDEX($AA$6:$AM$125,$V116,$V$1),"") ->  | D116: =IFERROR(INDEX(【D】NPS!$GP$7:$HB$126,$V116,$V$1),"") ->  | V116: - | X116: 回答エリア | Y116: =IF(【M】エリア!$E112<>"",【M】エリア!$E112,"") ->  | AP116: =IF($Y116<>"", INDEX(NPSデータ範囲, MATCH($Y116,NPS表側範囲,0), MATCH(AP$2&$AO$1,NPS表頭範囲,0) ),"") ->  | BE116: =IF($Y116<>"", INDEX(NPSデータ範囲, MATCH($Y116,NPS表側範囲,0), MATCH(BE$2&$BD$1,NPS表頭範囲,0) ),"") -> 
A117: =IFERROR(INDEX($AP$6:$BB$125,$V117,$V$1),"") ->  | B117: =IFERROR(INDEX($Y$6:$Y$125,$V117,1),"") ->  | C117: =IFERROR(INDEX($AA$6:$AM$125,$V117,$V$1),"") ->  | D117: =IFERROR(INDEX(【D】NPS!$GP$7:$HB$126,$V117,$V$1),"") ->  | V117: - | X117: 回答エリア | Y117: =IF(【M】エリア!$E113<>"",【M】エリア!$E113,"") -> 
A118: =IFERROR(INDEX($AP$6:$BB$125,$V118,$V$1),"") ->  | B118: =IFERROR(INDEX($Y$6:$Y$125,$V118,1),"") ->  | C118: =IFERROR(INDEX($AA$6:$AM$125,$V118,$V$1),"") ->  | D118: =IFERROR(INDEX(【D】NPS!$GP$7:$HB$126,$V118,$V$1),"") ->  | V118: - | X118: 回答エリア | Y118: =IF(【M】エリア!$E114<>"",【M】エリア!$E114,"") -> 
A119: =IFERROR(INDEX($AP$6:$BB$125,$V119,$V$1),"") ->  | B119: =IFERROR(INDEX($Y$6:$Y$125,$V119,1),"") ->  | C119: =IFERROR(INDEX($AA$6:$AM$125,$V119,$V$1),"") ->  | D119: =IFERROR(INDEX(【D】NPS!$GP$7:$HB$126,$V119,$V$1),"") ->  | V119: - | X119: 回答エリア | Y119: =IF(【M】エリア!$E115<>"",【M】エリア!$E115,"") -> 
A120: =IFERROR(INDEX($AP$6:$BB$125,$V120,$V$1),"") ->  | B120: =IFERROR(INDEX($Y$6:$Y$125,$V120,1),"") ->  | C120: =IFERROR(INDEX($AA$6:$AM$125,$V120,$V$1),"") ->  | D120: =IFERROR(INDEX(【D】NPS!$GP$7:$HB$126,$V120,$V$1),"") ->  | V120: - | X120: 回答エリア | Y120: =IF(【M】エリア!$E116<>"",【M】エリア!$E116,"") -> 
A121: =IFERROR(INDEX($AP$6:$BB$125,$V121,$V$1),"") ->  | B121: =IFERROR(INDEX($Y$6:$Y$125,$V121,1),"") ->  | C121: =IFERROR(INDEX($AA$6:$AM$125,$V121,$V$1),"") ->  | D121: =IFERROR(INDEX(【D】NPS!$GP$7:$HB$126,$V121,$V$1),"") ->  | V121: - | X121: 回答エリア | Y121: =IF(【M】エリア!$E117<>"",【M】エリア!$E117,"") -> 
A122: =IFERROR(INDEX($AP$6:$BB$125,$V122,$V$1),"") ->  | B122: =IFERROR(INDEX($Y$6:$Y$125,$V122,1),"") ->  | C122: =IFERROR(INDEX($AA$6:$AM$125,$V122,$V$1),"") ->  | D122: =IFERROR(INDEX(【D】NPS!$GP$7:$HB$126,$V122,$V$1),"") ->  | V122: - | X122: 回答エリア | Y122: =IF(【M】エリア!$E118<>"",【M】エリア!$E118,"") -> 
V123: - | X123: 回答エリア | Y123: =IF(【M】エリア!$E119<>"",【M】エリア!$E119,"") -> 
V124: - | X124: 回答エリア | Y124: =IF(【M】エリア!$E120<>"",【M】エリア!$E120,"") -> 
X125: 回答エリア | Y125: =IF(【M】エリア!$E121<>"",【M】エリア!$E121,"") -> 

Sheet 満足度(商品・サービス)
A1: =施設コード!$A$2 -> 11月 | B1: =【M】エリア!$L$2 -> 福井県 | C1: =【M】エリア!$L$3 -> 福井市・永平寺町 | D1: =【M】エリア!$L$4 -> 福井市 | E1: =【M】エリア!$L$5 -> 福井駅前 エリア | G1: =AF16 -> 満足度スコア | H1: 4月 | I1: 5月 | J1: 6月 | K1: 7月 | L1: 8月 | M1: 9月 | N1: 10月 | O1: 11月 | P1: 12月 | Q1: 1月 | R1: 2月 | S1: 3月 | T1: 通年 | AA1: =AF16&"（推移）" -> 満足度スコア（推移） | AC1: 集計区分 | AE1: 満足度(商品・サービス) | AF1: 回答数 | AG1: 回答月 | AH1: 回答月 | AI1: 回答月 | AJ1: 回答月 | AK1: 回答月 | AL1: 回答月 | AM1: 回答月 | AN1: 回答月 | AO1: 回答月 | AP1: 回答月 | AQ1: 回答月 | AR1: 回答月 | AS1: 回答月 | AT1: 回答月 | AU1: 回答月 | AV1: 回答月 | AW1: 回答月 | AX1: 回答月 | AY1: 回答月 | AZ1: 回答月 | BA1: 回答月 | BB1: 回答月 | BC1: 回答月 | BD1: 回答月 | BE1: 回答月 | BF1: 回答月
A2: =IF(AE3<>"",AE3,"") -> とても満足 | B2: =IFERROR(OFFSET(INDEX($AG$3:$BF$14, MATCH($A2,$A$2:$A$13,0),MATCH($A$1,$AG$2:$BF$2,0)),0,1),"") -> 37.4% | C2: =IFERROR(OFFSET(INDEX($AG$18:$BF$29, MATCH($A2,$A$2:$A$13,0),MATCH($A$1,$AG$2:$BF$2,0)),0,1),"") -> 39.5% | D2: =IFERROR(OFFSET(INDEX($AG$33:$BF$44, MATCH($A2,$A$2:$A$13,0),MATCH($A$1,$AG$2:$BF$2,0)),0,1),"") -> 33.0% | E2: =IFERROR(OFFSET(INDEX($AG$48:$BF$59, MATCH($A2,$A$2:$A$13,0),MATCH($A$1,$AG$2:$BF$2,0)),0,1),"") -> 41.9% | G2: =【M】エリア!$L$2 -> 福井県 | H2: =AG16 -> 4.24 | I2: =AI16 -> 4.25 | J2: =AK16 -> 4.24 | K2: =AM16 -> 4.28 | L2: =AO16 -> 4.29 | M2: =AQ16 -> 4.28 | N2: =AS16 -> 4.22 | O2: =AU16 -> 4.25 | P2: =AW16 -> - | Q2: =AY16 -> - | R2: =BA16 -> - | S2: =BC16 -> - | T2: =BE16 -> 4.26 | AC2: 都道府県 | AD2: =【M】エリア!$L$2 -> 福井県 | AG2: 4月 | AI2: 5月 | AK2: 6月 | AM2: 7月 | AO2: 8月 | AQ2: 9月 | AS2: 10月 | AU2: 11月 | AW2: 12月 | AY2: 1月 | BA2: 2月 | BC2: 3月 | BE2: 通年
A3: =IF(AE4<>"",AE4,"") -> 満足 | B3: =IFERROR(OFFSET(INDEX($AG$3:$BF$14, MATCH($A3,$A$2:$A$13,0),MATCH($A$1,$AG$2:$BF$2,0)),0,1),"") -> 51.7% | C3: =IFERROR(OFFSET(INDEX($AG$18:$BF$29, MATCH($A3,$A$2:$A$13,0),MATCH($A$1,$AG$2:$BF$2,0)),0,1),"") -> 50.5% | D3: =IFERROR(OFFSET(INDEX($AG$33:$BF$44, MATCH($A3,$A$2:$A$13,0),MATCH($A$1,$AG$2:$BF$2,0)),0,1),"") -> 53.1% | E3: =IFERROR(OFFSET(INDEX($AG$48:$BF$59, MATCH($A3,$A$2:$A$13,0),MATCH($A$1,$AG$2:$BF$2,0)),0,1),"") -> 48.4% | G3: =【M】エリア!$L$3 -> 福井市・永平寺町 | H3: =AG31 -> 4.25 | I3: =AI31 -> 4.27 | J3: =AK31 -> 4.19 | K3: =AM31 -> 4.19 | L3: =AO31 -> 4.28 | M3: =AQ31 -> 4.31 | N3: =AS31 -> 4.29 | O3: =AU31 -> 4.29 | P3: =AW31 -> - | Q3: =AY31 -> - | R3: =BA31 -> - | S3: =BC31 -> - | T3: =BE31 -> 4.26 | AA3: =IF($AE3<>"",VLOOKUP($AE3,【M】満足度!$A$1:$B$5,2,0),"") -> 5 | AC3: =AC2 -> 都道府県 | AD3: =AD2 -> 福井県 | AE3: とても満足 | AG3: =IF(OR(IFERROR(FIND($AD3,"施設コード"),0)>0,$AE3=""), "", COUNTIFS( INDEX(rawデータ範囲, , MATCH($AG$1,表頭範囲, 0)),AG$2, INDEX(rawデータ範囲, , MATCH($AE$1,表頭範囲, 0)),$AE3 ) ) -> 635件 | AH3: =IFERROR(AG3/AG$15,"") -> 37.4% | AI3: =IF(OR(IFERROR(FIND($AD3,"施設コード"),0)>0,$AE3=""), "", COUNTIFS( INDEX(rawデータ範囲, , MATCH($AG$1,表頭範囲, 0)),AI$2, INDEX(rawデータ範囲, , MATCH($AE$1,表頭範囲, 0)),$AE3 ) ) -> 1169件 | AJ3: =IFERROR(AI3/AI$15,"") -> 39.0% | AK3: =IF(OR(IFERROR(FIND($AD3,"施設コード"),0)>0,$AE3=""), "", COUNTIFS( INDEX(rawデータ範囲, , MATCH($AG$1,表頭範囲, 0)),AK$2, INDEX(rawデータ範囲, , MATCH($AE$1,表頭範囲, 0)),$AE3 ) ) -> 688件 | AL3: =IFERROR(AK3/AK$15,"") -> 37.5% | AM3: =IF(OR(IFERROR(FIND($AD3,"施設コード"),0)>0,$AE3=""), "", COUNTIFS( INDEX(rawデータ範囲, , MATCH($AG$1,表頭範囲, 0)),AM$2, INDEX(rawデータ範囲, , MATCH($AE$1,表頭範囲, 0)),$AE3 ) ) -> 699件 | AN3: =IFERROR(AM3/AM$15,"") -> 40.2% | AO3: =IF(OR(IFERROR(FIND($AD3,"施設コード"),0)>0,$AE3=""), "", COUNTIFS( INDEX(rawデータ範囲, , MATCH($AG$1,表頭範囲, 0)),AO$2, INDEX(rawデータ範囲, , MATCH($AE$1,表頭範囲, 0)),$AE3 ) ) -> 904件 | AP3: =IFERROR(AO3/AO$15,"") -> 40.2% | AQ3: =IF(OR(IFERROR(FIND($AD3,"施設コード"),0)>0,$AE3=""), "", COUNTIFS( INDEX(rawデータ範囲, , MATCH($AG$1,表頭範囲, 0)),AQ$2, INDEX(rawデータ範囲, , MATCH($AE$1,表頭範囲, 0)),$AE3 ) ) -> 988件 | AR3: =IFERROR(AQ3/AQ$15,"") -> 42.0% | AS3: =IF(OR(IFERROR(FIND($AD3,"施設コード"),0)>0,$AE3=""), "", COUNTIFS( INDEX(rawデータ範囲, , MATCH($AG$1,表頭範囲, 0)),AS$2, INDEX(rawデータ範囲, , MATCH($AE$1,表頭範囲, 0)),$AE3 ) ) -> 646件 | AT3: =IFERROR(AS3/AS$15,"") -> 35.7% | AU3: =IF(OR(IFERROR(FIND($AD3,"施設コード"),0)>0,$AE3=""), "", COUNTIFS( INDEX(rawデータ範囲, , MATCH($AG$1,表頭範囲, 0)),AU$2, INDEX(rawデータ範囲, , MATCH($AE$1,表頭範囲, 0)),$AE3 ) ) -> 795件 | AV3: =IFERROR(AU3/AU$15,"") -> 37.4% | AW3: =IF(OR(IFERROR(FIND($AD3,"施設コード"),0)>0,$AE3=""), "", COUNTIFS( INDEX(rawデータ範囲, , MATCH($AG$1,表頭範囲, 0)),AW$2, INDEX(rawデータ範囲, , MATCH($AE$1,表頭範囲, 0)),$AE3 ) ) -> 0件 | AX3: =IFERROR(AW3/AW$15,"") ->  | AY3: =IF(OR(IFERROR(FIND($AD3,"施設コード"),0)>0,$AE3=""), "", COUNTIFS( INDEX(rawデータ範囲, , MATCH($AG$1,表頭範囲, 0)),AY$2, INDEX(rawデータ範囲, , MATCH($AE$1,表頭範囲, 0)),$AE3 ) ) -> 0件 | AZ3: =IFERROR(AY3/AY$15,"") ->  | BA3: =IF(OR(IFERROR(FIND($AD3,"施設コード"),0)>0,$AE3=""), "", COUNTIFS( INDEX(rawデータ範囲, , MATCH($AG$1,表頭範囲, 0)),BA$2, INDEX(rawデータ範囲, , MATCH($AE$1,表頭範囲, 0)),$AE3 ) ) -> 0件 | BB3: =IFERROR(BA3/BA$15,"") ->  | BC3: =IF(OR(IFERROR(FIND($AD3,"施設コード"),0)>0,$AE3=""), "", COUNTIFS( INDEX(rawデータ範囲, , MATCH($AG$1,表頭範囲, 0)),BC$2, INDEX(rawデータ範囲, , MATCH($AE$1,表頭範囲, 0)),$AE3 ) ) -> 0件 | BD3: =IFERROR(BC3/BC$15,"") ->  | BE3: =IFERROR(AG3+AI3+AK3+AM3+AO3+AQ3+AS3+AU3+AW3+AY3+BA3+BC3,"") -> 6524件 | BF3: =IFERROR(BE3/BE$15,"") -> 38.8%
A4: どちらでもない | B4: 9.8% | C4: 9.5% | D4: 14.0% | E4: 9.7% | G4: =【M】エリア!$L$4 -> 福井市 | H4: =AG46 -> 4.19 | I4: =AI46 -> 4.29 | J4: =AK46 -> 4.17 | K4: =AM46 -> 4.19 | L4: =AO46 -> 4.23 | M4: =AQ46 -> 4.38 | N4: =AS46 -> 4.31 | O4: =AU46 -> 4.19 | P4: =AW46 -> - | Q4: =AY46 -> - | R4: =BA46 -> - | S4: =BC46 -> - | T4: =BE46 -> 4.25 | AA4: =IF($AE4<>"",VLOOKUP($AE4,【M】満足度!$A$1:$B$5,2,0),"") -> 4 | AC4: =AC3 -> 都道府県 | AD4: 福井県 | AE4: 満足 | AG4: 858件 | AH4: 50.6% | AI4: 1447件 | AJ4: 48.3% | AK4: 928件 | AL4: 50.6% | AM4: 859件 | AN4: 49.4% | AO4: 1123件 | AP4: 50.0% | AQ4: 1100件 | AR4: 46.7% | AS4: 937件 | AT4: 51.9% | AU4: 1099件 | AV4: 51.7% | AW4: 0件 | AY4: 0件 | BA4: 0件 | BC4: 0件 | BE4: =IFERROR(AG4+AI4+AK4+AM4+AO4+AQ4+AS4+AU4+AW4+AY4+BA4+BC4,"") -> 8351件 | BF4: 49.7%
A5: 不満 | B5: 1.0% | C5: 0.5% | D5: 0.0% | E5: 0.0% | G5: =【M】エリア!$L$5 -> 福井駅前 エリア | H5: =AG61 -> 4.25 | I5: =AI61 -> 4.42 | J5: =AK61 -> 4.23 | K5: =AM61 -> 4.30 | L5: =AO61 -> 4.30 | M5: =AQ61 -> 4.43 | N5: =AS61 -> 4.37 | O5: =AU61 -> 4.32 | P5: =AW61 -> - | Q5: =AY61 -> - | R5: =BA61 -> - | S5: =BC61 -> - | T5: =BE61 -> 4.33 | AA5: =IF($AE5<>"",VLOOKUP($AE5,【M】満足度!$A$1:$B$5,2,0),"") -> 3 | AC5: 都道府県 | AD5: 福井県 | AE5: どちらでもない | AG5: 189件 | AH5: 11.1% | AI5: 333件 | AJ5: 11.1% | AK5: 197件 | AL5: 10.7% | AM5: 156件 | AN5: 9.0% | AO5: 198件 | AP5: 8.8% | AQ5: 229件 | AR5: 9.7% | AS5: 203件 | AT5: 11.2% | AU5: 209件 | AV5: 9.8% | AW5: 0件 | AY5: 0件 | BA5: 0件 | BC5: 0件 | BE5: 1714件 | BF5: 10.2%
A6: とても不満 | B6: 0.1% | C6: 0.0% | D6: 0.0% | E6: 0.0% | AA6: =IF($AE6<>"",VLOOKUP($AE6,【M】満足度!$A$1:$B$5,2,0),"") -> 2 | AC6: 都道府県 | AD6: 福井県 | AE6: 不満 | AG6: 11件 | AH6: 0.6% | AI6: 38件 | AJ6: 1.3% | AK6: 15件 | AL6: 0.8% | AM6: 19件 | AN6: 1.1% | AO6: 17件 | AP6: 0.8% | AQ6: 19件 | AR6: 0.8% | AS6: 17件 | AT6: 0.9% | AU6: 21件 | AV6: 1.0% | AW6: 0件 | AY6: 0件 | BA6: 0件 | BC6: 0件 | BE6: 157件 | BF6: 0.9%
AA7: =IF($AE7<>"",VLOOKUP($AE7,【M】満足度!$A$1:$B$5,2,0),"") -> 1 | AC7: 都道府県 | AD7: 福井県 | AE7: とても不満 | AG7: 3件 | AH7: 0.2% | AI7: 8件 | AJ7: 0.3% | AK7: 7件 | AL7: 0.4% | AM7: 5件 | AN7: 0.3% | AO7: 4件 | AP7: 0.2% | AQ7: 17件 | AR7: 0.7% | AS7: 4件 | AT7: 0.2% | AU7: 2件 | AV7: 0.1% | AW7: 0件 | AY7: 0件 | BA7: 0件 | BC7: 0件 | BE7: 50件 | BF7: 0.3%
AA8: =IF($AE8<>"",VLOOKUP($AE8,【M】満足度!$A$1:$B$5,2,0),"") ->  | AC8: 都道府県 | AD8: 福井県
AA9: =IF($AE9<>"",VLOOKUP($AE9,【M】満足度!$A$1:$B$5,2,0),"") ->  | AC9: 都道府県 | AD9: 福井県
AA10: =IF($AE10<>"",VLOOKUP($AE10,【M】満足度!$A$1:$B$5,2,0),"") ->  | AC10: =AC9 -> 都道府県 | AD10: =AD9 -> 福井県
AA11: =IF($AE11<>"",VLOOKUP($AE11,【M】満足度!$A$1:$B$5,2,0),"") ->  | AC11: 都道府県 | AD11: 福井県
AA12: =IF($AE12<>"",VLOOKUP($AE12,【M】満足度!$A$1:$B$5,2,0),"") ->  | AC12: 都道府県 | AD12: 福井県
AA13: =IF($AE13<>"",VLOOKUP($AE13,【M】満足度!$A$1:$B$5,2,0),"") ->  | AC13: 都道府県 | AD13: 福井県 | BE13: =IFERROR(AG13+AI13+AK13+AM13+AO13+AQ13+AS13+AU13+AW13+AY13+BA13+BC13,"") -> 
AA14: =IF($AE14<>"",VLOOKUP($AE14,【M】満足度!$A$1:$B$5,2,0),"") ->  | AC14: =AC12 -> 都道府県 | AD14: =AD12 -> 福井県 | AH14: =IFERROR(AG14/AG$15,"") ->  | AJ14: =IFERROR(AI14/AI$15,"") ->  | AL14: =IFERROR(AK14/AK$15,"") ->  | AN14: =IFERROR(AM14/AM$15,"") ->  | AP14: =IFERROR(AO14/AO$15,"") ->  | AR14: =IFERROR(AQ14/AQ$15,"") ->  | AT14: =IFERROR(AS14/AS$15,"") ->  | AV14: =IFERROR(AU14/AU$15,"") ->  | AX14: =IFERROR(AW14/AW$15,"") ->  | AZ14: =IFERROR(AY14/AY$15,"") ->  | BB14: =IFERROR(BA14/BA$15,"") ->  | BD14: =IFERROR(BC14/BC$15,"") ->  | BF14: =IFERROR(BE14/BE$15,"") -> 
AF15: 合計 | AG15: =SUM(AG3:AG14) -> 1,696件 | AH15: 100.0% | AI15: 2,995件 | AJ15: 100.0% | AK15: 1,835件 | AL15: 100.0% | AM15: 1,738件 | AN15: 100.0% | AO15: 2,246件 | AP15: 100.0% | AQ15: 2,353件 | AR15: 100.0% | AS15: 1,807件 | AT15: 100.0% | AU15: 2,126件 | AV15: 100.0% | AW15: 0件 | AX15: 0.0% | AY15: 0件 | AZ15: 0.0% | BA15: 0件 | BB15: 0.0% | BC15: 0件 | BD15: 0.0% | BE15: =AG15+AI15+AK15+AM15+AO15+AQ15+AS15+AU15+AW15+AY15+BA15+BC15 -> 16,796件 | BF15: =SUM(BF3:BF14) -> 100.0%
AF16: 満足度スコア | AG16: =IF(AG15>0,SUMPRODUCT($AA3:$AA14,AG3:AG14)/AG15,"-") -> 4.24 | AI16: =IF(AI15>0,SUMPRODUCT($AA3:$AA14,AI3:AI14)/AI15,"-") -> 4.25 | AK16: =IF(AK15>0,SUMPRODUCT($AA3:$AA14,AK3:AK14)/AK15,"-") -> 4.24 | AM16: =IF(AM15>0,SUMPRODUCT($AA3:$AA14,AM3:AM14)/AM15,"-") -> 4.28 | AO16: =IF(AO15>0,SUMPRODUCT($AA3:$AA14,AO3:AO14)/AO15,"-") -> 4.29 | AQ16: =IF(AQ15>0,SUMPRODUCT($AA3:$AA14,AQ3:AQ14)/AQ15,"-") -> 4.28 | AS16: =IF(AS15>0,SUMPRODUCT($AA3:$AA14,AS3:AS14)/AS15,"-") -> 4.22 | AU16: =IF(AU15>0,SUMPRODUCT($AA3:$AA14,AU3:AU14)/AU15,"-") -> 4.25 | AW16: =IF(AW15>0,SUMPRODUCT($AA3:$AA14,AW3:AW14)/AW15,"-") -> - | AY16: =IF(AY15>0,SUMPRODUCT($AA3:$AA14,AY3:AY14)/AY15,"-") -> - | BA16: =IF(BA15>0,SUMPRODUCT($AA3:$AA14,BA3:BA14)/BA15,"-") -> - | BC16: =IF(BC15>0,SUMPRODUCT($AA3:$AA14,BC3:BC14)/BC15,"-") -> - | BE16: =IF(BE15>0,SUMPRODUCT($AA3:$AA14,BE3:BE14)/BE15,"-") -> 4.26
AC17: =【M】エリア!$J$2 -> 6分類 | AD17: =【M】エリア!$L$3 -> 福井市・永平寺町
AA18: =IF($AE18<>"",VLOOKUP($AE18,【M】満足度!$A$1:$B$5,2,0),"") -> 5 | AC18: =AC17 -> 6分類 | AD18: =AD17 -> 福井市・永平寺町 | AE18: =IF(AE3<>"",AE3,"") -> とても満足 | AG18: =IF(OR(IFERROR(FIND($AD18,"施設コード"),0)>0,$AE18=""), "", COUNTIFS( INDEX(rawデータ範囲, , MATCH($AG$1,表頭範囲, 0)),AG$2, INDEX(rawデータ範囲, , MATCH($AE$1,表頭範囲, 0)),$AE18, INDEX(rawデータ範囲, , MATCH($AC18,表頭範囲, 0)),$AD18 ) ) -> 137件 | AH18: =IFERROR(AG18/AG$30,"") -> 37.0% | AI18: =IF(OR(IFERROR(FIND($AD18,"施設コード"),0)>0,$AE18=""), "", COUNTIFS( INDEX(rawデータ範囲, , MATCH($AG$1,表頭範囲, 0)),AI$2, INDEX(rawデータ範囲, , MATCH($AE$1,表頭範囲, 0)),$AE18, INDEX(rawデータ範囲, , MATCH($AC18,表頭範囲, 0)),$AD18 ) ) -> 199件 | AJ18: =IFERROR(AI18/AI$30,"") -> 39.0% | AK18: =IF(OR(IFERROR(FIND($AD18,"施設コード"),0)>0,$AE18=""), "", COUNTIFS( INDEX(rawデータ範囲, , MATCH($AG$1,表頭範囲, 0)),AK$2, INDEX(rawデータ範囲, , MATCH($AE$1,表頭範囲, 0)),$AE18, INDEX(rawデータ範囲, , MATCH($AC18,表頭範囲, 0)),$AD18 ) ) -> 105件 | AL18: =IFERROR(AK18/AK$30,"") -> 32.9% | AM18: =IF(OR(IFERROR(FIND($AD18,"施設コード"),0)>0,$AE18=""), "", COUNTIFS( INDEX(rawデータ範囲, , MATCH($AG$1,表頭範囲, 0)),AM$2, INDEX(rawデータ範囲, , MATCH($AE$1,表頭範囲, 0)),$AE18, INDEX(rawデータ範囲, , MATCH($AC18,表頭範囲, 0)),$AD18 ) ) -> 105件 | AN18: =IFERROR(AM18/AM$30,"") -> 35.5% | AO18: =IF(OR(IFERROR(FIND($AD18,"施設コード"),0)>0,$AE18=""), "", COUNTIFS( INDEX(rawデータ範囲, , MATCH($AG$1,表頭範囲, 0)),AO$2, INDEX(rawデータ範囲, , MATCH($AE$1,表頭範囲, 0)),$AE18, INDEX(rawデータ範囲, , MATCH($AC18,表頭範囲, 0)),$AD18 ) ) -> 145件 | AP18: =IFERROR(AO18/AO$30,"") -> 39.1% | AQ18: =IF(OR(IFERROR(FIND($AD18,"施設コード"),0)>0,$AE18=""), "", COUNTIFS( INDEX(rawデータ範囲, , MATCH($AG$1,表頭範囲, 0)),AQ$2, INDEX(rawデータ範囲, , MATCH($AE$1,表頭範囲, 0)),$AE18, INDEX(rawデータ範囲, , MATCH($AC18,表頭範囲, 0)),$AD18 ) ) -> 150件 | AR18: =IFERROR(AQ18/AQ$30,"") -> 43.1% | AS18: =IF(OR(IFERROR(FIND($AD18,"施設コード"),0)>0,$AE18=""), "", COUNTIFS( INDEX(rawデータ範囲, , MATCH($AG$1,表頭範囲, 0)),AS$2, INDEX(rawデータ範囲, , MATCH($AE$1,表頭範囲, 0)),$AE18, INDEX(rawデータ範囲, , MATCH($AC18,表頭範囲, 0)),$AD18 ) ) -> 115件 | AT18: =IFERROR(AS18/AS$30,"") -> 39.8% | AU18: =IF(OR(IFERROR(FIND($AD18,"施設コード"),0)>0,$AE18=""), "", COUNTIFS( INDEX(rawデータ範囲, , MATCH($AG$1,表頭範囲, 0)),AU$2, INDEX(rawデータ範囲, , MATCH($AE$1,表頭範囲, 0)),$AE18, INDEX(rawデータ範囲, , MATCH($AC18,表頭範囲, 0)),$AD18 ) ) -> 150件 | AV18: =IFERROR(AU18/AU$30,"") -> 39.5% | AW18: =IF(OR(IFERROR(FIND($AD18,"施設コード"),0)>0,$AE18=""), "", COUNTIFS( INDEX(rawデータ範囲, , MATCH($AG$1,表頭範囲, 0)),AW$2, INDEX(rawデータ範囲, , MATCH($AE$1,表頭範囲, 0)),$AE18, INDEX(rawデータ範囲, , MATCH($AC18,表頭範囲, 0)),$AD18 ) ) -> 0件 | AX18: =IFERROR(AW18/AW$30,"") ->  | AY18: =IF(OR(IFERROR(FIND($AD18,"施設コード"),0)>0,$AE18=""), "", COUNTIFS( INDEX(rawデータ範囲, , MATCH($AG$1,表頭範囲, 0)),AY$2, INDEX(rawデータ範囲, , MATCH($AE$1,表頭範囲, 0)),$AE18, INDEX(rawデータ範囲, , MATCH($AC18,表頭範囲, 0)),$AD18 ) ) -> 0件 | AZ18: =IFERROR(AY18/AY$30,"") ->  | BA18: =IF(OR(IFERROR(FIND($AD18,"施設コード"),0)>0,$AE18=""), "", COUNTIFS( INDEX(rawデータ範囲, , MATCH($AG$1,表頭範囲, 0)),BA$2, INDEX(rawデータ範囲, , MATCH($AE$1,表頭範囲, 0)),$AE18, INDEX(rawデータ範囲, , MATCH($AC18,表頭範囲, 0)),$AD18 ) ) -> 0件 | BB18: =IFERROR(BA18/BA$30,"") ->  | BC18: =IF(OR(IFERROR(FIND($AD18,"施設コード"),0)>0,$AE18=""), "", COUNTIFS( INDEX(rawデータ範囲, , MATCH($AG$1,表頭範囲, 0)),BC$2, INDEX(rawデータ範囲, , MATCH($AE$1,表頭範囲, 0)),$AE18, INDEX(rawデータ範囲, , MATCH($AC18,表頭範囲, 0)),$AD18 ) ) -> 0件 | BD18: =IFERROR(BC18/BC$30,"") ->  | BE18: =IFERROR(AG18+AI18+AK18+AM18+AO18+AQ18+AS18+AU18+AW18+AY18+BA18+BC18,"") -> 1106件 | BF18: =IFERROR(BE18/BE$30,"") -> 38.4%
AA19: =IF($AE19<>"",VLOOKUP($AE19,【M】満足度!$A$1:$B$5,2,0),"") -> 4 | AC19: =AC18 -> 6分類 | AD19: 福井市・永平寺町 | AE19: 満足 | AG19: 194件 | AH19: 52.4% | AI19: 256件 | AJ19: 50.2% | AK19: 172件 | AL19: 53.9% | AM19: 150件 | AN19: 50.7% | AO19: 189件 | AP19: 50.9% | AQ19: 156件 | AR19: 44.8% | AS19: 146件 | AT19: 50.5% | AU19: 192件 | AV19: 50.5% | AW19: 0件 | AY19: 0件 | BA19: 0件 | BC19: 0件 | BE19: =IFERROR(AG19+AI19+AK19+AM19+AO19+AQ19+AS19+AU19+AW19+AY19+BA19+BC19,"") -> 1455件 | BF19: 50.5%
AA20: =IF($AE20<>"",VLOOKUP($AE20,【M】満足度!$A$1:$B$5,2,0),"") -> 3 | AC20: 6分類 | AD20: 福井市・永平寺町 | AE20: どちらでもない | AG20: 36件 | AH20: 9.7% | AI20: 50件 | AJ20: 9.8% | AK20: 40件 | AL20: 12.5% | AM20: 34件 | AN20: 11.5% | AO20: 33件 | AP20: 8.9% | AQ20: 42件 | AR20: 12.1% | AS20: 26件 | AT20: 9.0% | AU20: 36件 | AV20: 9.5% | AW20: 0件 | AY20: 0件 | BA20: 0件 | BC20: 0件 | BE20: 297件 | BF20: 10.3%
AA21: =IF($AE21<>"",VLOOKUP($AE21,【M】満足度!$A$1:$B$5,2,0),"") -> 2 | AC21: 6分類 | AD21: 福井市・永平寺町 | AE21: 不満 | AG21: 2件 | AH21: 0.5% | AI21: 5件 | AJ21: 1.0% | AK21: 2件 | AL21: 0.6% | AM21: 5件 | AN21: 1.7% | AO21: 4件 | AP21: 1.1% | AQ21: 0件 | AR21: 0.0% | AS21: 2件 | AT21: 0.7% | AU21: 2件 | AV21: 0.5% | AW21: 0件 | AY21: 0件 | BA21: 0件 | BC21: 0件 | BE21: 22件 | BF21: 0.8%
AA22: =IF($AE22<>"",VLOOKUP($AE22,【M】満足度!$A$1:$B$5,2,0),"") -> 1 | AC22: 6分類 | AD22: 福井市・永平寺町 | AE22: とても不満 | AG22: 1件 | AH22: 0.3% | AI22: 0件 | AJ22: 0.0% | AK22: 0件 | AL22: 0.0% | AM22: 2件 | AN22: 0.7% | AO22: 0件 | AP22: 0.0% | AQ22: 0件 | AR22: 0.0% | AS22: 0件 | AT22: 0.0% | AU22: 0件 | AV22: 0.0% | AW22: 0件 | AY22: 0件 | BA22: 0件 | BC22: 0件 | BE22: 3件 | BF22: 0.1%
AA23: =IF($AE23<>"",VLOOKUP($AE23,【M】満足度!$A$1:$B$5,2,0),"") ->  | AC23: 6分類 | AD23: 福井市・永平寺町
AA24: =IF($AE24<>"",VLOOKUP($AE24,【M】満足度!$A$1:$B$5,2,0),"") ->  | AC24: 6分類 | AD24: 福井市・永平寺町
AA25: =IF($AE25<>"",VLOOKUP($AE25,【M】満足度!$A$1:$B$5,2,0),"") ->  | AC25: =AC24 -> 6分類 | AD25: =AD24 -> 福井市・永平寺町
AA26: =IF($AE26<>"",VLOOKUP($AE26,【M】満足度!$A$1:$B$5,2,0),"") ->  | AC26: 6分類 | AD26: 福井市・永平寺町
AA27: =IF($AE27<>"",VLOOKUP($AE27,【M】満足度!$A$1:$B$5,2,0),"") ->  | AC27: 6分類 | AD27: 福井市・永平寺町
AA28: =IF($AE28<>"",VLOOKUP($AE28,【M】満足度!$A$1:$B$5,2,0),"") ->  | AC28: 6分類 | AD28: 福井市・永平寺町 | BE28: =IFERROR(AG28+AI28+AK28+AM28+AO28+AQ28+AS28+AU28+AW28+AY28+BA28+BC28,"") -> 
AA29: =IF($AE29<>"",VLOOKUP($AE29,【M】満足度!$A$1:$B$5,2,0),"") ->  | AC29: =AC27 -> 6分類 | AD29: =AD27 -> 福井市・永平寺町 | AE29: =IF(AE14<>"",AE14,"") ->  | AH29: =IFERROR(AG29/AG$30,"") ->  | AJ29: =IFERROR(AI29/AI$30,"") ->  | AL29: =IFERROR(AK29/AK$30,"") ->  | AN29: =IFERROR(AM29/AM$30,"") ->  | AP29: =IFERROR(AO29/AO$30,"") ->  | AR29: =IFERROR(AQ29/AQ$30,"") ->  | AT29: =IFERROR(AS29/AS$30,"") ->  | AV29: =IFERROR(AU29/AU$30,"") ->  | AX29: =IFERROR(AW29/AW$30,"") ->  | AZ29: =IFERROR(AY29/AY$30,"") ->  | BB29: =IFERROR(BA29/BA$30,"") ->  | BD29: =IFERROR(BC29/BC$30,"") ->  | BF29: =IFERROR(BE29/BE$30,"") -> 
AF30: 合計 | AG30: =SUM(AG18:AG29) -> 370件 | AH30: 100.0% | AI30: 510件 | AJ30: 100.0% | AK30: 319件 | AL30: 100.0% | AM30: 296件 | AN30: 100.0% | AO30: 371件 | AP30: 100.0% | AQ30: 348件 | AR30: 100.0% | AS30: 289件 | AT30: 100.0% | AU30: 380件 | AV30: 100.0% | AW30: 0件 | AX30: 0.0% | AY30: 0件 | AZ30: 0.0% | BA30: 0件 | BB30: 0.0% | BC30: 0件 | BD30: 0.0% | BE30: 2,883件 | BF30: 100.0%
AF31: =IF(AF$16<>"",AF$16,"") -> 満足度スコア | AG31: =IF(AG30>0,SUMPRODUCT($AA18:$AA29,AG18:AG29)/AG30,"-") -> 4.25 | AI31: =IF(AI30>0,SUMPRODUCT($AA18:$AA29,AI18:AI29)/AI30,"-") -> 4.27 | AK31: =IF(AK30>0,SUMPRODUCT($AA18:$AA29,AK18:AK29)/AK30,"-") -> 4.19 | AM31: =IF(AM30>0,SUMPRODUCT($AA18:$AA29,AM18:AM29)/AM30,"-") -> 4.19 | AO31: =IF(AO30>0,SUMPRODUCT($AA18:$AA29,AO18:AO29)/AO30,"-") -> 4.28 | AQ31: =IF(AQ30>0,SUMPRODUCT($AA18:$AA29,AQ18:AQ29)/AQ30,"-") -> 4.31 | AS31: =IF(AS30>0,SUMPRODUCT($AA18:$AA29,AS18:AS29)/AS30,"-") -> 4.29 | AU31: =IF(AU30>0,SUMPRODUCT($AA18:$AA29,AU18:AU29)/AU30,"-") -> 4.29 | AW31: =IF(AW30>0,SUMPRODUCT($AA18:$AA29,AW18:AW29)/AW30,"-") -> - | AY31: =IF(AY30>0,SUMPRODUCT($AA18:$AA29,AY18:AY29)/AY30,"-") -> - | BA31: =IF(BA30>0,SUMPRODUCT($AA18:$AA29,BA18:BA29)/BA30,"-") -> - | BC31: =IF(BC30>0,SUMPRODUCT($AA18:$AA29,BC18:BC29)/BC30,"-") -> - | BE31: =IF(BE30>0,SUMPRODUCT($AA18:$AA29,BE18:BE29)/BE30,"-") -> 4.26
AC32: 市町村 | AD32: =【M】エリア!$L$4 -> 福井市
AA33: =IF($AE33<>"",VLOOKUP($AE33,【M】満足度!$A$1:$B$5,2,0),"") -> 5 | AC33: =AC32 -> 市町村 | AD33: =AD32 -> 福井市 | AE33: =IF(AE3<>"",AE3,"") -> とても満足 | AG33: =IF(OR(IFERROR(FIND($AD33,"施設コード"),0)>0,$AE33=""), "", COUNTIFS( INDEX(rawデータ範囲, , MATCH($AG$1,表頭範囲, 0)),AG$2, INDEX(rawデータ範囲, , MATCH($AE$1,表頭範囲, 0)),$AE33, INDEX(rawデータ範囲, , MATCH($AC33,表頭範囲, 0)),$AD33 ) ) -> 61件 | AH33: =IFERROR(AG33/AG$45,"") -> 33.3% | AI33: =IF(OR(IFERROR(FIND($AD33,"施設コード"),0)>0,$AE33=""), "", COUNTIFS( INDEX(rawデータ範囲, , MATCH($AG$1,表頭範囲, 0)),AI$2, INDEX(rawデータ範囲, , MATCH($AE$1,表頭範囲, 0)),$AE33, INDEX(rawデータ範囲, , MATCH($AC33,表頭範囲, 0)),$AD33 ) ) -> 94件 | AJ33: =IFERROR(AI33/AI$45,"") -> 39.2% | AK33: =IF(OR(IFERROR(FIND($AD33,"施設コード"),0)>0,$AE33=""), "", COUNTIFS( INDEX(rawデータ範囲, , MATCH($AG$1,表頭範囲, 0)),AK$2, INDEX(rawデータ範囲, , MATCH($AE$1,表頭範囲, 0)),$AE33, INDEX(rawデータ範囲, , MATCH($AC33,表頭範囲, 0)),$AD33 ) ) -> 48件 | AL33: =IFERROR(AK33/AK$45,"") -> 32.0% | AM33: =IF(OR(IFERROR(FIND($AD33,"施設コード"),0)>0,$AE33=""), "", COUNTIFS( INDEX(rawデータ範囲, , MATCH($AG$1,表頭範囲, 0)),AM$2, INDEX(rawデータ範囲, , MATCH($AE$1,表頭範囲, 0)),$AE33, INDEX(rawデータ範囲, , MATCH($AC33,表頭範囲, 0)),$AD33 ) ) -> 59件 | AN33: =IFERROR(AM33/AM$45,"") -> 36.6% | AO33: =IF(OR(IFERROR(FIND($AD33,"施設コード"),0)>0,$AE33=""), "", COUNTIFS( INDEX(rawデータ範囲, , MATCH($AG$1,表頭範囲, 0)),AO$2, INDEX(rawデータ範囲, , MATCH($AE$1,表頭範囲, 0)),$AE33, INDEX(rawデータ範囲, , MATCH($AC33,表頭範囲, 0)),$AD33 ) ) -> 45件 | AP33: =IFERROR(AO33/AO$45,"") -> 35.7% | AQ33: =IF(OR(IFERROR(FIND($AD33,"施設コード"),0)>0,$AE33=""), "", COUNTIFS( INDEX(rawデータ範囲, , MATCH($AG$1,表頭範囲, 0)),AQ$2, INDEX(rawデータ範囲, , MATCH($AE$1,表頭範囲, 0)),$AE33, INDEX(rawデータ範囲, , MATCH($AC33,表頭範囲, 0)),$AD33 ) ) -> 69件 | AR33: =IFERROR(AQ33/AQ$45,"") -> 46.9% | AS33: =IF(OR(IFERROR(FIND($AD33,"施設コード"),0)>0,$AE33=""), "", COUNTIFS( INDEX(rawデータ範囲, , MATCH($AG$1,表頭範囲, 0)),AS$2, INDEX(rawデータ範囲, , MATCH($AE$1,表頭範囲, 0)),$AE33, INDEX(rawデータ範囲, , MATCH($AC33,表頭範囲, 0)),$AD33 ) ) -> 63件 | AT33: =IFERROR(AS33/AS$45,"") -> 42.0% | AU33: =IF(OR(IFERROR(FIND($AD33,"施設コード"),0)>0,$AE33=""), "", COUNTIFS( INDEX(rawデータ範囲, , MATCH($AG$1,表頭範囲, 0)),AU$2, INDEX(rawデータ範囲, , MATCH($AE$1,表頭範囲, 0)),$AE33, INDEX(rawデータ範囲, , MATCH($AC33,表頭範囲, 0)),$AD33 ) ) -> 59件 | AV33: =IFERROR(AU33/AU$45,"") -> 33.0% | AW33: =IF(OR(IFERROR(FIND($AD33,"施設コード"),0)>0,$AE33=""), "", COUNTIFS( INDEX(rawデータ範囲, , MATCH($AG$1,表頭範囲, 0)),AW$2, INDEX(rawデータ範囲, , MATCH($AE$1,表頭範囲, 0)),$AE33, INDEX(rawデータ範囲, , MATCH($AC33,表頭範囲, 0)),$AD33 ) ) -> 0件 | AX33: =IFERROR(AW33/AW$45,"") ->  | AY33: =IF(OR(IFERROR(FIND($AD33,"施設コード"),0)>0,$AE33=""), "", COUNTIFS( INDEX(rawデータ範囲, , MATCH($AG$1,表頭範囲, 0)),AY$2, INDEX(rawデータ範囲, , MATCH($AE$1,表頭範囲, 0)),$AE33, INDEX(rawデータ範囲, , MATCH($AC33,表頭範囲, 0)),$AD33 ) ) -> 0件 | AZ33: =IFERROR(AY33/AY$45,"") ->  | BA33: =IF(OR(IFERROR(FIND($AD33,"施設コード"),0)>0,$AE33=""), "", COUNTIFS( INDEX(rawデータ範囲, , MATCH($AG$1,表頭範囲, 0)),BA$2, INDEX(rawデータ範囲, , MATCH($AE$1,表頭範囲, 0)),$AE33, INDEX(rawデータ範囲, , MATCH($AC33,表頭範囲, 0)),$AD33 ) ) -> 0件 | BB33: =IFERROR(BA33/BA$45,"") ->  | BC33: =IF(OR(IFERROR(FIND($AD33,"施設コード"),0)>0,$AE33=""), "", COUNTIFS( INDEX(rawデータ範囲, , MATCH($AG$1,表頭範囲, 0)),BC$2, INDEX(rawデータ範囲, , MATCH($AE$1,表頭範囲, 0)),$AE33, INDEX(rawデータ範囲, , MATCH($AC33,表頭範囲, 0)),$AD33 ) ) -> 0件 | BD33: =IFERROR(BC33/BC$45,"") ->  | BE33: =IFERROR(AG33+AI33+AK33+AM33+AO33+AQ33+AS33+AU33+AW33+AY33+BA33+BC33,"") -> 498件 | BF33: =IFERROR(BE33/BE$45,"") -> 37.3%
AA34: =IF($AE34<>"",VLOOKUP($AE34,【M】満足度!$A$1:$B$5,2,0),"") -> 4 | AC34: =AC33 -> 市町村 | AD34: 福井市 | AE34: 満足 | AG34: 99件 | AH34: 54.1% | AI34: 125件 | AJ34: 52.1% | AK34: 81件 | AL34: 54.0% | AM34: 81件 | AN34: 50.3% | AO34: 65件 | AP34: 51.6% | AQ34: 65件 | AR34: 44.2% | AS34: 72件 | AT34: 48.0% | AU34: 95件 | AV34: 53.1% | AW34: 0件 | AY34: 0件 | BA34: 0件 | BC34: 0件 | BE34: =IFERROR(AG34+AI34+AK34+AM34+AO34+AQ34+AS34+AU34+AW34+AY34+BA34+BC34,"") -> 683件 | BF34: 51.1%
AA35: =IF($AE35<>"",VLOOKUP($AE35,【M】満足度!$A$1:$B$5,2,0),"") -> 3 | AC35: 市町村 | AD35: 福井市 | AE35: どちらでもない | AG35: 21件 | AH35: 11.5% | AI35: 18件 | AJ35: 7.5% | AK35: 20件 | AL35: 13.3% | AM35: 16件 | AN35: 9.9% | AO35: 16件 | AP35: 12.7% | AQ35: 13件 | AR35: 8.8% | AS35: 14件 | AT35: 9.3% | AU35: 25件 | AV35: 14.0% | AW35: 0件 | AY35: 0件 | BA35: 0件 | BC35: 0件 | BE35: 143件 | BF35: 10.7%
AA36: =IF($AE36<>"",VLOOKUP($AE36,【M】満足度!$A$1:$B$5,2,0),"") -> 2 | AC36: 市町村 | AD36: 福井市 | AE36: 不満 | AG36: 1件 | AH36: 0.5% | AI36: 3件 | AJ36: 1.3% | AK36: 1件 | AL36: 0.7% | AM36: 3件 | AN36: 1.9% | AO36: 0件 | AP36: 0.0% | AQ36: 0件 | AR36: 0.0% | AS36: 1件 | AT36: 0.7% | AU36: 0件 | AV36: 0.0% | AW36: 0件 | AY36: 0件 | BA36: 0件 | BC36: 0件 | BE36: 9件 | BF36: 0.7%
AA37: =IF($AE37<>"",VLOOKUP($AE37,【M】満足度!$A$1:$B$5,2,0),"") -> 1 | AC37: 市町村 | AD37: 福井市 | AE37: とても不満 | AG37: 1件 | AH37: 0.5% | AI37: 0件 | AJ37: 0.0% | AK37: 0件 | AL37: 0.0% | AM37: 2件 | AN37: 1.2% | AO37: 0件 | AP37: 0.0% | AQ37: 0件 | AR37: 0.0% | AS37: 0件 | AT37: 0.0% | AU37: 0件 | AV37: 0.0% | AW37: 0件 | AY37: 0件 | BA37: 0件 | BC37: 0件 | BE37: 3件 | BF37: 0.2%
AA38: =IF($AE38<>"",VLOOKUP($AE38,【M】満足度!$A$1:$B$5,2,0),"") ->  | AC38: 市町村 | AD38: 福井市
AA39: =IF($AE39<>"",VLOOKUP($AE39,【M】満足度!$A$1:$B$5,2,0),"") ->  | AC39: 市町村 | AD39: 福井市
AA40: =IF($AE40<>"",VLOOKUP($AE40,【M】満足度!$A$1:$B$5,2,0),"") ->  | AC40: =AC39 -> 市町村 | AD40: =AD39 -> 福井市
AA41: =IF($AE41<>"",VLOOKUP($AE41,【M】満足度!$A$1:$B$5,2,0),"") ->  | AC41: 市町村 | AD41: 福井市
AA42: =IF($AE42<>"",VLOOKUP($AE42,【M】満足度!$A$1:$B$5,2,0),"") ->  | AC42: 市町村 | AD42: 福井市
AA43: =IF($AE43<>"",VLOOKUP($AE43,【M】満足度!$A$1:$B$5,2,0),"") ->  | AC43: 市町村 | AD43: 福井市 | BE43: =IFERROR(AG43+AI43+AK43+AM43+AO43+AQ43+AS43+AU43+AW43+AY43+BA43+BC43,"") -> 
AA44: =IF($AE44<>"",VLOOKUP($AE44,【M】満足度!$A$1:$B$5,2,0),"") ->  | AC44: =AC42 -> 市町村 | AD44: =AD42 -> 福井市 | AE44: =IF(AE14<>"",AE14,"") ->  | AH44: =IFERROR(AG44/AG$45,"") ->  | AJ44: =IFERROR(AI44/AI$45,"") ->  | AL44: =IFERROR(AK44/AK$45,"") ->  | AN44: =IFERROR(AM44/AM$45,"") ->  | AP44: =IFERROR(AO44/AO$45,"") ->  | AR44: =IFERROR(AQ44/AQ$45,"") ->  | AT44: =IFERROR(AS44/AS$45,"") ->  | AV44: =IFERROR(AU44/AU$45,"") ->  | AX44: =IFERROR(AW44/AW$45,"") ->  | AZ44: =IFERROR(AY44/AY$45,"") ->  | BB44: =IFERROR(BA44/BA$45,"") ->  | BD44: =IFERROR(BC44/BC$45,"") -> 
AF45: 合計 | AG45: =SUM(AG33:AG44) -> 183件 | AH45: 100.0% | AI45: 240件 | AJ45: 100.0% | AK45: 150件 | AL45: 100.0% | AM45: 161件 | AN45: 100.0% | AO45: 126件 | AP45: 100.0% | AQ45: 147件 | AR45: 100.0% | AS45: 150件 | AT45: 100.0% | AU45: 179件 | AV45: 100.0% | AW45: 0件 | AX45: 0.0% | AY45: 0件 | AZ45: 0.0% | BA45: 0件 | BB45: 0.0% | BC45: 0件 | BD45: 0.0% | BE45: 1,336件 | BF45: 100.0%
AF46: =IF(AF$16<>"",AF$16,"") -> 満足度スコア | AG46: =IF(AG45>0,SUMPRODUCT($AA33:$AA44,AG33:AG44)/AG45,"-") -> 4.19 | AI46: =IF(AI45>0,SUMPRODUCT($AA33:$AA44,AI33:AI44)/AI45,"-") -> 4.29 | AK46: =IF(AK45>0,SUMPRODUCT($AA33:$AA44,AK33:AK44)/AK45,"-") -> 4.17 | AM46: =IF(AM45>0,SUMPRODUCT($AA33:$AA44,AM33:AM44)/AM45,"-") -> 4.19 | AO46: =IF(AO45>0,SUMPRODUCT($AA33:$AA44,AO33:AO44)/AO45,"-") -> 4.23 | AQ46: =IF(AQ45>0,SUMPRODUCT($AA33:$AA44,AQ33:AQ44)/AQ45,"-") -> 4.38 | AS46: =IF(AS45>0,SUMPRODUCT($AA33:$AA44,AS33:AS44)/AS45,"-") -> 4.31 | AU46: =IF(AU45>0,SUMPRODUCT($AA33:$AA44,AU33:AU44)/AU45,"-") -> 4.19 | AW46: =IF(AW45>0,SUMPRODUCT($AA33:$AA44,AW33:AW44)/AW45,"-") -> - | AY46: =IF(AY45>0,SUMPRODUCT($AA33:$AA44,AY33:AY44)/AY45,"-") -> - | BA46: =IF(BA45>0,SUMPRODUCT($AA33:$AA44,BA33:BA44)/BA45,"-") -> - | BC46: =IF(BC45>0,SUMPRODUCT($AA33:$AA44,BC33:BC44)/BC45,"-") -> - | BE46: =IF(BE45>0,SUMPRODUCT($AA33:$AA44,BE33:BE44)/BE45,"-") -> 4.25
AC47: 回答エリア | AD47: =【M】エリア!$L$5 -> 福井駅前 エリア
AA48: =IF($AE48<>"",VLOOKUP($AE48,【M】満足度!$A$1:$B$5,2,0),"") -> 5 | AC48: =AC47 -> 回答エリア | AD48: =AD47 -> 福井駅前 エリア | AE48: =IF(AE3<>"",AE3,"") -> とても満足 | AG48: =IF(OR(IFERROR(FIND($AD48,"施設コード"),0)>0,$AE48=""), "", COUNTIFS( INDEX(rawデータ範囲, , MATCH($AG$1,表頭範囲, 0)),AG$2, INDEX(rawデータ範囲, , MATCH($AE$1,表頭範囲, 0)),$AE48, INDEX(rawデータ範囲, , MATCH($AC48,表頭範囲, 0)),$AD48 ) ) -> 27件 | AH48: =IFERROR(AG48/AG$60,"") -> 35.5% | AI48: =IF(OR(IFERROR(FIND($AD48,"施設コード"),0)>0,$AE48=""), "", COUNTIFS( INDEX(rawデータ範囲, , MATCH($AG$1,表頭範囲, 0)),AI$2, INDEX(rawデータ範囲, , MATCH($AE$1,表頭範囲, 0)),$AE48, INDEX(rawデータ範囲, , MATCH($AC48,表頭範囲, 0)),$AD48 ) ) -> 37件 | AJ48: =IFERROR(AI48/AI$60,"") -> 45.7% | AK48: =IF(OR(IFERROR(FIND($AD48,"施設コード"),0)>0,$AE48=""), "", COUNTIFS( INDEX(rawデータ範囲, , MATCH($AG$1,表頭範囲, 0)),AK$2, INDEX(rawデータ範囲, , MATCH($AE$1,表頭範囲, 0)),$AE48, INDEX(rawデータ範囲, , MATCH($AC48,表頭範囲, 0)),$AD48 ) ) -> 29件 | AL48: =IFERROR(AK48/AK$60,"") -> 37.2% | AM48: =IF(OR(IFERROR(FIND($AD48,"施設コード"),0)>0,$AE48=""), "", COUNTIFS( INDEX(rawデータ範囲, , MATCH($AG$1,表頭範囲, 0)),AM$2, INDEX(rawデータ範囲, , MATCH($AE$1,表頭範囲, 0)),$AE48, INDEX(rawデータ範囲, , MATCH($AC48,表頭範囲, 0)),$AD48 ) ) -> 28件 | AN48: =IFERROR(AM48/AM$60,"") -> 43.8% | AO48: =IF(OR(IFERROR(FIND($AD48,"施設コード"),0)>0,$AE48=""), "", COUNTIFS( INDEX(rawデータ範囲, , MATCH($AG$1,表頭範囲, 0)),AO$2, INDEX(rawデータ範囲, , MATCH($AE$1,表頭範囲, 0)),$AE48, INDEX(rawデータ範囲, , MATCH($AC48,表頭範囲, 0)),$AD48 ) ) -> 30件 | AP48: =IFERROR(AO48/AO$60,"") -> 37.0% | AQ48: =IF(OR(IFERROR(FIND($AD48,"施設コード"),0)>0,$AE48=""), "", COUNTIFS( INDEX(rawデータ範囲, , MATCH($AG$1,表頭範囲, 0)),AQ$2, INDEX(rawデータ範囲, , MATCH($AE$1,表頭範囲, 0)),$AE48, INDEX(rawデータ範囲, , MATCH($AC48,表頭範囲, 0)),$AD48 ) ) -> 39件 | AR48: =IFERROR(AQ48/AQ$60,"") -> 46.4% | AS48: =IF(OR(IFERROR(FIND($AD48,"施設コード"),0)>0,$AE48=""), "", COUNTIFS( INDEX(rawデータ範囲, , MATCH($AG$1,表頭範囲, 0)),AS$2, INDEX(rawデータ範囲, , MATCH($AE$1,表頭範囲, 0)),$AE48, INDEX(rawデータ範囲, , MATCH($AC48,表頭範囲, 0)),$AD48 ) ) -> 38件 | AT48: =IFERROR(AS48/AS$60,"") -> 45.2% | AU48: =IF(OR(IFERROR(FIND($AD48,"施設コード"),0)>0,$AE48=""), "", COUNTIFS( INDEX(rawデータ範囲, , MATCH($AG$1,表頭範囲, 0)),AU$2, INDEX(rawデータ範囲, , MATCH($AE$1,表頭範囲, 0)),$AE48, INDEX(rawデータ範囲, , MATCH($AC48,表頭範囲, 0)),$AD48 ) ) -> 39件 | AV48: =IFERROR(AU48/AU$60,"") -> 41.9% | AW48: =IF(OR(IFERROR(FIND($AD48,"施設コード"),0)>0,$AE48=""), "", COUNTIFS( INDEX(rawデータ範囲, , MATCH($AG$1,表頭範囲, 0)),AW$2, INDEX(rawデータ範囲, , MATCH($AE$1,表頭範囲, 0)),$AE48, INDEX(rawデータ範囲, , MATCH($AC48,表頭範囲, 0)),$AD48 ) ) -> 0件 | AX48: =IFERROR(AW48/AW$60,"") ->  | AY48: =IF(OR(IFERROR(FIND($AD48,"施設コード"),0)>0,$AE48=""), "", COUNTIFS( INDEX(rawデータ範囲, , MATCH($AG$1,表頭範囲, 0)),AY$2, INDEX(rawデータ範囲, , MATCH($AE$1,表頭範囲, 0)),$AE48, INDEX(rawデータ範囲, , MATCH($AC48,表頭範囲, 0)),$AD48 ) ) -> 0件 | AZ48: =IFERROR(AY48/AY$60,"") ->  | BA48: =IF(OR(IFERROR(FIND($AD48,"施設コード"),0)>0,$AE48=""), "", COUNTIFS( INDEX(rawデータ範囲, , MATCH($AG$1,表頭範囲, 0)),BA$2, INDEX(rawデータ範囲, , MATCH($AE$1,表頭範囲, 0)),$AE48, INDEX(rawデータ範囲, , MATCH($AC48,表頭範囲, 0)),$AD48 ) ) -> 0件 | BB48: =IFERROR(BA48/BA$60,"") ->  | BC48: =IF(OR(IFERROR(FIND($AD48,"施設コード"),0)>0,$AE48=""), "", COUNTIFS( INDEX(rawデータ範囲, , MATCH($AG$1,表頭範囲, 0)),BC$2, INDEX(rawデータ範囲, , MATCH($AE$1,表頭範囲, 0)),$AE48, INDEX(rawデータ範囲, , MATCH($AC48,表頭範囲, 0)),$AD48 ) ) -> 0件 | BD48: =IFERROR(BC48/BC$60,"") ->  | BE48: =IFERROR(AG48+AI48+AK48+AM48+AO48+AQ48+AS48+AU48+AW48+AY48+BA48+BC48,"") -> 267件 | BF48: =IFERROR(BE48/BE$60,"") -> 41.7%
AA49: =IF($AE49<>"",VLOOKUP($AE49,【M】満足度!$A$1:$B$5,2,0),"") -> 4 | AC49: =AC48 -> 回答エリア | AD49: 福井駅前 エリア | AE49: 満足 | AG49: 41件 | AH49: 53.9% | AI49: 42件 | AJ49: 51.9% | AK49: 38件 | AL49: 48.7% | AM49: 29件 | AN49: 45.3% | AO49: 45件 | AP49: 55.6% | AQ49: 42件 | AR49: 50.0% | AS49: 39件 | AT49: 46.4% | AU49: 45件 | AV49: 48.4% | AW49: 0件 | AY49: 0件 | BA49: 0件 | BC49: 0件 | BE49: =IFERROR(AG49+AI49+AK49+AM49+AO49+AQ49+AS49+AU49+AW49+AY49+BA49+BC49,"") -> 321件 | BF49: 50.1%
AA50: =IF($AE50<>"",VLOOKUP($AE50,【M】満足度!$A$1:$B$5,2,0),"") -> 3 | AC50: 回答エリア | AD50: 福井駅前 エリア | AE50: どちらでもない | AG50: 8件 | AH50: 10.5% | AI50: 1件 | AJ50: 1.2% | AK50: 11件 | AL50: 14.1% | AM50: 6件 | AN50: 9.4% | AO50: 6件 | AP50: 7.4% | AQ50: 3件 | AR50: 3.6% | AS50: 7件 | AT50: 8.3% | AU50: 9件 | AV50: 9.7% | AW50: 0件 | AY50: 0件 | BA50: 0件 | BC50: 0件 | BE50: 51件 | BF50: 8.0%
AA51: =IF($AE51<>"",VLOOKUP($AE51,【M】満足度!$A$1:$B$5,2,0),"") -> 2 | AC51: 回答エリア | AD51: 福井駅前 エリア | AE51: 不満 | AG51: 0件 | AH51: 0.0% | AI51: 1件 | AJ51: 1.2% | AK51: 0件 | AL51: 0.0% | AM51: 0件 | AN51: 0.0% | AO51: 0件 | AP51: 0.0% | AQ51: 0件 | AR51: 0.0% | AS51: 0件 | AT51: 0.0% | AU51: 0件 | AV51: 0.0% | AW51: 0件 | AY51: 0件 | BA51: 0件 | BC51: 0件 | BE51: 1件 | BF51: 0.2%
AA52: =IF($AE52<>"",VLOOKUP($AE52,【M】満足度!$A$1:$B$5,2,0),"") -> 1 | AC52: 回答エリア | AD52: 福井駅前 エリア | AE52: とても不満 | AG52: 0件 | AH52: 0.0% | AI52: 0件 | AJ52: 0.0% | AK52: 0件 | AL52: 0.0% | AM52: 1件 | AN52: 1.6% | AO52: 0件 | AP52: 0.0% | AQ52: 0件 | AR52: 0.0% | AS52: 0件 | AT52: 0.0% | AU52: 0件 | AV52: 0.0% | AW52: 0件 | AY52: 0件 | BA52: 0件 | BC52: 0件 | BE52: 1件 | BF52: 0.2%
AA53: =IF($AE53<>"",VLOOKUP($AE53,【M】満足度!$A$1:$B$5,2,0),"") ->  | AC53: 回答エリア | AD53: 福井駅前 エリア
AA54: =IF($AE54<>"",VLOOKUP($AE54,【M】満足度!$A$1:$B$5,2,0),"") ->  | AC54: 回答エリア | AD54: 福井駅前 エリア
AA55: =IF($AE55<>"",VLOOKUP($AE55,【M】満足度!$A$1:$B$5,2,0),"") ->  | AC55: =AC54 -> 回答エリア | AD55: =AD54 -> 福井駅前 エリア
AA56: =IF($AE56<>"",VLOOKUP($AE56,【M】満足度!$A$1:$B$5,2,0),"") ->  | AC56: 回答エリア | AD56: 福井駅前 エリア
AA57: =IF($AE57<>"",VLOOKUP($AE57,【M】満足度!$A$1:$B$5,2,0),"") ->  | AC57: 回答エリア | AD57: 福井駅前 エリア
AA58: =IF($AE58<>"",VLOOKUP($AE58,【M】満足度!$A$1:$B$5,2,0),"") ->  | AC58: 回答エリア | AD58: 福井駅前 エリア | BE58: =IFERROR(AG58+AI58+AK58+AM58+AO58+AQ58+AS58+AU58+AW58+AY58+BA58+BC58,"") -> 
AA59: =IF($AE59<>"",VLOOKUP($AE59,【M】満足度!$A$1:$B$5,2,0),"") ->  | AC59: =AC57 -> 回答エリア | AD59: =AD57 -> 福井駅前 エリア | AE59: =IF(AE14<>"",AE14,"") ->  | AH59: =IFERROR(AG59/AG$60,"") ->  | AJ59: =IFERROR(AI59/AI$60,"") ->  | AL59: =IFERROR(AK59/AK$60,"") ->  | AN59: =IFERROR(AM59/AM$60,"") ->  | AP59: =IFERROR(AO59/AO$60,"") ->  | AR59: =IFERROR(AQ59/AQ$60,"") ->  | AT59: =IFERROR(AS59/AS$60,"") ->  | AV59: =IFERROR(AU59/AU$60,"") ->  | AX59: =IFERROR(AW59/AW$60,"") ->  | AZ59: =IFERROR(AY59/AY$60,"") ->  | BB59: =IFERROR(BA59/BA$60,"") ->  | BD59: =IFERROR(BC59/BC$60,"") ->  | BF59: =IFERROR(BE59/BE$60,"") -> 
AF60: 合計 | AG60: =SUM(AG48:AG59) -> 76件 | AH60: 100.0% | AI60: 81件 | AJ60: 100.0% | AK60: 78件 | AL60: 100.0% | AM60: 64件 | AN60: 100.0% | AO60: 81件 | AP60: 100.0% | AQ60: 84件 | AR60: 100.0% | AS60: 84件 | AT60: 100.0% | AU60: 93件 | AV60: 100.0% | AW60: 0件 | AX60: 0.0% | AY60: 0件 | AZ60: 0.0% | BA60: 0件 | BB60: 0.0% | BC60: 0件 | BD60: 0.0% | BE60: 641件 | BF60: 100.0%
AF61: =IF(AF$16<>"",AF$16,"") -> 満足度スコア | AG61: =IF(AG60>0,SUMPRODUCT($AA48:$AA59,AG48:AG59)/AG60,"-") -> 4.25 | AI61: =IF(AI60>0,SUMPRODUCT($AA48:$AA59,AI48:AI59)/AI60,"-") -> 4.42 | AK61: =IF(AK60>0,SUMPRODUCT($AA48:$AA59,AK48:AK59)/AK60,"-") -> 4.23 | AM61: =IF(AM60>0,SUMPRODUCT($AA48:$AA59,AM48:AM59)/AM60,"-") -> 4.30 | AO61: =IF(AO60>0,SUMPRODUCT($AA48:$AA59,AO48:AO59)/AO60,"-") -> 4.30 | AQ61: =IF(AQ60>0,SUMPRODUCT($AA48:$AA59,AQ48:AQ59)/AQ60,"-") -> 4.43 | AS61: =IF(AS60>0,SUMPRODUCT($AA48:$AA59,AS48:AS59)/AS60,"-") -> 4.37 | AU61: =IF(AU60>0,SUMPRODUCT($AA48:$AA59,AU48:AU59)/AU60,"-") -> 4.32 | AW61: =IF(AW60>0,SUMPRODUCT($AA48:$AA59,AW48:AW59)/AW60,"-") -> - | AY61: =IF(AY60>0,SUMPRODUCT($AA48:$AA59,AY48:AY59)/AY60,"-") -> - | BA61: =IF(BA60>0,SUMPRODUCT($AA48:$AA59,BA48:BA59)/BA60,"-") -> - | BC61: =IF(BC60>0,SUMPRODUCT($AA48:$AA59,BC48:BC59)/BC60,"-") -> - | BE61: =IF(BE60>0,SUMPRODUCT($AA48:$AA59,BE48:BE59)/BE60,"-") -> 4.33

Sheet 満足度(施設全体)
A1: =施設コード!$A$2 -> 11月 | B1: =【M】エリア!$L$2 -> 福井県 | C1: =【M】エリア!$L$3 -> 福井市・永平寺町 | D1: =【M】エリア!$L$4 -> 福井市 | E1: =【M】エリア!$L$5 -> 福井駅前 エリア | G1: =AF16 -> 満足度スコア | H1: 4月 | I1: 5月 | J1: 6月 | K1: 7月 | L1: 8月 | M1: 9月 | N1: 10月 | O1: 11月 | P1: 12月 | Q1: 1月 | R1: 2月 | S1: 3月 | T1: 通年 | AA1: =AF16&"（推移）" -> 満足度スコア（推移） | AC1: 集計区分 | AE1: 満足度(施設全体) | AF1: 回答数 | AG1: 回答月 | AH1: 回答月 | AI1: 回答月 | AJ1: 回答月 | AK1: 回答月 | AL1: 回答月 | AM1: 回答月 | AN1: 回答月 | AO1: 回答月 | AP1: 回答月 | AQ1: 回答月 | AR1: 回答月 | AS1: 回答月 | AT1: 回答月 | AU1: 回答月 | AV1: 回答月 | AW1: 回答月 | AX1: 回答月 | AY1: 回答月 | AZ1: 回答月 | BA1: 回答月 | BB1: 回答月 | BC1: 回答月 | BD1: 回答月 | BE1: 回答月 | BF1: 回答月
A2: =IF(AE3<>"",AE3,"") -> とても満足 | B2: =IFERROR(OFFSET(INDEX($AG$3:$BF$14, MATCH($A2,$A$2:$A$13,0),MATCH($A$1,$AG$2:$BF$2,0)),0,1),"") -> 38.8% | C2: =IFERROR(OFFSET(INDEX($AG$18:$BF$29, MATCH($A2,$A$2:$A$13,0),MATCH($A$1,$AG$2:$BF$2,0)),0,1),"") -> 42.4% | D2: =IFERROR(OFFSET(INDEX($AG$33:$BF$44, MATCH($A2,$A$2:$A$13,0),MATCH($A$1,$AG$2:$BF$2,0)),0,1),"") -> 36.3% | E2: =IFERROR(OFFSET(INDEX($AG$48:$BF$59, MATCH($A2,$A$2:$A$13,0),MATCH($A$1,$AG$2:$BF$2,0)),0,1),"") -> 47.3% | G2: =【M】エリア!$L$2 -> 福井県 | H2: =AG16 -> 4.28 | I2: =AI16 -> 4.26 | J2: =AK16 -> 4.29 | K2: =AM16 -> 4.30 | L2: =AO16 -> 4.31 | M2: =AQ16 -> 4.31 | N2: =AS16 -> 4.23 | O2: =AU16 -> 4.29 | P2: =AW16 -> - | Q2: =AY16 -> - | R2: =BA16 -> - | S2: =BC16 -> - | T2: =BE16 -> 4.28 | AC2: 都道府県 | AD2: =【M】エリア!$L$2 -> 福井県 | AG2: 4月 | AI2: 5月 | AK2: 6月 | AM2: 7月 | AO2: 8月 | AQ2: 9月 | AS2: 10月 | AU2: 11月 | AW2: 12月 | AY2: 1月 | BA2: 2月 | BC2: 3月 | BE2: 通年
A3: =IF(AE4<>"",AE4,"") -> 満足 | B3: =IFERROR(OFFSET(INDEX($AG$3:$BF$14, MATCH($A3,$A$2:$A$13,0),MATCH($A$1,$AG$2:$BF$2,0)),0,1),"") -> 51.8% | C3: =IFERROR(OFFSET(INDEX($AG$18:$BF$29, MATCH($A3,$A$2:$A$13,0),MATCH($A$1,$AG$2:$BF$2,0)),0,1),"") -> 48.7% | D3: =IFERROR(OFFSET(INDEX($AG$33:$BF$44, MATCH($A3,$A$2:$A$13,0),MATCH($A$1,$AG$2:$BF$2,0)),0,1),"") -> 52.5% | E3: =IFERROR(OFFSET(INDEX($AG$48:$BF$59, MATCH($A3,$A$2:$A$13,0),MATCH($A$1,$AG$2:$BF$2,0)),0,1),"") -> 47.3% | G3: =【M】エリア!$L$3 -> 福井市・永平寺町 | H3: =AG31 -> 4.32 | I3: =AI31 -> 4.28 | J3: =AK31 -> 4.26 | K3: =AM31 -> 4.24 | L3: =AO31 -> 4.36 | M3: =AQ31 -> 4.34 | N3: =AS31 -> 4.27 | O3: =AU31 -> 4.33 | P3: =AW31 -> - | Q3: =AY31 -> - | R3: =BA31 -> - | S3: =BC31 -> - | T3: =BE31 -> 4.30 | AA3: =IF($AE3<>"",VLOOKUP($AE3,【M】満足度!$A$1:$B$5,2,0),"") -> 5 | AC3: =AC2 -> 都道府県 | AD3: =AD2 -> 福井県 | AE3: とても満足 | AG3: =IF(OR(IFERROR(FIND($AD3,"施設コード"),0)>0,$AE3=""), "", COUNTIFS( INDEX(rawデータ範囲, , MATCH($AG$1,表頭範囲, 0)),AG$2, INDEX(rawデータ範囲, , MATCH($AE$1,表頭範囲, 0)),$AE3 ) ) -> 668件 | AH3: =IFERROR(AG3/AG$15,"") -> 39.4% | AI3: =IF(OR(IFERROR(FIND($AD3,"施設コード"),0)>0,$AE3=""), "", COUNTIFS( INDEX(rawデータ範囲, , MATCH($AG$1,表頭範囲, 0)),AI$2, INDEX(rawデータ範囲, , MATCH($AE$1,表頭範囲, 0)),$AE3 ) ) -> 1178件 | AJ3: =IFERROR(AI3/AI$15,"") -> 39.3% | AK3: =IF(OR(IFERROR(FIND($AD3,"施設コード"),0)>0,$AE3=""), "", COUNTIFS( INDEX(rawデータ範囲, , MATCH($AG$1,表頭範囲, 0)),AK$2, INDEX(rawデータ範囲, , MATCH($AE$1,表頭範囲, 0)),$AE3 ) ) -> 726件 | AL3: =IFERROR(AK3/AK$15,"") -> 39.6% | AM3: =IF(OR(IFERROR(FIND($AD3,"施設コード"),0)>0,$AE3=""), "", COUNTIFS( INDEX(rawデータ範囲, , MATCH($AG$1,表頭範囲, 0)),AM$2, INDEX(rawデータ範囲, , MATCH($AE$1,表頭範囲, 0)),$AE3 ) ) -> 712件 | AN3: =IFERROR(AM3/AM$15,"") -> 41.0% | AO3: =IF(OR(IFERROR(FIND($AD3,"施設コード"),0)>0,$AE3=""), "", COUNTIFS( INDEX(rawデータ範囲, , MATCH($AG$1,表頭範囲, 0)),AO$2, INDEX(rawデータ範囲, , MATCH($AE$1,表頭範囲, 0)),$AE3 ) ) -> 949件 | AP3: =IFERROR(AO3/AO$15,"") -> 42.3% | AQ3: =IF(OR(IFERROR(FIND($AD3,"施設コード"),0)>0,$AE3=""), "", COUNTIFS( INDEX(rawデータ範囲, , MATCH($AG$1,表頭範囲, 0)),AQ$2, INDEX(rawデータ範囲, , MATCH($AE$1,表頭範囲, 0)),$AE3 ) ) -> 994件 | AR3: =IFERROR(AQ3/AQ$15,"") -> 42.2% | AS3: =IF(OR(IFERROR(FIND($AD3,"施設コード"),0)>0,$AE3=""), "", COUNTIFS( INDEX(rawデータ範囲, , MATCH($AG$1,表頭範囲, 0)),AS$2, INDEX(rawデータ範囲, , MATCH($AE$1,表頭範囲, 0)),$AE3 ) ) -> 660件 | AT3: =IFERROR(AS3/AS$15,"") -> 36.5% | AU3: =IF(OR(IFERROR(FIND($AD3,"施設コード"),0)>0,$AE3=""), "", COUNTIFS( INDEX(rawデータ範囲, , MATCH($AG$1,表頭範囲, 0)),AU$2, INDEX(rawデータ範囲, , MATCH($AE$1,表頭範囲, 0)),$AE3 ) ) -> 825件 | AV3: =IFERROR(AU3/AU$15,"") -> 38.8% | AW3: =IF(OR(IFERROR(FIND($AD3,"施設コード"),0)>0,$AE3=""), "", COUNTIFS( INDEX(rawデータ範囲, , MATCH($AG$1,表頭範囲, 0)),AW$2, INDEX(rawデータ範囲, , MATCH($AE$1,表頭範囲, 0)),$AE3 ) ) -> 0件 | AX3: =IFERROR(AW3/AW$15,"") ->  | AY3: =IF(OR(IFERROR(FIND($AD3,"施設コード"),0)>0,$AE3=""), "", COUNTIFS( INDEX(rawデータ範囲, , MATCH($AG$1,表頭範囲, 0)),AY$2, INDEX(rawデータ範囲, , MATCH($AE$1,表頭範囲, 0)),$AE3 ) ) -> 0件 | AZ3: =IFERROR(AY3/AY$15,"") ->  | BA3: =IF(OR(IFERROR(FIND($AD3,"施設コード"),0)>0,$AE3=""), "", COUNTIFS( INDEX(rawデータ範囲, , MATCH($AG$1,表頭範囲, 0)),BA$2, INDEX(rawデータ範囲, , MATCH($AE$1,表頭範囲, 0)),$AE3 ) ) -> 0件 | BB3: =IFERROR(BA3/BA$15,"") ->  | BC3: =IF(OR(IFERROR(FIND($AD3,"施設コード"),0)>0,$AE3=""), "", COUNTIFS( INDEX(rawデータ範囲, , MATCH($AG$1,表頭範囲, 0)),BC$2, INDEX(rawデータ範囲, , MATCH($AE$1,表頭範囲, 0)),$AE3 ) ) -> 0件 | BD3: =IFERROR(BC3/BC$15,"") ->  | BE3: =IFERROR(AG3+AI3+AK3+AM3+AO3+AQ3+AS3+AU3+AW3+AY3+BA3+BC3,"") -> 6712件 | BF3: =IFERROR(BE3/BE$15,"") -> 40.0%
A4: どちらでもない | B4: 8.8% | C4: 8.7% | D4: 10.6% | E4: 4.3% | G4: =【M】エリア!$L$4 -> 福井市 | H4: =AG46 -> 4.25 | I4: =AI46 -> 4.27 | J4: =AK46 -> 4.23 | K4: =AM46 -> 4.20 | L4: =AO46 -> 4.21 | M4: =AQ46 -> 4.31 | N4: =AS46 -> 4.25 | O4: =AU46 -> 4.25 | P4: =AW46 -> - | Q4: =AY46 -> - | R4: =BA46 -> - | S4: =BC46 -> - | T4: =BE46 -> 4.25 | AA4: =IF($AE4<>"",VLOOKUP($AE4,【M】満足度!$A$1:$B$5,2,0),"") -> 4 | AC4: =AC3 -> 都道府県 | AD4: 福井県 | AE4: 満足 | AG4: 851件 | AH4: 50.2% | AI4: 1455件 | AJ4: 48.6% | AK4: 932件 | AL4: 50.8% | AM4: 856件 | AN4: 49.3% | AO4: 1085件 | AP4: 48.3% | AQ4: 1140件 | AR4: 48.4% | AS4: 925件 | AT4: 51.2% | AU4: 1101件 | AV4: 51.8% | AW4: 0件 | AY4: 0件 | BA4: 0件 | BC4: 0件 | BE4: =IFERROR(AG4+AI4+AK4+AM4+AO4+AQ4+AS4+AU4+AW4+AY4+BA4+BC4,"") -> 8345件 | BF4: 49.7%
A5: 不満 | B5: 0.5% | C5: 0.3% | D5: 0.6% | E5: 1.1% | G5: =【M】エリア!$L$5 -> 福井駅前 エリア | H5: =AG61 -> 4.33 | I5: =AI61 -> 4.37 | J5: =AK61 -> 4.29 | K5: =AM61 -> 4.39 | L5: =AO61 -> 4.26 | M5: =AQ61 -> 4.36 | N5: =AS61 -> 4.27 | O5: =AU61 -> 4.41 | P5: =AW61 -> - | Q5: =AY61 -> - | R5: =BA61 -> - | S5: =BC61 -> - | T5: =BE61 -> 4.34 | AA5: =IF($AE5<>"",VLOOKUP($AE5,【M】満足度!$A$1:$B$5,2,0),"") -> 3 | AC5: 都道府県 | AD5: 福井県 | AE5: どちらでもない | AG5: 163件 | AH5: 9.6% | AI5: 322件 | AJ5: 10.8% | AK5: 156件 | AL5: 8.5% | AM5: 147件 | AN5: 8.5% | AO5: 181件 | AP5: 8.1% | AQ5: 182件 | AR5: 7.7% | AS5: 201件 | AT5: 11.1% | AU5: 187件 | AV5: 8.8% | AW5: 0件 | AY5: 0件 | BA5: 0件 | BC5: 0件 | BE5: 1539件 | BF5: 9.2%
A6: とても不満 | B6: 0.1% | C6: 0.0% | D6: 0.0% | E6: 0.0% | AA6: =IF($AE6<>"",VLOOKUP($AE6,【M】満足度!$A$1:$B$5,2,0),"") -> 2 | AC6: 都道府県 | AD6: 福井県 | AE6: 不満 | AG6: 12件 | AH6: 0.7% | AI6: 31件 | AJ6: 1.0% | AK6: 20件 | AL6: 1.1% | AM6: 19件 | AN6: 1.1% | AO6: 29件 | AP6: 1.3% | AQ6: 21件 | AR6: 0.9% | AS6: 17件 | AT6: 0.9% | AU6: 11件 | AV6: 0.5% | AW6: 0件 | AY6: 0件 | BA6: 0件 | BC6: 0件 | BE6: 160件 | BF6: 1.0%
AA7: =IF($AE7<>"",VLOOKUP($AE7,【M】満足度!$A$1:$B$5,2,0),"") -> 1 | AC7: 都道府県 | AD7: 福井県 | AE7: とても不満 | AG7: 2件 | AH7: 0.1% | AI7: 9件 | AJ7: 0.3% | AK7: 1件 | AL7: 0.1% | AM7: 4件 | AN7: 0.2% | AO7: 2件 | AP7: 0.1% | AQ7: 16件 | AR7: 0.7% | AS7: 4件 | AT7: 0.2% | AU7: 2件 | AV7: 0.1% | AW7: 0件 | AY7: 0件 | BA7: 0件 | BC7: 0件 | BE7: 40件 | BF7: 0.2%
AA8: =IF($AE8<>"",VLOOKUP($AE8,【M】満足度!$A$1:$B$5,2,0),"") ->  | AC8: 都道府県 | AD8: 福井県
AA9: =IF($AE9<>"",VLOOKUP($AE9,【M】満足度!$A$1:$B$5,2,0),"") ->  | AC9: 都道府県 | AD9: 福井県
AA10: =IF($AE10<>"",VLOOKUP($AE10,【M】満足度!$A$1:$B$5,2,0),"") ->  | AC10: =AC9 -> 都道府県 | AD10: =AD9 -> 福井県
AA11: =IF($AE11<>"",VLOOKUP($AE11,【M】満足度!$A$1:$B$5,2,0),"") ->  | AC11: 都道府県 | AD11: 福井県
AA12: =IF($AE12<>"",VLOOKUP($AE12,【M】満足度!$A$1:$B$5,2,0),"") ->  | AC12: 都道府県 | AD12: 福井県
AA13: =IF($AE13<>"",VLOOKUP($AE13,【M】満足度!$A$1:$B$5,2,0),"") ->  | AC13: 都道府県 | AD13: 福井県
AA14: =IF($AE14<>"",VLOOKUP($AE14,【M】満足度!$A$1:$B$5,2,0),"") ->  | AC14: =AC12 -> 都道府県 | AD14: =AD12 -> 福井県 | AH14: =IFERROR(AG14/AG$15,"") ->  | AJ14: =IFERROR(AI14/AI$15,"") -> 
AF15: 合計 | AG15: =SUM(AG3:AG14) -> 1,696件 | AH15: 100.0% | AI15: 2,995件 | AJ15: 100.0% | AK15: 1,835件 | AL15: 100.0% | AM15: 1,738件 | AN15: 100.0% | AO15: 2,246件 | AP15: 100.0% | AQ15: 2,353件 | AR15: 100.0% | AS15: 1,807件 | AT15: 100.0% | AU15: 2,126件 | AV15: 100.0% | AW15: 0件 | AX15: 0.0% | AY15: 0件 | AZ15: 0.0% | BA15: 0件 | BB15: 0.0% | BC15: 0件 | BD15: 0.0% | BE15: =AG15+AI15+AK15+AM15+AO15+AQ15+AS15+AU15+AW15+AY15+BA15+BC15 -> 16,796件 | BF15: =SUM(BF3:BF14) -> 100.0%
AF16: 満足度スコア | AG16: =IF(AG15>0,SUMPRODUCT($AA3:$AA14,AG3:AG14)/AG15,"-") -> 4.28 | AI16: =IF(AI15>0,SUMPRODUCT($AA3:$AA14,AI3:AI14)/AI15,"-") -> 4.26 | AK16: =IF(AK15>0,SUMPRODUCT($AA3:$AA14,AK3:AK14)/AK15,"-") -> 4.29 | AM16: =IF(AM15>0,SUMPRODUCT($AA3:$AA14,AM3:AM14)/AM15,"-") -> 4.30 | AO16: =IF(AO15>0,SUMPRODUCT($AA3:$AA14,AO3:AO14)/AO15,"-") -> 4.31 | AQ16: =IF(AQ15>0,SUMPRODUCT($AA3:$AA14,AQ3:AQ14)/AQ15,"-") -> 4.31 | AS16: =IF(AS15>0,SUMPRODUCT($AA3:$AA14,AS3:AS14)/AS15,"-") -> 4.23 | AU16: =IF(AU15>0,SUMPRODUCT($AA3:$AA14,AU3:AU14)/AU15,"-") -> 4.29 | AW16: =IF(AW15>0,SUMPRODUCT($AA3:$AA14,AW3:AW14)/AW15,"-") -> - | AY16: =IF(AY15>0,SUMPRODUCT($AA3:$AA14,AY3:AY14)/AY15,"-") -> - | BA16: =IF(BA15>0,SUMPRODUCT($AA3:$AA14,BA3:BA14)/BA15,"-") -> - | BC16: =IF(BC15>0,SUMPRODUCT($AA3:$AA14,BC3:BC14)/BC15,"-") -> - | BE16: =IF(BE15>0,SUMPRODUCT($AA3:$AA14,BE3:BE14)/BE15,"-") -> 4.28
AC17: =【M】エリア!$J$2 -> 6分類 | AD17: =【M】エリア!$L$3 -> 福井市・永平寺町
AA18: =IF($AE18<>"",VLOOKUP($AE18,【M】満足度!$A$1:$B$5,2,0),"") -> 5 | AC18: =AC17 -> 6分類 | AD18: =AD17 -> 福井市・永平寺町 | AE18: =IF(AE3<>"",AE3,"") -> とても満足 | AG18: =IF(OR(IFERROR(FIND($AD18,"施設コード"),0)>0,$AE18=""), "", COUNTIFS( INDEX(rawデータ範囲, , MATCH($AG$1,表頭範囲, 0)),AG$2, INDEX(rawデータ範囲, , MATCH($AE$1,表頭範囲, 0)),$AE18, INDEX(rawデータ範囲, , MATCH($AC18,表頭範囲, 0)),$AD18 ) ) -> 152件 | AH18: =IFERROR(AG18/AG$30,"") -> 41.1% | AI18: =IF(OR(IFERROR(FIND($AD18,"施設コード"),0)>0,$AE18=""), "", COUNTIFS( INDEX(rawデータ範囲, , MATCH($AG$1,表頭範囲, 0)),AI$2, INDEX(rawデータ範囲, , MATCH($AE$1,表頭範囲, 0)),$AE18, INDEX(rawデータ範囲, , MATCH($AC18,表頭範囲, 0)),$AD18 ) ) -> 199件 | AJ18: =IFERROR(AI18/AI$30,"") -> 39.0% | AK18: =IF(OR(IFERROR(FIND($AD18,"施設コード"),0)>0,$AE18=""), "", COUNTIFS( INDEX(rawデータ範囲, , MATCH($AG$1,表頭範囲, 0)),AK$2, INDEX(rawデータ範囲, , MATCH($AE$1,表頭範囲, 0)),$AE18, INDEX(rawデータ範囲, , MATCH($AC18,表頭範囲, 0)),$AD18 ) ) -> 116件 | AL18: =IFERROR(AK18/AK$30,"") -> 36.4% | AM18: =IF(OR(IFERROR(FIND($AD18,"施設コード"),0)>0,$AE18=""), "", COUNTIFS( INDEX(rawデータ範囲, , MATCH($AG$1,表頭範囲, 0)),AM$2, INDEX(rawデータ範囲, , MATCH($AE$1,表頭範囲, 0)),$AE18, INDEX(rawデータ範囲, , MATCH($AC18,表頭範囲, 0)),$AD18 ) ) -> 110件 | AN18: =IFERROR(AM18/AM$30,"") -> 37.2% | AO18: =IF(OR(IFERROR(FIND($AD18,"施設コード"),0)>0,$AE18=""), "", COUNTIFS( INDEX(rawデータ範囲, , MATCH($AG$1,表頭範囲, 0)),AO$2, INDEX(rawデータ範囲, , MATCH($AE$1,表頭範囲, 0)),$AE18, INDEX(rawデータ範囲, , MATCH($AC18,表頭範囲, 0)),$AD18 ) ) -> 163件 | AP18: =IFERROR(AO18/AO$30,"") -> 43.9% | AQ18: =IF(OR(IFERROR(FIND($AD18,"施設コード"),0)>0,$AE18=""), "", COUNTIFS( INDEX(rawデータ範囲, , MATCH($AG$1,表頭範囲, 0)),AQ$2, INDEX(rawデータ範囲, , MATCH($AE$1,表頭範囲, 0)),$AE18, INDEX(rawデータ範囲, , MATCH($AC18,表頭範囲, 0)),$AD18 ) ) -> 156件 | AR18: =IFERROR(AQ18/AQ$30,"") -> 44.8% | AS18: =IF(OR(IFERROR(FIND($AD18,"施設コード"),0)>0,$AE18=""), "", COUNTIFS( INDEX(rawデータ範囲, , MATCH($AG$1,表頭範囲, 0)),AS$2, INDEX(rawデータ範囲, , MATCH($AE$1,表頭範囲, 0)),$AE18, INDEX(rawデータ範囲, , MATCH($AC18,表頭範囲, 0)),$AD18 ) ) -> 116件 | AT18: =IFERROR(AS18/AS$30,"") -> 40.1% | AU18: =IF(OR(IFERROR(FIND($AD18,"施設コード"),0)>0,$AE18=""), "", COUNTIFS( INDEX(rawデータ範囲, , MATCH($AG$1,表頭範囲, 0)),AU$2, INDEX(rawデータ範囲, , MATCH($AE$1,表頭範囲, 0)),$AE18, INDEX(rawデータ範囲, , MATCH($AC18,表頭範囲, 0)),$AD18 ) ) -> 161件 | AV18: =IFERROR(AU18/AU$30,"") -> 42.4% | AW18: =IF(OR(IFERROR(FIND($AD18,"施設コード"),0)>0,$AE18=""), "", COUNTIFS( INDEX(rawデータ範囲, , MATCH($AG$1,表頭範囲, 0)),AW$2, INDEX(rawデータ範囲, , MATCH($AE$1,表頭範囲, 0)),$AE18, INDEX(rawデータ範囲, , MATCH($AC18,表頭範囲, 0)),$AD18 ) ) -> 0件 | AX18: =IFERROR(AW18/AW$30,"") ->  | AY18: =IF(OR(IFERROR(FIND($AD18,"施設コード"),0)>0,$AE18=""), "", COUNTIFS( INDEX(rawデータ範囲, , MATCH($AG$1,表頭範囲, 0)),AY$2, INDEX(rawデータ範囲, , MATCH($AE$1,表頭範囲, 0)),$AE18, INDEX(rawデータ範囲, , MATCH($AC18,表頭範囲, 0)),$AD18 ) ) -> 0件 | AZ18: =IFERROR(AY18/AY$30,"") ->  | BA18: =IF(OR(IFERROR(FIND($AD18,"施設コード"),0)>0,$AE18=""), "", COUNTIFS( INDEX(rawデータ範囲, , MATCH($AG$1,表頭範囲, 0)),BA$2, INDEX(rawデータ範囲, , MATCH($AE$1,表頭範囲, 0)),$AE18, INDEX(rawデータ範囲, , MATCH($AC18,表頭範囲, 0)),$AD18 ) ) -> 0件 | BB18: =IFERROR(BA18/BA$30,"") ->  | BC18: =IF(OR(IFERROR(FIND($AD18,"施設コード"),0)>0,$AE18=""), "", COUNTIFS( INDEX(rawデータ範囲, , MATCH($AG$1,表頭範囲, 0)),BC$2, INDEX(rawデータ範囲, , MATCH($AE$1,表頭範囲, 0)),$AE18, INDEX(rawデータ範囲, , MATCH($AC18,表頭範囲, 0)),$AD18 ) ) -> 0件 | BD18: =IFERROR(BC18/BC$30,"") ->  | BE18: =IFERROR(AG18+AI18+AK18+AM18+AO18+AQ18+AS18+AU18+AW18+AY18+BA18+BC18,"") -> 1173件 | BF18: =IFERROR(BE18/BE$30,"") -> 40.7%
AA19: =IF($AE19<>"",VLOOKUP($AE19,【M】満足度!$A$1:$B$5,2,0),"") -> 4 | AC19: =AC18 -> 6分類 | AD19: 福井市・永平寺町 | AE19: 満足 | AG19: 188件 | AH19: 50.8% | AI19: 264件 | AJ19: 51.8% | AK19: 174件 | AL19: 54.5% | AM19: 152件 | AN19: 51.4% | AO19: 181件 | AP19: 48.8% | AQ19: 160件 | AR19: 46.0% | AS19: 139件 | AT19: 48.1% | AU19: 185件 | AV19: 48.7% | AW19: 0件 | AY19: 0件 | BA19: 0件 | BC19: 0件 | BE19: =IFERROR(AG19+AI19+AK19+AM19+AO19+AQ19+AS19+AU19+AW19+AY19+BA19+BC19,"") -> 1443件 | BF19: 50.1%
AA20: =IF($AE20<>"",VLOOKUP($AE20,【M】満足度!$A$1:$B$5,2,0),"") -> 3 | AC20: 6分類 | AD20: 福井市・永平寺町 | AE20: どちらでもない | AG20: 28件 | AH20: 7.6% | AI20: 39件 | AJ20: 7.6% | AK20: 25件 | AL20: 7.8% | AM20: 29件 | AN20: 9.8% | AO20: 23件 | AP20: 6.2% | AQ20: 28件 | AR20: 8.0% | AS20: 31件 | AT20: 10.7% | AU20: 33件 | AV20: 8.7% | AW20: 0件 | AY20: 0件 | BA20: 0件 | BC20: 0件 | BE20: 236件 | BF20: 8.2%
AA21: =IF($AE21<>"",VLOOKUP($AE21,【M】満足度!$A$1:$B$5,2,0),"") -> 2 | AC21: 6分類 | AD21: 福井市・永平寺町 | AE21: 不満 | AG21: 1件 | AH21: 0.3% | AI21: 7件 | AJ21: 1.4% | AK21: 4件 | AL21: 1.3% | AM21: 5件 | AN21: 1.7% | AO21: 4件 | AP21: 1.1% | AQ21: 4件 | AR21: 1.1% | AS21: 3件 | AT21: 1.0% | AU21: 1件 | AV21: 0.3% | AW21: 0件 | AY21: 0件 | BA21: 0件 | BC21: 0件 | BE21: 29件 | BF21: 1.0%
AA22: =IF($AE22<>"",VLOOKUP($AE22,【M】満足度!$A$1:$B$5,2,0),"") -> 1 | AC22: 6分類 | AD22: 福井市・永平寺町 | AE22: とても不満 | AG22: 1件 | AH22: 0.3% | AI22: 1件 | AJ22: 0.2% | AK22: 0件 | AL22: 0.0% | AM22: 0件 | AN22: 0.0% | AO22: 0件 | AP22: 0.0% | AQ22: 0件 | AR22: 0.0% | AS22: 0件 | AT22: 0.0% | AU22: 0件 | AV22: 0.0% | AW22: 0件 | AY22: 0件 | BA22: 0件 | BC22: 0件 | BE22: 2件 | BF22: 0.1%
AA23: =IF($AE23<>"",VLOOKUP($AE23,【M】満足度!$A$1:$B$5,2,0),"") ->  | AC23: 6分類 | AD23: 福井市・永平寺町
AA24: =IF($AE24<>"",VLOOKUP($AE24,【M】満足度!$A$1:$B$5,2,0),"") ->  | AC24: 6分類 | AD24: 福井市・永平寺町
AA25: =IF($AE25<>"",VLOOKUP($AE25,【M】満足度!$A$1:$B$5,2,0),"") ->  | AC25: =AC24 -> 6分類 | AD25: =AD24 -> 福井市・永平寺町
AA26: =IF($AE26<>"",VLOOKUP($AE26,【M】満足度!$A$1:$B$5,2,0),"") ->  | AC26: 6分類 | AD26: 福井市・永平寺町
AA27: =IF($AE27<>"",VLOOKUP($AE27,【M】満足度!$A$1:$B$5,2,0),"") ->  | AC27: 6分類 | AD27: 福井市・永平寺町
AA28: =IF($AE28<>"",VLOOKUP($AE28,【M】満足度!$A$1:$B$5,2,0),"") ->  | AC28: 6分類 | AD28: 福井市・永平寺町
AA29: =IF($AE29<>"",VLOOKUP($AE29,【M】満足度!$A$1:$B$5,2,0),"") ->  | AC29: =AC27 -> 6分類 | AD29: =AD27 -> 福井市・永平寺町 | AE29: =IF(AE14<>"",AE14,"") ->  | AH29: =IFERROR(AG29/AG$30,"") ->  | AJ29: =IFERROR(AI29/AI$30,"") -> 
AF30: 合計 | AG30: =SUM(AG18:AG29) -> 370件 | AH30: 100.0% | AI30: 510件 | AJ30: 100.0% | AK30: 319件 | AL30: 100.0% | AM30: 296件 | AN30: 100.0% | AO30: 371件 | AP30: 100.0% | AQ30: 348件 | AR30: 100.0% | AS30: 289件 | AT30: 100.0% | AU30: 380件 | AV30: 100.0% | AW30: 0件 | AX30: 0.0% | AY30: 0件 | AZ30: 0.0% | BA30: 0件 | BB30: 0.0% | BC30: 0件 | BD30: 0.0% | BE30: 2,883件 | BF30: 100.0%
AF31: =IF(AF$16<>"",AF$16,"") -> 満足度スコア | AG31: =IF(AG30>0,SUMPRODUCT($AA18:$AA29,AG18:AG29)/AG30,"-") -> 4.32 | AI31: =IF(AI30>0,SUMPRODUCT($AA18:$AA29,AI18:AI29)/AI30,"-") -> 4.28 | AK31: =IF(AK30>0,SUMPRODUCT($AA18:$AA29,AK18:AK29)/AK30,"-") -> 4.26 | AM31: =IF(AM30>0,SUMPRODUCT($AA18:$AA29,AM18:AM29)/AM30,"-") -> 4.24 | AO31: =IF(AO30>0,SUMPRODUCT($AA18:$AA29,AO18:AO29)/AO30,"-") -> 4.36 | AQ31: =IF(AQ30>0,SUMPRODUCT($AA18:$AA29,AQ18:AQ29)/AQ30,"-") -> 4.34 | AS31: =IF(AS30>0,SUMPRODUCT($AA18:$AA29,AS18:AS29)/AS30,"-") -> 4.27 | AU31: =IF(AU30>0,SUMPRODUCT($AA18:$AA29,AU18:AU29)/AU30,"-") -> 4.33 | AW31: =IF(AW30>0,SUMPRODUCT($AA18:$AA29,AW18:AW29)/AW30,"-") -> - | AY31: =IF(AY30>0,SUMPRODUCT($AA18:$AA29,AY18:AY29)/AY30,"-") -> - | BA31: =IF(BA30>0,SUMPRODUCT($AA18:$AA29,BA18:BA29)/BA30,"-") -> - | BC31: =IF(BC30>0,SUMPRODUCT($AA18:$AA29,BC18:BC29)/BC30,"-") -> - | BE31: =IF(BE30>0,SUMPRODUCT($AA18:$AA29,BE18:BE29)/BE30,"-") -> 4.30
AC32: 市町村 | AD32: =【M】エリア!$L$4 -> 福井市
AA33: =IF($AE33<>"",VLOOKUP($AE33,【M】満足度!$A$1:$B$5,2,0),"") -> 5 | AC33: =AC32 -> 市町村 | AD33: =AD32 -> 福井市 | AE33: =IF(AE3<>"",AE3,"") -> とても満足 | AG33: =IF(OR(IFERROR(FIND($AD33,"施設コード"),0)>0,$AE33=""), "", COUNTIFS( INDEX(rawデータ範囲, , MATCH($AG$1,表頭範囲, 0)),AG$2, INDEX(rawデータ範囲, , MATCH($AE$1,表頭範囲, 0)),$AE33, INDEX(rawデータ範囲, , MATCH($AC33,表頭範囲, 0)),$AD33 ) ) -> 66件 | AH33: =IFERROR(AG33/AG$45,"") -> 36.1% | AI33: =IF(OR(IFERROR(FIND($AD33,"施設コード"),0)>0,$AE33=""), "", COUNTIFS( INDEX(rawデータ範囲, , MATCH($AG$1,表頭範囲, 0)),AI$2, INDEX(rawデータ範囲, , MATCH($AE$1,表頭範囲, 0)),$AE33, INDEX(rawデータ範囲, , MATCH($AC33,表頭範囲, 0)),$AD33 ) ) -> 90件 | AJ33: =IFERROR(AI33/AI$45,"") -> 37.5% | AK33: =IF(OR(IFERROR(FIND($AD33,"施設コード"),0)>0,$AE33=""), "", COUNTIFS( INDEX(rawデータ範囲, , MATCH($AG$1,表頭範囲, 0)),AK$2, INDEX(rawデータ範囲, , MATCH($AE$1,表頭範囲, 0)),$AE33, INDEX(rawデータ範囲, , MATCH($AC33,表頭範囲, 0)),$AD33 ) ) -> 54件 | AL33: =IFERROR(AK33/AK$45,"") -> 36.0% | AM33: =IF(OR(IFERROR(FIND($AD33,"施設コード"),0)>0,$AE33=""), "", COUNTIFS( INDEX(rawデータ範囲, , MATCH($AG$1,表頭範囲, 0)),AM$2, INDEX(rawデータ範囲, , MATCH($AE$1,表頭範囲, 0)),$AE33, INDEX(rawデータ範囲, , MATCH($AC33,表頭範囲, 0)),$AD33 ) ) -> 56件 | AN33: =IFERROR(AM33/AM$45,"") -> 34.8% | AO33: =IF(OR(IFERROR(FIND($AD33,"施設コード"),0)>0,$AE33=""), "", COUNTIFS( INDEX(rawデータ範囲, , MATCH($AG$1,表頭範囲, 0)),AO$2, INDEX(rawデータ範囲, , MATCH($AE$1,表頭範囲, 0)),$AE33, INDEX(rawデータ範囲, , MATCH($AC33,表頭範囲, 0)),$AD33 ) ) -> 45件 | AP33: =IFERROR(AO33/AO$45,"") -> 35.7% | AQ33: =IF(OR(IFERROR(FIND($AD33,"施設コード"),0)>0,$AE33=""), "", COUNTIFS( INDEX(rawデータ範囲, , MATCH($AG$1,表頭範囲, 0)),AQ$2, INDEX(rawデータ範囲, , MATCH($AE$1,表頭範囲, 0)),$AE33, INDEX(rawデータ範囲, , MATCH($AC33,表頭範囲, 0)),$AD33 ) ) -> 63件 | AR33: =IFERROR(AQ33/AQ$45,"") -> 42.9% | AS33: =IF(OR(IFERROR(FIND($AD33,"施設コード"),0)>0,$AE33=""), "", COUNTIFS( INDEX(rawデータ範囲, , MATCH($AG$1,表頭範囲, 0)),AS$2, INDEX(rawデータ範囲, , MATCH($AE$1,表頭範囲, 0)),$AE33, INDEX(rawデータ範囲, , MATCH($AC33,表頭範囲, 0)),$AD33 ) ) -> 62件 | AT33: =IFERROR(AS33/AS$45,"") -> 41.3% | AU33: =IF(OR(IFERROR(FIND($AD33,"施設コード"),0)>0,$AE33=""), "", COUNTIFS( INDEX(rawデータ範囲, , MATCH($AG$1,表頭範囲, 0)),AU$2, INDEX(rawデータ範囲, , MATCH($AE$1,表頭範囲, 0)),$AE33, INDEX(rawデータ範囲, , MATCH($AC33,表頭範囲, 0)),$AD33 ) ) -> 65件 | AV33: =IFERROR(AU33/AU$45,"") -> 36.3% | AW33: =IF(OR(IFERROR(FIND($AD33,"施設コード"),0)>0,$AE33=""), "", COUNTIFS( INDEX(rawデータ範囲, , MATCH($AG$1,表頭範囲, 0)),AW$2, INDEX(rawデータ範囲, , MATCH($AE$1,表頭範囲, 0)),$AE33, INDEX(rawデータ範囲, , MATCH($AC33,表頭範囲, 0)),$AD33 ) ) -> 0件 | AX33: =IFERROR(AW33/AW$45,"") ->  | AY33: =IF(OR(IFERROR(FIND($AD33,"施設コード"),0)>0,$AE33=""), "", COUNTIFS( INDEX(rawデータ範囲, , MATCH($AG$1,表頭範囲, 0)),AY$2, INDEX(rawデータ範囲, , MATCH($AE$1,表頭範囲, 0)),$AE33, INDEX(rawデータ範囲, , MATCH($AC33,表頭範囲, 0)),$AD33 ) ) -> 0件 | AZ33: =IFERROR(AY33/AY$45,"") ->  | BA33: =IF(OR(IFERROR(FIND($AD33,"施設コード"),0)>0,$AE33=""), "", COUNTIFS( INDEX(rawデータ範囲, , MATCH($AG$1,表頭範囲, 0)),BA$2, INDEX(rawデータ範囲, , MATCH($AE$1,表頭範囲, 0)),$AE33, INDEX(rawデータ範囲, , MATCH($AC33,表頭範囲, 0)),$AD33 ) ) -> 0件 | BB33: =IFERROR(BA33/BA$45,"") ->  | BC33: =IF(OR(IFERROR(FIND($AD33,"施設コード"),0)>0,$AE33=""), "", COUNTIFS( INDEX(rawデータ範囲, , MATCH($AG$1,表頭範囲, 0)),BC$2, INDEX(rawデータ範囲, , MATCH($AE$1,表頭範囲, 0)),$AE33, INDEX(rawデータ範囲, , MATCH($AC33,表頭範囲, 0)),$AD33 ) ) -> 0件 | BD33: =IFERROR(BC33/BC$45,"") ->  | BE33: =IFERROR(AG33+AI33+AK33+AM33+AO33+AQ33+AS33+AU33+AW33+AY33+BA33+BC33,"") -> 501件 | BF33: =IFERROR(BE33/BE$45,"") -> 37.5%
AA34: =IF($AE34<>"",VLOOKUP($AE34,【M】満足度!$A$1:$B$5,2,0),"") -> 4 | AC34: =AC33 -> 市町村 | AD34: 福井市 | AE34: 満足 | AG34: 99件 | AH34: 54.1% | AI34: 130件 | AJ34: 54.2% | AK34: 79件 | AL34: 52.7% | AM34: 85件 | AN34: 52.8% | AO34: 65件 | AP34: 51.6% | AQ34: 67件 | AR34: 45.6% | AS34: 67件 | AT34: 44.7% | AU34: 94件 | AV34: 52.5% | AW34: 0件 | AY34: 0件 | BA34: 0件 | BC34: 0件 | BE34: =IFERROR(AG34+AI34+AK34+AM34+AO34+AQ34+AS34+AU34+AW34+AY34+BA34+BC34,"") -> 686件 | BF34: 51.3%
AA35: =IF($AE35<>"",VLOOKUP($AE35,【M】満足度!$A$1:$B$5,2,0),"") -> 3 | AC35: 市町村 | AD35: 福井市 | AE35: どちらでもない | AG35: 17件 | AH35: 9.3% | AI35: 16件 | AJ35: 6.7% | AK35: 14件 | AL35: 9.3% | AM35: 16件 | AN35: 9.9% | AO35: 14件 | AP35: 11.1% | AQ35: 16件 | AR35: 10.9% | AS35: 18件 | AT35: 12.0% | AU35: 19件 | AV35: 10.6% | AW35: 0件 | AY35: 0件 | BA35: 0件 | BC35: 0件 | BE35: 130件 | BF35: 9.7%
AA36: =IF($AE36<>"",VLOOKUP($AE36,【M】満足度!$A$1:$B$5,2,0),"") -> 2 | AC36: 市町村 | AD36: 福井市 | AE36: 不満 | AG36: 0件 | AH36: 0.0% | AI36: 3件 | AJ36: 1.3% | AK36: 3件 | AL36: 2.0% | AM36: 4件 | AN36: 2.5% | AO36: 2件 | AP36: 1.6% | AQ36: 1件 | AR36: 0.7% | AS36: 3件 | AT36: 2.0% | AU36: 1件 | AV36: 0.6% | AW36: 0件 | AY36: 0件 | BA36: 0件 | BC36: 0件 | BE36: 17件 | BF36: 1.3%
AA37: =IF($AE37<>"",VLOOKUP($AE37,【M】満足度!$A$1:$B$5,2,0),"") -> 1 | AC37: 市町村 | AD37: 福井市 | AE37: とても不満 | AG37: 1件 | AH37: 0.5% | AI37: 1件 | AJ37: 0.4% | AK37: 0件 | AL37: 0.0% | AM37: 0件 | AN37: 0.0% | AO37: 0件 | AP37: 0.0% | AQ37: 0件 | AR37: 0.0% | AS37: 0件 | AT37: 0.0% | AU37: 0件 | AV37: 0.0% | AW37: 0件 | AY37: 0件 | BA37: 0件 | BC37: 0件 | BE37: 2件 | BF37: 0.1%
AA38: =IF($AE38<>"",VLOOKUP($AE38,【M】満足度!$A$1:$B$5,2,0),"") ->  | AC38: 市町村 | AD38: 福井市
AA39: =IF($AE39<>"",VLOOKUP($AE39,【M】満足度!$A$1:$B$5,2,0),"") ->  | AC39: 市町村 | AD39: 福井市
AA40: =IF($AE40<>"",VLOOKUP($AE40,【M】満足度!$A$1:$B$5,2,0),"") ->  | AC40: =AC39 -> 市町村 | AD40: =AD39 -> 福井市
AA41: =IF($AE41<>"",VLOOKUP($AE41,【M】満足度!$A$1:$B$5,2,0),"") ->  | AC41: 市町村 | AD41: 福井市
AA42: =IF($AE42<>"",VLOOKUP($AE42,【M】満足度!$A$1:$B$5,2,0),"") ->  | AC42: 市町村 | AD42: 福井市
AA43: =IF($AE43<>"",VLOOKUP($AE43,【M】満足度!$A$1:$B$5,2,0),"") ->  | AC43: 市町村 | AD43: 福井市
AA44: =IF($AE44<>"",VLOOKUP($AE44,【M】満足度!$A$1:$B$5,2,0),"") ->  | AC44: =AC42 -> 市町村 | AD44: =AD42 -> 福井市 | AE44: =IF(AE14<>"",AE14,"") ->  | AH44: =IFERROR(AG44/AG$45,"") ->  | AJ44: =IFERROR(AI44/AI$45,"") -> 
AF45: 合計 | AG45: =SUM(AG33:AG44) -> 183件 | AH45: 100.0% | AI45: 240件 | AJ45: 100.0% | AK45: 150件 | AL45: 100.0% | AM45: 161件 | AN45: 100.0% | AO45: 126件 | AP45: 100.0% | AQ45: 147件 | AR45: 100.0% | AS45: 150件 | AT45: 100.0% | AU45: 179件 | AV45: 100.0% | AW45: 0件 | AX45: 0.0% | AY45: 0件 | AZ45: 0.0% | BA45: 0件 | BB45: 0.0% | BC45: 0件 | BD45: 0.0% | BE45: 1,336件 | BF45: 100.0%
AF46: =IF(AF$16<>"",AF$16,"") -> 満足度スコア | AG46: =IF(AG45>0,SUMPRODUCT($AA33:$AA44,AG33:AG44)/AG45,"-") -> 4.25 | AI46: =IF(AI45>0,SUMPRODUCT($AA33:$AA44,AI33:AI44)/AI45,"-") -> 4.27 | AK46: =IF(AK45>0,SUMPRODUCT($AA33:$AA44,AK33:AK44)/AK45,"-") -> 4.23 | AM46: =IF(AM45>0,SUMPRODUCT($AA33:$AA44,AM33:AM44)/AM45,"-") -> 4.20 | AO46: =IF(AO45>0,SUMPRODUCT($AA33:$AA44,AO33:AO44)/AO45,"-") -> 4.21 | AQ46: =IF(AQ45>0,SUMPRODUCT($AA33:$AA44,AQ33:AQ44)/AQ45,"-") -> 4.31 | AS46: =IF(AS45>0,SUMPRODUCT($AA33:$AA44,AS33:AS44)/AS45,"-") -> 4.25 | AU46: =IF(AU45>0,SUMPRODUCT($AA33:$AA44,AU33:AU44)/AU45,"-") -> 4.25 | AW46: =IF(AW45>0,SUMPRODUCT($AA33:$AA44,AW33:AW44)/AW45,"-") -> - | AY46: =IF(AY45>0,SUMPRODUCT($AA33:$AA44,AY33:AY44)/AY45,"-") -> - | BA46: =IF(BA45>0,SUMPRODUCT($AA33:$AA44,BA33:BA44)/BA45,"-") -> - | BC46: =IF(BC45>0,SUMPRODUCT($AA33:$AA44,BC33:BC44)/BC45,"-") -> - | BE46: =IF(BE45>0,SUMPRODUCT($AA33:$AA44,BE33:BE44)/BE45,"-") -> 4.25
AC47: 回答エリア | AD47: =【M】エリア!$L$5 -> 福井駅前 エリア
AA48: =IF($AE48<>"",VLOOKUP($AE48,【M】満足度!$A$1:$B$5,2,0),"") -> 5 | AC48: =AC47 -> 回答エリア | AD48: =AD47 -> 福井駅前 エリア | AE48: =IF(AE3<>"",AE3,"") -> とても満足 | AG48: =IF(OR(IFERROR(FIND($AD48,"施設コード"),0)>0,$AE48=""), "", COUNTIFS( INDEX(rawデータ範囲, , MATCH($AG$1,表頭範囲, 0)),AG$2, INDEX(rawデータ範囲, , MATCH($AE$1,表頭範囲, 0)),$AE48, INDEX(rawデータ範囲, , MATCH($AC48,表頭範囲, 0)),$AD48 ) ) -> 31件 | AH48: =IFERROR(AG48/AG$60,"") -> 40.8% | AI48: =IF(OR(IFERROR(FIND($AD48,"施設コード"),0)>0,$AE48=""), "", COUNTIFS( INDEX(rawデータ範囲, , MATCH($AG$1,表頭範囲, 0)),AI$2, INDEX(rawデータ範囲, , MATCH($AE$1,表頭範囲, 0)),$AE48, INDEX(rawデータ範囲, , MATCH($AC48,表頭範囲, 0)),$AD48 ) ) -> 34件 | AJ48: =IFERROR(AI48/AI$60,"") -> 42.0% | AK48: =IF(OR(IFERROR(FIND($AD48,"施設コード"),0)>0,$AE48=""), "", COUNTIFS( INDEX(rawデータ範囲, , MATCH($AG$1,表頭範囲, 0)),AK$2, INDEX(rawデータ範囲, , MATCH($AE$1,表頭範囲, 0)),$AE48, INDEX(rawデータ範囲, , MATCH($AC48,表頭範囲, 0)),$AD48 ) ) -> 33件 | AL48: =IFERROR(AK48/AK$60,"") -> 42.3% | AM48: =IF(OR(IFERROR(FIND($AD48,"施設コード"),0)>0,$AE48=""), "", COUNTIFS( INDEX(rawデータ範囲, , MATCH($AG$1,表頭範囲, 0)),AM$2, INDEX(rawデータ範囲, , MATCH($AE$1,表頭範囲, 0)),$AE48, INDEX(rawデータ範囲, , MATCH($AC48,表頭範囲, 0)),$AD48 ) ) -> 29件 | AN48: =IFERROR(AM48/AM$60,"") -> 45.3% | AO48: =IF(OR(IFERROR(FIND($AD48,"施設コード"),0)>0,$AE48=""), "", COUNTIFS( INDEX(rawデータ範囲, , MATCH($AG$1,表頭範囲, 0)),AO$2, INDEX(rawデータ範囲, , MATCH($AE$1,表頭範囲, 0)),$AE48, INDEX(rawデータ範囲, , MATCH($AC48,表頭範囲, 0)),$AD48 ) ) -> 31件 | AP48: =IFERROR(AO48/AO$60,"") -> 38.3% | AQ48: =IF(OR(IFERROR(FIND($AD48,"施設コード"),0)>0,$AE48=""), "", COUNTIFS( INDEX(rawデータ範囲, , MATCH($AG$1,表頭範囲, 0)),AQ$2, INDEX(rawデータ範囲, , MATCH($AE$1,表頭範囲, 0)),$AE48, INDEX(rawデータ範囲, , MATCH($AC48,表頭範囲, 0)),$AD48 ) ) -> 37件 | AR48: =IFERROR(AQ48/AQ$60,"") -> 44.0% | AS48: =IF(OR(IFERROR(FIND($AD48,"施設コード"),0)>0,$AE48=""), "", COUNTIFS( INDEX(rawデータ範囲, , MATCH($AG$1,表頭範囲, 0)),AS$2, INDEX(rawデータ範囲, , MATCH($AE$1,表頭範囲, 0)),$AE48, INDEX(rawデータ範囲, , MATCH($AC48,表頭範囲, 0)),$AD48 ) ) -> 37件 | AT48: =IFERROR(AS48/AS$60,"") -> 44.0% | AU48: =IF(OR(IFERROR(FIND($AD48,"施設コード"),0)>0,$AE48=""), "", COUNTIFS( INDEX(rawデータ範囲, , MATCH($AG$1,表頭範囲, 0)),AU$2, INDEX(rawデータ範囲, , MATCH($AE$1,表頭範囲, 0)),$AE48, INDEX(rawデータ範囲, , MATCH($AC48,表頭範囲, 0)),$AD48 ) ) -> 44件 | AV48: =IFERROR(AU48/AU$60,"") -> 47.3% | AW48: =IF(OR(IFERROR(FIND($AD48,"施設コード"),0)>0,$AE48=""), "", COUNTIFS( INDEX(rawデータ範囲, , MATCH($AG$1,表頭範囲, 0)),AW$2, INDEX(rawデータ範囲, , MATCH($AE$1,表頭範囲, 0)),$AE48, INDEX(rawデータ範囲, , MATCH($AC48,表頭範囲, 0)),$AD48 ) ) -> 0件 | AX48: =IFERROR(AW48/AW$60,"") ->  | AY48: =IF(OR(IFERROR(FIND($AD48,"施設コード"),0)>0,$AE48=""), "", COUNTIFS( INDEX(rawデータ範囲, , MATCH($AG$1,表頭範囲, 0)),AY$2, INDEX(rawデータ範囲, , MATCH($AE$1,表頭範囲, 0)),$AE48, INDEX(rawデータ範囲, , MATCH($AC48,表頭範囲, 0)),$AD48 ) ) -> 0件 | AZ48: =IFERROR(AY48/AY$60,"") ->  | BA48: =IF(OR(IFERROR(FIND($AD48,"施設コード"),0)>0,$AE48=""), "", COUNTIFS( INDEX(rawデータ範囲, , MATCH($AG$1,表頭範囲, 0)),BA$2, INDEX(rawデータ範囲, , MATCH($AE$1,表頭範囲, 0)),$AE48, INDEX(rawデータ範囲, , MATCH($AC48,表頭範囲, 0)),$AD48 ) ) -> 0件 | BB48: =IFERROR(BA48/BA$60,"") ->  | BC48: =IF(OR(IFERROR(FIND($AD48,"施設コード"),0)>0,$AE48=""), "", COUNTIFS( INDEX(rawデータ範囲, , MATCH($AG$1,表頭範囲, 0)),BC$2, INDEX(rawデータ範囲, , MATCH($AE$1,表頭範囲, 0)),$AE48, INDEX(rawデータ範囲, , MATCH($AC48,表頭範囲, 0)),$AD48 ) ) -> 0件 | BD48: =IFERROR(BC48/BC$60,"") ->  | BE48: =IFERROR(AG48+AI48+AK48+AM48+AO48+AQ48+AS48+AU48+AW48+AY48+BA48+BC48,"") -> 276件 | BF48: =IFERROR(BE48/BE$60,"") -> 43.1%
AA49: =IF($AE49<>"",VLOOKUP($AE49,【M】満足度!$A$1:$B$5,2,0),"") -> 4 | AC49: =AC48 -> 回答エリア | AD49: 福井駅前 エリア | AE49: 満足 | AG49: 39件 | AH49: 51.3% | AI49: 43件 | AJ49: 53.1% | AK49: 36件 | AL49: 46.2% | AM49: 31件 | AN49: 48.4% | AO49: 41件 | AP49: 50.6% | AQ49: 40件 | AR49: 47.6% | AS49: 35件 | AT49: 41.7% | AU49: 44件 | AV49: 47.3% | AW49: 0件 | AY49: 0件 | BA49: 0件 | BC49: 0件 | BE49: =IFERROR(AG49+AI49+AK49+AM49+AO49+AQ49+AS49+AU49+AW49+AY49+BA49+BC49,"") -> 309件 | BF49: 48.2%
AA50: =IF($AE50<>"",VLOOKUP($AE50,【M】満足度!$A$1:$B$5,2,0),"") -> 3 | AC50: 回答エリア | AD50: 福井駅前 エリア | AE50: どちらでもない | AG50: 6件 | AH50: 7.9% | AI50: 4件 | AJ50: 4.9% | AK50: 8件 | AL50: 10.3% | AM50: 4件 | AN50: 6.3% | AO50: 8件 | AP50: 9.9% | AQ50: 7件 | AR50: 8.3% | AS50: 10件 | AT50: 11.9% | AU50: 4件 | AV50: 4.3% | AW50: 0件 | AY50: 0件 | BA50: 0件 | BC50: 0件 | BE50: 51件 | BF50: 8.0%
AA51: =IF($AE51<>"",VLOOKUP($AE51,【M】満足度!$A$1:$B$5,2,0),"") -> 2 | AC51: 回答エリア | AD51: 福井駅前 エリア | AE51: 不満 | AG51: 0件 | AH51: 0.0% | AI51: 0件 | AJ51: 0.0% | AK51: 1件 | AL51: 1.3% | AM51: 0件 | AN51: 0.0% | AO51: 1件 | AP51: 1.2% | AQ51: 0件 | AR51: 0.0% | AS51: 2件 | AT51: 2.4% | AU51: 1件 | AV51: 1.1% | AW51: 0件 | AY51: 0件 | BA51: 0件 | BC51: 0件 | BE51: 5件 | BF51: 0.8%
AA52: =IF($AE52<>"",VLOOKUP($AE52,【M】満足度!$A$1:$B$5,2,0),"") -> 1 | AC52: 回答エリア | AD52: 福井駅前 エリア | AE52: とても不満 | AG52: 0件 | AH52: 0.0% | AI52: 0件 | AJ52: 0.0% | AK52: 0件 | AL52: 0.0% | AM52: 0件 | AN52: 0.0% | AO52: 0件 | AP52: 0.0% | AQ52: 0件 | AR52: 0.0% | AS52: 0件 | AT52: 0.0% | AU52: 0件 | AV52: 0.0% | AW52: 0件 | AY52: 0件 | BA52: 0件 | BC52: 0件 | BE52: 0件 | BF52: 0.0%
AA53: =IF($AE53<>"",VLOOKUP($AE53,【M】満足度!$A$1:$B$5,2,0),"") ->  | AC53: 回答エリア | AD53: 福井駅前 エリア
AA54: =IF($AE54<>"",VLOOKUP($AE54,【M】満足度!$A$1:$B$5,2,0),"") ->  | AC54: 回答エリア | AD54: 福井駅前 エリア
AA55: =IF($AE55<>"",VLOOKUP($AE55,【M】満足度!$A$1:$B$5,2,0),"") ->  | AC55: =AC54 -> 回答エリア | AD55: =AD54 -> 福井駅前 エリア
AA56: =IF($AE56<>"",VLOOKUP($AE56,【M】満足度!$A$1:$B$5,2,0),"") ->  | AC56: 回答エリア | AD56: 福井駅前 エリア
AA57: =IF($AE57<>"",VLOOKUP($AE57,【M】満足度!$A$1:$B$5,2,0),"") ->  | AC57: 回答エリア | AD57: 福井駅前 エリア
AA58: =IF($AE58<>"",VLOOKUP($AE58,【M】満足度!$A$1:$B$5,2,0),"") ->  | AC58: 回答エリア | AD58: 福井駅前 エリア
AA59: =IF($AE59<>"",VLOOKUP($AE59,【M】満足度!$A$1:$B$5,2,0),"") ->  | AC59: =AC57 -> 回答エリア | AD59: =AD57 -> 福井駅前 エリア | AE59: =IF(AE14<>"",AE14,"") ->  | AH59: =IFERROR(AG59/AG$60,"") ->  | AJ59: =IFERROR(AI59/AI$60,"") ->  | BF59: =IFERROR(BE59/BE$60,"") -> 
AF60: 合計 | AG60: =SUM(AG48:AG59) -> 76件 | AH60: 100.0% | AI60: 81件 | AJ60: 100.0% | AK60: 78件 | AL60: 100.0% | AM60: 64件 | AN60: 100.0% | AO60: 81件 | AP60: 100.0% | AQ60: 84件 | AR60: 100.0% | AS60: 84件 | AT60: 100.0% | AU60: 93件 | AV60: 100.0% | AW60: 0件 | AX60: 0.0% | AY60: 0件 | AZ60: 0.0% | BA60: 0件 | BB60: 0.0% | BC60: 0件 | BD60: 0.0% | BE60: 641件 | BF60: 100.0%
AF61: =IF(AF$16<>"",AF$16,"") -> 満足度スコア | AG61: =IF(AG60>0,SUMPRODUCT($AA48:$AA59,AG48:AG59)/AG60,"-") -> 4.33 | AI61: =IF(AI60>0,SUMPRODUCT($AA48:$AA59,AI48:AI59)/AI60,"-") -> 4.37 | AK61: =IF(AK60>0,SUMPRODUCT($AA48:$AA59,AK48:AK59)/AK60,"-") -> 4.29 | AM61: =IF(AM60>0,SUMPRODUCT($AA48:$AA59,AM48:AM59)/AM60,"-") -> 4.39 | AO61: =IF(AO60>0,SUMPRODUCT($AA48:$AA59,AO48:AO59)/AO60,"-") -> 4.26 | AQ61: =IF(AQ60>0,SUMPRODUCT($AA48:$AA59,AQ48:AQ59)/AQ60,"-") -> 4.36 | AS61: =IF(AS60>0,SUMPRODUCT($AA48:$AA59,AS48:AS59)/AS60,"-") -> 4.27 | AU61: =IF(AU60>0,SUMPRODUCT($AA48:$AA59,AU48:AU59)/AU60,"-") -> 4.41 | AW61: =IF(AW60>0,SUMPRODUCT($AA48:$AA59,AW48:AW59)/AW60,"-") -> - | AY61: =IF(AY60>0,SUMPRODUCT($AA48:$AA59,AY48:AY59)/AY60,"-") -> - | BA61: =IF(BA60>0,SUMPRODUCT($AA48:$AA59,BA48:BA59)/BA60,"-") -> - | BC61: =IF(BC60>0,SUMPRODUCT($AA48:$AA59,BC48:BC59)/BC60,"-") -> - | BE61: =IF(BE60>0,SUMPRODUCT($AA48:$AA59,BE48:BE59)/BE60,"-") -> 4.34

Sheet 総合満足度
A1: =施設コード!$A$2 -> 11月 | B1: =【M】エリア!$L$2 -> 福井県 | C1: =【M】エリア!$L$3 -> 福井市・永平寺町 | D1: =【M】エリア!$L$4 -> 福井市 | E1: =【M】エリア!$L$5 -> 福井駅前 エリア | G1: =AF16 -> 総合満足度スコア | H1: 4月 | I1: 5月 | J1: 6月 | K1: 7月 | L1: 8月 | M1: 9月 | N1: 10月 | O1: 11月 | P1: 12月 | Q1: 1月 | R1: 2月 | S1: 3月 | T1: 通年 | AA1: =AF16&"（推移）" -> 総合満足度スコア（推移） | AC1: 集計区分 | AE1: 総合満足度 | AF1: 回答数 | AG1: 回答月 | AH1: 回答月 | AI1: 回答月 | AJ1: 回答月 | AK1: 回答月 | AL1: 回答月 | AM1: 回答月 | AN1: 回答月 | AO1: 回答月 | AP1: 回答月 | AQ1: 回答月 | AR1: 回答月 | AS1: 回答月 | AT1: 回答月 | AU1: 回答月 | AV1: 回答月 | AW1: 回答月 | AX1: 回答月 | AY1: 回答月 | AZ1: 回答月 | BA1: 回答月 | BB1: 回答月 | BC1: 回答月 | BD1: 回答月 | BE1: 回答月 | BF1: 回答月
A2: =IF(AE3<>"",AE3,"") -> とても満足 | B2: =IFERROR(OFFSET(INDEX($AG$3:$BF$14, MATCH($A2,$A$2:$A$13,0),MATCH($A$1,$AG$2:$BF$2,0)),0,1),"") -> 38.1% | C2: =IFERROR(OFFSET(INDEX($AG$18:$BF$29, MATCH($A2,$A$2:$A$13,0),MATCH($A$1,$AG$2:$BF$2,0)),0,1),"") -> 40.9% | D2: =IFERROR(OFFSET(INDEX($AG$33:$BF$44, MATCH($A2,$A$2:$A$13,0),MATCH($A$1,$AG$2:$BF$2,0)),0,1),"") -> 34.6% | E2: =IFERROR(OFFSET(INDEX($AG$48:$BF$59, MATCH($A2,$A$2:$A$13,0),MATCH($A$1,$AG$2:$BF$2,0)),0,1),"") -> 44.6% | G2: =【M】エリア!$L$2 -> 福井県 | H2: =AG16 -> 4.26 | I2: =AI16 -> 4.25 | J2: =AK16 -> 4.26 | K2: =AM16 -> 4.29 | L2: =AO16 -> 4.30 | M2: =AQ16 -> 4.30 | N2: =AS16 -> 4.22 | O2: =AU16 -> 4.27 | P2: =AW16 -> - | Q2: =AY16 -> - | R2: =BA16 -> - | S2: =BC16 -> - | T2: =BE16 -> 4.27 | AC2: 都道府県 | AD2: =【M】エリア!$L$2 -> 福井県 | AG2: 4月 | AI2: 5月 | AK2: 6月 | AM2: 7月 | AO2: 8月 | AQ2: 9月 | AS2: 10月 | AU2: 11月 | AW2: 12月 | AY2: 1月 | BA2: 2月 | BC2: 3月 | BE2: 通年
A3: =IF(AE4<>"",AE4,"") -> 満足 | B3: =IFERROR(OFFSET(INDEX($AG$3:$BF$14, MATCH($A3,$A$2:$A$13,0),MATCH($A$1,$AG$2:$BF$2,0)),0,1),"") -> 51.7% | C3: =IFERROR(OFFSET(INDEX($AG$18:$BF$29, MATCH($A3,$A$2:$A$13,0),MATCH($A$1,$AG$2:$BF$2,0)),0,1),"") -> 49.6% | D3: =IFERROR(OFFSET(INDEX($AG$33:$BF$44, MATCH($A3,$A$2:$A$13,0),MATCH($A$1,$AG$2:$BF$2,0)),0,1),"") -> 52.8% | E3: =IFERROR(OFFSET(INDEX($AG$48:$BF$59, MATCH($A3,$A$2:$A$13,0),MATCH($A$1,$AG$2:$BF$2,0)),0,1),"") -> 47.8% | G3: =【M】エリア!$L$3 -> 福井市・永平寺町 | H3: =AG31 -> 4.29 | I3: =AI31 -> 4.28 | J3: =AK31 -> 4.23 | K3: =AM31 -> 4.21 | L3: =AO31 -> 4.32 | M3: =AQ31 -> 4.33 | N3: =AS31 -> 4.28 | O3: =AU31 -> 4.31 | P3: =AW31 -> - | Q3: =AY31 -> - | R3: =BA31 -> - | S3: =BC31 -> - | T3: =BE31 -> 4.28 | AA3: =IF($AE3<>"",VLOOKUP($AE3,【M】満足度!$A$1:$B$5,2,0),"") -> 5 | AC3: =AC2 -> 都道府県 | AD3: =AD2 -> 福井県 | AE3: とても満足 | AG3: =IF(OR(IFERROR(FIND($AD3,"施設コード"),0)>0,$AE3=""), "", '満足度(商品・サービス)'!AG3+'満足度(施設全体)'!AG3 ) -> 1303件 | AH3: =IFERROR(AG3/AG$15,"") -> 38.4% | AI3: =IF(OR(IFERROR(FIND($AD3,"施設コード"),0)>0,$AE3=""), "", '満足度(商品・サービス)'!AI3+'満足度(施設全体)'!AI3 ) -> 2347件 | AJ3: =IFERROR(AI3/AI$15,"") -> 39.2% | AK3: =IF(OR(IFERROR(FIND($AD3,"施設コード"),0)>0,$AE3=""), "", '満足度(商品・サービス)'!AK3+'満足度(施設全体)'!AK3 ) -> 1414件 | AL3: =IFERROR(AK3/AK$15,"") -> 38.5% | AM3: =IF(OR(IFERROR(FIND($AD3,"施設コード"),0)>0,$AE3=""), "", '満足度(商品・サービス)'!AM3+'満足度(施設全体)'!AM3 ) -> 1411件 | AN3: =IFERROR(AM3/AM$15,"") -> 40.6% | AO3: =IF(OR(IFERROR(FIND($AD3,"施設コード"),0)>0,$AE3=""), "", '満足度(商品・サービス)'!AO3+'満足度(施設全体)'!AO3 ) -> 1853件 | AP3: =IFERROR(AO3/AO$15,"") -> 41.3% | AQ3: =IF(OR(IFERROR(FIND($AD3,"施設コード"),0)>0,$AE3=""), "", '満足度(商品・サービス)'!AQ3+'満足度(施設全体)'!AQ3 ) -> 1982件 | AR3: =IFERROR(AQ3/AQ$15,"") -> 42.1% | AS3: =IF(OR(IFERROR(FIND($AD3,"施設コード"),0)>0,$AE3=""), "", '満足度(商品・サービス)'!AS3+'満足度(施設全体)'!AS3 ) -> 1306件 | AT3: =IFERROR(AS3/AS$15,"") -> 36.1% | AU3: =IF(OR(IFERROR(FIND($AD3,"施設コード"),0)>0,$AE3=""), "", '満足度(商品・サービス)'!AU3+'満足度(施設全体)'!AU3 ) -> 1620件 | AV3: =IFERROR(AU3/AU$15,"") -> 38.1% | AW3: =IF(OR(IFERROR(FIND($AD3,"施設コード"),0)>0,$AE3=""), "", '満足度(商品・サービス)'!AW3+'満足度(施設全体)'!AW3 ) -> 0件 | AX3: =IFERROR(AW3/AW$15,"") ->  | AY3: =IF(OR(IFERROR(FIND($AD3,"施設コード"),0)>0,$AE3=""), "", '満足度(商品・サービス)'!AY3+'満足度(施設全体)'!AY3 ) -> 0件 | AZ3: =IFERROR(AY3/AY$15,"") ->  | BA3: =IF(OR(IFERROR(FIND($AD3,"施設コード"),0)>0,$AE3=""), "", '満足度(商品・サービス)'!BA3+'満足度(施設全体)'!BA3 ) -> 0件 | BB3: =IFERROR(BA3/BA$15,"") ->  | BC3: =IF(OR(IFERROR(FIND($AD3,"施設コード"),0)>0,$AE3=""), "", '満足度(商品・サービス)'!BC3+'満足度(施設全体)'!BC3 ) -> 0件 | BD3: =IFERROR(BC3/BC$15,"") ->  | BE3: =IFERROR(AG3+AI3+AK3+AM3+AO3+AQ3+AS3+AU3+AW3+AY3+BA3+BC3,"") -> 13236件 | BF3: =IFERROR(BE3/BE$15,"") -> 39.4%
A4: どちらでもない | B4: 9.3% | C4: 9.1% | D4: 12.3% | E4: 7.0% | G4: =【M】エリア!$L$4 -> 福井市 | H4: =AG46 -> 4.22 | I4: =AI46 -> 4.28 | J4: =AK46 -> 4.20 | K4: =AM46 -> 4.20 | L4: =AO46 -> 4.22 | M4: =AQ46 -> 4.34 | N4: =AS46 -> 4.28 | O4: =AU46 -> 4.22 | P4: =AW46 -> - | Q4: =AY46 -> - | R4: =BA46 -> - | S4: =BC46 -> - | T4: =BE46 -> 4.25 | AA4: =IF($AE4<>"",VLOOKUP($AE4,【M】満足度!$A$1:$B$5,2,0),"") -> 4 | AC4: =AC3 -> 都道府県 | AD4: 福井県 | AE4: 満足 | AG4: =IF(OR(IFERROR(FIND($AD4,"施設コード"),0)>0,$AE4=""), "", '満足度(商品・サービス)'!AG4+'満足度(施設全体)'!AG4 ) -> 1709件 | AH4: 50.4% | AI4: =IF(OR(IFERROR(FIND($AD4,"施設コード"),0)>0,$AE4=""), "", '満足度(商品・サービス)'!AI4+'満足度(施設全体)'!AI4 ) -> 2902件 | AJ4: 48.4% | AK4: =IF(OR(IFERROR(FIND($AD4,"施設コード"),0)>0,$AE4=""), "", '満足度(商品・サービス)'!AK4+'満足度(施設全体)'!AK4 ) -> 1860件 | AL4: 50.7% | AM4: =IF(OR(IFERROR(FIND($AD4,"施設コード"),0)>0,$AE4=""), "", '満足度(商品・サービス)'!AM4+'満足度(施設全体)'!AM4 ) -> 1715件 | AN4: 49.3% | AO4: =IF(OR(IFERROR(FIND($AD4,"施設コード"),0)>0,$AE4=""), "", '満足度(商品・サービス)'!AO4+'満足度(施設全体)'!AO4 ) -> 2208件 | AP4: 49.2% | AQ4: =IF(OR(IFERROR(FIND($AD4,"施設コード"),0)>0,$AE4=""), "", '満足度(商品・サービス)'!AQ4+'満足度(施設全体)'!AQ4 ) -> 2240件 | AR4: 47.6% | AS4: =IF(OR(IFERROR(FIND($AD4,"施設コード"),0)>0,$AE4=""), "", '満足度(商品・サービス)'!AS4+'満足度(施設全体)'!AS4 ) -> 1862件 | AT4: 51.5% | AU4: =IF(OR(IFERROR(FIND($AD4,"施設コード"),0)>0,$AE4=""), "", '満足度(商品・サービス)'!AU4+'満足度(施設全体)'!AU4 ) -> 2200件 | AV4: 51.7% | AW4: =IF(OR(IFERROR(FIND($AD4,"施設コード"),0)>0,$AE4=""), "", '満足度(商品・サービス)'!AW4+'満足度(施設全体)'!AW4 ) -> 0件 | AY4: =IF(OR(IFERROR(FIND($AD4,"施設コード"),0)>0,$AE4=""), "", '満足度(商品・サービス)'!AY4+'満足度(施設全体)'!AY4 ) -> 0件 | BA4: =IF(OR(IFERROR(FIND($AD4,"施設コード"),0)>0,$AE4=""), "", '満足度(商品・サービス)'!BA4+'満足度(施設全体)'!BA4 ) -> 0件 | BC4: =IF(OR(IFERROR(FIND($AD4,"施設コード"),0)>0,$AE4=""), "", '満足度(商品・サービス)'!BC4+'満足度(施設全体)'!BC4 ) -> 0件 | BE4: =IFERROR(AG4+AI4+AK4+AM4+AO4+AQ4+AS4+AU4+AW4+AY4+BA4+BC4,"") -> 16696件 | BF4: 49.7%
A5: 不満 | B5: 0.8% | C5: 0.4% | D5: 0.3% | E5: 0.5% | G5: =【M】エリア!$L$5 -> 福井駅前 エリア | H5: =AG61 -> 4.29 | I5: =AI61 -> 4.40 | J5: =AK61 -> 4.26 | K5: =AM61 -> 4.34 | L5: =AO61 -> 4.28 | M5: =AQ61 -> 4.39 | N5: =AS61 -> 4.32 | O5: =AU61 -> 4.37 | P5: =AW61 -> - | Q5: =AY61 -> - | R5: =BA61 -> - | S5: =BC61 -> - | T5: =BE61 -> 4.33 | AA5: =IF($AE5<>"",VLOOKUP($AE5,【M】満足度!$A$1:$B$5,2,0),"") -> 3 | AC5: 都道府県 | AD5: 福井県 | AE5: どちらでもない | AG5: =IF(OR(IFERROR(FIND($AD5,"施設コード"),0)>0,$AE5=""), "", '満足度(商品・サービス)'!AG5+'満足度(施設全体)'!AG5 ) -> 352件 | AH5: 10.4% | AI5: =IF(OR(IFERROR(FIND($AD5,"施設コード"),0)>0,$AE5=""), "", '満足度(商品・サービス)'!AI5+'満足度(施設全体)'!AI5 ) -> 655件 | AJ5: 10.9% | AK5: =IF(OR(IFERROR(FIND($AD5,"施設コード"),0)>0,$AE5=""), "", '満足度(商品・サービス)'!AK5+'満足度(施設全体)'!AK5 ) -> 353件 | AL5: 9.6% | AM5: =IF(OR(IFERROR(FIND($AD5,"施設コード"),0)>0,$AE5=""), "", '満足度(商品・サービス)'!AM5+'満足度(施設全体)'!AM5 ) -> 303件 | AN5: 8.7% | AO5: =IF(OR(IFERROR(FIND($AD5,"施設コード"),0)>0,$AE5=""), "", '満足度(商品・サービス)'!AO5+'満足度(施設全体)'!AO5 ) -> 379件 | AP5: 8.4% | AQ5: =IF(OR(IFERROR(FIND($AD5,"施設コード"),0)>0,$AE5=""), "", '満足度(商品・サービス)'!AQ5+'満足度(施設全体)'!AQ5 ) -> 411件 | AR5: 8.7% | AS5: =IF(OR(IFERROR(FIND($AD5,"施設コード"),0)>0,$AE5=""), "", '満足度(商品・サービス)'!AS5+'満足度(施設全体)'!AS5 ) -> 404件 | AT5: 11.2% | AU5: =IF(OR(IFERROR(FIND($AD5,"施設コード"),0)>0,$AE5=""), "", '満足度(商品・サービス)'!AU5+'満足度(施設全体)'!AU5 ) -> 396件 | AV5: 9.3% | AW5: =IF(OR(IFERROR(FIND($AD5,"施設コード"),0)>0,$AE5=""), "", '満足度(商品・サービス)'!AW5+'満足度(施設全体)'!AW5 ) -> 0件 | AY5: =IF(OR(IFERROR(FIND($AD5,"施設コード"),0)>0,$AE5=""), "", '満足度(商品・サービス)'!AY5+'満足度(施設全体)'!AY5 ) -> 0件 | BA5: =IF(OR(IFERROR(FIND($AD5,"施設コード"),0)>0,$AE5=""), "", '満足度(商品・サービス)'!BA5+'満足度(施設全体)'!BA5 ) -> 0件 | BC5: =IF(OR(IFERROR(FIND($AD5,"施設コード"),0)>0,$AE5=""), "", '満足度(商品・サービス)'!BC5+'満足度(施設全体)'!BC5 ) -> 0件 | BE5: 3253件 | BF5: 9.7%
A6: とても不満 | B6: 0.1% | C6: 0.0% | D6: 0.0% | E6: 0.0% | AA6: =IF($AE6<>"",VLOOKUP($AE6,【M】満足度!$A$1:$B$5,2,0),"") -> 2 | AC6: 都道府県 | AD6: 福井県 | AE6: 不満 | AG6: =IF(OR(IFERROR(FIND($AD6,"施設コード"),0)>0,$AE6=""), "", '満足度(商品・サービス)'!AG6+'満足度(施設全体)'!AG6 ) -> 23件 | AH6: 0.7% | AI6: =IF(OR(IFERROR(FIND($AD6,"施設コード"),0)>0,$AE6=""), "", '満足度(商品・サービス)'!AI6+'満足度(施設全体)'!AI6 ) -> 69件 | AJ6: 1.2% | AK6: =IF(OR(IFERROR(FIND($AD6,"施設コード"),0)>0,$AE6=""), "", '満足度(商品・サービス)'!AK6+'満足度(施設全体)'!AK6 ) -> 35件 | AL6: 1.0% | AM6: =IF(OR(IFERROR(FIND($AD6,"施設コード"),0)>0,$AE6=""), "", '満足度(商品・サービス)'!AM6+'満足度(施設全体)'!AM6 ) -> 38件 | AN6: 1.1% | AO6: =IF(OR(IFERROR(FIND($AD6,"施設コード"),0)>0,$AE6=""), "", '満足度(商品・サービス)'!AO6+'満足度(施設全体)'!AO6 ) -> 46件 | AP6: 1.0% | AQ6: =IF(OR(IFERROR(FIND($AD6,"施設コード"),0)>0,$AE6=""), "", '満足度(商品・サービス)'!AQ6+'満足度(施設全体)'!AQ6 ) -> 40件 | AR6: 0.8% | AS6: =IF(OR(IFERROR(FIND($AD6,"施設コード"),0)>0,$AE6=""), "", '満足度(商品・サービス)'!AS6+'満足度(施設全体)'!AS6 ) -> 34件 | AT6: 0.9% | AU6: =IF(OR(IFERROR(FIND($AD6,"施設コード"),0)>0,$AE6=""), "", '満足度(商品・サービス)'!AU6+'満足度(施設全体)'!AU6 ) -> 32件 | AV6: 0.8% | AW6: =IF(OR(IFERROR(FIND($AD6,"施設コード"),0)>0,$AE6=""), "", '満足度(商品・サービス)'!AW6+'満足度(施設全体)'!AW6 ) -> 0件 | AY6: =IF(OR(IFERROR(FIND($AD6,"施設コード"),0)>0,$AE6=""), "", '満足度(商品・サービス)'!AY6+'満足度(施設全体)'!AY6 ) -> 0件 | BA6: =IF(OR(IFERROR(FIND($AD6,"施設コード"),0)>0,$AE6=""), "", '満足度(商品・サービス)'!BA6+'満足度(施設全体)'!BA6 ) -> 0件 | BC6: =IF(OR(IFERROR(FIND($AD6,"施設コード"),0)>0,$AE6=""), "", '満足度(商品・サービス)'!BC6+'満足度(施設全体)'!BC6 ) -> 0件 | BE6: 317件 | BF6: 0.9%
AA7: =IF($AE7<>"",VLOOKUP($AE7,【M】満足度!$A$1:$B$5,2,0),"") -> 1 | AC7: 都道府県 | AD7: 福井県 | AE7: とても不満 | AG7: =IF(OR(IFERROR(FIND($AD7,"施設コード"),0)>0,$AE7=""), "", '満足度(商品・サービス)'!AG7+'満足度(施設全体)'!AG7 ) -> 5件 | AH7: 0.1% | AI7: =IF(OR(IFERROR(FIND($AD7,"施設コード"),0)>0,$AE7=""), "", '満足度(商品・サービス)'!AI7+'満足度(施設全体)'!AI7 ) -> 17件 | AJ7: 0.3% | AK7: =IF(OR(IFERROR(FIND($AD7,"施設コード"),0)>0,$AE7=""), "", '満足度(商品・サービス)'!AK7+'満足度(施設全体)'!AK7 ) -> 8件 | AL7: 0.2% | AM7: =IF(OR(IFERROR(FIND($AD7,"施設コード"),0)>0,$AE7=""), "", '満足度(商品・サービス)'!AM7+'満足度(施設全体)'!AM7 ) -> 9件 | AN7: 0.3% | AO7: =IF(OR(IFERROR(FIND($AD7,"施設コード"),0)>0,$AE7=""), "", '満足度(商品・サービス)'!AO7+'満足度(施設全体)'!AO7 ) -> 6件 | AP7: 0.1% | AQ7: =IF(OR(IFERROR(FIND($AD7,"施設コード"),0)>0,$AE7=""), "", '満足度(商品・サービス)'!AQ7+'満足度(施設全体)'!AQ7 ) -> 33件 | AR7: 0.7% | AS7: =IF(OR(IFERROR(FIND($AD7,"施設コード"),0)>0,$AE7=""), "", '満足度(商品・サービス)'!AS7+'満足度(施設全体)'!AS7 ) -> 8件 | AT7: 0.2% | AU7: =IF(OR(IFERROR(FIND($AD7,"施設コード"),0)>0,$AE7=""), "", '満足度(商品・サービス)'!AU7+'満足度(施設全体)'!AU7 ) -> 4件 | AV7: 0.1% | AW7: =IF(OR(IFERROR(FIND($AD7,"施設コード"),0)>0,$AE7=""), "", '満足度(商品・サービス)'!AW7+'満足度(施設全体)'!AW7 ) -> 0件 | AY7: =IF(OR(IFERROR(FIND($AD7,"施設コード"),0)>0,$AE7=""), "", '満足度(商品・サービス)'!AY7+'満足度(施設全体)'!AY7 ) -> 0件 | BA7: =IF(OR(IFERROR(FIND($AD7,"施設コード"),0)>0,$AE7=""), "", '満足度(商品・サービス)'!BA7+'満足度(施設全体)'!BA7 ) -> 0件 | BC7: =IF(OR(IFERROR(FIND($AD7,"施設コード"),0)>0,$AE7=""), "", '満足度(商品・サービス)'!BC7+'満足度(施設全体)'!BC7 ) -> 0件 | BE7: 90件 | BF7: 0.3%
AA8: =IF($AE8<>"",VLOOKUP($AE8,【M】満足度!$A$1:$B$5,2,0),"") ->  | AC8: 都道府県 | AD8: 福井県 | AG8: =IF(OR(IFERROR(FIND($AD8,"施設コード"),0)>0,$AE8=""), "", '満足度(商品・サービス)'!AG8+'満足度(施設全体)'!AG8 ) ->  | AI8: =IF(OR(IFERROR(FIND($AD8,"施設コード"),0)>0,$AE8=""), "", '満足度(商品・サービス)'!AI8+'満足度(施設全体)'!AI8 ) ->  | AK8: =IF(OR(IFERROR(FIND($AD8,"施設コード"),0)>0,$AE8=""), "", '満足度(商品・サービス)'!AK8+'満足度(施設全体)'!AK8 ) ->  | AM8: =IF(OR(IFERROR(FIND($AD8,"施設コード"),0)>0,$AE8=""), "", '満足度(商品・サービス)'!AM8+'満足度(施設全体)'!AM8 ) ->  | AO8: =IF(OR(IFERROR(FIND($AD8,"施設コード"),0)>0,$AE8=""), "", '満足度(商品・サービス)'!AO8+'満足度(施設全体)'!AO8 ) ->  | AQ8: =IF(OR(IFERROR(FIND($AD8,"施設コード"),0)>0,$AE8=""), "", '満足度(商品・サービス)'!AQ8+'満足度(施設全体)'!AQ8 ) ->  | AS8: =IF(OR(IFERROR(FIND($AD8,"施設コード"),0)>0,$AE8=""), "", '満足度(商品・サービス)'!AS8+'満足度(施設全体)'!AS8 ) ->  | AU8: =IF(OR(IFERROR(FIND($AD8,"施設コード"),0)>0,$AE8=""), "", '満足度(商品・サービス)'!AU8+'満足度(施設全体)'!AU8 ) ->  | AW8: =IF(OR(IFERROR(FIND($AD8,"施設コード"),0)>0,$AE8=""), "", '満足度(商品・サービス)'!AW8+'満足度(施設全体)'!AW8 ) ->  | AY8: =IF(OR(IFERROR(FIND($AD8,"施設コード"),0)>0,$AE8=""), "", '満足度(商品・サービス)'!AY8+'満足度(施設全体)'!AY8 ) ->  | BA8: =IF(OR(IFERROR(FIND($AD8,"施設コード"),0)>0,$AE8=""), "", '満足度(商品・サービス)'!BA8+'満足度(施設全体)'!BA8 ) ->  | BC8: =IF(OR(IFERROR(FIND($AD8,"施設コード"),0)>0,$AE8=""), "", '満足度(商品・サービス)'!BC8+'満足度(施設全体)'!BC8 ) -> 
AA9: =IF($AE9<>"",VLOOKUP($AE9,【M】満足度!$A$1:$B$5,2,0),"") ->  | AC9: 都道府県 | AD9: 福井県 | AG9: =IF(OR(IFERROR(FIND($AD9,"施設コード"),0)>0,$AE9=""), "", '満足度(商品・サービス)'!AG9+'満足度(施設全体)'!AG9 ) ->  | AI9: =IF(OR(IFERROR(FIND($AD9,"施設コード"),0)>0,$AE9=""), "", '満足度(商品・サービス)'!AI9+'満足度(施設全体)'!AI9 ) ->  | AK9: =IF(OR(IFERROR(FIND($AD9,"施設コード"),0)>0,$AE9=""), "", '満足度(商品・サービス)'!AK9+'満足度(施設全体)'!AK9 ) ->  | AM9: =IF(OR(IFERROR(FIND($AD9,"施設コード"),0)>0,$AE9=""), "", '満足度(商品・サービス)'!AM9+'満足度(施設全体)'!AM9 ) ->  | AO9: =IF(OR(IFERROR(FIND($AD9,"施設コード"),0)>0,$AE9=""), "", '満足度(商品・サービス)'!AO9+'満足度(施設全体)'!AO9 ) ->  | AQ9: =IF(OR(IFERROR(FIND($AD9,"施設コード"),0)>0,$AE9=""), "", '満足度(商品・サービス)'!AQ9+'満足度(施設全体)'!AQ9 ) ->  | AS9: =IF(OR(IFERROR(FIND($AD9,"施設コード"),0)>0,$AE9=""), "", '満足度(商品・サービス)'!AS9+'満足度(施設全体)'!AS9 ) ->  | AU9: =IF(OR(IFERROR(FIND($AD9,"施設コード"),0)>0,$AE9=""), "", '満足度(商品・サービス)'!AU9+'満足度(施設全体)'!AU9 ) ->  | AW9: =IF(OR(IFERROR(FIND($AD9,"施設コード"),0)>0,$AE9=""), "", '満足度(商品・サービス)'!AW9+'満足度(施設全体)'!AW9 ) ->  | AY9: =IF(OR(IFERROR(FIND($AD9,"施設コード"),0)>0,$AE9=""), "", '満足度(商品・サービス)'!AY9+'満足度(施設全体)'!AY9 ) ->  | BA9: =IF(OR(IFERROR(FIND($AD9,"施設コード"),0)>0,$AE9=""), "", '満足度(商品・サービス)'!BA9+'満足度(施設全体)'!BA9 ) ->  | BC9: =IF(OR(IFERROR(FIND($AD9,"施設コード"),0)>0,$AE9=""), "", '満足度(商品・サービス)'!BC9+'満足度(施設全体)'!BC9 ) -> 
AA10: =IF($AE10<>"",VLOOKUP($AE10,【M】満足度!$A$1:$B$5,2,0),"") ->  | AC10: =AC9 -> 都道府県 | AD10: =AD9 -> 福井県 | AG10: =IF(OR(IFERROR(FIND($AD10,"施設コード"),0)>0,$AE10=""), "", '満足度(商品・サービス)'!AG10+'満足度(施設全体)'!AG10 ) ->  | AI10: =IF(OR(IFERROR(FIND($AD10,"施設コード"),0)>0,$AE10=""), "", '満足度(商品・サービス)'!AI10+'満足度(施設全体)'!AI10 ) ->  | AK10: =IF(OR(IFERROR(FIND($AD10,"施設コード"),0)>0,$AE10=""), "", '満足度(商品・サービス)'!AK10+'満足度(施設全体)'!AK10 ) ->  | AM10: =IF(OR(IFERROR(FIND($AD10,"施設コード"),0)>0,$AE10=""), "", '満足度(商品・サービス)'!AM10+'満足度(施設全体)'!AM10 ) ->  | AO10: =IF(OR(IFERROR(FIND($AD10,"施設コード"),0)>0,$AE10=""), "", '満足度(商品・サービス)'!AO10+'満足度(施設全体)'!AO10 ) ->  | AQ10: =IF(OR(IFERROR(FIND($AD10,"施設コード"),0)>0,$AE10=""), "", '満足度(商品・サービス)'!AQ10+'満足度(施設全体)'!AQ10 ) ->  | AS10: =IF(OR(IFERROR(FIND($AD10,"施設コード"),0)>0,$AE10=""), "", '満足度(商品・サービス)'!AS10+'満足度(施設全体)'!AS10 ) ->  | AU10: =IF(OR(IFERROR(FIND($AD10,"施設コード"),0)>0,$AE10=""), "", '満足度(商品・サービス)'!AU10+'満足度(施設全体)'!AU10 ) ->  | AW10: =IF(OR(IFERROR(FIND($AD10,"施設コード"),0)>0,$AE10=""), "", '満足度(商品・サービス)'!AW10+'満足度(施設全体)'!AW10 ) ->  | AY10: =IF(OR(IFERROR(FIND($AD10,"施設コード"),0)>0,$AE10=""), "", '満足度(商品・サービス)'!AY10+'満足度(施設全体)'!AY10 ) ->  | BA10: =IF(OR(IFERROR(FIND($AD10,"施設コード"),0)>0,$AE10=""), "", '満足度(商品・サービス)'!BA10+'満足度(施設全体)'!BA10 ) ->  | BC10: =IF(OR(IFERROR(FIND($AD10,"施設コード"),0)>0,$AE10=""), "", '満足度(商品・サービス)'!BC10+'満足度(施設全体)'!BC10 ) -> 
AA11: =IF($AE11<>"",VLOOKUP($AE11,【M】満足度!$A$1:$B$5,2,0),"") ->  | AC11: 都道府県 | AD11: 福井県 | AG11: =IF(OR(IFERROR(FIND($AD11,"施設コード"),0)>0,$AE11=""), "", '満足度(商品・サービス)'!AG11+'満足度(施設全体)'!AG11 ) ->  | AI11: =IF(OR(IFERROR(FIND($AD11,"施設コード"),0)>0,$AE11=""), "", '満足度(商品・サービス)'!AI11+'満足度(施設全体)'!AI11 ) ->  | AK11: =IF(OR(IFERROR(FIND($AD11,"施設コード"),0)>0,$AE11=""), "", '満足度(商品・サービス)'!AK11+'満足度(施設全体)'!AK11 ) ->  | AM11: =IF(OR(IFERROR(FIND($AD11,"施設コード"),0)>0,$AE11=""), "", '満足度(商品・サービス)'!AM11+'満足度(施設全体)'!AM11 ) ->  | AO11: =IF(OR(IFERROR(FIND($AD11,"施設コード"),0)>0,$AE11=""), "", '満足度(商品・サービス)'!AO11+'満足度(施設全体)'!AO11 ) ->  | AQ11: =IF(OR(IFERROR(FIND($AD11,"施設コード"),0)>0,$AE11=""), "", '満足度(商品・サービス)'!AQ11+'満足度(施設全体)'!AQ11 ) ->  | AS11: =IF(OR(IFERROR(FIND($AD11,"施設コード"),0)>0,$AE11=""), "", '満足度(商品・サービス)'!AS11+'満足度(施設全体)'!AS11 ) ->  | AU11: =IF(OR(IFERROR(FIND($AD11,"施設コード"),0)>0,$AE11=""), "", '満足度(商品・サービス)'!AU11+'満足度(施設全体)'!AU11 ) ->  | AW11: =IF(OR(IFERROR(FIND($AD11,"施設コード"),0)>0,$AE11=""), "", '満足度(商品・サービス)'!AW11+'満足度(施設全体)'!AW11 ) ->  | AY11: =IF(OR(IFERROR(FIND($AD11,"施設コード"),0)>0,$AE11=""), "", '満足度(商品・サービス)'!AY11+'満足度(施設全体)'!AY11 ) ->  | BA11: =IF(OR(IFERROR(FIND($AD11,"施設コード"),0)>0,$AE11=""), "", '満足度(商品・サービス)'!BA11+'満足度(施設全体)'!BA11 ) ->  | BC11: =IF(OR(IFERROR(FIND($AD11,"施設コード"),0)>0,$AE11=""), "", '満足度(商品・サービス)'!BC11+'満足度(施設全体)'!BC11 ) -> 
AA12: =IF($AE12<>"",VLOOKUP($AE12,【M】満足度!$A$1:$B$5,2,0),"") ->  | AC12: 都道府県 | AD12: 福井県 | AG12: =IF(OR(IFERROR(FIND($AD12,"施設コード"),0)>0,$AE12=""), "", '満足度(商品・サービス)'!AG12+'満足度(施設全体)'!AG12 ) ->  | AI12: =IF(OR(IFERROR(FIND($AD12,"施設コード"),0)>0,$AE12=""), "", '満足度(商品・サービス)'!AI12+'満足度(施設全体)'!AI12 ) ->  | AK12: =IF(OR(IFERROR(FIND($AD12,"施設コード"),0)>0,$AE12=""), "", '満足度(商品・サービス)'!AK12+'満足度(施設全体)'!AK12 ) ->  | AM12: =IF(OR(IFERROR(FIND($AD12,"施設コード"),0)>0,$AE12=""), "", '満足度(商品・サービス)'!AM12+'満足度(施設全体)'!AM12 ) ->  | AO12: =IF(OR(IFERROR(FIND($AD12,"施設コード"),0)>0,$AE12=""), "", '満足度(商品・サービス)'!AO12+'満足度(施設全体)'!AO12 ) ->  | AQ12: =IF(OR(IFERROR(FIND($AD12,"施設コード"),0)>0,$AE12=""), "", '満足度(商品・サービス)'!AQ12+'満足度(施設全体)'!AQ12 ) ->  | AS12: =IF(OR(IFERROR(FIND($AD12,"施設コード"),0)>0,$AE12=""), "", '満足度(商品・サービス)'!AS12+'満足度(施設全体)'!AS12 ) ->  | AU12: =IF(OR(IFERROR(FIND($AD12,"施設コード"),0)>0,$AE12=""), "", '満足度(商品・サービス)'!AU12+'満足度(施設全体)'!AU12 ) ->  | AW12: =IF(OR(IFERROR(FIND($AD12,"施設コード"),0)>0,$AE12=""), "", '満足度(商品・サービス)'!AW12+'満足度(施設全体)'!AW12 ) ->  | AY12: =IF(OR(IFERROR(FIND($AD12,"施設コード"),0)>0,$AE12=""), "", '満足度(商品・サービス)'!AY12+'満足度(施設全体)'!AY12 ) ->  | BA12: =IF(OR(IFERROR(FIND($AD12,"施設コード"),0)>0,$AE12=""), "", '満足度(商品・サービス)'!BA12+'満足度(施設全体)'!BA12 ) ->  | BC12: =IF(OR(IFERROR(FIND($AD12,"施設コード"),0)>0,$AE12=""), "", '満足度(商品・サービス)'!BC12+'満足度(施設全体)'!BC12 ) -> 
AA13: =IF($AE13<>"",VLOOKUP($AE13,【M】満足度!$A$1:$B$5,2,0),"") ->  | AC13: 都道府県 | AD13: 福井県 | AG13: =IF(OR(IFERROR(FIND($AD13,"施設コード"),0)>0,$AE13=""), "", '満足度(商品・サービス)'!AG13+'満足度(施設全体)'!AG13 ) ->  | AI13: =IF(OR(IFERROR(FIND($AD13,"施設コード"),0)>0,$AE13=""), "", '満足度(商品・サービス)'!AI13+'満足度(施設全体)'!AI13 ) ->  | AK13: =IF(OR(IFERROR(FIND($AD13,"施設コード"),0)>0,$AE13=""), "", '満足度(商品・サービス)'!AK13+'満足度(施設全体)'!AK13 ) ->  | AM13: =IF(OR(IFERROR(FIND($AD13,"施設コード"),0)>0,$AE13=""), "", '満足度(商品・サービス)'!AM13+'満足度(施設全体)'!AM13 ) ->  | AO13: =IF(OR(IFERROR(FIND($AD13,"施設コード"),0)>0,$AE13=""), "", '満足度(商品・サービス)'!AO13+'満足度(施設全体)'!AO13 ) ->  | AQ13: =IF(OR(IFERROR(FIND($AD13,"施設コード"),0)>0,$AE13=""), "", '満足度(商品・サービス)'!AQ13+'満足度(施設全体)'!AQ13 ) ->  | AS13: =IF(OR(IFERROR(FIND($AD13,"施設コード"),0)>0,$AE13=""), "", '満足度(商品・サービス)'!AS13+'満足度(施設全体)'!AS13 ) ->  | AU13: =IF(OR(IFERROR(FIND($AD13,"施設コード"),0)>0,$AE13=""), "", '満足度(商品・サービス)'!AU13+'満足度(施設全体)'!AU13 ) ->  | AW13: =IF(OR(IFERROR(FIND($AD13,"施設コード"),0)>0,$AE13=""), "", '満足度(商品・サービス)'!AW13+'満足度(施設全体)'!AW13 ) ->  | AY13: =IF(OR(IFERROR(FIND($AD13,"施設コード"),0)>0,$AE13=""), "", '満足度(商品・サービス)'!AY13+'満足度(施設全体)'!AY13 ) ->  | BA13: =IF(OR(IFERROR(FIND($AD13,"施設コード"),0)>0,$AE13=""), "", '満足度(商品・サービス)'!BA13+'満足度(施設全体)'!BA13 ) ->  | BC13: =IF(OR(IFERROR(FIND($AD13,"施設コード"),0)>0,$AE13=""), "", '満足度(商品・サービス)'!BC13+'満足度(施設全体)'!BC13 ) -> 
AA14: =IF($AE14<>"",VLOOKUP($AE14,【M】満足度!$A$1:$B$5,2,0),"") ->  | AC14: =AC12 -> 都道府県 | AD14: =AD12 -> 福井県 | AG14: =IF(OR(IFERROR(FIND($AD14,"施設コード"),0)>0,$AE14=""), "", '満足度(商品・サービス)'!AG14+'満足度(施設全体)'!AG14 ) ->  | AH14: =IFERROR(AG14/AG$15,"") ->  | AI14: =IF(OR(IFERROR(FIND($AD14,"施設コード"),0)>0,$AE14=""), "", '満足度(商品・サービス)'!AI14+'満足度(施設全体)'!AI14 ) ->  | AJ14: =IFERROR(AI14/AI$15,"") ->  | AK14: =IF(OR(IFERROR(FIND($AD14,"施設コード"),0)>0,$AE14=""), "", '満足度(商品・サービス)'!AK14+'満足度(施設全体)'!AK14 ) ->  | AL14: =IFERROR(AK14/AK$15,"") ->  | AM14: =IF(OR(IFERROR(FIND($AD14,"施設コード"),0)>0,$AE14=""), "", '満足度(商品・サービス)'!AM14+'満足度(施設全体)'!AM14 ) ->  | AN14: =IFERROR(AM14/AM$15,"") ->  | AO14: =IF(OR(IFERROR(FIND($AD14,"施設コード"),0)>0,$AE14=""), "", '満足度(商品・サービス)'!AO14+'満足度(施設全体)'!AO14 ) ->  | AP14: =IFERROR(AO14/AO$15,"") ->  | AQ14: =IF(OR(IFERROR(FIND($AD14,"施設コード"),0)>0,$AE14=""), "", '満足度(商品・サービス)'!AQ14+'満足度(施設全体)'!AQ14 ) ->  | AR14: =IFERROR(AQ14/AQ$15,"") ->  | AS14: =IF(OR(IFERROR(FIND($AD14,"施設コード"),0)>0,$AE14=""), "", '満足度(商品・サービス)'!AS14+'満足度(施設全体)'!AS14 ) ->  | AT14: =IFERROR(AS14/AS$15,"") ->  | AU14: =IF(OR(IFERROR(FIND($AD14,"施設コード"),0)>0,$AE14=""), "", '満足度(商品・サービス)'!AU14+'満足度(施設全体)'!AU14 ) ->  | AV14: =IFERROR(AU14/AU$15,"") ->  | AW14: =IF(OR(IFERROR(FIND($AD14,"施設コード"),0)>0,$AE14=""), "", '満足度(商品・サービス)'!AW14+'満足度(施設全体)'!AW14 ) ->  | AX14: =IFERROR(AW14/AW$15,"") ->  | AY14: =IF(OR(IFERROR(FIND($AD14,"施設コード"),0)>0,$AE14=""), "", '満足度(商品・サービス)'!AY14+'満足度(施設全体)'!AY14 ) ->  | AZ14: =IFERROR(AY14/AY$15,"") ->  | BA14: =IF(OR(IFERROR(FIND($AD14,"施設コード"),0)>0,$AE14=""), "", '満足度(商品・サービス)'!BA14+'満足度(施設全体)'!BA14 ) ->  | BB14: =IFERROR(BA14/BA$15,"") ->  | BC14: =IF(OR(IFERROR(FIND($AD14,"施設コード"),0)>0,$AE14=""), "", '満足度(商品・サービス)'!BC14+'満足度(施設全体)'!BC14 ) ->  | BD14: =IFERROR(BC14/BC$15,"") ->  | BF14: =IFERROR(BE14/BE$15,"") -> 
AF15: 合計 | AG15: =SUM(AG3:AG14) -> 3,392件 | AH15: 100.0% | AI15: 5,990件 | AJ15: 100.0% | AK15: 3,670件 | AL15: 100.0% | AM15: 3,476件 | AN15: 100.0% | AO15: 4,492件 | AP15: 100.0% | AQ15: 4,706件 | AR15: 100.0% | AS15: 3,614件 | AT15: 100.0% | AU15: 4,252件 | AV15: 100.0% | AW15: 0件 | AX15: 0.0% | AY15: 0件 | AZ15: 0.0% | BA15: 0件 | BB15: 0.0% | BC15: 0件 | BD15: 0.0% | BE15: =AG15+AI15+AK15+AM15+AO15+AQ15+AS15+AU15+AW15+AY15+BA15+BC15 -> 33,592件 | BF15: =SUM(BF3:BF14) -> 100.0%
AF16: 総合満足度スコア | AG16: =IF(AG15>0,SUMPRODUCT($AA3:$AA14,AG3:AG14)/AG15,"-") -> 4.26 | AI16: =IF(AI15>0,SUMPRODUCT($AA3:$AA14,AI3:AI14)/AI15,"-") -> 4.25 | AK16: =IF(AK15>0,SUMPRODUCT($AA3:$AA14,AK3:AK14)/AK15,"-") -> 4.26 | AM16: =IF(AM15>0,SUMPRODUCT($AA3:$AA14,AM3:AM14)/AM15,"-") -> 4.29 | AO16: =IF(AO15>0,SUMPRODUCT($AA3:$AA14,AO3:AO14)/AO15,"-") -> 4.30 | AQ16: =IF(AQ15>0,SUMPRODUCT($AA3:$AA14,AQ3:AQ14)/AQ15,"-") -> 4.30 | AS16: =IF(AS15>0,SUMPRODUCT($AA3:$AA14,AS3:AS14)/AS15,"-") -> 4.22 | AU16: =IF(AU15>0,SUMPRODUCT($AA3:$AA14,AU3:AU14)/AU15,"-") -> 4.27 | AW16: =IF(AW15>0,SUMPRODUCT($AA3:$AA14,AW3:AW14)/AW15,"-") -> - | AY16: =IF(AY15>0,SUMPRODUCT($AA3:$AA14,AY3:AY14)/AY15,"-") -> - | BA16: =IF(BA15>0,SUMPRODUCT($AA3:$AA14,BA3:BA14)/BA15,"-") -> - | BC16: =IF(BC15>0,SUMPRODUCT($AA3:$AA14,BC3:BC14)/BC15,"-") -> - | BE16: =IF(BE15>0,SUMPRODUCT($AA3:$AA14,BE3:BE14)/BE15,"-") -> 4.27
AC17: =【M】エリア!$J$2 -> 6分類 | AD17: =【M】エリア!$L$3 -> 福井市・永平寺町
AA18: =IF($AE18<>"",VLOOKUP($AE18,【M】満足度!$A$1:$B$5,2,0),"") -> 5 | AC18: =AC17 -> 6分類 | AD18: =AD17 -> 福井市・永平寺町 | AE18: =IF(AE3<>"",AE3,"") -> とても満足 | AG18: =IF(OR(IFERROR(FIND($AD18,"施設コード"),0)>0,$AE18=""), "", '満足度(商品・サービス)'!AG18+'満足度(施設全体)'!AG18 ) -> 289件 | AH18: =IFERROR(AG18/AG$30,"") -> 39.1% | AI18: =IF(OR(IFERROR(FIND($AD18,"施設コード"),0)>0,$AE18=""), "", '満足度(商品・サービス)'!AI18+'満足度(施設全体)'!AI18 ) -> 398件 | AJ18: =IFERROR(AI18/AI$30,"") -> 39.0% | AK18: =IF(OR(IFERROR(FIND($AD18,"施設コード"),0)>0,$AE18=""), "", '満足度(商品・サービス)'!AK18+'満足度(施設全体)'!AK18 ) -> 221件 | AL18: =IFERROR(AK18/AK$30,"") -> 34.6% | AM18: =IF(OR(IFERROR(FIND($AD18,"施設コード"),0)>0,$AE18=""), "", '満足度(商品・サービス)'!AM18+'満足度(施設全体)'!AM18 ) -> 215件 | AN18: =IFERROR(AM18/AM$30,"") -> 36.3% | AO18: =IF(OR(IFERROR(FIND($AD18,"施設コード"),0)>0,$AE18=""), "", '満足度(商品・サービス)'!AO18+'満足度(施設全体)'!AO18 ) -> 308件 | AP18: =IFERROR(AO18/AO$30,"") -> 41.5% | AQ18: =IF(OR(IFERROR(FIND($AD18,"施設コード"),0)>0,$AE18=""), "", '満足度(商品・サービス)'!AQ18+'満足度(施設全体)'!AQ18 ) -> 306件 | AR18: =IFERROR(AQ18/AQ$30,"") -> 44.0% | AS18: =IF(OR(IFERROR(FIND($AD18,"施設コード"),0)>0,$AE18=""), "", '満足度(商品・サービス)'!AS18+'満足度(施設全体)'!AS18 ) -> 231件 | AT18: =IFERROR(AS18/AS$30,"") -> 40.0% | AU18: =IF(OR(IFERROR(FIND($AD18,"施設コード"),0)>0,$AE18=""), "", '満足度(商品・サービス)'!AU18+'満足度(施設全体)'!AU18 ) -> 311件 | AV18: =IFERROR(AU18/AU$30,"") -> 40.9% | AW18: =IF(OR(IFERROR(FIND($AD18,"施設コード"),0)>0,$AE18=""), "", '満足度(商品・サービス)'!AW18+'満足度(施設全体)'!AW18 ) -> 0件 | AX18: =IFERROR(AW18/AW$30,"") ->  | AY18: =IF(OR(IFERROR(FIND($AD18,"施設コード"),0)>0,$AE18=""), "", '満足度(商品・サービス)'!AY18+'満足度(施設全体)'!AY18 ) -> 0件 | AZ18: =IFERROR(AY18/AY$30,"") ->  | BA18: =IF(OR(IFERROR(FIND($AD18,"施設コード"),0)>0,$AE18=""), "", '満足度(商品・サービス)'!BA18+'満足度(施設全体)'!BA18 ) -> 0件 | BB18: =IFERROR(BA18/BA$30,"") ->  | BC18: =IF(OR(IFERROR(FIND($AD18,"施設コード"),0)>0,$AE18=""), "", '満足度(商品・サービス)'!BC18+'満足度(施設全体)'!BC18 ) -> 0件 | BD18: =IFERROR(BC18/BC$30,"") ->  | BE18: =IFERROR(AG18+AI18+AK18+AM18+AO18+AQ18+AS18+AU18+AW18+AY18+BA18+BC18,"") -> 2279件 | BF18: =IFERROR(BE18/BE$30,"") -> 39.5%
AA19: =IF($AE19<>"",VLOOKUP($AE19,【M】満足度!$A$1:$B$5,2,0),"") -> 4 | AC19: =AC18 -> 6分類 | AD19: 福井市・永平寺町 | AE19: 満足 | AG19: =IF(OR(IFERROR(FIND($AD19,"施設コード"),0)>0,$AE19=""), "", '満足度(商品・サービス)'!AG19+'満足度(施設全体)'!AG19 ) -> 382件 | AH19: 51.6% | AI19: =IF(OR(IFERROR(FIND($AD19,"施設コード"),0)>0,$AE19=""), "", '満足度(商品・サービス)'!AI19+'満足度(施設全体)'!AI19 ) -> 520件 | AJ19: 51.0% | AK19: =IF(OR(IFERROR(FIND($AD19,"施設コード"),0)>0,$AE19=""), "", '満足度(商品・サービス)'!AK19+'満足度(施設全体)'!AK19 ) -> 346件 | AL19: 54.2% | AM19: =IF(OR(IFERROR(FIND($AD19,"施設コード"),0)>0,$AE19=""), "", '満足度(商品・サービス)'!AM19+'満足度(施設全体)'!AM19 ) -> 302件 | AN19: 51.0% | AO19: =IF(OR(IFERROR(FIND($AD19,"施設コード"),0)>0,$AE19=""), "", '満足度(商品・サービス)'!AO19+'満足度(施設全体)'!AO19 ) -> 370件 | AP19: 49.9% | AQ19: =IF(OR(IFERROR(FIND($AD19,"施設コード"),0)>0,$AE19=""), "", '満足度(商品・サービス)'!AQ19+'満足度(施設全体)'!AQ19 ) -> 316件 | AR19: 45.4% | AS19: =IF(OR(IFERROR(FIND($AD19,"施設コード"),0)>0,$AE19=""), "", '満足度(商品・サービス)'!AS19+'満足度(施設全体)'!AS19 ) -> 285件 | AT19: 49.3% | AU19: =IF(OR(IFERROR(FIND($AD19,"施設コード"),0)>0,$AE19=""), "", '満足度(商品・サービス)'!AU19+'満足度(施設全体)'!AU19 ) -> 377件 | AV19: 49.6% | AW19: =IF(OR(IFERROR(FIND($AD19,"施設コード"),0)>0,$AE19=""), "", '満足度(商品・サービス)'!AW19+'満足度(施設全体)'!AW19 ) -> 0件 | AY19: =IF(OR(IFERROR(FIND($AD19,"施設コード"),0)>0,$AE19=""), "", '満足度(商品・サービス)'!AY19+'満足度(施設全体)'!AY19 ) -> 0件 | BA19: =IF(OR(IFERROR(FIND($AD19,"施設コード"),0)>0,$AE19=""), "", '満足度(商品・サービス)'!BA19+'満足度(施設全体)'!BA19 ) -> 0件 | BC19: =IF(OR(IFERROR(FIND($AD19,"施設コード"),0)>0,$AE19=""), "", '満足度(商品・サービス)'!BC19+'満足度(施設全体)'!BC19 ) -> 0件 | BE19: =IFERROR(AG19+AI19+AK19+AM19+AO19+AQ19+AS19+AU19+AW19+AY19+BA19+BC19,"") -> 2898件 | BF19: 50.3%
AA20: =IF($AE20<>"",VLOOKUP($AE20,【M】満足度!$A$1:$B$5,2,0),"") -> 3 | AC20: 6分類 | AD20: 福井市・永平寺町 | AE20: どちらでもない | AG20: =IF(OR(IFERROR(FIND($AD20,"施設コード"),0)>0,$AE20=""), "", '満足度(商品・サービス)'!AG20+'満足度(施設全体)'!AG20 ) -> 64件 | AH20: 8.6% | AI20: =IF(OR(IFERROR(FIND($AD20,"施設コード"),0)>0,$AE20=""), "", '満足度(商品・サービス)'!AI20+'満足度(施設全体)'!AI20 ) -> 89件 | AJ20: 8.7% | AK20: =IF(OR(IFERROR(FIND($AD20,"施設コード"),0)>0,$AE20=""), "", '満足度(商品・サービス)'!AK20+'満足度(施設全体)'!AK20 ) -> 65件 | AL20: 10.2% | AM20: =IF(OR(IFERROR(FIND($AD20,"施設コード"),0)>0,$AE20=""), "", '満足度(商品・サービス)'!AM20+'満足度(施設全体)'!AM20 ) -> 63件 | AN20: 10.6% | AO20: =IF(OR(IFERROR(FIND($AD20,"施設コード"),0)>0,$AE20=""), "", '満足度(商品・サービス)'!AO20+'満足度(施設全体)'!AO20 ) -> 56件 | AP20: 7.5% | AQ20: =IF(OR(IFERROR(FIND($AD20,"施設コード"),0)>0,$AE20=""), "", '満足度(商品・サービス)'!AQ20+'満足度(施設全体)'!AQ20 ) -> 70件 | AR20: 10.1% | AS20: =IF(OR(IFERROR(FIND($AD20,"施設コード"),0)>0,$AE20=""), "", '満足度(商品・サービス)'!AS20+'満足度(施設全体)'!AS20 ) -> 57件 | AT20: 9.9% | AU20: =IF(OR(IFERROR(FIND($AD20,"施設コード"),0)>0,$AE20=""), "", '満足度(商品・サービス)'!AU20+'満足度(施設全体)'!AU20 ) -> 69件 | AV20: 9.1% | AW20: =IF(OR(IFERROR(FIND($AD20,"施設コード"),0)>0,$AE20=""), "", '満足度(商品・サービス)'!AW20+'満足度(施設全体)'!AW20 ) -> 0件 | AY20: =IF(OR(IFERROR(FIND($AD20,"施設コード"),0)>0,$AE20=""), "", '満足度(商品・サービス)'!AY20+'満足度(施設全体)'!AY20 ) -> 0件 | BA20: =IF(OR(IFERROR(FIND($AD20,"施設コード"),0)>0,$AE20=""), "", '満足度(商品・サービス)'!BA20+'満足度(施設全体)'!BA20 ) -> 0件 | BC20: =IF(OR(IFERROR(FIND($AD20,"施設コード"),0)>0,$AE20=""), "", '満足度(商品・サービス)'!BC20+'満足度(施設全体)'!BC20 ) -> 0件 | BE20: 533件 | BF20: 9.2%
AA21: =IF($AE21<>"",VLOOKUP($AE21,【M】満足度!$A$1:$B$5,2,0),"") -> 2 | AC21: 6分類 | AD21: 福井市・永平寺町 | AE21: 不満 | AG21: =IF(OR(IFERROR(FIND($AD21,"施設コード"),0)>0,$AE21=""), "", '満足度(商品・サービス)'!AG21+'満足度(施設全体)'!AG21 ) -> 3件 | AH21: 0.4% | AI21: =IF(OR(IFERROR(FIND($AD21,"施設コード"),0)>0,$AE21=""), "", '満足度(商品・サービス)'!AI21+'満足度(施設全体)'!AI21 ) -> 12件 | AJ21: 1.2% | AK21: =IF(OR(IFERROR(FIND($AD21,"施設コード"),0)>0,$AE21=""), "", '満足度(商品・サービス)'!AK21+'満足度(施設全体)'!AK21 ) -> 6件 | AL21: 0.9% | AM21: =IF(OR(IFERROR(FIND($AD21,"施設コード"),0)>0,$AE21=""), "", '満足度(商品・サービス)'!AM21+'満足度(施設全体)'!AM21 ) -> 10件 | AN21: 1.7% | AO21: =IF(OR(IFERROR(FIND($AD21,"施設コード"),0)>0,$AE21=""), "", '満足度(商品・サービス)'!AO21+'満足度(施設全体)'!AO21 ) -> 8件 | AP21: 1.1% | AQ21: =IF(OR(IFERROR(FIND($AD21,"施設コード"),0)>0,$AE21=""), "", '満足度(商品・サービス)'!AQ21+'満足度(施設全体)'!AQ21 ) -> 4件 | AR21: 0.6% | AS21: =IF(OR(IFERROR(FIND($AD21,"施設コード"),0)>0,$AE21=""), "", '満足度(商品・サービス)'!AS21+'満足度(施設全体)'!AS21 ) -> 5件 | AT21: 0.9% | AU21: =IF(OR(IFERROR(FIND($AD21,"施設コード"),0)>0,$AE21=""), "", '満足度(商品・サービス)'!AU21+'満足度(施設全体)'!AU21 ) -> 3件 | AV21: 0.4% | AW21: =IF(OR(IFERROR(FIND($AD21,"施設コード"),0)>0,$AE21=""), "", '満足度(商品・サービス)'!AW21+'満足度(施設全体)'!AW21 ) -> 0件 | AY21: =IF(OR(IFERROR(FIND($AD21,"施設コード"),0)>0,$AE21=""), "", '満足度(商品・サービス)'!AY21+'満足度(施設全体)'!AY21 ) -> 0件 | BA21: =IF(OR(IFERROR(FIND($AD21,"施設コード"),0)>0,$AE21=""), "", '満足度(商品・サービス)'!BA21+'満足度(施設全体)'!BA21 ) -> 0件 | BC21: =IF(OR(IFERROR(FIND($AD21,"施設コード"),0)>0,$AE21=""), "", '満足度(商品・サービス)'!BC21+'満足度(施設全体)'!BC21 ) -> 0件 | BE21: 51件 | BF21: 0.9%
AA22: =IF($AE22<>"",VLOOKUP($AE22,【M】満足度!$A$1:$B$5,2,0),"") -> 1 | AC22: 6分類 | AD22: 福井市・永平寺町 | AE22: とても不満 | AG22: =IF(OR(IFERROR(FIND($AD22,"施設コード"),0)>0,$AE22=""), "", '満足度(商品・サービス)'!AG22+'満足度(施設全体)'!AG22 ) -> 2件 | AH22: 0.3% | AI22: =IF(OR(IFERROR(FIND($AD22,"施設コード"),0)>0,$AE22=""), "", '満足度(商品・サービス)'!AI22+'満足度(施設全体)'!AI22 ) -> 1件 | AJ22: 0.1% | AK22: =IF(OR(IFERROR(FIND($AD22,"施設コード"),0)>0,$AE22=""), "", '満足度(商品・サービス)'!AK22+'満足度(施設全体)'!AK22 ) -> 0件 | AL22: 0.0% | AM22: =IF(OR(IFERROR(FIND($AD22,"施設コード"),0)>0,$AE22=""), "", '満足度(商品・サービス)'!AM22+'満足度(施設全体)'!AM22 ) -> 2件 | AN22: 0.3% | AO22: =IF(OR(IFERROR(FIND($AD22,"施設コード"),0)>0,$AE22=""), "", '満足度(商品・サービス)'!AO22+'満足度(施設全体)'!AO22 ) -> 0件 | AP22: 0.0% | AQ22: =IF(OR(IFERROR(FIND($AD22,"施設コード"),0)>0,$AE22=""), "", '満足度(商品・サービス)'!AQ22+'満足度(施設全体)'!AQ22 ) -> 0件 | AR22: 0.0% | AS22: =IF(OR(IFERROR(FIND($AD22,"施設コード"),0)>0,$AE22=""), "", '満足度(商品・サービス)'!AS22+'満足度(施設全体)'!AS22 ) -> 0件 | AT22: 0.0% | AU22: =IF(OR(IFERROR(FIND($AD22,"施設コード"),0)>0,$AE22=""), "", '満足度(商品・サービス)'!AU22+'満足度(施設全体)'!AU22 ) -> 0件 | AV22: 0.0% | AW22: =IF(OR(IFERROR(FIND($AD22,"施設コード"),0)>0,$AE22=""), "", '満足度(商品・サービス)'!AW22+'満足度(施設全体)'!AW22 ) -> 0件 | AY22: =IF(OR(IFERROR(FIND($AD22,"施設コード"),0)>0,$AE22=""), "", '満足度(商品・サービス)'!AY22+'満足度(施設全体)'!AY22 ) -> 0件 | BA22: =IF(OR(IFERROR(FIND($AD22,"施設コード"),0)>0,$AE22=""), "", '満足度(商品・サービス)'!BA22+'満足度(施設全体)'!BA22 ) -> 0件 | BC22: =IF(OR(IFERROR(FIND($AD22,"施設コード"),0)>0,$AE22=""), "", '満足度(商品・サービス)'!BC22+'満足度(施設全体)'!BC22 ) -> 0件 | BE22: 5件 | BF22: 0.1%
AA23: =IF($AE23<>"",VLOOKUP($AE23,【M】満足度!$A$1:$B$5,2,0),"") ->  | AC23: 6分類 | AD23: 福井市・永平寺町 | AG23: =IF(OR(IFERROR(FIND($AD23,"施設コード"),0)>0,$AE23=""), "", '満足度(商品・サービス)'!AG23+'満足度(施設全体)'!AG23 ) ->  | AI23: =IF(OR(IFERROR(FIND($AD23,"施設コード"),0)>0,$AE23=""), "", '満足度(商品・サービス)'!AI23+'満足度(施設全体)'!AI23 ) ->  | AK23: =IF(OR(IFERROR(FIND($AD23,"施設コード"),0)>0,$AE23=""), "", '満足度(商品・サービス)'!AK23+'満足度(施設全体)'!AK23 ) ->  | AM23: =IF(OR(IFERROR(FIND($AD23,"施設コード"),0)>0,$AE23=""), "", '満足度(商品・サービス)'!AM23+'満足度(施設全体)'!AM23 ) ->  | AO23: =IF(OR(IFERROR(FIND($AD23,"施設コード"),0)>0,$AE23=""), "", '満足度(商品・サービス)'!AO23+'満足度(施設全体)'!AO23 ) ->  | AQ23: =IF(OR(IFERROR(FIND($AD23,"施設コード"),0)>0,$AE23=""), "", '満足度(商品・サービス)'!AQ23+'満足度(施設全体)'!AQ23 ) ->  | AS23: =IF(OR(IFERROR(FIND($AD23,"施設コード"),0)>0,$AE23=""), "", '満足度(商品・サービス)'!AS23+'満足度(施設全体)'!AS23 ) ->  | AU23: =IF(OR(IFERROR(FIND($AD23,"施設コード"),0)>0,$AE23=""), "", '満足度(商品・サービス)'!AU23+'満足度(施設全体)'!AU23 ) ->  | AW23: =IF(OR(IFERROR(FIND($AD23,"施設コード"),0)>0,$AE23=""), "", '満足度(商品・サービス)'!AW23+'満足度(施設全体)'!AW23 ) ->  | AY23: =IF(OR(IFERROR(FIND($AD23,"施設コード"),0)>0,$AE23=""), "", '満足度(商品・サービス)'!AY23+'満足度(施設全体)'!AY23 ) ->  | BA23: =IF(OR(IFERROR(FIND($AD23,"施設コード"),0)>0,$AE23=""), "", '満足度(商品・サービス)'!BA23+'満足度(施設全体)'!BA23 ) ->  | BC23: =IF(OR(IFERROR(FIND($AD23,"施設コード"),0)>0,$AE23=""), "", '満足度(商品・サービス)'!BC23+'満足度(施設全体)'!BC23 ) -> 
AA24: =IF($AE24<>"",VLOOKUP($AE24,【M】満足度!$A$1:$B$5,2,0),"") ->  | AC24: 6分類 | AD24: 福井市・永平寺町 | AG24: =IF(OR(IFERROR(FIND($AD24,"施設コード"),0)>0,$AE24=""), "", '満足度(商品・サービス)'!AG24+'満足度(施設全体)'!AG24 ) ->  | AI24: =IF(OR(IFERROR(FIND($AD24,"施設コード"),0)>0,$AE24=""), "", '満足度(商品・サービス)'!AI24+'満足度(施設全体)'!AI24 ) ->  | AK24: =IF(OR(IFERROR(FIND($AD24,"施設コード"),0)>0,$AE24=""), "", '満足度(商品・サービス)'!AK24+'満足度(施設全体)'!AK24 ) ->  | AM24: =IF(OR(IFERROR(FIND($AD24,"施設コード"),0)>0,$AE24=""), "", '満足度(商品・サービス)'!AM24+'満足度(施設全体)'!AM24 ) ->  | AO24: =IF(OR(IFERROR(FIND($AD24,"施設コード"),0)>0,$AE24=""), "", '満足度(商品・サービス)'!AO24+'満足度(施設全体)'!AO24 ) ->  | AQ24: =IF(OR(IFERROR(FIND($AD24,"施設コード"),0)>0,$AE24=""), "", '満足度(商品・サービス)'!AQ24+'満足度(施設全体)'!AQ24 ) ->  | AS24: =IF(OR(IFERROR(FIND($AD24,"施設コード"),0)>0,$AE24=""), "", '満足度(商品・サービス)'!AS24+'満足度(施設全体)'!AS24 ) ->  | AU24: =IF(OR(IFERROR(FIND($AD24,"施設コード"),0)>0,$AE24=""), "", '満足度(商品・サービス)'!AU24+'満足度(施設全体)'!AU24 ) ->  | AW24: =IF(OR(IFERROR(FIND($AD24,"施設コード"),0)>0,$AE24=""), "", '満足度(商品・サービス)'!AW24+'満足度(施設全体)'!AW24 ) ->  | AY24: =IF(OR(IFERROR(FIND($AD24,"施設コード"),0)>0,$AE24=""), "", '満足度(商品・サービス)'!AY24+'満足度(施設全体)'!AY24 ) ->  | BA24: =IF(OR(IFERROR(FIND($AD24,"施設コード"),0)>0,$AE24=""), "", '満足度(商品・サービス)'!BA24+'満足度(施設全体)'!BA24 ) ->  | BC24: =IF(OR(IFERROR(FIND($AD24,"施設コード"),0)>0,$AE24=""), "", '満足度(商品・サービス)'!BC24+'満足度(施設全体)'!BC24 ) -> 
AA25: =IF($AE25<>"",VLOOKUP($AE25,【M】満足度!$A$1:$B$5,2,0),"") ->  | AC25: =AC24 -> 6分類 | AD25: =AD24 -> 福井市・永平寺町 | AG25: =IF(OR(IFERROR(FIND($AD25,"施設コード"),0)>0,$AE25=""), "", '満足度(商品・サービス)'!AG25+'満足度(施設全体)'!AG25 ) ->  | AI25: =IF(OR(IFERROR(FIND($AD25,"施設コード"),0)>0,$AE25=""), "", '満足度(商品・サービス)'!AI25+'満足度(施設全体)'!AI25 ) ->  | AK25: =IF(OR(IFERROR(FIND($AD25,"施設コード"),0)>0,$AE25=""), "", '満足度(商品・サービス)'!AK25+'満足度(施設全体)'!AK25 ) ->  | AM25: =IF(OR(IFERROR(FIND($AD25,"施設コード"),0)>0,$AE25=""), "", '満足度(商品・サービス)'!AM25+'満足度(施設全体)'!AM25 ) ->  | AO25: =IF(OR(IFERROR(FIND($AD25,"施設コード"),0)>0,$AE25=""), "", '満足度(商品・サービス)'!AO25+'満足度(施設全体)'!AO25 ) ->  | AQ25: =IF(OR(IFERROR(FIND($AD25,"施設コード"),0)>0,$AE25=""), "", '満足度(商品・サービス)'!AQ25+'満足度(施設全体)'!AQ25 ) ->  | AS25: =IF(OR(IFERROR(FIND($AD25,"施設コード"),0)>0,$AE25=""), "", '満足度(商品・サービス)'!AS25+'満足度(施設全体)'!AS25 ) ->  | AU25: =IF(OR(IFERROR(FIND($AD25,"施設コード"),0)>0,$AE25=""), "", '満足度(商品・サービス)'!AU25+'満足度(施設全体)'!AU25 ) ->  | AW25: =IF(OR(IFERROR(FIND($AD25,"施設コード"),0)>0,$AE25=""), "", '満足度(商品・サービス)'!AW25+'満足度(施設全体)'!AW25 ) ->  | AY25: =IF(OR(IFERROR(FIND($AD25,"施設コード"),0)>0,$AE25=""), "", '満足度(商品・サービス)'!AY25+'満足度(施設全体)'!AY25 ) ->  | BA25: =IF(OR(IFERROR(FIND($AD25,"施設コード"),0)>0,$AE25=""), "", '満足度(商品・サービス)'!BA25+'満足度(施設全体)'!BA25 ) ->  | BC25: =IF(OR(IFERROR(FIND($AD25,"施設コード"),0)>0,$AE25=""), "", '満足度(商品・サービス)'!BC25+'満足度(施設全体)'!BC25 ) -> 
AA26: =IF($AE26<>"",VLOOKUP($AE26,【M】満足度!$A$1:$B$5,2,0),"") ->  | AC26: 6分類 | AD26: 福井市・永平寺町 | AG26: =IF(OR(IFERROR(FIND($AD26,"施設コード"),0)>0,$AE26=""), "", '満足度(商品・サービス)'!AG26+'満足度(施設全体)'!AG26 ) ->  | AI26: =IF(OR(IFERROR(FIND($AD26,"施設コード"),0)>0,$AE26=""), "", '満足度(商品・サービス)'!AI26+'満足度(施設全体)'!AI26 ) ->  | AK26: =IF(OR(IFERROR(FIND($AD26,"施設コード"),0)>0,$AE26=""), "", '満足度(商品・サービス)'!AK26+'満足度(施設全体)'!AK26 ) ->  | AM26: =IF(OR(IFERROR(FIND($AD26,"施設コード"),0)>0,$AE26=""), "", '満足度(商品・サービス)'!AM26+'満足度(施設全体)'!AM26 ) ->  | AO26: =IF(OR(IFERROR(FIND($AD26,"施設コード"),0)>0,$AE26=""), "", '満足度(商品・サービス)'!AO26+'満足度(施設全体)'!AO26 ) ->  | AQ26: =IF(OR(IFERROR(FIND($AD26,"施設コード"),0)>0,$AE26=""), "", '満足度(商品・サービス)'!AQ26+'満足度(施設全体)'!AQ26 ) ->  | AS26: =IF(OR(IFERROR(FIND($AD26,"施設コード"),0)>0,$AE26=""), "", '満足度(商品・サービス)'!AS26+'満足度(施設全体)'!AS26 ) ->  | AU26: =IF(OR(IFERROR(FIND($AD26,"施設コード"),0)>0,$AE26=""), "", '満足度(商品・サービス)'!AU26+'満足度(施設全体)'!AU26 ) ->  | AW26: =IF(OR(IFERROR(FIND($AD26,"施設コード"),0)>0,$AE26=""), "", '満足度(商品・サービス)'!AW26+'満足度(施設全体)'!AW26 ) ->  | AY26: =IF(OR(IFERROR(FIND($AD26,"施設コード"),0)>0,$AE26=""), "", '満足度(商品・サービス)'!AY26+'満足度(施設全体)'!AY26 ) ->  | BA26: =IF(OR(IFERROR(FIND($AD26,"施設コード"),0)>0,$AE26=""), "", '満足度(商品・サービス)'!BA26+'満足度(施設全体)'!BA26 ) ->  | BC26: =IF(OR(IFERROR(FIND($AD26,"施設コード"),0)>0,$AE26=""), "", '満足度(商品・サービス)'!BC26+'満足度(施設全体)'!BC26 ) -> 
AA27: =IF($AE27<>"",VLOOKUP($AE27,【M】満足度!$A$1:$B$5,2,0),"") ->  | AC27: 6分類 | AD27: 福井市・永平寺町 | AG27: =IF(OR(IFERROR(FIND($AD27,"施設コード"),0)>0,$AE27=""), "", '満足度(商品・サービス)'!AG27+'満足度(施設全体)'!AG27 ) ->  | AI27: =IF(OR(IFERROR(FIND($AD27,"施設コード"),0)>0,$AE27=""), "", '満足度(商品・サービス)'!AI27+'満足度(施設全体)'!AI27 ) ->  | AK27: =IF(OR(IFERROR(FIND($AD27,"施設コード"),0)>0,$AE27=""), "", '満足度(商品・サービス)'!AK27+'満足度(施設全体)'!AK27 ) ->  | AM27: =IF(OR(IFERROR(FIND($AD27,"施設コード"),0)>0,$AE27=""), "", '満足度(商品・サービス)'!AM27+'満足度(施設全体)'!AM27 ) ->  | AO27: =IF(OR(IFERROR(FIND($AD27,"施設コード"),0)>0,$AE27=""), "", '満足度(商品・サービス)'!AO27+'満足度(施設全体)'!AO27 ) ->  | AQ27: =IF(OR(IFERROR(FIND($AD27,"施設コード"),0)>0,$AE27=""), "", '満足度(商品・サービス)'!AQ27+'満足度(施設全体)'!AQ27 ) ->  | AS27: =IF(OR(IFERROR(FIND($AD27,"施設コード"),0)>0,$AE27=""), "", '満足度(商品・サービス)'!AS27+'満足度(施設全体)'!AS27 ) ->  | AU27: =IF(OR(IFERROR(FIND($AD27,"施設コード"),0)>0,$AE27=""), "", '満足度(商品・サービス)'!AU27+'満足度(施設全体)'!AU27 ) ->  | AW27: =IF(OR(IFERROR(FIND($AD27,"施設コード"),0)>0,$AE27=""), "", '満足度(商品・サービス)'!AW27+'満足度(施設全体)'!AW27 ) ->  | AY27: =IF(OR(IFERROR(FIND($AD27,"施設コード"),0)>0,$AE27=""), "", '満足度(商品・サービス)'!AY27+'満足度(施設全体)'!AY27 ) ->  | BA27: =IF(OR(IFERROR(FIND($AD27,"施設コード"),0)>0,$AE27=""), "", '満足度(商品・サービス)'!BA27+'満足度(施設全体)'!BA27 ) ->  | BC27: =IF(OR(IFERROR(FIND($AD27,"施設コード"),0)>0,$AE27=""), "", '満足度(商品・サービス)'!BC27+'満足度(施設全体)'!BC27 ) -> 
AA28: =IF($AE28<>"",VLOOKUP($AE28,【M】満足度!$A$1:$B$5,2,0),"") ->  | AC28: 6分類 | AD28: 福井市・永平寺町 | AG28: =IF(OR(IFERROR(FIND($AD28,"施設コード"),0)>0,$AE28=""), "", '満足度(商品・サービス)'!AG28+'満足度(施設全体)'!AG28 ) ->  | AI28: =IF(OR(IFERROR(FIND($AD28,"施設コード"),0)>0,$AE28=""), "", '満足度(商品・サービス)'!AI28+'満足度(施設全体)'!AI28 ) ->  | AK28: =IF(OR(IFERROR(FIND($AD28,"施設コード"),0)>0,$AE28=""), "", '満足度(商品・サービス)'!AK28+'満足度(施設全体)'!AK28 ) ->  | AM28: =IF(OR(IFERROR(FIND($AD28,"施設コード"),0)>0,$AE28=""), "", '満足度(商品・サービス)'!AM28+'満足度(施設全体)'!AM28 ) ->  | AO28: =IF(OR(IFERROR(FIND($AD28,"施設コード"),0)>0,$AE28=""), "", '満足度(商品・サービス)'!AO28+'満足度(施設全体)'!AO28 ) ->  | AQ28: =IF(OR(IFERROR(FIND($AD28,"施設コード"),0)>0,$AE28=""), "", '満足度(商品・サービス)'!AQ28+'満足度(施設全体)'!AQ28 ) ->  | AS28: =IF(OR(IFERROR(FIND($AD28,"施設コード"),0)>0,$AE28=""), "", '満足度(商品・サービス)'!AS28+'満足度(施設全体)'!AS28 ) ->  | AU28: =IF(OR(IFERROR(FIND($AD28,"施設コード"),0)>0,$AE28=""), "", '満足度(商品・サービス)'!AU28+'満足度(施設全体)'!AU28 ) ->  | AW28: =IF(OR(IFERROR(FIND($AD28,"施設コード"),0)>0,$AE28=""), "", '満足度(商品・サービス)'!AW28+'満足度(施設全体)'!AW28 ) ->  | AY28: =IF(OR(IFERROR(FIND($AD28,"施設コード"),0)>0,$AE28=""), "", '満足度(商品・サービス)'!AY28+'満足度(施設全体)'!AY28 ) ->  | BA28: =IF(OR(IFERROR(FIND($AD28,"施設コード"),0)>0,$AE28=""), "", '満足度(商品・サービス)'!BA28+'満足度(施設全体)'!BA28 ) ->  | BC28: =IF(OR(IFERROR(FIND($AD28,"施設コード"),0)>0,$AE28=""), "", '満足度(商品・サービス)'!BC28+'満足度(施設全体)'!BC28 ) -> 
AA29: =IF($AE29<>"",VLOOKUP($AE29,【M】満足度!$A$1:$B$5,2,0),"") ->  | AC29: =AC27 -> 6分類 | AD29: =AD27 -> 福井市・永平寺町 | AE29: =IF(AE14<>"",AE14,"") ->  | AG29: =IF(OR(IFERROR(FIND($AD29,"施設コード"),0)>0,$AE29=""), "", '満足度(商品・サービス)'!AG29+'満足度(施設全体)'!AG29 ) ->  | AH29: =IFERROR(AG29/AG$30,"") ->  | AI29: =IF(OR(IFERROR(FIND($AD29,"施設コード"),0)>0,$AE29=""), "", '満足度(商品・サービス)'!AI29+'満足度(施設全体)'!AI29 ) ->  | AJ29: =IFERROR(AI29/AI$30,"") ->  | AK29: =IF(OR(IFERROR(FIND($AD29,"施設コード"),0)>0,$AE29=""), "", '満足度(商品・サービス)'!AK29+'満足度(施設全体)'!AK29 ) ->  | AL29: =IFERROR(AK29/AK$30,"") ->  | AM29: =IF(OR(IFERROR(FIND($AD29,"施設コード"),0)>0,$AE29=""), "", '満足度(商品・サービス)'!AM29+'満足度(施設全体)'!AM29 ) ->  | AN29: =IFERROR(AM29/AM$30,"") ->  | AO29: =IF(OR(IFERROR(FIND($AD29,"施設コード"),0)>0,$AE29=""), "", '満足度(商品・サービス)'!AO29+'満足度(施設全体)'!AO29 ) ->  | AP29: =IFERROR(AO29/AO$30,"") ->  | AQ29: =IF(OR(IFERROR(FIND($AD29,"施設コード"),0)>0,$AE29=""), "", '満足度(商品・サービス)'!AQ29+'満足度(施設全体)'!AQ29 ) ->  | AR29: =IFERROR(AQ29/AQ$30,"") ->  | AS29: =IF(OR(IFERROR(FIND($AD29,"施設コード"),0)>0,$AE29=""), "", '満足度(商品・サービス)'!AS29+'満足度(施設全体)'!AS29 ) ->  | AT29: =IFERROR(AS29/AS$30,"") ->  | AU29: =IF(OR(IFERROR(FIND($AD29,"施設コード"),0)>0,$AE29=""), "", '満足度(商品・サービス)'!AU29+'満足度(施設全体)'!AU29 ) ->  | AV29: =IFERROR(AU29/AU$30,"") ->  | AW29: =IF(OR(IFERROR(FIND($AD29,"施設コード"),0)>0,$AE29=""), "", '満足度(商品・サービス)'!AW29+'満足度(施設全体)'!AW29 ) ->  | AX29: =IFERROR(AW29/AW$30,"") ->  | AY29: =IF(OR(IFERROR(FIND($AD29,"施設コード"),0)>0,$AE29=""), "", '満足度(商品・サービス)'!AY29+'満足度(施設全体)'!AY29 ) ->  | AZ29: =IFERROR(AY29/AY$30,"") ->  | BA29: =IF(OR(IFERROR(FIND($AD29,"施設コード"),0)>0,$AE29=""), "", '満足度(商品・サービス)'!BA29+'満足度(施設全体)'!BA29 ) ->  | BB29: =IFERROR(BA29/BA$30,"") ->  | BC29: =IF(OR(IFERROR(FIND($AD29,"施設コード"),0)>0,$AE29=""), "", '満足度(商品・サービス)'!BC29+'満足度(施設全体)'!BC29 ) ->  | BD29: =IFERROR(BC29/BC$30,"") ->  | BF29: =IFERROR(BE29/BE$30,"") -> 
AF30: 合計 | AG30: =SUM(AG18:AG29) -> 740件 | AH30: 100.0% | AI30: 1,020件 | AJ30: 100.0% | AK30: 638件 | AL30: 100.0% | AM30: 592件 | AN30: 100.0% | AO30: 742件 | AP30: 100.0% | AQ30: 696件 | AR30: 100.0% | AS30: 578件 | AT30: 100.0% | AU30: 760件 | AV30: 100.0% | AW30: 0件 | AX30: 0.0% | AY30: 0件 | AZ30: 0.0% | BA30: 0件 | BB30: 0.0% | BC30: 0件 | BD30: 0.0% | BE30: 5,766件 | BF30: 100.0%
AF31: =IF(AF$16<>"",AF$16,"") -> 総合満足度スコア | AG31: =IF(AG30>0,SUMPRODUCT($AA18:$AA29,AG18:AG29)/AG30,"-") -> 4.29 | AI31: =IF(AI30>0,SUMPRODUCT($AA18:$AA29,AI18:AI29)/AI30,"-") -> 4.28 | AK31: =IF(AK30>0,SUMPRODUCT($AA18:$AA29,AK18:AK29)/AK30,"-") -> 4.23 | AM31: =IF(AM30>0,SUMPRODUCT($AA18:$AA29,AM18:AM29)/AM30,"-") -> 4.21 | AO31: =IF(AO30>0,SUMPRODUCT($AA18:$AA29,AO18:AO29)/AO30,"-") -> 4.32 | AQ31: =IF(AQ30>0,SUMPRODUCT($AA18:$AA29,AQ18:AQ29)/AQ30,"-") -> 4.33 | AS31: =IF(AS30>0,SUMPRODUCT($AA18:$AA29,AS18:AS29)/AS30,"-") -> 4.28 | AU31: =IF(AU30>0,SUMPRODUCT($AA18:$AA29,AU18:AU29)/AU30,"-") -> 4.31 | AW31: =IF(AW30>0,SUMPRODUCT($AA18:$AA29,AW18:AW29)/AW30,"-") -> - | AY31: =IF(AY30>0,SUMPRODUCT($AA18:$AA29,AY18:AY29)/AY30,"-") -> - | BA31: =IF(BA30>0,SUMPRODUCT($AA18:$AA29,BA18:BA29)/BA30,"-") -> - | BC31: =IF(BC30>0,SUMPRODUCT($AA18:$AA29,BC18:BC29)/BC30,"-") -> - | BE31: =IF(BE30>0,SUMPRODUCT($AA18:$AA29,BE18:BE29)/BE30,"-") -> 4.28
AC32: 市町村 | AD32: =【M】エリア!$L$4 -> 福井市
AA33: =IF($AE33<>"",VLOOKUP($AE33,【M】満足度!$A$1:$B$5,2,0),"") -> 5 | AC33: =AC32 -> 市町村 | AD33: =AD32 -> 福井市 | AE33: =IF(AE3<>"",AE3,"") -> とても満足 | AG33: =IF(OR(IFERROR(FIND($AD33,"施設コード"),0)>0,$AE33=""), "", '満足度(商品・サービス)'!AG33+'満足度(施設全体)'!AG33 ) -> 127件 | AH33: =IFERROR(AG33/AG$45,"") -> 34.7% | AI33: =IF(OR(IFERROR(FIND($AD33,"施設コード"),0)>0,$AE33=""), "", '満足度(商品・サービス)'!AI33+'満足度(施設全体)'!AI33 ) -> 184件 | AJ33: =IFERROR(AI33/AI$45,"") -> 38.3% | AK33: =IF(OR(IFERROR(FIND($AD33,"施設コード"),0)>0,$AE33=""), "", '満足度(商品・サービス)'!AK33+'満足度(施設全体)'!AK33 ) -> 102件 | AL33: =IFERROR(AK33/AK$45,"") -> 34.0% | AM33: =IF(OR(IFERROR(FIND($AD33,"施設コード"),0)>0,$AE33=""), "", '満足度(商品・サービス)'!AM33+'満足度(施設全体)'!AM33 ) -> 115件 | AN33: =IFERROR(AM33/AM$45,"") -> 35.7% | AO33: =IF(OR(IFERROR(FIND($AD33,"施設コード"),0)>0,$AE33=""), "", '満足度(商品・サービス)'!AO33+'満足度(施設全体)'!AO33 ) -> 90件 | AP33: =IFERROR(AO33/AO$45,"") -> 35.7% | AQ33: =IF(OR(IFERROR(FIND($AD33,"施設コード"),0)>0,$AE33=""), "", '満足度(商品・サービス)'!AQ33+'満足度(施設全体)'!AQ33 ) -> 132件 | AR33: =IFERROR(AQ33/AQ$45,"") -> 44.9% | AS33: =IF(OR(IFERROR(FIND($AD33,"施設コード"),0)>0,$AE33=""), "", '満足度(商品・サービス)'!AS33+'満足度(施設全体)'!AS33 ) -> 125件 | AT33: =IFERROR(AS33/AS$45,"") -> 41.7% | AU33: =IF(OR(IFERROR(FIND($AD33,"施設コード"),0)>0,$AE33=""), "", '満足度(商品・サービス)'!AU33+'満足度(施設全体)'!AU33 ) -> 124件 | AV33: =IFERROR(AU33/AU$45,"") -> 34.6% | AW33: =IF(OR(IFERROR(FIND($AD33,"施設コード"),0)>0,$AE33=""), "", '満足度(商品・サービス)'!AW33+'満足度(施設全体)'!AW33 ) -> 0件 | AX33: =IFERROR(AW33/AW$45,"") ->  | AY33: =IF(OR(IFERROR(FIND($AD33,"施設コード"),0)>0,$AE33=""), "", '満足度(商品・サービス)'!AY33+'満足度(施設全体)'!AY33 ) -> 0件 | AZ33: =IFERROR(AY33/AY$45,"") ->  | BA33: =IF(OR(IFERROR(FIND($AD33,"施設コード"),0)>0,$AE33=""), "", '満足度(商品・サービス)'!BA33+'満足度(施設全体)'!BA33 ) -> 0件 | BB33: =IFERROR(BA33/BA$45,"") ->  | BC33: =IF(OR(IFERROR(FIND($AD33,"施設コード"),0)>0,$AE33=""), "", '満足度(商品・サービス)'!BC33+'満足度(施設全体)'!BC33 ) -> 0件 | BD33: =IFERROR(BC33/BC$45,"") ->  | BE33: =IFERROR(AG33+AI33+AK33+AM33+AO33+AQ33+AS33+AU33+AW33+AY33+BA33+BC33,"") -> 999件 | BF33: =IFERROR(BE33/BE$45,"") -> 37.4%
AA34: =IF($AE34<>"",VLOOKUP($AE34,【M】満足度!$A$1:$B$5,2,0),"") -> 4 | AC34: =AC33 -> 市町村 | AD34: 福井市 | AE34: 満足 | AG34: =IF(OR(IFERROR(FIND($AD34,"施設コード"),0)>0,$AE34=""), "", '満足度(商品・サービス)'!AG34+'満足度(施設全体)'!AG34 ) -> 198件 | AH34: 54.1% | AI34: =IF(OR(IFERROR(FIND($AD34,"施設コード"),0)>0,$AE34=""), "", '満足度(商品・サービス)'!AI34+'満足度(施設全体)'!AI34 ) -> 255件 | AJ34: 53.1% | AK34: =IF(OR(IFERROR(FIND($AD34,"施設コード"),0)>0,$AE34=""), "", '満足度(商品・サービス)'!AK34+'満足度(施設全体)'!AK34 ) -> 160件 | AL34: 53.3% | AM34: =IF(OR(IFERROR(FIND($AD34,"施設コード"),0)>0,$AE34=""), "", '満足度(商品・サービス)'!AM34+'満足度(施設全体)'!AM34 ) -> 166件 | AN34: 51.6% | AO34: =IF(OR(IFERROR(FIND($AD34,"施設コード"),0)>0,$AE34=""), "", '満足度(商品・サービス)'!AO34+'満足度(施設全体)'!AO34 ) -> 130件 | AP34: 51.6% | AQ34: =IF(OR(IFERROR(FIND($AD34,"施設コード"),0)>0,$AE34=""), "", '満足度(商品・サービス)'!AQ34+'満足度(施設全体)'!AQ34 ) -> 132件 | AR34: 44.9% | AS34: =IF(OR(IFERROR(FIND($AD34,"施設コード"),0)>0,$AE34=""), "", '満足度(商品・サービス)'!AS34+'満足度(施設全体)'!AS34 ) -> 139件 | AT34: 46.3% | AU34: =IF(OR(IFERROR(FIND($AD34,"施設コード"),0)>0,$AE34=""), "", '満足度(商品・サービス)'!AU34+'満足度(施設全体)'!AU34 ) -> 189件 | AV34: 52.8% | AW34: =IF(OR(IFERROR(FIND($AD34,"施設コード"),0)>0,$AE34=""), "", '満足度(商品・サービス)'!AW34+'満足度(施設全体)'!AW34 ) -> 0件 | AY34: =IF(OR(IFERROR(FIND($AD34,"施設コード"),0)>0,$AE34=""), "", '満足度(商品・サービス)'!AY34+'満足度(施設全体)'!AY34 ) -> 0件 | BA34: =IF(OR(IFERROR(FIND($AD34,"施設コード"),0)>0,$AE34=""), "", '満足度(商品・サービス)'!BA34+'満足度(施設全体)'!BA34 ) -> 0件 | BC34: =IF(OR(IFERROR(FIND($AD34,"施設コード"),0)>0,$AE34=""), "", '満足度(商品・サービス)'!BC34+'満足度(施設全体)'!BC34 ) -> 0件 | BE34: =IFERROR(AG34+AI34+AK34+AM34+AO34+AQ34+AS34+AU34+AW34+AY34+BA34+BC34,"") -> 1369件 | BF34: 51.2%
AA35: =IF($AE35<>"",VLOOKUP($AE35,【M】満足度!$A$1:$B$5,2,0),"") -> 3 | AC35: 市町村 | AD35: 福井市 | AE35: どちらでもない | AG35: =IF(OR(IFERROR(FIND($AD35,"施設コード"),0)>0,$AE35=""), "", '満足度(商品・サービス)'!AG35+'満足度(施設全体)'!AG35 ) -> 38件 | AH35: 10.4% | AI35: =IF(OR(IFERROR(FIND($AD35,"施設コード"),0)>0,$AE35=""), "", '満足度(商品・サービス)'!AI35+'満足度(施設全体)'!AI35 ) -> 34件 | AJ35: 7.1% | AK35: =IF(OR(IFERROR(FIND($AD35,"施設コード"),0)>0,$AE35=""), "", '満足度(商品・サービス)'!AK35+'満足度(施設全体)'!AK35 ) -> 34件 | AL35: 11.3% | AM35: =IF(OR(IFERROR(FIND($AD35,"施設コード"),0)>0,$AE35=""), "", '満足度(商品・サービス)'!AM35+'満足度(施設全体)'!AM35 ) -> 32件 | AN35: 9.9% | AO35: =IF(OR(IFERROR(FIND($AD35,"施設コード"),0)>0,$AE35=""), "", '満足度(商品・サービス)'!AO35+'満足度(施設全体)'!AO35 ) -> 30件 | AP35: 11.9% | AQ35: =IF(OR(IFERROR(FIND($AD35,"施設コード"),0)>0,$AE35=""), "", '満足度(商品・サービス)'!AQ35+'満足度(施設全体)'!AQ35 ) -> 29件 | AR35: 9.9% | AS35: =IF(OR(IFERROR(FIND($AD35,"施設コード"),0)>0,$AE35=""), "", '満足度(商品・サービス)'!AS35+'満足度(施設全体)'!AS35 ) -> 32件 | AT35: 10.7% | AU35: =IF(OR(IFERROR(FIND($AD35,"施設コード"),0)>0,$AE35=""), "", '満足度(商品・サービス)'!AU35+'満足度(施設全体)'!AU35 ) -> 44件 | AV35: 12.3% | AW35: =IF(OR(IFERROR(FIND($AD35,"施設コード"),0)>0,$AE35=""), "", '満足度(商品・サービス)'!AW35+'満足度(施設全体)'!AW35 ) -> 0件 | AY35: =IF(OR(IFERROR(FIND($AD35,"施設コード"),0)>0,$AE35=""), "", '満足度(商品・サービス)'!AY35+'満足度(施設全体)'!AY35 ) -> 0件 | BA35: =IF(OR(IFERROR(FIND($AD35,"施設コード"),0)>0,$AE35=""), "", '満足度(商品・サービス)'!BA35+'満足度(施設全体)'!BA35 ) -> 0件 | BC35: =IF(OR(IFERROR(FIND($AD35,"施設コード"),0)>0,$AE35=""), "", '満足度(商品・サービス)'!BC35+'満足度(施設全体)'!BC35 ) -> 0件 | BE35: 273件 | BF35: 10.2%
AA36: =IF($AE36<>"",VLOOKUP($AE36,【M】満足度!$A$1:$B$5,2,0),"") -> 2 | AC36: 市町村 | AD36: 福井市 | AE36: 不満 | AG36: =IF(OR(IFERROR(FIND($AD36,"施設コード"),0)>0,$AE36=""), "", '満足度(商品・サービス)'!AG36+'満足度(施設全体)'!AG36 ) -> 1件 | AH36: 0.3% | AI36: =IF(OR(IFERROR(FIND($AD36,"施設コード"),0)>0,$AE36=""), "", '満足度(商品・サービス)'!AI36+'満足度(施設全体)'!AI36 ) -> 6件 | AJ36: 1.3% | AK36: =IF(OR(IFERROR(FIND($AD36,"施設コード"),0)>0,$AE36=""), "", '満足度(商品・サービス)'!AK36+'満足度(施設全体)'!AK36 ) -> 4件 | AL36: 1.3% | AM36: =IF(OR(IFERROR(FIND($AD36,"施設コード"),0)>0,$AE36=""), "", '満足度(商品・サービス)'!AM36+'満足度(施設全体)'!AM36 ) -> 7件 | AN36: 2.2% | AO36: =IF(OR(IFERROR(FIND($AD36,"施設コード"),0)>0,$AE36=""), "", '満足度(商品・サービス)'!AO36+'満足度(施設全体)'!AO36 ) -> 2件 | AP36: 0.8% | AQ36: =IF(OR(IFERROR(FIND($AD36,"施設コード"),0)>0,$AE36=""), "", '満足度(商品・サービス)'!AQ36+'満足度(施設全体)'!AQ36 ) -> 1件 | AR36: 0.3% | AS36: =IF(OR(IFERROR(FIND($AD36,"施設コード"),0)>0,$AE36=""), "", '満足度(商品・サービス)'!AS36+'満足度(施設全体)'!AS36 ) -> 4件 | AT36: 1.3% | AU36: =IF(OR(IFERROR(FIND($AD36,"施設コード"),0)>0,$AE36=""), "", '満足度(商品・サービス)'!AU36+'満足度(施設全体)'!AU36 ) -> 1件 | AV36: 0.3% | AW36: =IF(OR(IFERROR(FIND($AD36,"施設コード"),0)>0,$AE36=""), "", '満足度(商品・サービス)'!AW36+'満足度(施設全体)'!AW36 ) -> 0件 | AY36: =IF(OR(IFERROR(FIND($AD36,"施設コード"),0)>0,$AE36=""), "", '満足度(商品・サービス)'!AY36+'満足度(施設全体)'!AY36 ) -> 0件 | BA36: =IF(OR(IFERROR(FIND($AD36,"施設コード"),0)>0,$AE36=""), "", '満足度(商品・サービス)'!BA36+'満足度(施設全体)'!BA36 ) -> 0件 | BC36: =IF(OR(IFERROR(FIND($AD36,"施設コード"),0)>0,$AE36=""), "", '満足度(商品・サービス)'!BC36+'満足度(施設全体)'!BC36 ) -> 0件 | BE36: 26件 | BF36: 1.0%
AA37: =IF($AE37<>"",VLOOKUP($AE37,【M】満足度!$A$1:$B$5,2,0),"") -> 1 | AC37: 市町村 | AD37: 福井市 | AE37: とても不満 | AG37: =IF(OR(IFERROR(FIND($AD37,"施設コード"),0)>0,$AE37=""), "", '満足度(商品・サービス)'!AG37+'満足度(施設全体)'!AG37 ) -> 2件 | AH37: 0.5% | AI37: =IF(OR(IFERROR(FIND($AD37,"施設コード"),0)>0,$AE37=""), "", '満足度(商品・サービス)'!AI37+'満足度(施設全体)'!AI37 ) -> 1件 | AJ37: 0.2% | AK37: =IF(OR(IFERROR(FIND($AD37,"施設コード"),0)>0,$AE37=""), "", '満足度(商品・サービス)'!AK37+'満足度(施設全体)'!AK37 ) -> 0件 | AL37: 0.0% | AM37: =IF(OR(IFERROR(FIND($AD37,"施設コード"),0)>0,$AE37=""), "", '満足度(商品・サービス)'!AM37+'満足度(施設全体)'!AM37 ) -> 2件 | AN37: 0.6% | AO37: =IF(OR(IFERROR(FIND($AD37,"施設コード"),0)>0,$AE37=""), "", '満足度(商品・サービス)'!AO37+'満足度(施設全体)'!AO37 ) -> 0件 | AP37: 0.0% | AQ37: =IF(OR(IFERROR(FIND($AD37,"施設コード"),0)>0,$AE37=""), "", '満足度(商品・サービス)'!AQ37+'満足度(施設全体)'!AQ37 ) -> 0件 | AR37: 0.0% | AS37: =IF(OR(IFERROR(FIND($AD37,"施設コード"),0)>0,$AE37=""), "", '満足度(商品・サービス)'!AS37+'満足度(施設全体)'!AS37 ) -> 0件 | AT37: 0.0% | AU37: =IF(OR(IFERROR(FIND($AD37,"施設コード"),0)>0,$AE37=""), "", '満足度(商品・サービス)'!AU37+'満足度(施設全体)'!AU37 ) -> 0件 | AV37: 0.0% | AW37: =IF(OR(IFERROR(FIND($AD37,"施設コード"),0)>0,$AE37=""), "", '満足度(商品・サービス)'!AW37+'満足度(施設全体)'!AW37 ) -> 0件 | AY37: =IF(OR(IFERROR(FIND($AD37,"施設コード"),0)>0,$AE37=""), "", '満足度(商品・サービス)'!AY37+'満足度(施設全体)'!AY37 ) -> 0件 | BA37: =IF(OR(IFERROR(FIND($AD37,"施設コード"),0)>0,$AE37=""), "", '満足度(商品・サービス)'!BA37+'満足度(施設全体)'!BA37 ) -> 0件 | BC37: =IF(OR(IFERROR(FIND($AD37,"施設コード"),0)>0,$AE37=""), "", '満足度(商品・サービス)'!BC37+'満足度(施設全体)'!BC37 ) -> 0件 | BE37: 5件 | BF37: 0.2%
AA38: =IF($AE38<>"",VLOOKUP($AE38,【M】満足度!$A$1:$B$5,2,0),"") ->  | AC38: 市町村 | AD38: 福井市 | AG38: =IF(OR(IFERROR(FIND($AD38,"施設コード"),0)>0,$AE38=""), "", '満足度(商品・サービス)'!AG38+'満足度(施設全体)'!AG38 ) ->  | AI38: =IF(OR(IFERROR(FIND($AD38,"施設コード"),0)>0,$AE38=""), "", '満足度(商品・サービス)'!AI38+'満足度(施設全体)'!AI38 ) ->  | AK38: =IF(OR(IFERROR(FIND($AD38,"施設コード"),0)>0,$AE38=""), "", '満足度(商品・サービス)'!AK38+'満足度(施設全体)'!AK38 ) ->  | AM38: =IF(OR(IFERROR(FIND($AD38,"施設コード"),0)>0,$AE38=""), "", '満足度(商品・サービス)'!AM38+'満足度(施設全体)'!AM38 ) ->  | AO38: =IF(OR(IFERROR(FIND($AD38,"施設コード"),0)>0,$AE38=""), "", '満足度(商品・サービス)'!AO38+'満足度(施設全体)'!AO38 ) ->  | AQ38: =IF(OR(IFERROR(FIND($AD38,"施設コード"),0)>0,$AE38=""), "", '満足度(商品・サービス)'!AQ38+'満足度(施設全体)'!AQ38 ) ->  | AS38: =IF(OR(IFERROR(FIND($AD38,"施設コード"),0)>0,$AE38=""), "", '満足度(商品・サービス)'!AS38+'満足度(施設全体)'!AS38 ) ->  | AU38: =IF(OR(IFERROR(FIND($AD38,"施設コード"),0)>0,$AE38=""), "", '満足度(商品・サービス)'!AU38+'満足度(施設全体)'!AU38 ) ->  | AW38: =IF(OR(IFERROR(FIND($AD38,"施設コード"),0)>0,$AE38=""), "", '満足度(商品・サービス)'!AW38+'満足度(施設全体)'!AW38 ) ->  | AY38: =IF(OR(IFERROR(FIND($AD38,"施設コード"),0)>0,$AE38=""), "", '満足度(商品・サービス)'!AY38+'満足度(施設全体)'!AY38 ) ->  | BA38: =IF(OR(IFERROR(FIND($AD38,"施設コード"),0)>0,$AE38=""), "", '満足度(商品・サービス)'!BA38+'満足度(施設全体)'!BA38 ) ->  | BC38: =IF(OR(IFERROR(FIND($AD38,"施設コード"),0)>0,$AE38=""), "", '満足度(商品・サービス)'!BC38+'満足度(施設全体)'!BC38 ) -> 
AA39: =IF($AE39<>"",VLOOKUP($AE39,【M】満足度!$A$1:$B$5,2,0),"") ->  | AC39: 市町村 | AD39: 福井市 | AG39: =IF(OR(IFERROR(FIND($AD39,"施設コード"),0)>0,$AE39=""), "", '満足度(商品・サービス)'!AG39+'満足度(施設全体)'!AG39 ) ->  | AI39: =IF(OR(IFERROR(FIND($AD39,"施設コード"),0)>0,$AE39=""), "", '満足度(商品・サービス)'!AI39+'満足度(施設全体)'!AI39 ) ->  | AK39: =IF(OR(IFERROR(FIND($AD39,"施設コード"),0)>0,$AE39=""), "", '満足度(商品・サービス)'!AK39+'満足度(施設全体)'!AK39 ) ->  | AM39: =IF(OR(IFERROR(FIND($AD39,"施設コード"),0)>0,$AE39=""), "", '満足度(商品・サービス)'!AM39+'満足度(施設全体)'!AM39 ) ->  | AO39: =IF(OR(IFERROR(FIND($AD39,"施設コード"),0)>0,$AE39=""), "", '満足度(商品・サービス)'!AO39+'満足度(施設全体)'!AO39 ) ->  | AQ39: =IF(OR(IFERROR(FIND($AD39,"施設コード"),0)>0,$AE39=""), "", '満足度(商品・サービス)'!AQ39+'満足度(施設全体)'!AQ39 ) ->  | AS39: =IF(OR(IFERROR(FIND($AD39,"施設コード"),0)>0,$AE39=""), "", '満足度(商品・サービス)'!AS39+'満足度(施設全体)'!AS39 ) ->  | AU39: =IF(OR(IFERROR(FIND($AD39,"施設コード"),0)>0,$AE39=""), "", '満足度(商品・サービス)'!AU39+'満足度(施設全体)'!AU39 ) ->  | AW39: =IF(OR(IFERROR(FIND($AD39,"施設コード"),0)>0,$AE39=""), "", '満足度(商品・サービス)'!AW39+'満足度(施設全体)'!AW39 ) ->  | AY39: =IF(OR(IFERROR(FIND($AD39,"施設コード"),0)>0,$AE39=""), "", '満足度(商品・サービス)'!AY39+'満足度(施設全体)'!AY39 ) ->  | BA39: =IF(OR(IFERROR(FIND($AD39,"施設コード"),0)>0,$AE39=""), "", '満足度(商品・サービス)'!BA39+'満足度(施設全体)'!BA39 ) ->  | BC39: =IF(OR(IFERROR(FIND($AD39,"施設コード"),0)>0,$AE39=""), "", '満足度(商品・サービス)'!BC39+'満足度(施設全体)'!BC39 ) -> 
AA40: =IF($AE40<>"",VLOOKUP($AE40,【M】満足度!$A$1:$B$5,2,0),"") ->  | AC40: =AC39 -> 市町村 | AD40: =AD39 -> 福井市 | AG40: =IF(OR(IFERROR(FIND($AD40,"施設コード"),0)>0,$AE40=""), "", '満足度(商品・サービス)'!AG40+'満足度(施設全体)'!AG40 ) ->  | AI40: =IF(OR(IFERROR(FIND($AD40,"施設コード"),0)>0,$AE40=""), "", '満足度(商品・サービス)'!AI40+'満足度(施設全体)'!AI40 ) ->  | AK40: =IF(OR(IFERROR(FIND($AD40,"施設コード"),0)>0,$AE40=""), "", '満足度(商品・サービス)'!AK40+'満足度(施設全体)'!AK40 ) ->  | AM40: =IF(OR(IFERROR(FIND($AD40,"施設コード"),0)>0,$AE40=""), "", '満足度(商品・サービス)'!AM40+'満足度(施設全体)'!AM40 ) ->  | AO40: =IF(OR(IFERROR(FIND($AD40,"施設コード"),0)>0,$AE40=""), "", '満足度(商品・サービス)'!AO40+'満足度(施設全体)'!AO40 ) ->  | AQ40: =IF(OR(IFERROR(FIND($AD40,"施設コード"),0)>0,$AE40=""), "", '満足度(商品・サービス)'!AQ40+'満足度(施設全体)'!AQ40 ) ->  | AS40: =IF(OR(IFERROR(FIND($AD40,"施設コード"),0)>0,$AE40=""), "", '満足度(商品・サービス)'!AS40+'満足度(施設全体)'!AS40 ) ->  | AU40: =IF(OR(IFERROR(FIND($AD40,"施設コード"),0)>0,$AE40=""), "", '満足度(商品・サービス)'!AU40+'満足度(施設全体)'!AU40 ) ->  | AW40: =IF(OR(IFERROR(FIND($AD40,"施設コード"),0)>0,$AE40=""), "", '満足度(商品・サービス)'!AW40+'満足度(施設全体)'!AW40 ) ->  | AY40: =IF(OR(IFERROR(FIND($AD40,"施設コード"),0)>0,$AE40=""), "", '満足度(商品・サービス)'!AY40+'満足度(施設全体)'!AY40 ) ->  | BA40: =IF(OR(IFERROR(FIND($AD40,"施設コード"),0)>0,$AE40=""), "", '満足度(商品・サービス)'!BA40+'満足度(施設全体)'!BA40 ) ->  | BC40: =IF(OR(IFERROR(FIND($AD40,"施設コード"),0)>0,$AE40=""), "", '満足度(商品・サービス)'!BC40+'満足度(施設全体)'!BC40 ) -> 
AA41: =IF($AE41<>"",VLOOKUP($AE41,【M】満足度!$A$1:$B$5,2,0),"") ->  | AC41: 市町村 | AD41: 福井市 | AG41: =IF(OR(IFERROR(FIND($AD41,"施設コード"),0)>0,$AE41=""), "", '満足度(商品・サービス)'!AG41+'満足度(施設全体)'!AG41 ) ->  | AI41: =IF(OR(IFERROR(FIND($AD41,"施設コード"),0)>0,$AE41=""), "", '満足度(商品・サービス)'!AI41+'満足度(施設全体)'!AI41 ) ->  | AK41: =IF(OR(IFERROR(FIND($AD41,"施設コード"),0)>0,$AE41=""), "", '満足度(商品・サービス)'!AK41+'満足度(施設全体)'!AK41 ) ->  | AM41: =IF(OR(IFERROR(FIND($AD41,"施設コード"),0)>0,$AE41=""), "", '満足度(商品・サービス)'!AM41+'満足度(施設全体)'!AM41 ) ->  | AO41: =IF(OR(IFERROR(FIND($AD41,"施設コード"),0)>0,$AE41=""), "", '満足度(商品・サービス)'!AO41+'満足度(施設全体)'!AO41 ) ->  | AQ41: =IF(OR(IFERROR(FIND($AD41,"施設コード"),0)>0,$AE41=""), "", '満足度(商品・サービス)'!AQ41+'満足度(施設全体)'!AQ41 ) ->  | AS41: =IF(OR(IFERROR(FIND($AD41,"施設コード"),0)>0,$AE41=""), "", '満足度(商品・サービス)'!AS41+'満足度(施設全体)'!AS41 ) ->  | AU41: =IF(OR(IFERROR(FIND($AD41,"施設コード"),0)>0,$AE41=""), "", '満足度(商品・サービス)'!AU41+'満足度(施設全体)'!AU41 ) ->  | AW41: =IF(OR(IFERROR(FIND($AD41,"施設コード"),0)>0,$AE41=""), "", '満足度(商品・サービス)'!AW41+'満足度(施設全体)'!AW41 ) ->  | AY41: =IF(OR(IFERROR(FIND($AD41,"施設コード"),0)>0,$AE41=""), "", '満足度(商品・サービス)'!AY41+'満足度(施設全体)'!AY41 ) ->  | BA41: =IF(OR(IFERROR(FIND($AD41,"施設コード"),0)>0,$AE41=""), "", '満足度(商品・サービス)'!BA41+'満足度(施設全体)'!BA41 ) ->  | BC41: =IF(OR(IFERROR(FIND($AD41,"施設コード"),0)>0,$AE41=""), "", '満足度(商品・サービス)'!BC41+'満足度(施設全体)'!BC41 ) -> 
AA42: =IF($AE42<>"",VLOOKUP($AE42,【M】満足度!$A$1:$B$5,2,0),"") ->  | AC42: 市町村 | AD42: 福井市 | AG42: =IF(OR(IFERROR(FIND($AD42,"施設コード"),0)>0,$AE42=""), "", '満足度(商品・サービス)'!AG42+'満足度(施設全体)'!AG42 ) ->  | AI42: =IF(OR(IFERROR(FIND($AD42,"施設コード"),0)>0,$AE42=""), "", '満足度(商品・サービス)'!AI42+'満足度(施設全体)'!AI42 ) ->  | AK42: =IF(OR(IFERROR(FIND($AD42,"施設コード"),0)>0,$AE42=""), "", '満足度(商品・サービス)'!AK42+'満足度(施設全体)'!AK42 ) ->  | AM42: =IF(OR(IFERROR(FIND($AD42,"施設コード"),0)>0,$AE42=""), "", '満足度(商品・サービス)'!AM42+'満足度(施設全体)'!AM42 ) ->  | AO42: =IF(OR(IFERROR(FIND($AD42,"施設コード"),0)>0,$AE42=""), "", '満足度(商品・サービス)'!AO42+'満足度(施設全体)'!AO42 ) ->  | AQ42: =IF(OR(IFERROR(FIND($AD42,"施設コード"),0)>0,$AE42=""), "", '満足度(商品・サービス)'!AQ42+'満足度(施設全体)'!AQ42 ) ->  | AS42: =IF(OR(IFERROR(FIND($AD42,"施設コード"),0)>0,$AE42=""), "", '満足度(商品・サービス)'!AS42+'満足度(施設全体)'!AS42 ) ->  | AU42: =IF(OR(IFERROR(FIND($AD42,"施設コード"),0)>0,$AE42=""), "", '満足度(商品・サービス)'!AU42+'満足度(施設全体)'!AU42 ) ->  | AW42: =IF(OR(IFERROR(FIND($AD42,"施設コード"),0)>0,$AE42=""), "", '満足度(商品・サービス)'!AW42+'満足度(施設全体)'!AW42 ) ->  | AY42: =IF(OR(IFERROR(FIND($AD42,"施設コード"),0)>0,$AE42=""), "", '満足度(商品・サービス)'!AY42+'満足度(施設全体)'!AY42 ) ->  | BA42: =IF(OR(IFERROR(FIND($AD42,"施設コード"),0)>0,$AE42=""), "", '満足度(商品・サービス)'!BA42+'満足度(施設全体)'!BA42 ) ->  | BC42: =IF(OR(IFERROR(FIND($AD42,"施設コード"),0)>0,$AE42=""), "", '満足度(商品・サービス)'!BC42+'満足度(施設全体)'!BC42 ) -> 
AA43: =IF($AE43<>"",VLOOKUP($AE43,【M】満足度!$A$1:$B$5,2,0),"") ->  | AC43: 市町村 | AD43: 福井市 | AG43: =IF(OR(IFERROR(FIND($AD43,"施設コード"),0)>0,$AE43=""), "", '満足度(商品・サービス)'!AG43+'満足度(施設全体)'!AG43 ) ->  | AI43: =IF(OR(IFERROR(FIND($AD43,"施設コード"),0)>0,$AE43=""), "", '満足度(商品・サービス)'!AI43+'満足度(施設全体)'!AI43 ) ->  | AK43: =IF(OR(IFERROR(FIND($AD43,"施設コード"),0)>0,$AE43=""), "", '満足度(商品・サービス)'!AK43+'満足度(施設全体)'!AK43 ) ->  | AM43: =IF(OR(IFERROR(FIND($AD43,"施設コード"),0)>0,$AE43=""), "", '満足度(商品・サービス)'!AM43+'満足度(施設全体)'!AM43 ) ->  | AO43: =IF(OR(IFERROR(FIND($AD43,"施設コード"),0)>0,$AE43=""), "", '満足度(商品・サービス)'!AO43+'満足度(施設全体)'!AO43 ) ->  | AQ43: =IF(OR(IFERROR(FIND($AD43,"施設コード"),0)>0,$AE43=""), "", '満足度(商品・サービス)'!AQ43+'満足度(施設全体)'!AQ43 ) ->  | AS43: =IF(OR(IFERROR(FIND($AD43,"施設コード"),0)>0,$AE43=""), "", '満足度(商品・サービス)'!AS43+'満足度(施設全体)'!AS43 ) ->  | AU43: =IF(OR(IFERROR(FIND($AD43,"施設コード"),0)>0,$AE43=""), "", '満足度(商品・サービス)'!AU43+'満足度(施設全体)'!AU43 ) ->  | AW43: =IF(OR(IFERROR(FIND($AD43,"施設コード"),0)>0,$AE43=""), "", '満足度(商品・サービス)'!AW43+'満足度(施設全体)'!AW43 ) ->  | AY43: =IF(OR(IFERROR(FIND($AD43,"施設コード"),0)>0,$AE43=""), "", '満足度(商品・サービス)'!AY43+'満足度(施設全体)'!AY43 ) ->  | BA43: =IF(OR(IFERROR(FIND($AD43,"施設コード"),0)>0,$AE43=""), "", '満足度(商品・サービス)'!BA43+'満足度(施設全体)'!BA43 ) ->  | BC43: =IF(OR(IFERROR(FIND($AD43,"施設コード"),0)>0,$AE43=""), "", '満足度(商品・サービス)'!BC43+'満足度(施設全体)'!BC43 ) -> 
AA44: =IF($AE44<>"",VLOOKUP($AE44,【M】満足度!$A$1:$B$5,2,0),"") ->  | AC44: =AC42 -> 市町村 | AD44: =AD42 -> 福井市 | AE44: =IF(AE14<>"",AE14,"") ->  | AG44: =IF(OR(IFERROR(FIND($AD44,"施設コード"),0)>0,$AE44=""), "", '満足度(商品・サービス)'!AG44+'満足度(施設全体)'!AG44 ) ->  | AH44: =IFERROR(AG44/AG$45,"") ->  | AI44: =IF(OR(IFERROR(FIND($AD44,"施設コード"),0)>0,$AE44=""), "", '満足度(商品・サービス)'!AI44+'満足度(施設全体)'!AI44 ) ->  | AJ44: =IFERROR(AI44/AI$45,"") ->  | AK44: =IF(OR(IFERROR(FIND($AD44,"施設コード"),0)>0,$AE44=""), "", '満足度(商品・サービス)'!AK44+'満足度(施設全体)'!AK44 ) ->  | AL44: =IFERROR(AK44/AK$45,"") ->  | AM44: =IF(OR(IFERROR(FIND($AD44,"施設コード"),0)>0,$AE44=""), "", '満足度(商品・サービス)'!AM44+'満足度(施設全体)'!AM44 ) ->  | AN44: =IFERROR(AM44/AM$45,"") ->  | AO44: =IF(OR(IFERROR(FIND($AD44,"施設コード"),0)>0,$AE44=""), "", '満足度(商品・サービス)'!AO44+'満足度(施設全体)'!AO44 ) ->  | AP44: =IFERROR(AO44/AO$45,"") ->  | AQ44: =IF(OR(IFERROR(FIND($AD44,"施設コード"),0)>0,$AE44=""), "", '満足度(商品・サービス)'!AQ44+'満足度(施設全体)'!AQ44 ) ->  | AR44: =IFERROR(AQ44/AQ$45,"") ->  | AS44: =IF(OR(IFERROR(FIND($AD44,"施設コード"),0)>0,$AE44=""), "", '満足度(商品・サービス)'!AS44+'満足度(施設全体)'!AS44 ) ->  | AT44: =IFERROR(AS44/AS$45,"") ->  | AU44: =IF(OR(IFERROR(FIND($AD44,"施設コード"),0)>0,$AE44=""), "", '満足度(商品・サービス)'!AU44+'満足度(施設全体)'!AU44 ) ->  | AV44: =IFERROR(AU44/AU$45,"") ->  | AW44: =IF(OR(IFERROR(FIND($AD44,"施設コード"),0)>0,$AE44=""), "", '満足度(商品・サービス)'!AW44+'満足度(施設全体)'!AW44 ) ->  | AX44: =IFERROR(AW44/AW$45,"") ->  | AY44: =IF(OR(IFERROR(FIND($AD44,"施設コード"),0)>0,$AE44=""), "", '満足度(商品・サービス)'!AY44+'満足度(施設全体)'!AY44 ) ->  | AZ44: =IFERROR(AY44/AY$45,"") ->  | BA44: =IF(OR(IFERROR(FIND($AD44,"施設コード"),0)>0,$AE44=""), "", '満足度(商品・サービス)'!BA44+'満足度(施設全体)'!BA44 ) ->  | BB44: =IFERROR(BA44/BA$45,"") ->  | BC44: =IF(OR(IFERROR(FIND($AD44,"施設コード"),0)>0,$AE44=""), "", '満足度(商品・サービス)'!BC44+'満足度(施設全体)'!BC44 ) ->  | BD44: =IFERROR(BC44/BC$45,"") ->  | BF44: =IFERROR(BE44/BE$45,"") -> 
AF45: 合計 | AG45: =SUM(AG33:AG44) -> 366件 | AH45: 100.0% | AI45: 480件 | AJ45: 100.0% | AK45: 300件 | AL45: 100.0% | AM45: 322件 | AN45: 100.0% | AO45: 252件 | AP45: 100.0% | AQ45: 294件 | AR45: 100.0% | AS45: 300件 | AT45: 100.0% | AU45: 358件 | AV45: 100.0% | AW45: 0件 | AX45: 0.0% | AY45: 0件 | AZ45: 0.0% | BA45: 0件 | BB45: 0.0% | BC45: 0件 | BD45: 0.0% | BE45: 2,672件 | BF45: 100.0%
AF46: =IF(AF$16<>"",AF$16,"") -> 総合満足度スコア | AG46: =IF(AG45>0,SUMPRODUCT($AA33:$AA44,AG33:AG44)/AG45,"-") -> 4.22 | AI46: =IF(AI45>0,SUMPRODUCT($AA33:$AA44,AI33:AI44)/AI45,"-") -> 4.28 | AK46: =IF(AK45>0,SUMPRODUCT($AA33:$AA44,AK33:AK44)/AK45,"-") -> 4.20 | AM46: =IF(AM45>0,SUMPRODUCT($AA33:$AA44,AM33:AM44)/AM45,"-") -> 4.20 | AO46: =IF(AO45>0,SUMPRODUCT($AA33:$AA44,AO33:AO44)/AO45,"-") -> 4.22 | AQ46: =IF(AQ45>0,SUMPRODUCT($AA33:$AA44,AQ33:AQ44)/AQ45,"-") -> 4.34 | AS46: =IF(AS45>0,SUMPRODUCT($AA33:$AA44,AS33:AS44)/AS45,"-") -> 4.28 | AU46: =IF(AU45>0,SUMPRODUCT($AA33:$AA44,AU33:AU44)/AU45,"-") -> 4.22 | AW46: =IF(AW45>0,SUMPRODUCT($AA33:$AA44,AW33:AW44)/AW45,"-") -> - | AY46: =IF(AY45>0,SUMPRODUCT($AA33:$AA44,AY33:AY44)/AY45,"-") -> - | BA46: =IF(BA45>0,SUMPRODUCT($AA33:$AA44,BA33:BA44)/BA45,"-") -> - | BC46: =IF(BC45>0,SUMPRODUCT($AA33:$AA44,BC33:BC44)/BC45,"-") -> - | BE46: =IF(BE45>0,SUMPRODUCT($AA33:$AA44,BE33:BE44)/BE45,"-") -> 4.25
AC47: 回答エリア | AD47: =【M】エリア!$L$5 -> 福井駅前 エリア
AA48: =IF($AE48<>"",VLOOKUP($AE48,【M】満足度!$A$1:$B$5,2,0),"") -> 5 | AC48: =AC47 -> 回答エリア | AD48: =AD47 -> 福井駅前 エリア | AE48: =IF(AE3<>"",AE3,"") -> とても満足 | AG48: =IF(OR(IFERROR(FIND($AD48,"施設コード"),0)>0,$AE48=""), "", '満足度(商品・サービス)'!AG48+'満足度(施設全体)'!AG48 ) -> 58件 | AH48: =IFERROR(AG48/AG$60,"") -> 38.2% | AI48: =IF(OR(IFERROR(FIND($AD48,"施設コード"),0)>0,$AE48=""), "", '満足度(商品・サービス)'!AI48+'満足度(施設全体)'!AI48 ) -> 71件 | AJ48: =IFERROR(AI48/AI$60,"") -> 43.8% | AK48: =IF(OR(IFERROR(FIND($AD48,"施設コード"),0)>0,$AE48=""), "", '満足度(商品・サービス)'!AK48+'満足度(施設全体)'!AK48 ) -> 62件 | AL48: =IFERROR(AK48/AK$60,"") -> 39.7% | AM48: =IF(OR(IFERROR(FIND($AD48,"施設コード"),0)>0,$AE48=""), "", '満足度(商品・サービス)'!AM48+'満足度(施設全体)'!AM48 ) -> 57件 | AN48: =IFERROR(AM48/AM$60,"") -> 44.5% | AO48: =IF(OR(IFERROR(FIND($AD48,"施設コード"),0)>0,$AE48=""), "", '満足度(商品・サービス)'!AO48+'満足度(施設全体)'!AO48 ) -> 61件 | AP48: =IFERROR(AO48/AO$60,"") -> 37.7% | AQ48: =IF(OR(IFERROR(FIND($AD48,"施設コード"),0)>0,$AE48=""), "", '満足度(商品・サービス)'!AQ48+'満足度(施設全体)'!AQ48 ) -> 76件 | AR48: =IFERROR(AQ48/AQ$60,"") -> 45.2% | AS48: =IF(OR(IFERROR(FIND($AD48,"施設コード"),0)>0,$AE48=""), "", '満足度(商品・サービス)'!AS48+'満足度(施設全体)'!AS48 ) -> 75件 | AT48: =IFERROR(AS48/AS$60,"") -> 44.6% | AU48: =IF(OR(IFERROR(FIND($AD48,"施設コード"),0)>0,$AE48=""), "", '満足度(商品・サービス)'!AU48+'満足度(施設全体)'!AU48 ) -> 83件 | AV48: =IFERROR(AU48/AU$60,"") -> 44.6% | AW48: =IF(OR(IFERROR(FIND($AD48,"施設コード"),0)>0,$AE48=""), "", '満足度(商品・サービス)'!AW48+'満足度(施設全体)'!AW48 ) -> 0件 | AX48: =IFERROR(AW48/AW$60,"") ->  | AY48: =IF(OR(IFERROR(FIND($AD48,"施設コード"),0)>0,$AE48=""), "", '満足度(商品・サービス)'!AY48+'満足度(施設全体)'!AY48 ) -> 0件 | AZ48: =IFERROR(AY48/AY$60,"") ->  | BA48: =IF(OR(IFERROR(FIND($AD48,"施設コード"),0)>0,$AE48=""), "", '満足度(商品・サービス)'!BA48+'満足度(施設全体)'!BA48 ) -> 0件 | BB48: =IFERROR(BA48/BA$60,"") ->  | BC48: =IF(OR(IFERROR(FIND($AD48,"施設コード"),0)>0,$AE48=""), "", '満足度(商品・サービス)'!BC48+'満足度(施設全体)'!BC48 ) -> 0件 | BD48: =IFERROR(BC48/BC$60,"") ->  | BE48: =IFERROR(AG48+AI48+AK48+AM48+AO48+AQ48+AS48+AU48+AW48+AY48+BA48+BC48,"") -> 543件 | BF48: =IFERROR(BE48/BE$60,"") -> 42.4%
AA49: =IF($AE49<>"",VLOOKUP($AE49,【M】満足度!$A$1:$B$5,2,0),"") -> 4 | AC49: =AC48 -> 回答エリア | AD49: 福井駅前 エリア | AE49: 満足 | AG49: =IF(OR(IFERROR(FIND($AD49,"施設コード"),0)>0,$AE49=""), "", '満足度(商品・サービス)'!AG49+'満足度(施設全体)'!AG49 ) -> 80件 | AH49: 52.6% | AI49: =IF(OR(IFERROR(FIND($AD49,"施設コード"),0)>0,$AE49=""), "", '満足度(商品・サービス)'!AI49+'満足度(施設全体)'!AI49 ) -> 85件 | AJ49: 52.5% | AK49: =IF(OR(IFERROR(FIND($AD49,"施設コード"),0)>0,$AE49=""), "", '満足度(商品・サービス)'!AK49+'満足度(施設全体)'!AK49 ) -> 74件 | AL49: 47.4% | AM49: =IF(OR(IFERROR(FIND($AD49,"施設コード"),0)>0,$AE49=""), "", '満足度(商品・サービス)'!AM49+'満足度(施設全体)'!AM49 ) -> 60件 | AN49: 46.9% | AO49: =IF(OR(IFERROR(FIND($AD49,"施設コード"),0)>0,$AE49=""), "", '満足度(商品・サービス)'!AO49+'満足度(施設全体)'!AO49 ) -> 86件 | AP49: 53.1% | AQ49: =IF(OR(IFERROR(FIND($AD49,"施設コード"),0)>0,$AE49=""), "", '満足度(商品・サービス)'!AQ49+'満足度(施設全体)'!AQ49 ) -> 82件 | AR49: 48.8% | AS49: =IF(OR(IFERROR(FIND($AD49,"施設コード"),0)>0,$AE49=""), "", '満足度(商品・サービス)'!AS49+'満足度(施設全体)'!AS49 ) -> 74件 | AT49: 44.0% | AU49: =IF(OR(IFERROR(FIND($AD49,"施設コード"),0)>0,$AE49=""), "", '満足度(商品・サービス)'!AU49+'満足度(施設全体)'!AU49 ) -> 89件 | AV49: 47.8% | AW49: =IF(OR(IFERROR(FIND($AD49,"施設コード"),0)>0,$AE49=""), "", '満足度(商品・サービス)'!AW49+'満足度(施設全体)'!AW49 ) -> 0件 | AY49: =IF(OR(IFERROR(FIND($AD49,"施設コード"),0)>0,$AE49=""), "", '満足度(商品・サービス)'!AY49+'満足度(施設全体)'!AY49 ) -> 0件 | BA49: =IF(OR(IFERROR(FIND($AD49,"施設コード"),0)>0,$AE49=""), "", '満足度(商品・サービス)'!BA49+'満足度(施設全体)'!BA49 ) -> 0件 | BC49: =IF(OR(IFERROR(FIND($AD49,"施設コード"),0)>0,$AE49=""), "", '満足度(商品・サービス)'!BC49+'満足度(施設全体)'!BC49 ) -> 0件 | BE49: =IFERROR(AG49+AI49+AK49+AM49+AO49+AQ49+AS49+AU49+AW49+AY49+BA49+BC49,"") -> 630件 | BF49: 49.1%
AA50: =IF($AE50<>"",VLOOKUP($AE50,【M】満足度!$A$1:$B$5,2,0),"") -> 3 | AC50: 回答エリア | AD50: 福井駅前 エリア | AE50: どちらでもない | AG50: =IF(OR(IFERROR(FIND($AD50,"施設コード"),0)>0,$AE50=""), "", '満足度(商品・サービス)'!AG50+'満足度(施設全体)'!AG50 ) -> 14件 | AH50: 9.2% | AI50: =IF(OR(IFERROR(FIND($AD50,"施設コード"),0)>0,$AE50=""), "", '満足度(商品・サービス)'!AI50+'満足度(施設全体)'!AI50 ) -> 5件 | AJ50: 3.1% | AK50: =IF(OR(IFERROR(FIND($AD50,"施設コード"),0)>0,$AE50=""), "", '満足度(商品・サービス)'!AK50+'満足度(施設全体)'!AK50 ) -> 19件 | AL50: 12.2% | AM50: =IF(OR(IFERROR(FIND($AD50,"施設コード"),0)>0,$AE50=""), "", '満足度(商品・サービス)'!AM50+'満足度(施設全体)'!AM50 ) -> 10件 | AN50: 7.8% | AO50: =IF(OR(IFERROR(FIND($AD50,"施設コード"),0)>0,$AE50=""), "", '満足度(商品・サービス)'!AO50+'満足度(施設全体)'!AO50 ) -> 14件 | AP50: 8.6% | AQ50: =IF(OR(IFERROR(FIND($AD50,"施設コード"),0)>0,$AE50=""), "", '満足度(商品・サービス)'!AQ50+'満足度(施設全体)'!AQ50 ) -> 10件 | AR50: 6.0% | AS50: =IF(OR(IFERROR(FIND($AD50,"施設コード"),0)>0,$AE50=""), "", '満足度(商品・サービス)'!AS50+'満足度(施設全体)'!AS50 ) -> 17件 | AT50: 10.1% | AU50: =IF(OR(IFERROR(FIND($AD50,"施設コード"),0)>0,$AE50=""), "", '満足度(商品・サービス)'!AU50+'満足度(施設全体)'!AU50 ) -> 13件 | AV50: 7.0% | AW50: =IF(OR(IFERROR(FIND($AD50,"施設コード"),0)>0,$AE50=""), "", '満足度(商品・サービス)'!AW50+'満足度(施設全体)'!AW50 ) -> 0件 | AY50: =IF(OR(IFERROR(FIND($AD50,"施設コード"),0)>0,$AE50=""), "", '満足度(商品・サービス)'!AY50+'満足度(施設全体)'!AY50 ) -> 0件 | BA50: =IF(OR(IFERROR(FIND($AD50,"施設コード"),0)>0,$AE50=""), "", '満足度(商品・サービス)'!BA50+'満足度(施設全体)'!BA50 ) -> 0件 | BC50: =IF(OR(IFERROR(FIND($AD50,"施設コード"),0)>0,$AE50=""), "", '満足度(商品・サービス)'!BC50+'満足度(施設全体)'!BC50 ) -> 0件 | BE50: 102件 | BF50: 8.0%
AA51: =IF($AE51<>"",VLOOKUP($AE51,【M】満足度!$A$1:$B$5,2,0),"") -> 2 | AC51: 回答エリア | AD51: 福井駅前 エリア | AE51: 不満 | AG51: =IF(OR(IFERROR(FIND($AD51,"施設コード"),0)>0,$AE51=""), "", '満足度(商品・サービス)'!AG51+'満足度(施設全体)'!AG51 ) -> 0件 | AH51: 0.0% | AI51: =IF(OR(IFERROR(FIND($AD51,"施設コード"),0)>0,$AE51=""), "", '満足度(商品・サービス)'!AI51+'満足度(施設全体)'!AI51 ) -> 1件 | AJ51: 0.6% | AK51: =IF(OR(IFERROR(FIND($AD51,"施設コード"),0)>0,$AE51=""), "", '満足度(商品・サービス)'!AK51+'満足度(施設全体)'!AK51 ) -> 1件 | AL51: 0.6% | AM51: =IF(OR(IFERROR(FIND($AD51,"施設コード"),0)>0,$AE51=""), "", '満足度(商品・サービス)'!AM51+'満足度(施設全体)'!AM51 ) -> 0件 | AN51: 0.0% | AO51: =IF(OR(IFERROR(FIND($AD51,"施設コード"),0)>0,$AE51=""), "", '満足度(商品・サービス)'!AO51+'満足度(施設全体)'!AO51 ) -> 1件 | AP51: 0.6% | AQ51: =IF(OR(IFERROR(FIND($AD51,"施設コード"),0)>0,$AE51=""), "", '満足度(商品・サービス)'!AQ51+'満足度(施設全体)'!AQ51 ) -> 0件 | AR51: 0.0% | AS51: =IF(OR(IFERROR(FIND($AD51,"施設コード"),0)>0,$AE51=""), "", '満足度(商品・サービス)'!AS51+'満足度(施設全体)'!AS51 ) -> 2件 | AT51: 1.2% | AU51: =IF(OR(IFERROR(FIND($AD51,"施設コード"),0)>0,$AE51=""), "", '満足度(商品・サービス)'!AU51+'満足度(施設全体)'!AU51 ) -> 1件 | AV51: 0.5% | AW51: =IF(OR(IFERROR(FIND($AD51,"施設コード"),0)>0,$AE51=""), "", '満足度(商品・サービス)'!AW51+'満足度(施設全体)'!AW51 ) -> 0件 | AY51: =IF(OR(IFERROR(FIND($AD51,"施設コード"),0)>0,$AE51=""), "", '満足度(商品・サービス)'!AY51+'満足度(施設全体)'!AY51 ) -> 0件 | BA51: =IF(OR(IFERROR(FIND($AD51,"施設コード"),0)>0,$AE51=""), "", '満足度(商品・サービス)'!BA51+'満足度(施設全体)'!BA51 ) -> 0件 | BC51: =IF(OR(IFERROR(FIND($AD51,"施設コード"),0)>0,$AE51=""), "", '満足度(商品・サービス)'!BC51+'満足度(施設全体)'!BC51 ) -> 0件 | BE51: 6件 | BF51: 0.5%
AA52: =IF($AE52<>"",VLOOKUP($AE52,【M】満足度!$A$1:$B$5,2,0),"") -> 1 | AC52: 回答エリア | AD52: 福井駅前 エリア | AE52: とても不満 | AG52: =IF(OR(IFERROR(FIND($AD52,"施設コード"),0)>0,$AE52=""), "", '満足度(商品・サービス)'!AG52+'満足度(施設全体)'!AG52 ) -> 0件 | AH52: 0.0% | AI52: =IF(OR(IFERROR(FIND($AD52,"施設コード"),0)>0,$AE52=""), "", '満足度(商品・サービス)'!AI52+'満足度(施設全体)'!AI52 ) -> 0件 | AJ52: 0.0% | AK52: =IF(OR(IFERROR(FIND($AD52,"施設コード"),0)>0,$AE52=""), "", '満足度(商品・サービス)'!AK52+'満足度(施設全体)'!AK52 ) -> 0件 | AL52: 0.0% | AM52: =IF(OR(IFERROR(FIND($AD52,"施設コード"),0)>0,$AE52=""), "", '満足度(商品・サービス)'!AM52+'満足度(施設全体)'!AM52 ) -> 1件 | AN52: 0.8% | AO52: =IF(OR(IFERROR(FIND($AD52,"施設コード"),0)>0,$AE52=""), "", '満足度(商品・サービス)'!AO52+'満足度(施設全体)'!AO52 ) -> 0件 | AP52: 0.0% | AQ52: =IF(OR(IFERROR(FIND($AD52,"施設コード"),0)>0,$AE52=""), "", '満足度(商品・サービス)'!AQ52+'満足度(施設全体)'!AQ52 ) -> 0件 | AR52: 0.0% | AS52: =IF(OR(IFERROR(FIND($AD52,"施設コード"),0)>0,$AE52=""), "", '満足度(商品・サービス)'!AS52+'満足度(施設全体)'!AS52 ) -> 0件 | AT52: 0.0% | AU52: =IF(OR(IFERROR(FIND($AD52,"施設コード"),0)>0,$AE52=""), "", '満足度(商品・サービス)'!AU52+'満足度(施設全体)'!AU52 ) -> 0件 | AV52: 0.0% | AW52: =IF(OR(IFERROR(FIND($AD52,"施設コード"),0)>0,$AE52=""), "", '満足度(商品・サービス)'!AW52+'満足度(施設全体)'!AW52 ) -> 0件 | AY52: =IF(OR(IFERROR(FIND($AD52,"施設コード"),0)>0,$AE52=""), "", '満足度(商品・サービス)'!AY52+'満足度(施設全体)'!AY52 ) -> 0件 | BA52: =IF(OR(IFERROR(FIND($AD52,"施設コード"),0)>0,$AE52=""), "", '満足度(商品・サービス)'!BA52+'満足度(施設全体)'!BA52 ) -> 0件 | BC52: =IF(OR(IFERROR(FIND($AD52,"施設コード"),0)>0,$AE52=""), "", '満足度(商品・サービス)'!BC52+'満足度(施設全体)'!BC52 ) -> 0件 | BE52: 1件 | BF52: 0.1%
AA53: =IF($AE53<>"",VLOOKUP($AE53,【M】満足度!$A$1:$B$5,2,0),"") ->  | AC53: 回答エリア | AD53: 福井駅前 エリア | AG53: =IF(OR(IFERROR(FIND($AD53,"施設コード"),0)>0,$AE53=""), "", '満足度(商品・サービス)'!AG53+'満足度(施設全体)'!AG53 ) ->  | AI53: =IF(OR(IFERROR(FIND($AD53,"施設コード"),0)>0,$AE53=""), "", '満足度(商品・サービス)'!AI53+'満足度(施設全体)'!AI53 ) ->  | AK53: =IF(OR(IFERROR(FIND($AD53,"施設コード"),0)>0,$AE53=""), "", '満足度(商品・サービス)'!AK53+'満足度(施設全体)'!AK53 ) ->  | AM53: =IF(OR(IFERROR(FIND($AD53,"施設コード"),0)>0,$AE53=""), "", '満足度(商品・サービス)'!AM53+'満足度(施設全体)'!AM53 ) ->  | AO53: =IF(OR(IFERROR(FIND($AD53,"施設コード"),0)>0,$AE53=""), "", '満足度(商品・サービス)'!AO53+'満足度(施設全体)'!AO53 ) ->  | AQ53: =IF(OR(IFERROR(FIND($AD53,"施設コード"),0)>0,$AE53=""), "", '満足度(商品・サービス)'!AQ53+'満足度(施設全体)'!AQ53 ) ->  | AS53: =IF(OR(IFERROR(FIND($AD53,"施設コード"),0)>0,$AE53=""), "", '満足度(商品・サービス)'!AS53+'満足度(施設全体)'!AS53 ) ->  | AU53: =IF(OR(IFERROR(FIND($AD53,"施設コード"),0)>0,$AE53=""), "", '満足度(商品・サービス)'!AU53+'満足度(施設全体)'!AU53 ) ->  | AW53: =IF(OR(IFERROR(FIND($AD53,"施設コード"),0)>0,$AE53=""), "", '満足度(商品・サービス)'!AW53+'満足度(施設全体)'!AW53 ) ->  | AY53: =IF(OR(IFERROR(FIND($AD53,"施設コード"),0)>0,$AE53=""), "", '満足度(商品・サービス)'!AY53+'満足度(施設全体)'!AY53 ) ->  | BA53: =IF(OR(IFERROR(FIND($AD53,"施設コード"),0)>0,$AE53=""), "", '満足度(商品・サービス)'!BA53+'満足度(施設全体)'!BA53 ) ->  | BC53: =IF(OR(IFERROR(FIND($AD53,"施設コード"),0)>0,$AE53=""), "", '満足度(商品・サービス)'!BC53+'満足度(施設全体)'!BC53 ) -> 
AA54: =IF($AE54<>"",VLOOKUP($AE54,【M】満足度!$A$1:$B$5,2,0),"") ->  | AC54: 回答エリア | AD54: 福井駅前 エリア | AG54: =IF(OR(IFERROR(FIND($AD54,"施設コード"),0)>0,$AE54=""), "", '満足度(商品・サービス)'!AG54+'満足度(施設全体)'!AG54 ) ->  | AI54: =IF(OR(IFERROR(FIND($AD54,"施設コード"),0)>0,$AE54=""), "", '満足度(商品・サービス)'!AI54+'満足度(施設全体)'!AI54 ) ->  | AK54: =IF(OR(IFERROR(FIND($AD54,"施設コード"),0)>0,$AE54=""), "", '満足度(商品・サービス)'!AK54+'満足度(施設全体)'!AK54 ) ->  | AM54: =IF(OR(IFERROR(FIND($AD54,"施設コード"),0)>0,$AE54=""), "", '満足度(商品・サービス)'!AM54+'満足度(施設全体)'!AM54 ) ->  | AO54: =IF(OR(IFERROR(FIND($AD54,"施設コード"),0)>0,$AE54=""), "", '満足度(商品・サービス)'!AO54+'満足度(施設全体)'!AO54 ) ->  | AQ54: =IF(OR(IFERROR(FIND($AD54,"施設コード"),0)>0,$AE54=""), "", '満足度(商品・サービス)'!AQ54+'満足度(施設全体)'!AQ54 ) ->  | AS54: =IF(OR(IFERROR(FIND($AD54,"施設コード"),0)>0,$AE54=""), "", '満足度(商品・サービス)'!AS54+'満足度(施設全体)'!AS54 ) ->  | AU54: =IF(OR(IFERROR(FIND($AD54,"施設コード"),0)>0,$AE54=""), "", '満足度(商品・サービス)'!AU54+'満足度(施設全体)'!AU54 ) ->  | AW54: =IF(OR(IFERROR(FIND($AD54,"施設コード"),0)>0,$AE54=""), "", '満足度(商品・サービス)'!AW54+'満足度(施設全体)'!AW54 ) ->  | AY54: =IF(OR(IFERROR(FIND($AD54,"施設コード"),0)>0,$AE54=""), "", '満足度(商品・サービス)'!AY54+'満足度(施設全体)'!AY54 ) ->  | BA54: =IF(OR(IFERROR(FIND($AD54,"施設コード"),0)>0,$AE54=""), "", '満足度(商品・サービス)'!BA54+'満足度(施設全体)'!BA54 ) ->  | BC54: =IF(OR(IFERROR(FIND($AD54,"施設コード"),0)>0,$AE54=""), "", '満足度(商品・サービス)'!BC54+'満足度(施設全体)'!BC54 ) -> 
AA55: =IF($AE55<>"",VLOOKUP($AE55,【M】満足度!$A$1:$B$5,2,0),"") ->  | AC55: =AC54 -> 回答エリア | AD55: =AD54 -> 福井駅前 エリア | AG55: =IF(OR(IFERROR(FIND($AD55,"施設コード"),0)>0,$AE55=""), "", '満足度(商品・サービス)'!AG55+'満足度(施設全体)'!AG55 ) ->  | AI55: =IF(OR(IFERROR(FIND($AD55,"施設コード"),0)>0,$AE55=""), "", '満足度(商品・サービス)'!AI55+'満足度(施設全体)'!AI55 ) ->  | AK55: =IF(OR(IFERROR(FIND($AD55,"施設コード"),0)>0,$AE55=""), "", '満足度(商品・サービス)'!AK55+'満足度(施設全体)'!AK55 ) ->  | AM55: =IF(OR(IFERROR(FIND($AD55,"施設コード"),0)>0,$AE55=""), "", '満足度(商品・サービス)'!AM55+'満足度(施設全体)'!AM55 ) ->  | AO55: =IF(OR(IFERROR(FIND($AD55,"施設コード"),0)>0,$AE55=""), "", '満足度(商品・サービス)'!AO55+'満足度(施設全体)'!AO55 ) ->  | AQ55: =IF(OR(IFERROR(FIND($AD55,"施設コード"),0)>0,$AE55=""), "", '満足度(商品・サービス)'!AQ55+'満足度(施設全体)'!AQ55 ) ->  | AS55: =IF(OR(IFERROR(FIND($AD55,"施設コード"),0)>0,$AE55=""), "", '満足度(商品・サービス)'!AS55+'満足度(施設全体)'!AS55 ) ->  | AU55: =IF(OR(IFERROR(FIND($AD55,"施設コード"),0)>0,$AE55=""), "", '満足度(商品・サービス)'!AU55+'満足度(施設全体)'!AU55 ) ->  | AW55: =IF(OR(IFERROR(FIND($AD55,"施設コード"),0)>0,$AE55=""), "", '満足度(商品・サービス)'!AW55+'満足度(施設全体)'!AW55 ) ->  | AY55: =IF(OR(IFERROR(FIND($AD55,"施設コード"),0)>0,$AE55=""), "", '満足度(商品・サービス)'!AY55+'満足度(施設全体)'!AY55 ) ->  | BA55: =IF(OR(IFERROR(FIND($AD55,"施設コード"),0)>0,$AE55=""), "", '満足度(商品・サービス)'!BA55+'満足度(施設全体)'!BA55 ) ->  | BC55: =IF(OR(IFERROR(FIND($AD55,"施設コード"),0)>0,$AE55=""), "", '満足度(商品・サービス)'!BC55+'満足度(施設全体)'!BC55 ) -> 
AA56: =IF($AE56<>"",VLOOKUP($AE56,【M】満足度!$A$1:$B$5,2,0),"") ->  | AC56: 回答エリア | AD56: 福井駅前 エリア | AG56: =IF(OR(IFERROR(FIND($AD56,"施設コード"),0)>0,$AE56=""), "", '満足度(商品・サービス)'!AG56+'満足度(施設全体)'!AG56 ) ->  | AI56: =IF(OR(IFERROR(FIND($AD56,"施設コード"),0)>0,$AE56=""), "", '満足度(商品・サービス)'!AI56+'満足度(施設全体)'!AI56 ) ->  | AK56: =IF(OR(IFERROR(FIND($AD56,"施設コード"),0)>0,$AE56=""), "", '満足度(商品・サービス)'!AK56+'満足度(施設全体)'!AK56 ) ->  | AM56: =IF(OR(IFERROR(FIND($AD56,"施設コード"),0)>0,$AE56=""), "", '満足度(商品・サービス)'!AM56+'満足度(施設全体)'!AM56 ) ->  | AO56: =IF(OR(IFERROR(FIND($AD56,"施設コード"),0)>0,$AE56=""), "", '満足度(商品・サービス)'!AO56+'満足度(施設全体)'!AO56 ) ->  | AQ56: =IF(OR(IFERROR(FIND($AD56,"施設コード"),0)>0,$AE56=""), "", '満足度(商品・サービス)'!AQ56+'満足度(施設全体)'!AQ56 ) ->  | AS56: =IF(OR(IFERROR(FIND($AD56,"施設コード"),0)>0,$AE56=""), "", '満足度(商品・サービス)'!AS56+'満足度(施設全体)'!AS56 ) ->  | AU56: =IF(OR(IFERROR(FIND($AD56,"施設コード"),0)>0,$AE56=""), "", '満足度(商品・サービス)'!AU56+'満足度(施設全体)'!AU56 ) ->  | AW56: =IF(OR(IFERROR(FIND($AD56,"施設コード"),0)>0,$AE56=""), "", '満足度(商品・サービス)'!AW56+'満足度(施設全体)'!AW56 ) ->  | AY56: =IF(OR(IFERROR(FIND($AD56,"施設コード"),0)>0,$AE56=""), "", '満足度(商品・サービス)'!AY56+'満足度(施設全体)'!AY56 ) ->  | BA56: =IF(OR(IFERROR(FIND($AD56,"施設コード"),0)>0,$AE56=""), "", '満足度(商品・サービス)'!BA56+'満足度(施設全体)'!BA56 ) ->  | BC56: =IF(OR(IFERROR(FIND($AD56,"施設コード"),0)>0,$AE56=""), "", '満足度(商品・サービス)'!BC56+'満足度(施設全体)'!BC56 ) -> 
AA57: =IF($AE57<>"",VLOOKUP($AE57,【M】満足度!$A$1:$B$5,2,0),"") ->  | AC57: 回答エリア | AD57: 福井駅前 エリア | AG57: =IF(OR(IFERROR(FIND($AD57,"施設コード"),0)>0,$AE57=""), "", '満足度(商品・サービス)'!AG57+'満足度(施設全体)'!AG57 ) ->  | AI57: =IF(OR(IFERROR(FIND($AD57,"施設コード"),0)>0,$AE57=""), "", '満足度(商品・サービス)'!AI57+'満足度(施設全体)'!AI57 ) ->  | AK57: =IF(OR(IFERROR(FIND($AD57,"施設コード"),0)>0,$AE57=""), "", '満足度(商品・サービス)'!AK57+'満足度(施設全体)'!AK57 ) ->  | AM57: =IF(OR(IFERROR(FIND($AD57,"施設コード"),0)>0,$AE57=""), "", '満足度(商品・サービス)'!AM57+'満足度(施設全体)'!AM57 ) ->  | AO57: =IF(OR(IFERROR(FIND($AD57,"施設コード"),0)>0,$AE57=""), "", '満足度(商品・サービス)'!AO57+'満足度(施設全体)'!AO57 ) ->  | AQ57: =IF(OR(IFERROR(FIND($AD57,"施設コード"),0)>0,$AE57=""), "", '満足度(商品・サービス)'!AQ57+'満足度(施設全体)'!AQ57 ) ->  | AS57: =IF(OR(IFERROR(FIND($AD57,"施設コード"),0)>0,$AE57=""), "", '満足度(商品・サービス)'!AS57+'満足度(施設全体)'!AS57 ) ->  | AU57: =IF(OR(IFERROR(FIND($AD57,"施設コード"),0)>0,$AE57=""), "", '満足度(商品・サービス)'!AU57+'満足度(施設全体)'!AU57 ) ->  | AW57: =IF(OR(IFERROR(FIND($AD57,"施設コード"),0)>0,$AE57=""), "", '満足度(商品・サービス)'!AW57+'満足度(施設全体)'!AW57 ) ->  | AY57: =IF(OR(IFERROR(FIND($AD57,"施設コード"),0)>0,$AE57=""), "", '満足度(商品・サービス)'!AY57+'満足度(施設全体)'!AY57 ) ->  | BA57: =IF(OR(IFERROR(FIND($AD57,"施設コード"),0)>0,$AE57=""), "", '満足度(商品・サービス)'!BA57+'満足度(施設全体)'!BA57 ) ->  | BC57: =IF(OR(IFERROR(FIND($AD57,"施設コード"),0)>0,$AE57=""), "", '満足度(商品・サービス)'!BC57+'満足度(施設全体)'!BC57 ) -> 
AA58: =IF($AE58<>"",VLOOKUP($AE58,【M】満足度!$A$1:$B$5,2,0),"") ->  | AC58: 回答エリア | AD58: 福井駅前 エリア | AG58: =IF(OR(IFERROR(FIND($AD58,"施設コード"),0)>0,$AE58=""), "", '満足度(商品・サービス)'!AG58+'満足度(施設全体)'!AG58 ) ->  | AI58: =IF(OR(IFERROR(FIND($AD58,"施設コード"),0)>0,$AE58=""), "", '満足度(商品・サービス)'!AI58+'満足度(施設全体)'!AI58 ) ->  | AK58: =IF(OR(IFERROR(FIND($AD58,"施設コード"),0)>0,$AE58=""), "", '満足度(商品・サービス)'!AK58+'満足度(施設全体)'!AK58 ) ->  | AM58: =IF(OR(IFERROR(FIND($AD58,"施設コード"),0)>0,$AE58=""), "", '満足度(商品・サービス)'!AM58+'満足度(施設全体)'!AM58 ) ->  | AO58: =IF(OR(IFERROR(FIND($AD58,"施設コード"),0)>0,$AE58=""), "", '満足度(商品・サービス)'!AO58+'満足度(施設全体)'!AO58 ) ->  | AQ58: =IF(OR(IFERROR(FIND($AD58,"施設コード"),0)>0,$AE58=""), "", '満足度(商品・サービス)'!AQ58+'満足度(施設全体)'!AQ58 ) ->  | AS58: =IF(OR(IFERROR(FIND($AD58,"施設コード"),0)>0,$AE58=""), "", '満足度(商品・サービス)'!AS58+'満足度(施設全体)'!AS58 ) ->  | AU58: =IF(OR(IFERROR(FIND($AD58,"施設コード"),0)>0,$AE58=""), "", '満足度(商品・サービス)'!AU58+'満足度(施設全体)'!AU58 ) ->  | AW58: =IF(OR(IFERROR(FIND($AD58,"施設コード"),0)>0,$AE58=""), "", '満足度(商品・サービス)'!AW58+'満足度(施設全体)'!AW58 ) ->  | AY58: =IF(OR(IFERROR(FIND($AD58,"施設コード"),0)>0,$AE58=""), "", '満足度(商品・サービス)'!AY58+'満足度(施設全体)'!AY58 ) ->  | BA58: =IF(OR(IFERROR(FIND($AD58,"施設コード"),0)>0,$AE58=""), "", '満足度(商品・サービス)'!BA58+'満足度(施設全体)'!BA58 ) ->  | BC58: =IF(OR(IFERROR(FIND($AD58,"施設コード"),0)>0,$AE58=""), "", '満足度(商品・サービス)'!BC58+'満足度(施設全体)'!BC58 ) -> 
AA59: =IF($AE59<>"",VLOOKUP($AE59,【M】満足度!$A$1:$B$5,2,0),"") ->  | AC59: =AC57 -> 回答エリア | AD59: =AD57 -> 福井駅前 エリア | AE59: =IF(AE14<>"",AE14,"") ->  | AG59: =IF(OR(IFERROR(FIND($AD59,"施設コード"),0)>0,$AE59=""), "", '満足度(商品・サービス)'!AG59+'満足度(施設全体)'!AG59 ) ->  | AH59: =IFERROR(AG59/AG$60,"") ->  | AI59: =IF(OR(IFERROR(FIND($AD59,"施設コード"),0)>0,$AE59=""), "", '満足度(商品・サービス)'!AI59+'満足度(施設全体)'!AI59 ) ->  | AJ59: =IFERROR(AI59/AI$60,"") ->  | AK59: =IF(OR(IFERROR(FIND($AD59,"施設コード"),0)>0,$AE59=""), "", '満足度(商品・サービス)'!AK59+'満足度(施設全体)'!AK59 ) ->  | AL59: =IFERROR(AK59/AK$60,"") ->  | AM59: =IF(OR(IFERROR(FIND($AD59,"施設コード"),0)>0,$AE59=""), "", '満足度(商品・サービス)'!AM59+'満足度(施設全体)'!AM59 ) ->  | AN59: =IFERROR(AM59/AM$60,"") ->  | AO59: =IF(OR(IFERROR(FIND($AD59,"施設コード"),0)>0,$AE59=""), "", '満足度(商品・サービス)'!AO59+'満足度(施設全体)'!AO59 ) ->  | AP59: =IFERROR(AO59/AO$60,"") ->  | AQ59: =IF(OR(IFERROR(FIND($AD59,"施設コード"),0)>0,$AE59=""), "", '満足度(商品・サービス)'!AQ59+'満足度(施設全体)'!AQ59 ) ->  | AR59: =IFERROR(AQ59/AQ$60,"") ->  | AS59: =IF(OR(IFERROR(FIND($AD59,"施設コード"),0)>0,$AE59=""), "", '満足度(商品・サービス)'!AS59+'満足度(施設全体)'!AS59 ) ->  | AT59: =IFERROR(AS59/AS$60,"") ->  | AU59: =IF(OR(IFERROR(FIND($AD59,"施設コード"),0)>0,$AE59=""), "", '満足度(商品・サービス)'!AU59+'満足度(施設全体)'!AU59 ) ->  | AV59: =IFERROR(AU59/AU$60,"") ->  | AW59: =IF(OR(IFERROR(FIND($AD59,"施設コード"),0)>0,$AE59=""), "", '満足度(商品・サービス)'!AW59+'満足度(施設全体)'!AW59 ) ->  | AX59: =IFERROR(AW59/AW$60,"") ->  | AY59: =IF(OR(IFERROR(FIND($AD59,"施設コード"),0)>0,$AE59=""), "", '満足度(商品・サービス)'!AY59+'満足度(施設全体)'!AY59 ) ->  | AZ59: =IFERROR(AY59/AY$60,"") ->  | BA59: =IF(OR(IFERROR(FIND($AD59,"施設コード"),0)>0,$AE59=""), "", '満足度(商品・サービス)'!BA59+'満足度(施設全体)'!BA59 ) ->  | BB59: =IFERROR(BA59/BA$60,"") ->  | BC59: =IF(OR(IFERROR(FIND($AD59,"施設コード"),0)>0,$AE59=""), "", '満足度(商品・サービス)'!BC59+'満足度(施設全体)'!BC59 ) ->  | BD59: =IFERROR(BC59/BC$60,"") ->  | BF59: =IFERROR(BE59/BE$60,"") -> 
AF60: 合計 | AG60: =SUM(AG48:AG59) -> 152件 | AH60: 100.0% | AI60: 162件 | AJ60: 100.0% | AK60: 156件 | AL60: 100.0% | AM60: 128件 | AN60: 100.0% | AO60: 162件 | AP60: 100.0% | AQ60: 168件 | AR60: 100.0% | AS60: 168件 | AT60: 100.0% | AU60: 186件 | AV60: 100.0% | AW60: 0件 | AX60: 0.0% | AY60: 0件 | AZ60: 0.0% | BA60: 0件 | BB60: 0.0% | BC60: 0件 | BD60: 0.0% | BE60: 1,282件 | BF60: 100.0%
AF61: =IF(AF$16<>"",AF$16,"") -> 総合満足度スコア | AG61: =IF(AG60>0,SUMPRODUCT($AA48:$AA59,AG48:AG59)/AG60,"-") -> 4.29 | AI61: =IF(AI60>0,SUMPRODUCT($AA48:$AA59,AI48:AI59)/AI60,"-") -> 4.40 | AK61: =IF(AK60>0,SUMPRODUCT($AA48:$AA59,AK48:AK59)/AK60,"-") -> 4.26 | AM61: =IF(AM60>0,SUMPRODUCT($AA48:$AA59,AM48:AM59)/AM60,"-") -> 4.34 | AO61: =IF(AO60>0,SUMPRODUCT($AA48:$AA59,AO48:AO59)/AO60,"-") -> 4.28 | AQ61: =IF(AQ60>0,SUMPRODUCT($AA48:$AA59,AQ48:AQ59)/AQ60,"-") -> 4.39 | AS61: =IF(AS60>0,SUMPRODUCT($AA48:$AA59,AS48:AS59)/AS60,"-") -> 4.32 | AU61: =IF(AU60>0,SUMPRODUCT($AA48:$AA59,AU48:AU59)/AU60,"-") -> 4.37 | AW61: =IF(AW60>0,SUMPRODUCT($AA48:$AA59,AW48:AW59)/AW60,"-") -> - | AY61: =IF(AY60>0,SUMPRODUCT($AA48:$AA59,AY48:AY59)/AY60,"-") -> - | BA61: =IF(BA60>0,SUMPRODUCT($AA48:$AA59,BA48:BA59)/BA60,"-") -> - | BC61: =IF(BC60>0,SUMPRODUCT($AA48:$AA59,BC48:BC59)/BC60,"-") -> - | BE61: =IF(BE60>0,SUMPRODUCT($AA48:$AA59,BE48:BE59)/BE60,"-") -> 4.33

Sheet 性年代
A1: =施設コード!$A$2 -> 11月 | B1: =【M】エリア!$L$2 -> 福井県 | C1: =【M】エリア!$L$3 -> 福井市・永平寺町 | D1: =【M】エリア!$L$4 -> 福井市 | E1: =【M】エリア!$L$5 -> 福井駅前 エリア | AA1: =AG22&"（推移）" -> （推移） | AC1: 集計区分 | AE1: 性別 | AF1: 年代 | AG1: 回答数 | AH1: 回答月 | AI1: 回答月 | AJ1: 回答月 | AK1: 回答月 | AL1: 回答月 | AM1: 回答月 | AN1: 回答月 | AO1: 回答月 | AP1: 回答月 | AQ1: 回答月 | AR1: 回答月 | AS1: 回答月 | AT1: 回答月 | AU1: 回答月 | AV1: 回答月 | AW1: 回答月 | AX1: 回答月 | AY1: 回答月 | AZ1: 回答月 | BA1: 回答月 | BB1: 回答月 | BC1: 回答月 | BD1: 回答月 | BE1: 回答月 | BF1: 回答月 | BG1: 回答月
A2: 男・10代以下 | B2: =IFERROR(OFFSET(INDEX($AH$3:$BG$20, MATCH($A2,$AA$3:$AA$20,0),MATCH($A$1,$AH$2:$BG$2,0)),0,1),"") -> 0.0% | C2: =IFERROR(OFFSET(INDEX($AH$24:$BG$41, MATCH($A2,$AA$24:$AA$41,0),MATCH($A$1,$AH$2:$BG$2,0)),0,1),"") -> 0.0% | D2: =IFERROR(OFFSET(INDEX($AH$45:$BG$62, MATCH($A2,$AA$45:$AA$62,0),MATCH($A$1,$AH$2:$BG$2,0)),0,1),"") -> 0.0% | E2: =IFERROR(OFFSET(INDEX($AH$66:$BG$83, MATCH($A2,$AA$66:$AA$83,0),MATCH($A$1,$AH$2:$BG$2,0)),0,1),"") -> 0.0% | AC2: 都道府県 | AD2: =【M】エリア!$L$2 -> 福井県 | AH2: 4月 | AJ2: 5月 | AL2: 6月 | AN2: 7月 | AP2: 8月 | AR2: 9月 | AT2: 10月 | AV2: 11月 | AX2: 12月 | AZ2: 1月 | BB2: 2月 | BD2: 3月 | BF2: 通年
A3: 男・20代 | B3: =IFERROR(OFFSET(INDEX($AH$3:$BG$20, MATCH($A3,$AA$3:$AA$20,0),MATCH($A$1,$AH$2:$BG$2,0)),0,1),"") -> 2.6% | C3: =IFERROR(OFFSET(INDEX($AH$24:$BG$41, MATCH($A3,$AA$24:$AA$41,0),MATCH($A$1,$AH$2:$BG$2,0)),0,1),"") -> 3.7% | D3: =IFERROR(OFFSET(INDEX($AH$45:$BG$62, MATCH($A3,$AA$45:$AA$62,0),MATCH($A$1,$AH$2:$BG$2,0)),0,1),"") -> 5.0% | E3: =IFERROR(OFFSET(INDEX($AH$66:$BG$83, MATCH($A3,$AA$66:$AA$83,0),MATCH($A$1,$AH$2:$BG$2,0)),0,1),"") -> 9.7% | AA3: =AE3&"・"&AF3 -> 男・10代以下 | AC3: =AC2 -> 都道府県 | AD3: =AD2 -> 福井県 | AE3: 男 | AF3: 10代以下 | AH3: =IF(OR(IFERROR(FIND($AD3,"施設コード"),0)>0,$AF3=""), "", COUNTIFS( INDEX(rawデータ範囲, , MATCH($AH$1,表頭範囲, 0)),AH$2, INDEX(rawデータ範囲, , MATCH($AE$1,表頭範囲, 0)),$AE3, INDEX(rawデータ範囲, , MATCH($AF$1,表頭範囲, 0)),$AF3 ) ) -> 0件 | AI3: =IFERROR(AH3/AH$21,"") -> 0.0% | AJ3: =IF(OR(IFERROR(FIND($AD3,"施設コード"),0)>0,$AF3=""), "", COUNTIFS( INDEX(rawデータ範囲, , MATCH($AH$1,表頭範囲, 0)),AJ$2, INDEX(rawデータ範囲, , MATCH($AE$1,表頭範囲, 0)),$AE3, INDEX(rawデータ範囲, , MATCH($AF$1,表頭範囲, 0)),$AF3 ) ) -> 0件 | AK3: =IFERROR(AJ3/AJ$21,"") -> 0.0% | AL3: =IF(OR(IFERROR(FIND($AD3,"施設コード"),0)>0,$AF3=""), "", COUNTIFS( INDEX(rawデータ範囲, , MATCH($AH$1,表頭範囲, 0)),AL$2, INDEX(rawデータ範囲, , MATCH($AE$1,表頭範囲, 0)),$AE3, INDEX(rawデータ範囲, , MATCH($AF$1,表頭範囲, 0)),$AF3 ) ) -> 0件 | AM3: =IFERROR(AL3/AL$21,"") -> 0.0% | AN3: =IF(OR(IFERROR(FIND($AD3,"施設コード"),0)>0,$AF3=""), "", COUNTIFS( INDEX(rawデータ範囲, , MATCH($AH$1,表頭範囲, 0)),AN$2, INDEX(rawデータ範囲, , MATCH($AE$1,表頭範囲, 0)),$AE3, INDEX(rawデータ範囲, , MATCH($AF$1,表頭範囲, 0)),$AF3 ) ) -> 0件 | AO3: =IFERROR(AN3/AN$21,"") -> 0.0% | AP3: =IF(OR(IFERROR(FIND($AD3,"施設コード"),0)>0,$AF3=""), "", COUNTIFS( INDEX(rawデータ範囲, , MATCH($AH$1,表頭範囲, 0)),AP$2, INDEX(rawデータ範囲, , MATCH($AE$1,表頭範囲, 0)),$AE3, INDEX(rawデータ範囲, , MATCH($AF$1,表頭範囲, 0)),$AF3 ) ) -> 0件 | AQ3: =IFERROR(AP3/AP$21,"") -> 0.0% | AR3: =IF(OR(IFERROR(FIND($AD3,"施設コード"),0)>0,$AF3=""), "", COUNTIFS( INDEX(rawデータ範囲, , MATCH($AH$1,表頭範囲, 0)),AR$2, INDEX(rawデータ範囲, , MATCH($AE$1,表頭範囲, 0)),$AE3, INDEX(rawデータ範囲, , MATCH($AF$1,表頭範囲, 0)),$AF3 ) ) -> 0件 | AS3: =IFERROR(AR3/AR$21,"") -> 0.0% | AT3: =IF(OR(IFERROR(FIND($AD3,"施設コード"),0)>0,$AF3=""), "", COUNTIFS( INDEX(rawデータ範囲, , MATCH($AH$1,表頭範囲, 0)),AT$2, INDEX(rawデータ範囲, , MATCH($AE$1,表頭範囲, 0)),$AE3, INDEX(rawデータ範囲, , MATCH($AF$1,表頭範囲, 0)),$AF3 ) ) -> 0件 | AU3: =IFERROR(AT3/AT$21,"") -> 0.0% | AV3: =IF(OR(IFERROR(FIND($AD3,"施設コード"),0)>0,$AF3=""), "", COUNTIFS( INDEX(rawデータ範囲, , MATCH($AH$1,表頭範囲, 0)),AV$2, INDEX(rawデータ範囲, , MATCH($AE$1,表頭範囲, 0)),$AE3, INDEX(rawデータ範囲, , MATCH($AF$1,表頭範囲, 0)),$AF3 ) ) -> 0件 | AW3: =IFERROR(AV3/AV$21,"") -> 0.0% | AX3: =IF(OR(IFERROR(FIND($AD3,"施設コード"),0)>0,$AF3=""), "", COUNTIFS( INDEX(rawデータ範囲, , MATCH($AH$1,表頭範囲, 0)),AX$2, INDEX(rawデータ範囲, , MATCH($AE$1,表頭範囲, 0)),$AE3, INDEX(rawデータ範囲, , MATCH($AF$1,表頭範囲, 0)),$AF3 ) ) -> 0件 | AY3: =IFERROR(AX3/AX$21,"") ->  | AZ3: =IF(OR(IFERROR(FIND($AD3,"施設コード"),0)>0,$AF3=""), "", COUNTIFS( INDEX(rawデータ範囲, , MATCH($AH$1,表頭範囲, 0)),AZ$2, INDEX(rawデータ範囲, , MATCH($AE$1,表頭範囲, 0)),$AE3, INDEX(rawデータ範囲, , MATCH($AF$1,表頭範囲, 0)),$AF3 ) ) -> 0件 | BA3: =IFERROR(AZ3/AZ$21,"") ->  | BB3: =IF(OR(IFERROR(FIND($AD3,"施設コード"),0)>0,$AF3=""), "", COUNTIFS( INDEX(rawデータ範囲, , MATCH($AH$1,表頭範囲, 0)),BB$2, INDEX(rawデータ範囲, , MATCH($AE$1,表頭範囲, 0)),$AE3, INDEX(rawデータ範囲, , MATCH($AF$1,表頭範囲, 0)),$AF3 ) ) -> 0件 | BC3: =IFERROR(BB3/BB$21,"") ->  | BD3: =IF(OR(IFERROR(FIND($AD3,"施設コード"),0)>0,$AF3=""), "", COUNTIFS( INDEX(rawデータ範囲, , MATCH($AH$1,表頭範囲, 0)),BD$2, INDEX(rawデータ範囲, , MATCH($AE$1,表頭範囲, 0)),$AE3, INDEX(rawデータ範囲, , MATCH($AF$1,表頭範囲, 0)),$AF3 ) ) -> 0件 | BE3: =IFERROR(BD3/BD$21,"") ->  | BF3: =IFERROR(AH3+AJ3+AL3+AN3+AP3+AR3+AT3+AV3+AX3+AZ3+BB3+BD3,"") -> 0件 | BG3: =IFERROR(BF3/BF$21,"") -> 0.0%
A4: 男・30代 | B4: 5.4% | C4: 6.3% | D4: 6.7% | E4: 11.8% | AA4: =AE4&"・"&AF4 -> 男・20代 | AC4: =AC3 -> 都道府県 | AD4: 福井県 | AE4: 男 | AF4: 20代 | AH4: 48件 | AI4: =IFERROR(AH4/AH$21,"") -> 2.8% | AJ4: 70件 | AK4: 2.4% | AL4: 52件 | AM4: =IFERROR(AL4/AL$21,"") -> 2.9% | AN4: 48件 | AO4: =IFERROR(AN4/AN$21,"") -> 2.8% | AP4: 58件 | AQ4: =IFERROR(AP4/AP$21,"") -> 2.6% | AR4: 64件 | AS4: =IFERROR(AR4/AR$21,"") -> 2.8% | AT4: 39件 | AU4: =IFERROR(AT4/AT$21,"") -> 2.2% | AV4: 56件 | AW4: =IFERROR(AV4/AV$21,"") -> 2.6% | AX4: 0件 | AY4: =IFERROR(AX4/AX$21,"") ->  | AZ4: 0件 | BA4: =IFERROR(AZ4/AZ$21,"") ->  | BB4: 0件 | BC4: =IFERROR(BB4/BB$21,"") ->  | BD4: 0件 | BE4: =IFERROR(BD4/BD$21,"") ->  | BF4: =IFERROR(AH4+AJ4+AL4+AN4+AP4+AR4+AT4+AV4+AX4+AZ4+BB4+BD4,"") -> 435件 | BG4: =IFERROR(BF4/BF$21,"") -> 2.6%
A5: 男・40代 | B5: 5.8% | C5: 7.1% | D5: 7.8% | E5: 7.5% | AA5: 男・30代 | AC5: 都道府県 | AD5: 福井県 | AE5: =AE4 -> 男 | AF5: 30代 | AH5: 105件 | AI5: 6.2% | AJ5: 174件 | AK5: 5.9% | AL5: 113件 | AM5: =IFERROR(AL5/AL$21,"") -> 6.2% | AN5: 91件 | AO5: =IFERROR(AN5/AN$21,"") -> 5.3% | AP5: 145件 | AQ5: =IFERROR(AP5/AP$21,"") -> 6.6% | AR5: 195件 | AS5: =IFERROR(AR5/AR$21,"") -> 8.5% | AT5: 101件 | AU5: =IFERROR(AT5/AT$21,"") -> 5.6% | AV5: 115件 | AW5: =IFERROR(AV5/AV$21,"") -> 5.4% | AX5: 0件 | AY5: =IFERROR(AX5/AX$21,"") ->  | AZ5: 0件 | BA5: =IFERROR(AZ5/AZ$21,"") ->  | BB5: 0件 | BC5: =IFERROR(BB5/BB$21,"") ->  | BD5: 0件 | BE5: =IFERROR(BD5/BD$21,"") ->  | BF5: 1039件 | BG5: 6.3%
A6: 男・50代 | B6: 12.6% | C6: 12.7% | D6: 11.2% | E6: 10.8% | AA6: 男・40代 | AC6: 都道府県 | AD6: 福井県 | AE6: =AE5 -> 男 | AF6: 40代 | AH6: 127件 | AI6: 7.5% | AJ6: 210件 | AK6: 7.1% | AL6: 132件 | AM6: =IFERROR(AL6/AL$21,"") -> 7.2% | AN6: 126件 | AO6: =IFERROR(AN6/AN$21,"") -> 7.3% | AP6: 217件 | AQ6: =IFERROR(AP6/AP$21,"") -> 9.8% | AR6: 193件 | AS6: =IFERROR(AR6/AR$21,"") -> 8.4% | AT6: 114件 | AU6: =IFERROR(AT6/AT$21,"") -> 6.4% | AV6: 122件 | AW6: =IFERROR(AV6/AV$21,"") -> 5.8% | AX6: 0件 | AY6: =IFERROR(AX6/AX$21,"") ->  | AZ6: 0件 | BA6: =IFERROR(AZ6/AZ$21,"") ->  | BB6: 0件 | BC6: =IFERROR(BB6/BB$21,"") ->  | BD6: 0件 | BE6: =IFERROR(BD6/BD$21,"") ->  | BF6: 1241件 | BG6: 7.5%
A7: 男・60代 | B7: 13.9% | C7: 11.3% | D7: 9.5% | E7: 5.4% | AA7: 男・50代 | AC7: 都道府県 | AD7: 福井県 | AE7: =AE6 -> 男 | AF7: 50代 | AH7: 245件 | AI7: 14.5% | AJ7: 440件 | AK7: 14.9% | AL7: 284件 | AM7: =IFERROR(AL7/AL$21,"") -> 15.6% | AN7: 265件 | AO7: =IFERROR(AN7/AN$21,"") -> 15.4% | AP7: 317件 | AQ7: =IFERROR(AP7/AP$21,"") -> 14.4% | AR7: 335件 | AS7: =IFERROR(AR7/AR$21,"") -> 14.6% | AT7: 240件 | AU7: =IFERROR(AT7/AT$21,"") -> 13.4% | AV7: 267件 | AW7: =IFERROR(AV7/AV$21,"") -> 12.6% | AX7: 0件 | AY7: =IFERROR(AX7/AX$21,"") ->  | AZ7: 0件 | BA7: =IFERROR(AZ7/AZ$21,"") ->  | BB7: 0件 | BC7: =IFERROR(BB7/BB$21,"") ->  | BD7: 0件 | BE7: =IFERROR(BD7/BD$21,"") ->  | BF7: 2393件 | BG7: 14.4%
A8: 男・70代 | B8: 2.6% | C8: 1.3% | D8: 1.7% | E8: 1.1% | AA8: 男・60代 | AC8: =AC7 -> 都道府県 | AD8: 福井県 | AE8: 男 | AF8: 60代 | AH8: 216件 | AI8: 12.8% | AJ8: 419件 | AK8: 14.2% | AL8: 242件 | AM8: =IFERROR(AL8/AL$21,"") -> 13.3% | AN8: 228件 | AO8: =IFERROR(AN8/AN$21,"") -> 13.2% | AP8: 199件 | AQ8: =IFERROR(AP8/AP$21,"") -> 9.0% | AR8: 234件 | AS8: =IFERROR(AR8/AR$21,"") -> 10.2% | AT8: 208件 | AU8: =IFERROR(AT8/AT$21,"") -> 11.6% | AV8: 293件 | AW8: =IFERROR(AV8/AV$21,"") -> 13.9% | AX8: 0件 | AY8: =IFERROR(AX8/AX$21,"") ->  | AZ8: 0件 | BA8: =IFERROR(AZ8/AZ$21,"") ->  | BB8: 0件 | BC8: =IFERROR(BB8/BB$21,"") ->  | BD8: 0件 | BE8: =IFERROR(BD8/BD$21,"") ->  | BF8: 2039件 | BG8: 12.3%
A9: 男・80代以上 | B9: 0.0% | C9: 0.0% | D9: 0.0% | E9: 0.0% | AA9: 男・70代 | AC9: =AC8 -> 都道府県 | AD9: 福井県 | AE9: 男 | AF9: 70代 | AH9: 59件 | AI9: 3.5% | AJ9: 75件 | AK9: 2.5% | AL9: 47件 | AM9: =IFERROR(AL9/AL$21,"") -> 2.6% | AN9: 42件 | AO9: =IFERROR(AN9/AN$21,"") -> 2.4% | AP9: 23件 | AQ9: =IFERROR(AP9/AP$21,"") -> 1.0% | AR9: 51件 | AS9: =IFERROR(AR9/AR$21,"") -> 2.2% | AT9: 40件 | AU9: =IFERROR(AT9/AT$21,"") -> 2.2% | AV9: 54件 | AW9: =IFERROR(AV9/AV$21,"") -> 2.6% | AX9: 0件 | AY9: =IFERROR(AX9/AX$21,"") ->  | AZ9: 0件 | BA9: =IFERROR(AZ9/AZ$21,"") ->  | BB9: 0件 | BC9: =IFERROR(BB9/BB$21,"") ->  | BD9: 0件 | BE9: =IFERROR(BD9/BD$21,"") ->  | BF9: 391件 | BG9: 2.4%
A10: 女・10代以下 | B10: 0.0% | C10: 0.0% | D10: 0.0% | E10: 0.0% | AA10: 男・80代以上 | AC10: =AC9 -> 都道府県 | AD10: 福井県 | AE10: 男 | AF10: 80代以上 | AH10: 0件 | AI10: 0.0% | AJ10: 0件 | AK10: 0.0% | AL10: 0件 | AM10: =IFERROR(AL10/AL$21,"") -> 0.0% | AN10: 0件 | AO10: =IFERROR(AN10/AN$21,"") -> 0.0% | AP10: 0件 | AQ10: =IFERROR(AP10/AP$21,"") -> 0.0% | AR10: 0件 | AS10: =IFERROR(AR10/AR$21,"") -> 0.0% | AT10: 0件 | AU10: =IFERROR(AT10/AT$21,"") -> 0.0% | AV10: 0件 | AW10: =IFERROR(AV10/AV$21,"") -> 0.0% | AX10: 0件 | AY10: =IFERROR(AX10/AX$21,"") ->  | AZ10: 0件 | BA10: =IFERROR(AZ10/AZ$21,"") ->  | BB10: 0件 | BC10: =IFERROR(BB10/BB$21,"") ->  | BD10: 0件 | BE10: =IFERROR(BD10/BD$21,"") ->  | BF10: 0件 | BG10: 0.0%
A11: 女・20代 | B11: 3.9% | C11: 5.8% | D11: 5.6% | E11: 8.6% | AA11: 女・10代以下 | AC11: =AC10 -> 都道府県 | AD11: 福井県 | AE11: 女 | AF11: 10代以下 | AH11: 0件 | AI11: 0.0% | AJ11: 0件 | AK11: 0.0% | AL11: 0件 | AM11: =IFERROR(AL11/AL$21,"") -> 0.0% | AN11: 0件 | AO11: =IFERROR(AN11/AN$21,"") -> 0.0% | AP11: 0件 | AQ11: =IFERROR(AP11/AP$21,"") -> 0.0% | AR11: 0件 | AS11: =IFERROR(AR11/AR$21,"") -> 0.0% | AT11: 0件 | AU11: =IFERROR(AT11/AT$21,"") -> 0.0% | AV11: 0件 | AW11: =IFERROR(AV11/AV$21,"") -> 0.0% | AX11: 0件 | AY11: =IFERROR(AX11/AX$21,"") ->  | AZ11: 0件 | BA11: =IFERROR(AZ11/AZ$21,"") ->  | BB11: 0件 | BC11: =IFERROR(BB11/BB$21,"") ->  | BD11: 0件 | BE11: =IFERROR(BD11/BD$21,"") ->  | BF11: 0件 | BG11: 0.0%
A12: 女・30代 | B12: 6.9% | C12: 9.2% | D12: 10.6% | E12: 9.7% | AA12: 女・20代 | AC12: =AC11 -> 都道府県 | AD12: 福井県 | AE12: 女 | AF12: 20代 | AH12: 78件 | AI12: 4.6% | AJ12: 128件 | AK12: 4.3% | AL12: 85件 | AM12: =IFERROR(AL12/AL$21,"") -> 4.7% | AN12: 76件 | AO12: =IFERROR(AN12/AN$21,"") -> 4.4% | AP12: 104件 | AQ12: =IFERROR(AP12/AP$21,"") -> 4.7% | AR12: 100件 | AS12: =IFERROR(AR12/AR$21,"") -> 4.4% | AT12: 57件 | AU12: =IFERROR(AT12/AT$21,"") -> 3.2% | AV12: 83件 | AW12: =IFERROR(AV12/AV$21,"") -> 3.9% | AX12: 0件 | AY12: =IFERROR(AX12/AX$21,"") ->  | AZ12: 0件 | BA12: =IFERROR(AZ12/AZ$21,"") ->  | BB12: 0件 | BC12: =IFERROR(BB12/BB$21,"") ->  | BD12: 0件 | BE12: =IFERROR(BD12/BD$21,"") ->  | BF12: 711件 | BG12: 4.3%
A13: 女・40代 | B13: 9.2% | C13: 9.0% | D13: 7.3% | E13: 4.3% | AA13: 女・30代 | AC13: =AC12 -> 都道府県 | AD13: 福井県 | AE13: 女 | AF13: 30代 | AH13: 149件 | AI13: 8.8% | AJ13: 232件 | AK13: 7.9% | AL13: 130件 | AM13: =IFERROR(AL13/AL$21,"") -> 7.1% | AN13: 135件 | AO13: =IFERROR(AN13/AN$21,"") -> 7.8% | AP13: 174件 | AQ13: =IFERROR(AP13/AP$21,"") -> 7.9% | AR13: 198件 | AS13: =IFERROR(AR13/AR$21,"") -> 8.6% | AT13: 137件 | AU13: =IFERROR(AT13/AT$21,"") -> 7.6% | AV13: 145件 | AW13: =IFERROR(AV13/AV$21,"") -> 6.9% | AX13: 0件 | AY13: =IFERROR(AX13/AX$21,"") ->  | AZ13: 0件 | BA13: =IFERROR(AZ13/AZ$21,"") ->  | BB13: 0件 | BC13: =IFERROR(BB13/BB$21,"") ->  | BD13: 0件 | BE13: =IFERROR(BD13/BD$21,"") ->  | BF13: 1300件 | BG13: 7.8%
A14: 女・50代 | B14: 17.4% | C14: 17.4% | D14: 15.6% | E14: 14.0% | AA14: 女・40代 | AC14: =AC13 -> 都道府県 | AD14: 福井県 | AE14: 女 | AF14: 40代 | AH14: 175件 | AI14: 10.4% | AJ14: 286件 | AK14: 9.7% | AL14: 143件 | AM14: =IFERROR(AL14/AL$21,"") -> 7.8% | AN14: 166件 | AO14: =IFERROR(AN14/AN$21,"") -> 9.6% | AP14: 273件 | AQ14: =IFERROR(AP14/AP$21,"") -> 12.4% | AR14: 185件 | AS14: =IFERROR(AR14/AR$21,"") -> 8.1% | AT14: 225件 | AU14: =IFERROR(AT14/AT$21,"") -> 12.6% | AV14: 195件 | AW14: =IFERROR(AV14/AV$21,"") -> 9.2% | AX14: 0件 | AY14: =IFERROR(AX14/AX$21,"") ->  | AZ14: 0件 | BA14: =IFERROR(AZ14/AZ$21,"") ->  | BB14: 0件 | BC14: =IFERROR(BB14/BB$21,"") ->  | BD14: 0件 | BE14: =IFERROR(BD14/BD$21,"") ->  | BF14: 1648件 | BG14: 9.9%
A15: 女・60代 | B15: 13.8% | C15: 11.1% | D15: 12.8% | E15: 10.8% | AA15: 女・50代 | AC15: =AC14 -> 都道府県 | AD15: 福井県 | AE15: 女 | AF15: 50代 | AH15: 280件 | AI15: 16.6% | AJ15: 470件 | AK15: 15.9% | AL15: 318件 | AM15: =IFERROR(AL15/AL$21,"") -> 17.5% | AN15: 299件 | AO15: =IFERROR(AN15/AN$21,"") -> 17.4% | AP15: 395件 | AQ15: =IFERROR(AP15/AP$21,"") -> 17.9% | AR15: 427件 | AS15: =IFERROR(AR15/AR$21,"") -> 18.6% | AT15: 317件 | AU15: =IFERROR(AT15/AT$21,"") -> 17.7% | AV15: 368件 | AW15: =IFERROR(AV15/AV$21,"") -> 17.4% | AX15: 0件 | AY15: =IFERROR(AX15/AX$21,"") ->  | AZ15: 0件 | BA15: =IFERROR(AZ15/AZ$21,"") ->  | BB15: 0件 | BC15: =IFERROR(BB15/BB$21,"") ->  | BD15: 0件 | BE15: =IFERROR(BD15/BD$21,"") ->  | BF15: 2874件 | BG15: 17.3%
A16: 女・70代 | B16: 1.8% | C16: 1.1% | D16: 0.0% | E16: 0.0% | AA16: 女・60代 | AC16: =AC15 -> 都道府県 | AD16: 福井県 | AE16: 女 | AF16: 60代 | AH16: 138件 | AI16: 8.2% | AJ16: 292件 | AK16: 9.9% | AL16: 194件 | AM16: =IFERROR(AL16/AL$21,"") -> 10.6% | AN16: 159件 | AO16: =IFERROR(AN16/AN$21,"") -> 9.2% | AP16: 178件 | AQ16: =IFERROR(AP16/AP$21,"") -> 8.1% | AR16: 217件 | AS16: =IFERROR(AR16/AR$21,"") -> 9.5% | AT16: 215件 | AU16: =IFERROR(AT16/AT$21,"") -> 12.0% | AV16: 291件 | AW16: =IFERROR(AV16/AV$21,"") -> 13.8% | AX16: 0件 | AY16: =IFERROR(AX16/AX$21,"") ->  | AZ16: 0件 | BA16: =IFERROR(AZ16/AZ$21,"") ->  | BB16: 0件 | BC16: =IFERROR(BB16/BB$21,"") ->  | BD16: 0件 | BE16: =IFERROR(BD16/BD$21,"") ->  | BF16: 1684件 | BG16: 10.2%
A17: 女・80代以上 | B17: 0.0% | C17: 0.0% | D17: 0.0% | E17: 0.0% | AA17: 女・70代 | AC17: =AC16 -> 都道府県 | AD17: 福井県 | AE17: 女 | AF17: 70代 | AH17: 17件 | AI17: 1.0% | AJ17: 52件 | AK17: 1.8% | AL17: 28件 | AM17: =IFERROR(AL17/AL$21,"") -> 1.5% | AN17: 25件 | AO17: =IFERROR(AN17/AN$21,"") -> 1.5% | AP17: 28件 | AQ17: =IFERROR(AP17/AP$21,"") -> 1.3% | AR17: 20件 | AS17: =IFERROR(AR17/AR$21,"") -> 0.9% | AT17: 31件 | AU17: =IFERROR(AT17/AT$21,"") -> 1.7% | AV17: 38件 | AW17: =IFERROR(AV17/AV$21,"") -> 1.8% | AX17: 0件 | AY17: =IFERROR(AX17/AX$21,"") ->  | AZ17: 0件 | BA17: =IFERROR(AZ17/AZ$21,"") ->  | BB17: 0件 | BC17: =IFERROR(BB17/BB$21,"") ->  | BD17: 0件 | BE17: =IFERROR(BD17/BD$21,"") ->  | BF17: 239件 | BG17: 1.4%
A18: その他・無回答 | B18: =IFERROR(B20+B21,"") -> 4.1% | C18: =IFERROR(C20+C21,"") -> 4.0% | D18: 6.1% | E18: 6.5% | AA18: 女・80代以上 | AC18: =AC17 -> 都道府県 | AD18: 福井県 | AE18: 女 | AF18: 80代以上 | AH18: 0件 | AI18: 0.0% | AJ18: 0件 | AK18: 0.0% | AL18: 0件 | AM18: =IFERROR(AL18/AL$21,"") -> 0.0% | AN18: 0件 | AO18: =IFERROR(AN18/AN$21,"") -> 0.0% | AP18: 0件 | AQ18: =IFERROR(AP18/AP$21,"") -> 0.0% | AR18: 0件 | AS18: =IFERROR(AR18/AR$21,"") -> 0.0% | AT18: 0件 | AU18: =IFERROR(AT18/AT$21,"") -> 0.0% | AV18: 0件 | AW18: =IFERROR(AV18/AV$21,"") -> 0.0% | AX18: 0件 | AY18: =IFERROR(AX18/AX$21,"") ->  | AZ18: 0件 | BA18: =IFERROR(AZ18/AZ$21,"") ->  | BB18: 0件 | BC18: =IFERROR(BB18/BB$21,"") ->  | BD18: 0件 | BE18: =IFERROR(BD18/BD$21,"") ->  | BF18: 0件 | BG18: 0.0%
A19: （以下計算） | AA19: その他・<> | AC19: 都道府県 | AD19: 福井県 | AE19: その他 | AF19: <> | AH19: 9件 | AI19: 0.5% | AJ19: 21件 | AK19: 0.7% | AL19: 9件 | AM19: =IFERROR(AL19/AL$21,"") -> 0.5% | AN19: 11件 | AO19: =IFERROR(AN19/AN$21,"") -> 0.6% | AP19: 21件 | AQ19: =IFERROR(AP19/AP$21,"") -> 1.0% | AR19: 14件 | AS19: =IFERROR(AR19/AR$21,"") -> 0.6% | AT19: 12件 | AU19: =IFERROR(AT19/AT$21,"") -> 0.7% | AV19: 13件 | AW19: =IFERROR(AV19/AV$21,"") -> 0.6% | AX19: 0件 | AY19: =IFERROR(AX19/AX$21,"") ->  | AZ19: 0件 | BA19: =IFERROR(AZ19/AZ$21,"") ->  | BB19: 0件 | BC19: =IFERROR(BB19/BB$21,"") ->  | BD19: 0件 | BE19: =IFERROR(BD19/BD$21,"") ->  | BF19: 110件 | BG19: 0.7%
A20: その他・<> | B20: 0.6% | C20: 1.3% | D20: 1.7% | E20: 1.1% | AA20: 無回答・<> | AC20: =AC18 -> 都道府県 | AD20: =AD18 -> 福井県 | AE20: 無回答 | AF20: <> | AH20: 40件 | AI20: 2.4% | AJ20: 84件 | AK20: 2.8% | AL20: 45件 | AM20: =IFERROR(AL20/AL$21,"") -> 2.5% | AN20: 51件 | AO20: =IFERROR(AN20/AN$21,"") -> 3.0% | AP20: 73件 | AQ20: =IFERROR(AP20/AP$21,"") -> 3.3% | AR20: 57件 | AS20: =IFERROR(AR20/AR$21,"") -> 2.5% | AT20: 56件 | AU20: =IFERROR(AT20/AT$21,"") -> 3.1% | AV20: 74件 | AW20: =IFERROR(AV20/AV$21,"") -> 3.5% | AX20: 0件 | AY20: =IFERROR(AX20/AX$21,"") ->  | AZ20: 0件 | BA20: =IFERROR(AZ20/AZ$21,"") ->  | BB20: 0件 | BC20: =IFERROR(BB20/BB$21,"") ->  | BD20: 0件 | BE20: =IFERROR(BD20/BD$21,"") ->  | BF20: 480件 | BG20: 2.9%
A21: 無回答・<> | B21: 3.5% | C21: 2.6% | D21: 4.5% | E21: 5.4% | AG21: 合計 | AH21: =SUM(AH3:AH20) -> 1,686件 | AI21: 100.0% | AJ21: 2,953件 | AK21: 100.0% | AL21: 1,822件 | AM21: 100.0% | AN21: 1,722件 | AO21: 100.0% | AP21: 2,205件 | AQ21: 100.0% | AR21: 2,290件 | AS21: 100.0% | AT21: 1,792件 | AU21: 100.0% | AV21: 2,114件 | AW21: 100.0% | AX21: 0件 | AY21: 0.0% | AZ21: 0件 | BA21: 0.0% | BB21: 0件 | BC21: 0.0% | BD21: 0件 | BE21: 0.0% | BF21: =AH21+AJ21+AL21+AN21+AP21+AR21+AT21+AV21+AX21+AZ21+BB21+BD21 -> 16,584件 | BG21: =SUM(BG3:BG20) -> 100.0%
AC23: =【M】エリア!$J$2 -> 6分類 | AD23: =【M】エリア!$L$3 -> 福井市・永平寺町
